Workbook

Sheet INTRO
B2: Joint request for selected PC medicines v.4.2
B4: As part of global efforts to accelerate expansion of preventive chemotherapy (PC) for control and elimination of lymphatic filariasis, schistosomiasis and soil-transmitted helminthiases, the World Health Organization (WHO) facilitates the supply of albendazole 400 mg tablets (GSK) to national lymphatic filariasis elimination programmes and national soil-transmitted helminth control programmes; diethylcarbamazine citrate 100 mg tablets (Eisai) to national lymphatic filariasis elimination programmes; mebendazole 500 mg tablets (J&J) for national soil-transmitted helminth control programmes; and praziquantel 600 mg tablets (Merck KGaA) for school-age children to national schistosomiasis control programmes. WHO also collaborates to supply ivermectin 3 mg tablets (Merck) for onchocerciasis and lymphatic filariasis donation programmes. This Excel-based tool is designed to assist countries in quantifying the number of tablets of relevant PC medicines required to reach the planned target population and districts for the year of request. Output of the tool is a joint request for PC medicines, which can be printed, signed and submitted to WHO to request these medicines.
B6: Structure of the application (worksheets):
B8: INTRO | C8: This worksheet includes guides on how to complete the joint request for selected PC medicines and information about the status of PC for endemic diseases in the country.
B9: COUNTRY_INFO | C9: This worksheet includes information about administrative structure of the country, population by age group, status of endemicity for each disease, population requiring PC and planned interventions.
B10: DEC, ALB_MBD, PZQ and IVM | C10: These worksheets include information about endemic districts targeted for treatment with specified PC medicines, treatment plan, and number of tablets required and requested.
B11: SUMMARY | C11: This worksheet includes summary of number of tablets requested, information about stock, and date for submission of requested medicines. Before generating the report (run macros) please select the medicine for which the report is needed. Follow the same rule to see the number of people to be treated for the specific disease. This worksheet should be printed and submitted as a joint request for selected PC medicines (see the instruction for submission in the SUMMARY worksheet).
B13: Instruction for data entry
B15: Most of the cells in the above-mentioned worksheets include formula that are calculated automatically according to the treatment policy recommended by WHO for each disease. See the link https://www.who.int/publications/i/item/9789241599993.
B17: Please enter your data into the cells according to their colour code:
C19: White - cell is not protected. Please enter the value of the requested indicator.
C21: Yellow - cell is protected and includes name of indicator. No data entry required.
C23: Orange - cell is not protected and includes a drop-down menu. Please select the value from the drop-down list.
C26: Green - cell is not protected and includes formula. Please change the value only if your data are different from those that are calculated automatically.
C29: Blue - cell is protected and includes formula. No data entry required.
B31: Country data
B33: COUNTRY | E33: Ethiopia | G33: ET | H33: ETH
E34: 5
B35: Year for request of the medicine | E35: 2024
B37: Is country endemic for lymphatic filariasis (LF)? | E37: Endemic
B39: Is country endemic for onchocerciasis (ONCHO)? | E39: Endemic
B41: Is country endemic for soil-transmitted helminthiases (STH)? | E41: Endemic
B43: Is country endemic for schistosomiasis (SCH)? | E43: Endemic
B45: How many administrative units in the country? | E45: 1030
B47: If demographical data at the second administrative level are not available by age group, please enter the proportion (%) of population by age group in the country. If data are available, please leave these cells blank.
B48: 1-4 years age | C48: Preschool-age children (PreSAC) | E48: 0.1060010857
B49: 5-14 years age | C49: School-age children (SAC) | E49: 0.2973
B50: 15 years + | C50: Adults | E50: 0.5768574659
B51: 15-49 years | C51: Women of reproductive age (WRA)

Sheet COUNTRY_INFO
A1: COUNTRY INFORMATION
A2: Administrative structure, population by age group, status of endemicity and planned interventions
A4: TOTAL | D4: =SUBTOTAL(9,D$10:D$1100) -> 115910320.1 | E4: =SUBTOTAL(9,E$10:E$1100) -> 12286613 | F4: 34460148 | G4: 66863737 | L4: =SUBTOTAL(9,L$10:L$1100) -> 5491605.696 | M4: 29591373.93 | N4: 7921791 | O4: 22218154 | P4: 0 | Q4: 30139945 | R4: 3413916 | S4: 12766405 | T4: 24770906 | U4: 40951227
A6: Country administrative structure | D6: Population | H6: Endemicity | L6: Population requiring PC | V6: Number of treatment rounds planned for the year | Z6: Criteria to apply for IVM+DEC+ALB therapy | AA6: Epidemiological surveys planned for the year
A7: Country | B7: Province/State | C7: District | D7: Total | E7: PreSAC | F7: SAC | G7: Adults | H7: LF | I7: Oncho | J7: STH | K7: SCH | L7: LF | M7: ONCHO | N7: STH | R7: SCH | V7: LF | W7: Oncho | X7: STH | Y7: SCH | Z7: LF | AA7: LF | AB7: Oncho | AC7: STH | AD7: SCH
N8: PreSAC | O8: SAC | P8: WRA | Q8: TOTAL | R8: PreSAC | S8: SAC | T8: Adults | U8: TOTAL | AF8: 2024 | AH8: IU_ID | AI8: IU_Name | AJ8: Parent1_IU_ID | AK8: Parent1_IU_Name | AL8: Parent2_IU_ID | AM8: Parent2_IU_Name | AN8: Parent3_IU_ID | AO8: Parent3_IU_Name | AP8: Parent4_IU_ID | AQ8: Parent4_IU_Name
W9: 0 | AE9: STH | AF9: SCH | AH9: x | AI9: x | AR9: x | AS9: x | AT9: x | AU9: x | AV9: x
A10: =IF(INTRO!$E$33<>0,INTRO!$E$33, " ") -> Ethiopia | B10: Addis Ababa Addis Ababa | C10: Addis Ketema Subcity | D10: 382037.2006 | E10: =IF(INTRO!$E$48="","",ROUND($D10*INTRO!$E$48,0)) -> 40496 | F10: =IF(INTRO!$E$49="","",ROUND($D10*INTRO!$E$49,0)) -> 113580 | G10: =IF(INTRO!$E$50="","",ROUND($D10*INTRO!$E$50,0)) -> 220381 | H10: 0 | I10: 0 | J10: 1 | K10: 0 | L10: =IF(INTRO!$E$37="Endemic",IF($H10>0,IF($H10=4,"Unknown",IF($H10=99,"Stopped",$D10)),0),"Not required") -> 0 | M10: =IF(INTRO!$E$39="Endemic", IF($I10>0, IF($I10=4,"Unknown",IF($I10=99,"Stopped",$D10)), 0),"Not required") -> 0 | N10: =IF(INTRO!$E$41="Endemic", IF($J10>1, IF($J10=4, "Unknown", IF($J10=99, "Surveillance", E10)), 0),"Not required") -> 0 | O10: =IF(INTRO!$E$41="Endemic", IF($J10>1, IF($J10=4, "Unknown", IF($J10=99, "Surveillance", F10)), 0),"Not required") -> 0 | P10: =IF(INTRO!$E$41="Endemic", IF($J10>1, IF($J10=4, "Unknown", IF($J10=99, "Surveillance", ROUND(D10*INTRO!$E$51,0))), 0),"Not required") -> 0 | Q10: =IF(INTRO!$E$41="Endemic", IF($J10>1, IF($J10=4, "Unknown", IF($J10=99, "Surveillance", SUM($N10:$P10))), 0),"Not required") -> 0 | R10: =IF(INTRO!$E$43="Endemic", IF($K10>1, IF($K10=4, "Unknown", IF($K10=99, "Surveillance", ROUND(E10*0.75,0))), 0),"Not required") -> 0 | S10: =IF(INTRO!$E$43="Endemic", IF($K10>1, IF($K10=4, "Unknown", IF($K10=99, "Surveillance", F10)), 0),"Not required") -> 0 | T10: =IF(INTRO!$E$43="Endemic", IF($K10>1, IF($K10=4, "Unknown", IF($K10=99, "Surveillance", G10)), 0),"Not required") -> 0 | U10: =IF(INTRO!$E$43="Endemic", IF($K10>1, IF($K10=4, "Unknown", IF($K10=99, "Surveillance", SUM($R10:$T10))), 0),"Not required") -> 0 | V10: 0 | W10: 0 | X10: 0 | Y10: 0 | AF10: No | AH10: 18487 | AI10: Addis Ketema Subcity
A11: =IF(INTRO!$E$33<>0,INTRO!$E$33, " ") -> Ethiopia | B11: Addis Ababa Addis Ababa | C11: Akaki Kaliti Subcity | D11: 274630.0088 | E11: =IF(INTRO!$E$48="","",ROUND($D11*INTRO!$E$48,0)) -> 29111 | F11: =IF(INTRO!$E$49="","",ROUND($D11*INTRO!$E$49,0)) -> 81648 | G11: =IF(INTRO!$E$50="","",ROUND($D11*INTRO!$E$50,0)) -> 158422 | H11: 0 | I11: 0 | J11: 1 | K11: 0 | L11: =IF(INTRO!$E$37="Endemic",IF($H11>0,IF($H11=4,"Unknown",IF($H11=99,"Stopped",$D11)),0),"Not required") -> 0 | M11: =IF(INTRO!$E$39="Endemic", IF($I11>0, IF($I11=4,"Unknown",IF($I11=99,"Stopped",$D11)), 0),"Not required") -> 0 | N11: =IF(INTRO!$E$41="Endemic", IF($J11>1, IF($J11=4, "Unknown", IF($J11=99, "Surveillance", E11)), 0),"Not required") -> 0 | O11: =IF(INTRO!$E$41="Endemic", IF($J11>1, IF($J11=4, "Unknown", IF($J11=99, "Surveillance", F11)), 0),"Not required") -> 0 | P11: =IF(INTRO!$E$41="Endemic", IF($J11>1, IF($J11=4, "Unknown", IF($J11=99, "Surveillance", ROUND(D11*INTRO!$E$51,0))), 0),"Not required") -> 0 | Q11: =IF(INTRO!$E$41="Endemic", IF($J11>1, IF($J11=4, "Unknown", IF($J11=99, "Surveillance", SUM($N11:$P11))), 0),"Not required") -> 0 | R11: =IF(INTRO!$E$43="Endemic", IF($K11>1, IF($K11=4, "Unknown", IF($K11=99, "Surveillance", ROUND(E11*0.75,0))), 0),"Not required") -> 0 | S11: =IF(INTRO!$E$43="Endemic", IF($K11>1, IF($K11=4, "Unknown", IF($K11=99, "Surveillance", F11)), 0),"Not required") -> 0 | T11: =IF(INTRO!$E$43="Endemic", IF($K11>1, IF($K11=4, "Unknown", IF($K11=99, "Surveillance", G11)), 0),"Not required") -> 0 | U11: =IF(INTRO!$E$43="Endemic", IF($K11>1, IF($K11=4, "Unknown", IF($K11=99, "Surveillance", SUM($R11:$T11))), 0),"Not required") -> 0 | V11: 0 | W11: 0 | X11: 0 | Y11: 0 | AF11: No | AH11: 18488 | AI11: Akaki Kaliti Subcity
A12: =IF(INTRO!$E$33<>0,INTRO!$E$33, " ") -> Ethiopia | B12: Addis Ababa Addis Ababa | C12: Arada Subcity | D12: 317844.026 | E12: =IF(INTRO!$E$48="","",ROUND($D12*INTRO!$E$48,0)) -> 33692 | F12: =IF(INTRO!$E$49="","",ROUND($D12*INTRO!$E$49,0)) -> 94495 | G12: =IF(INTRO!$E$50="","",ROUND($D12*INTRO!$E$50,0)) -> 183351 | H12: 0 | I12: 0 | J12: 1 | K12: 0 | L12: =IF(INTRO!$E$37="Endemic",IF($H12>0,IF($H12=4,"Unknown",IF($H12=99,"Stopped",$D12)),0),"Not required") -> 0 | M12: =IF(INTRO!$E$39="Endemic", IF($I12>0, IF($I12=4,"Unknown",IF($I12=99,"Stopped",$D12)), 0),"Not required") -> 0 | N12: =IF(INTRO!$E$41="Endemic", IF($J12>1, IF($J12=4, "Unknown", IF($J12=99, "Surveillance", E12)), 0),"Not required") -> 0 | O12: =IF(INTRO!$E$41="Endemic", IF($J12>1, IF($J12=4, "Unknown", IF($J12=99, "Surveillance", F12)), 0),"Not required") -> 0 | P12: =IF(INTRO!$E$41="Endemic", IF($J12>1, IF($J12=4, "Unknown", IF($J12=99, "Surveillance", ROUND(D12*INTRO!$E$51,0))), 0),"Not required") -> 0 | Q12: =IF(INTRO!$E$41="Endemic", IF($J12>1, IF($J12=4, "Unknown", IF($J12=99, "Surveillance", SUM($N12:$P12))), 0),"Not required") -> 0 | R12: =IF(INTRO!$E$43="Endemic", IF($K12>1, IF($K12=4, "Unknown", IF($K12=99, "Surveillance", ROUND(E12*0.75,0))), 0),"Not required") -> 0 | S12: =IF(INTRO!$E$43="Endemic", IF($K12>1, IF($K12=4, "Unknown", IF($K12=99, "Surveillance", F12)), 0),"Not required") -> 0 | T12: =IF(INTRO!$E$43="Endemic", IF($K12>1, IF($K12=4, "Unknown", IF($K12=99, "Surveillance", G12)), 0),"Not required") -> 0 | U12: =IF(INTRO!$E$43="Endemic", IF($K12>1, IF($K12=4, "Unknown", IF($K12=99, "Surveillance", SUM($R12:$T12))), 0),"Not required") -> 0 | V12: 0 | W12: 0 | X12: 0 | Y12: 0 | AF12: No | AH12: 18489 | AI12: Arada Subcity
A13: =IF(INTRO!$E$33<>0,INTRO!$E$33, " ") -> Ethiopia | B13: Addis Ababa Addis Ababa | C13: Bolle Subcity | D13: 235223.8157 | E13: =IF(INTRO!$E$48="","",ROUND($D13*INTRO!$E$48,0)) -> 24934 | F13: =IF(INTRO!$E$49="","",ROUND($D13*INTRO!$E$49,0)) -> 69932 | G13: =IF(INTRO!$E$50="","",ROUND($D13*INTRO!$E$50,0)) -> 135691 | H13: 0 | I13: 0 | J13: 1 | K13: 0 | L13: =IF(INTRO!$E$37="Endemic",IF($H13>0,IF($H13=4,"Unknown",IF($H13=99,"Stopped",$D13)),0),"Not required") -> 0 | M13: =IF(INTRO!$E$39="Endemic", IF($I13>0, IF($I13=4,"Unknown",IF($I13=99,"Stopped",$D13)), 0),"Not required") -> 0 | N13: =IF(INTRO!$E$41="Endemic", IF($J13>1, IF($J13=4, "Unknown", IF($J13=99, "Surveillance", E13)), 0),"Not required") -> 0 | O13: =IF(INTRO!$E$41="Endemic", IF($J13>1, IF($J13=4, "Unknown", IF($J13=99, "Surveillance", F13)), 0),"Not required") -> 0 | P13: =IF(INTRO!$E$41="Endemic", IF($J13>1, IF($J13=4, "Unknown", IF($J13=99, "Surveillance", ROUND(D13*INTRO!$E$51,0))), 0),"Not required") -> 0 | Q13: =IF(INTRO!$E$41="Endemic", IF($J13>1, IF($J13=4, "Unknown", IF($J13=99, "Surveillance", SUM($N13:$P13))), 0),"Not required") -> 0 | R13: =IF(INTRO!$E$43="Endemic", IF($K13>1, IF($K13=4, "Unknown", IF($K13=99, "Surveillance", ROUND(E13*0.75,0))), 0),"Not required") -> 0 | S13: =IF(INTRO!$E$43="Endemic", IF($K13>1, IF($K13=4, "Unknown", IF($K13=99, "Surveillance", F13)), 0),"Not required") -> 0 | T13: =IF(INTRO!$E$43="Endemic", IF($K13>1, IF($K13=4, "Unknown", IF($K13=99, "Surveillance", G13)), 0),"Not required") -> 0 | U13: =IF(INTRO!$E$43="Endemic", IF($K13>1, IF($K13=4, "Unknown", IF($K13=99, "Surveillance", SUM($R13:$T13))), 0),"Not required") -> 0 | V13: 0 | W13: 0 | X13: 0 | Y13: 0 | AF13: No | AH13: 18490 | AI13: Bolle Subcity
A14: =IF(INTRO!$E$33<>0,INTRO!$E$33, " ") -> Ethiopia | B14: Addis Ababa Addis Ababa | C14: Gulelie Subcity | D14: 400631.1756 | E14: =IF(INTRO!$E$48="","",ROUND($D14*INTRO!$E$48,0)) -> 42467 | F14: =IF(INTRO!$E$49="","",ROUND($D14*INTRO!$E$49,0)) -> 119108 | G14: =IF(INTRO!$E$50="","",ROUND($D14*INTRO!$E$50,0)) -> 231107 | H14: 0 | I14: 0 | J14: 1 | K14: 0 | L14: =IF(INTRO!$E$37="Endemic",IF($H14>0,IF($H14=4,"Unknown",IF($H14=99,"Stopped",$D14)),0),"Not required") -> 0 | M14: =IF(INTRO!$E$39="Endemic", IF($I14>0, IF($I14=4,"Unknown",IF($I14=99,"Stopped",$D14)), 0),"Not required") -> 0 | N14: =IF(INTRO!$E$41="Endemic", IF($J14>1, IF($J14=4, "Unknown", IF($J14=99, "Surveillance", E14)), 0),"Not required") -> 0 | O14: =IF(INTRO!$E$41="Endemic", IF($J14>1, IF($J14=4, "Unknown", IF($J14=99, "Surveillance", F14)), 0),"Not required") -> 0 | P14: =IF(INTRO!$E$41="Endemic", IF($J14>1, IF($J14=4, "Unknown", IF($J14=99, "Surveillance", ROUND(D14*INTRO!$E$51,0))), 0),"Not required") -> 0 | Q14: =IF(INTRO!$E$41="Endemic", IF($J14>1, IF($J14=4, "Unknown", IF($J14=99, "Surveillance", SUM($N14:$P14))), 0),"Not required") -> 0 | R14: =IF(INTRO!$E$43="Endemic", IF($K14>1, IF($K14=4, "Unknown", IF($K14=99, "Surveillance", ROUND(E14*0.75,0))), 0),"Not required") -> 0 | S14: =IF(INTRO!$E$43="Endemic", IF($K14>1, IF($K14=4, "Unknown", IF($K14=99, "Surveillance", F14)), 0),"Not required") -> 0 | T14: =IF(INTRO!$E$43="Endemic", IF($K14>1, IF($K14=4, "Unknown", IF($K14=99, "Surveillance", G14)), 0),"Not required") -> 0 | U14: =IF(INTRO!$E$43="Endemic", IF($K14>1, IF($K14=4, "Unknown", IF($K14=99, "Surveillance", SUM($R14:$T14))), 0),"Not required") -> 0 | V14: 0 | W14: 0 | X14: 0 | Y14: 0 | AF14: No | AH14: 18491 | AI14: Gulelie Subcity
A15: =IF(INTRO!$E$33<>0,INTRO!$E$33, " ") -> Ethiopia | B15: Addis Ababa Addis Ababa | C15: Kirkose Subcity | D15: 331121.3952 | E15: =IF(INTRO!$E$48="","",ROUND($D15*INTRO!$E$48,0)) -> 35099 | F15: =IF(INTRO!$E$49="","",ROUND($D15*INTRO!$E$49,0)) -> 98442 | G15: =IF(INTRO!$E$50="","",ROUND($D15*INTRO!$E$50,0)) -> 191010 | H15: 0 | I15: 0 | J15: 1 | K15: 0 | L15: =IF(INTRO!$E$37="Endemic",IF($H15>0,IF($H15=4,"Unknown",IF($H15=99,"Stopped",$D15)),0),"Not required") -> 0 | M15: =IF(INTRO!$E$39="Endemic", IF($I15>0, IF($I15=4,"Unknown",IF($I15=99,"Stopped",$D15)), 0),"Not required") -> 0 | N15: =IF(INTRO!$E$41="Endemic", IF($J15>1, IF($J15=4, "Unknown", IF($J15=99, "Surveillance", E15)), 0),"Not required") -> 0 | O15: =IF(INTRO!$E$41="Endemic", IF($J15>1, IF($J15=4, "Unknown", IF($J15=99, "Surveillance", F15)), 0),"Not required") -> 0 | P15: =IF(INTRO!$E$41="Endemic", IF($J15>1, IF($J15=4, "Unknown", IF($J15=99, "Surveillance", ROUND(D15*INTRO!$E$51,0))), 0),"Not required") -> 0 | Q15: =IF(INTRO!$E$41="Endemic", IF($J15>1, IF($J15=4, "Unknown", IF($J15=99, "Surveillance", SUM($N15:$P15))), 0),"Not required") -> 0 | R15: =IF(INTRO!$E$43="Endemic", IF($K15>1, IF($K15=4, "Unknown", IF($K15=99, "Surveillance", ROUND(E15*0.75,0))), 0),"Not required") -> 0 | S15: =IF(INTRO!$E$43="Endemic", IF($K15>1, IF($K15=4, "Unknown", IF($K15=99, "Surveillance", F15)), 0),"Not required") -> 0 | T15: =IF(INTRO!$E$43="Endemic", IF($K15>1, IF($K15=4, "Unknown", IF($K15=99, "Surveillance", G15)), 0),"Not required") -> 0 | U15: =IF(INTRO!$E$43="Endemic", IF($K15>1, IF($K15=4, "Unknown", IF($K15=99, "Surveillance", SUM($R15:$T15))), 0),"Not required") -> 0 | V15: 0 | W15: 0 | X15: 0 | Y15: 0 | AF15: No | AH15: 18492 | AI15: Kirkose Subcity
A16: =IF(INTRO!$E$33<>0,INTRO!$E$33, " ") -> Ethiopia | B16: Addis Ababa Addis Ababa | C16: Kolfie Keranio Subcity | D16: 641621.628 | E16: =IF(INTRO!$E$48="","",ROUND($D16*INTRO!$E$48,0)) -> 68013 | F16: =IF(INTRO!$E$49="","",ROUND($D16*INTRO!$E$49,0)) -> 190754 | G16: =IF(INTRO!$E$50="","",ROUND($D16*INTRO!$E$50,0)) -> 370124 | H16: 0 | I16: 0 | J16: 1 | K16: 0 | L16: =IF(INTRO!$E$37="Endemic",IF($H16>0,IF($H16=4,"Unknown",IF($H16=99,"Stopped",$D16)),0),"Not required") -> 0 | M16: =IF(INTRO!$E$39="Endemic", IF($I16>0, IF($I16=4,"Unknown",IF($I16=99,"Stopped",$D16)), 0),"Not required") -> 0 | N16: =IF(INTRO!$E$41="Endemic", IF($J16>1, IF($J16=4, "Unknown", IF($J16=99, "Surveillance", E16)), 0),"Not required") -> 0 | O16: =IF(INTRO!$E$41="Endemic", IF($J16>1, IF($J16=4, "Unknown", IF($J16=99, "Surveillance", F16)), 0),"Not required") -> 0 | P16: =IF(INTRO!$E$41="Endemic", IF($J16>1, IF($J16=4, "Unknown", IF($J16=99, "Surveillance", ROUND(D16*INTRO!$E$51,0))), 0),"Not required") -> 0 | Q16: =IF(INTRO!$E$41="Endemic", IF($J16>1, IF($J16=4, "Unknown", IF($J16=99, "Surveillance", SUM($N16:$P16))), 0),"Not required") -> 0 | R16: =IF(INTRO!$E$43="Endemic", IF($K16>1, IF($K16=4, "Unknown", IF($K16=99, "Surveillance", ROUND(E16*0.75,0))), 0),"Not required") -> 0 | S16: =IF(INTRO!$E$43="Endemic", IF($K16>1, IF($K16=4, "Unknown", IF($K16=99, "Surveillance", F16)), 0),"Not required") -> 0 | T16: =IF(INTRO!$E$43="Endemic", IF($K16>1, IF($K16=4, "Unknown", IF($K16=99, "Surveillance", G16)), 0),"Not required") -> 0 | U16: =IF(INTRO!$E$43="Endemic", IF($K16>1, IF($K16=4, "Unknown", IF($K16=99, "Surveillance", SUM($R16:$T16))), 0),"Not required") -> 0 | V16: 0 | W16: 0 | X16: 0 | Y16: 0 | AF16: No | AH16: 18493 | AI16: Kolfie Keranio Subcity
A17: =IF(INTRO!$E$33<>0,INTRO!$E$33, " ") -> Ethiopia | B17: Addis Ababa Addis Ababa | C17: Lemmi | D17: 367135.0274 | E17: =IF(INTRO!$E$48="","",ROUND($D17*INTRO!$E$48,0)) -> 38917 | F17: =IF(INTRO!$E$49="","",ROUND($D17*INTRO!$E$49,0)) -> 109149 | G17: =IF(INTRO!$E$50="","",ROUND($D17*INTRO!$E$50,0)) -> 211785 | H17: 0 | I17: 0 | J17: 1 | K17: 0 | L17: =IF(INTRO!$E$37="Endemic",IF($H17>0,IF($H17=4,"Unknown",IF($H17=99,"Stopped",$D17)),0),"Not required") -> 0 | M17: =IF(INTRO!$E$39="Endemic", IF($I17>0, IF($I17=4,"Unknown",IF($I17=99,"Stopped",$D17)), 0),"Not required") -> 0 | N17: =IF(INTRO!$E$41="Endemic", IF($J17>1, IF($J17=4, "Unknown", IF($J17=99, "Surveillance", E17)), 0),"Not required") -> 0 | O17: =IF(INTRO!$E$41="Endemic", IF($J17>1, IF($J17=4, "Unknown", IF($J17=99, "Surveillance", F17)), 0),"Not required") -> 0 | P17: =IF(INTRO!$E$41="Endemic", IF($J17>1, IF($J17=4, "Unknown", IF($J17=99, "Surveillance", ROUND(D17*INTRO!$E$51,0))), 0),"Not required") -> 0 | Q17: =IF(INTRO!$E$41="Endemic", IF($J17>1, IF($J17=4, "Unknown", IF($J17=99, "Surveillance", SUM($N17:$P17))), 0),"Not required") -> 0 | R17: =IF(INTRO!$E$43="Endemic", IF($K17>1, IF($K17=4, "Unknown", IF($K17=99, "Surveillance", ROUND(E17*0.75,0))), 0),"Not required") -> 0 | S17: =IF(INTRO!$E$43="Endemic", IF($K17>1, IF($K17=4, "Unknown", IF($K17=99, "Surveillance", F17)), 0),"Not required") -> 0 | T17: =IF(INTRO!$E$43="Endemic", IF($K17>1, IF($K17=4, "Unknown", IF($K17=99, "Surveillance", G17)), 0),"Not required") -> 0 | U17: =IF(INTRO!$E$43="Endemic", IF($K17>1, IF($K17=4, "Unknown", IF($K17=99, "Surveillance", SUM($R17:$T17))), 0),"Not required") -> 0 | V17: 0 | W17: 0 | X17: 0 | Y17: 0 | AF17: No | AH17: 19591 | AI17: Lemmi
A18: =IF(INTRO!$E$33<>0,INTRO!$E$33, " ") -> Ethiopia | B18: Addis Ababa Addis Ababa | C18: Lideta Subcity | D18: 302086.8073 | E18: =IF(INTRO!$E$48="","",ROUND($D18*INTRO!$E$48,0)) -> 32022 | F18: =IF(INTRO!$E$49="","",ROUND($D18*INTRO!$E$49,0)) -> 89810 | G18: =IF(INTRO!$E$50="","",ROUND($D18*INTRO!$E$50,0)) -> 174261 | H18: 0 | I18: 0 | J18: 1 | K18: 0 | L18: =IF(INTRO!$E$37="Endemic",IF($H18>0,IF($H18=4,"Unknown",IF($H18=99,"Stopped",$D18)),0),"Not required") -> 0 | M18: =IF(INTRO!$E$39="Endemic", IF($I18>0, IF($I18=4,"Unknown",IF($I18=99,"Stopped",$D18)), 0),"Not required") -> 0 | N18: =IF(INTRO!$E$41="Endemic", IF($J18>1, IF($J18=4, "Unknown", IF($J18=99, "Surveillance", E18)), 0),"Not required") -> 0 | O18: =IF(INTRO!$E$41="Endemic", IF($J18>1, IF($J18=4, "Unknown", IF($J18=99, "Surveillance", F18)), 0),"Not required") -> 0 | P18: =IF(INTRO!$E$41="Endemic", IF($J18>1, IF($J18=4, "Unknown", IF($J18=99, "Surveillance", ROUND(D18*INTRO!$E$51,0))), 0),"Not required") -> 0 | Q18: =IF(INTRO!$E$41="Endemic", IF($J18>1, IF($J18=4, "Unknown", IF($J18=99, "Surveillance", SUM($N18:$P18))), 0),"Not required") -> 0 | R18: =IF(INTRO!$E$43="Endemic", IF($K18>1, IF($K18=4, "Unknown", IF($K18=99, "Surveillance", ROUND(E18*0.75,0))), 0),"Not required") -> 0 | S18: =IF(INTRO!$E$43="Endemic", IF($K18>1, IF($K18=4, "Unknown", IF($K18=99, "Surveillance", F18)), 0),"Not required") -> 0 | T18: =IF(INTRO!$E$43="Endemic", IF($K18>1, IF($K18=4, "Unknown", IF($K18=99, "Surveillance", G18)), 0),"Not required") -> 0 | U18: =IF(INTRO!$E$43="Endemic", IF($K18>1, IF($K18=4, "Unknown", IF($K18=99, "Surveillance", SUM($R18:$T18))), 0),"Not required") -> 0 | V18: 0 | W18: 0 | X18: 0 | Y18: 0 | AF18: No | AH18: 18494 | AI18: Lideta Subcity
A19: =IF(INTRO!$E$33<>0,INTRO!$E$33, " ") -> Ethiopia | B19: Addis Ababa Addis Ababa | C19: Nifase Silk Lafto Subcity | D19: 472182.289 | E19: =IF(INTRO!$E$48="","",ROUND($D19*INTRO!$E$48,0)) -> 50052 | F19: =IF(INTRO!$E$49="","",ROUND($D19*INTRO!$E$49,0)) -> 140380 | G19: =IF(INTRO!$E$50="","",ROUND($D19*INTRO!$E$50,0)) -> 272382 | H19: 0 | I19: 0 | J19: 1 | K19: 0 | L19: =IF(INTRO!$E$37="Endemic",IF($H19>0,IF($H19=4,"Unknown",IF($H19=99,"Stopped",$D19)),0),"Not required") -> 0 | M19: =IF(INTRO!$E$39="Endemic", IF($I19>0, IF($I19=4,"Unknown",IF($I19=99,"Stopped",$D19)), 0),"Not required") -> 0 | N19: =IF(INTRO!$E$41="Endemic", IF($J19>1, IF($J19=4, "Unknown", IF($J19=99, "Surveillance", E19)), 0),"Not required") -> 0 | O19: =IF(INTRO!$E$41="Endemic", IF($J19>1, IF($J19=4, "Unknown", IF($J19=99, "Surveillance", F19)), 0),"Not required") -> 0 | P19: =IF(INTRO!$E$41="Endemic", IF($J19>1, IF($J19=4, "Unknown", IF($J19=99, "Surveillance", ROUND(D19*INTRO!$E$51,0))), 0),"Not required") -> 0 | Q19: =IF(INTRO!$E$41="Endemic", IF($J19>1, IF($J19=4, "Unknown", IF($J19=99, "Surveillance", SUM($N19:$P19))), 0),"Not required") -> 0 | R19: =IF(INTRO!$E$43="Endemic", IF($K19>1, IF($K19=4, "Unknown", IF($K19=99, "Surveillance", ROUND(E19*0.75,0))), 0),"Not required") -> 0 | S19: =IF(INTRO!$E$43="Endemic", IF($K19>1, IF($K19=4, "Unknown", IF($K19=99, "Surveillance", F19)), 0),"Not required") -> 0 | T19: =IF(INTRO!$E$43="Endemic", IF($K19>1, IF($K19=4, "Unknown", IF($K19=99, "Surveillance", G19)), 0),"Not required") -> 0 | U19: =IF(INTRO!$E$43="Endemic", IF($K19>1, IF($K19=4, "Unknown", IF($K19=99, "Surveillance", SUM($R19:$T19))), 0),"Not required") -> 0 | V19: 0 | W19: 0 | X19: 0 | Y19: 0 | AF19: No | AH19: 18495 | AI19: Nifase Silk Lafto Subcity
A20: =IF(INTRO!$E$33<>0,INTRO!$E$33, " ") -> Ethiopia | B20: Addis Ababa Addis Ababa | C20: Yeka Subcity | D20: 378341.3818 | E20: =IF(INTRO!$E$48="","",ROUND($D20*INTRO!$E$48,0)) -> 40105 | F20: =IF(INTRO!$E$49="","",ROUND($D20*INTRO!$E$49,0)) -> 112481 | G20: =IF(INTRO!$E$50="","",ROUND($D20*INTRO!$E$50,0)) -> 218249 | H20: 0 | I20: 0 | J20: 1 | K20: 0 | L20: =IF(INTRO!$E$37="Endemic",IF($H20>0,IF($H20=4,"Unknown",IF($H20=99,"Stopped",$D20)),0),"Not required") -> 0 | M20: =IF(INTRO!$E$39="Endemic", IF($I20>0, IF($I20=4,"Unknown",IF($I20=99,"Stopped",$D20)), 0),"Not required") -> 0 | N20: =IF(INTRO!$E$41="Endemic", IF($J20>1, IF($J20=4, "Unknown", IF($J20=99, "Surveillance", E20)), 0),"Not required") -> 0 | O20: =IF(INTRO!$E$41="Endemic", IF($J20>1, IF($J20=4, "Unknown", IF($J20=99, "Surveillance", F20)), 0),"Not required") -> 0 | P20: =IF(INTRO!$E$41="Endemic", IF($J20>1, IF($J20=4, "Unknown", IF($J20=99, "Surveillance", ROUND(D20*INTRO!$E$51,0))), 0),"Not required") -> 0 | Q20: =IF(INTRO!$E$41="Endemic", IF($J20>1, IF($J20=4, "Unknown", IF($J20=99, "Surveillance", SUM($N20:$P20))), 0),"Not required") -> 0 | R20: =IF(INTRO!$E$43="Endemic", IF($K20>1, IF($K20=4, "Unknown", IF($K20=99, "Surveillance", ROUND(E20*0.75,0))), 0),"Not required") -> 0 | S20: =IF(INTRO!$E$43="Endemic", IF($K20>1, IF($K20=4, "Unknown", IF($K20=99, "Surveillance", F20)), 0),"Not required") -> 0 | T20: =IF(INTRO!$E$43="Endemic", IF($K20>1, IF($K20=4, "Unknown", IF($K20=99, "Surveillance", G20)), 0),"Not required") -> 0 | U20: =IF(INTRO!$E$43="Endemic", IF($K20>1, IF($K20=4, "Unknown", IF($K20=99, "Surveillance", SUM($R20:$T20))), 0),"Not required") -> 0 | V20: 0 | W20: 0 | X20: 0 | Y20: 0 | AF20: No | AH20: 18496 | AI20: Yeka Subcity
A21: =IF(INTRO!$E$33<>0,INTRO!$E$33, " ") -> Ethiopia | B21: Afar Awsa | C21: Abala | D21: 50843.32636 | E21: =IF(INTRO!$E$48="","",ROUND($D21*INTRO!$E$48,0)) -> 5389 | F21: =IF(INTRO!$E$49="","",ROUND($D21*INTRO!$E$49,0)) -> 15116 | G21: =IF(INTRO!$E$50="","",ROUND($D21*INTRO!$E$50,0)) -> 29329 | H21: 0 | I21: 4 | J21: 0 | K21: 0 | L21: =IF(INTRO!$E$37="Endemic",IF($H21>0,IF($H21=4,"Unknown",IF($H21=99,"Stopped",$D21)),0),"Not required") -> 0 | M21: =IF(INTRO!$E$39="Endemic", IF($I21>0, IF($I21=4,"Unknown",IF($I21=99,"Stopped",$D21)), 0),"Not required") -> Unknown | N21: =IF(INTRO!$E$41="Endemic", IF($J21>1, IF($J21=4, "Unknown", IF($J21=99, "Surveillance", E21)), 0),"Not required") -> 0 | O21: =IF(INTRO!$E$41="Endemic", IF($J21>1, IF($J21=4, "Unknown", IF($J21=99, "Surveillance", F21)), 0),"Not required") -> 0 | P21: =IF(INTRO!$E$41="Endemic", IF($J21>1, IF($J21=4, "Unknown", IF($J21=99, "Surveillance", ROUND(D21*INTRO!$E$51,0))), 0),"Not required") -> 0 | Q21: =IF(INTRO!$E$41="Endemic", IF($J21>1, IF($J21=4, "Unknown", IF($J21=99, "Surveillance", SUM($N21:$P21))), 0),"Not required") -> 0 | R21: =IF(INTRO!$E$43="Endemic", IF($K21>1, IF($K21=4, "Unknown", IF($K21=99, "Surveillance", ROUND(E21*0.75,0))), 0),"Not required") -> 0 | S21: =IF(INTRO!$E$43="Endemic", IF($K21>1, IF($K21=4, "Unknown", IF($K21=99, "Surveillance", F21)), 0),"Not required") -> 0 | T21: =IF(INTRO!$E$43="Endemic", IF($K21>1, IF($K21=4, "Unknown", IF($K21=99, "Surveillance", G21)), 0),"Not required") -> 0 | U21: =IF(INTRO!$E$43="Endemic", IF($K21>1, IF($K21=4, "Unknown", IF($K21=99, "Surveillance", SUM($R21:$T21))), 0),"Not required") -> 0 | V21: 0 | W21: 0 | X21: 0 | Y21: 0 | AF21: No | AH21: 18497 | AI21: Abala
A22: =IF(INTRO!$E$33<>0,INTRO!$E$33, " ") -> Ethiopia | B22: Afar Awsa | C22: Adar | D22: 72091.56517 | E22: =IF(INTRO!$E$48="","",ROUND($D22*INTRO!$E$48,0)) -> 7642 | F22: =IF(INTRO!$E$49="","",ROUND($D22*INTRO!$E$49,0)) -> 21433 | G22: =IF(INTRO!$E$50="","",ROUND($D22*INTRO!$E$50,0)) -> 41587 | H22: 0 | I22: 4 | J22: 0 | K22: 0 | L22: =IF(INTRO!$E$37="Endemic",IF($H22>0,IF($H22=4,"Unknown",IF($H22=99,"Stopped",$D22)),0),"Not required") -> 0 | M22: =IF(INTRO!$E$39="Endemic", IF($I22>0, IF($I22=4,"Unknown",IF($I22=99,"Stopped",$D22)), 0),"Not required") -> Unknown | N22: =IF(INTRO!$E$41="Endemic", IF($J22>1, IF($J22=4, "Unknown", IF($J22=99, "Surveillance", E22)), 0),"Not required") -> 0 | O22: =IF(INTRO!$E$41="Endemic", IF($J22>1, IF($J22=4, "Unknown", IF($J22=99, "Surveillance", F22)), 0),"Not required") -> 0 | P22: =IF(INTRO!$E$41="Endemic", IF($J22>1, IF($J22=4, "Unknown", IF($J22=99, "Surveillance", ROUND(D22*INTRO!$E$51,0))), 0),"Not required") -> 0 | Q22: =IF(INTRO!$E$41="Endemic", IF($J22>1, IF($J22=4, "Unknown", IF($J22=99, "Surveillance", SUM($N22:$P22))), 0),"Not required") -> 0 | R22: =IF(INTRO!$E$43="Endemic", IF($K22>1, IF($K22=4, "Unknown", IF($K22=99, "Surveillance", ROUND(E22*0.75,0))), 0),"Not required") -> 0 | S22: =IF(INTRO!$E$43="Endemic", IF($K22>1, IF($K22=4, "Unknown", IF($K22=99, "Surveillance", F22)), 0),"Not required") -> 0 | T22: =IF(INTRO!$E$43="Endemic", IF($K22>1, IF($K22=4, "Unknown", IF($K22=99, "Surveillance", G22)), 0),"Not required") -> 0 | U22: =IF(INTRO!$E$43="Endemic", IF($K22>1, IF($K22=4, "Unknown", IF($K22=99, "Surveillance", SUM($R22:$T22))), 0),"Not required") -> 0 | V22: 0 | W22: 0 | X22: 0 | Y22: 0 | AF22: No | AH22: 18498 | AI22: Adar
A23: =IF(INTRO!$E$33<>0,INTRO!$E$33, " ") -> Ethiopia | B23: Afar Awsa | C23: Afambo | D23: 32332.25038 | E23: =IF(INTRO!$E$48="","",ROUND($D23*INTRO!$E$48,0)) -> 3427 | F23: =IF(INTRO!$E$49="","",ROUND($D23*INTRO!$E$49,0)) -> 9612 | G23: =IF(INTRO!$E$50="","",ROUND($D23*INTRO!$E$50,0)) -> 18651 | H23: 0 | I23: 4 | J23: 1 | K23: 0 | L23: =IF(INTRO!$E$37="Endemic",IF($H23>0,IF($H23=4,"Unknown",IF($H23=99,"Stopped",$D23)),0),"Not required") -> 0 | M23: =IF(INTRO!$E$39="Endemic", IF($I23>0, IF($I23=4,"Unknown",IF($I23=99,"Stopped",$D23)), 0),"Not required") -> Unknown | N23: =IF(INTRO!$E$41="Endemic", IF($J23>1, IF($J23=4, "Unknown", IF($J23=99, "Surveillance", E23)), 0),"Not required") -> 0 | O23: =IF(INTRO!$E$41="Endemic", IF($J23>1, IF($J23=4, "Unknown", IF($J23=99, "Surveillance", F23)), 0),"Not required") -> 0 | P23: =IF(INTRO!$E$41="Endemic", IF($J23>1, IF($J23=4, "Unknown", IF($J23=99, "Surveillance", ROUND(D23*INTRO!$E$51,0))), 0),"Not required") -> 0 | Q23: =IF(INTRO!$E$41="Endemic", IF($J23>1, IF($J23=4, "Unknown", IF($J23=99, "Surveillance", SUM($N23:$P23))), 0),"Not required") -> 0 | R23: =IF(INTRO!$E$43="Endemic", IF($K23>1, IF($K23=4, "Unknown", IF($K23=99, "Surveillance", ROUND(E23*0.75,0))), 0),"Not required") -> 0 | S23: =IF(INTRO!$E$43="Endemic", IF($K23>1, IF($K23=4, "Unknown", IF($K23=99, "Surveillance", F23)), 0),"Not required") -> 0 | T23: =IF(INTRO!$E$43="Endemic", IF($K23>1, IF($K23=4, "Unknown", IF($K23=99, "Surveillance", G23)), 0),"Not required") -> 0 | U23: =IF(INTRO!$E$43="Endemic", IF($K23>1, IF($K23=4, "Unknown", IF($K23=99, "Surveillance", SUM($R23:$T23))), 0),"Not required") -> 0 | V23: 0 | W23: 0 | X23: 0 | Y23: 0 | AF23: No | AH23: 18499 | AI23: Afambo
A24: =IF(INTRO!$E$33<>0,INTRO!$E$33, " ") -> Ethiopia | B24: Afar Awsa | C24: Afdera | D24: 43165.51254 | E24: =IF(INTRO!$E$48="","",ROUND($D24*INTRO!$E$48,0)) -> 4576 | F24: =IF(INTRO!$E$49="","",ROUND($D24*INTRO!$E$49,0)) -> 12833 | G24: =IF(INTRO!$E$50="","",ROUND($D24*INTRO!$E$50,0)) -> 24900 | H24: 0 | I24: 4 | J24: 0 | K24: 0 | L24: =IF(INTRO!$E$37="Endemic",IF($H24>0,IF($H24=4,"Unknown",IF($H24=99,"Stopped",$D24)),0),"Not required") -> 0 | M24: =IF(INTRO!$E$39="Endemic", IF($I24>0, IF($I24=4,"Unknown",IF($I24=99,"Stopped",$D24)), 0),"Not required") -> Unknown | N24: =IF(INTRO!$E$41="Endemic", IF($J24>1, IF($J24=4, "Unknown", IF($J24=99, "Surveillance", E24)), 0),"Not required") -> 0 | O24: =IF(INTRO!$E$41="Endemic", IF($J24>1, IF($J24=4, "Unknown", IF($J24=99, "Surveillance", F24)), 0),"Not required") -> 0 | P24: =IF(INTRO!$E$41="Endemic", IF($J24>1, IF($J24=4, "Unknown", IF($J24=99, "Surveillance", ROUND(D24*INTRO!$E$51,0))), 0),"Not required") -> 0 | Q24: =IF(INTRO!$E$41="Endemic", IF($J24>1, IF($J24=4, "Unknown", IF($J24=99, "Surveillance", SUM($N24:$P24))), 0),"Not required") -> 0 | R24: =IF(INTRO!$E$43="Endemic", IF($K24>1, IF($K24=4, "Unknown", IF($K24=99, "Surveillance", ROUND(E24*0.75,0))), 0),"Not required") -> 0 | S24: =IF(INTRO!$E$43="Endemic", IF($K24>1, IF($K24=4, "Unknown", IF($K24=99, "Surveillance", F24)), 0),"Not required") -> 0 | T24: =IF(INTRO!$E$43="Endemic", IF($K24>1, IF($K24=4, "Unknown", IF($K24=99, "Surveillance", G24)), 0),"Not required") -> 0 | U24: =IF(INTRO!$E$43="Endemic", IF($K24>1, IF($K24=4, "Unknown", IF($K24=99, "Surveillance", SUM($R24:$T24))), 0),"Not required") -> 0 | V24: 0 | W24: 0 | X24: 0 | Y24: 0 | AF24: No | AH24: 18500 | AI24: Afdera
A25: =IF(INTRO!$E$33<>0,INTRO!$E$33, " ") -> Ethiopia | B25: Afar Awsa | C25: Amibara | D25: 85042.88319 | E25: =IF(INTRO!$E$48="","",ROUND($D25*INTRO!$E$48,0)) -> 9015 | F25: =IF(INTRO!$E$49="","",ROUND($D25*INTRO!$E$49,0)) -> 25283 | G25: =IF(INTRO!$E$50="","",ROUND($D25*INTRO!$E$50,0)) -> 49058 | H25: 0 | I25: 4 | J25: 1 | K25: 1 | L25: =IF(INTRO!$E$37="Endemic",IF($H25>0,IF($H25=4,"Unknown",IF($H25=99,"Stopped",$D25)),0),"Not required") -> 0 | M25: =IF(INTRO!$E$39="Endemic", IF($I25>0, IF($I25=4,"Unknown",IF($I25=99,"Stopped",$D25)), 0),"Not required") -> Unknown | N25: =IF(INTRO!$E$41="Endemic", IF($J25>1, IF($J25=4, "Unknown", IF($J25=99, "Surveillance", E25)), 0),"Not required") -> 0 | O25: =IF(INTRO!$E$41="Endemic", IF($J25>1, IF($J25=4, "Unknown", IF($J25=99, "Surveillance", F25)), 0),"Not required") -> 0 | P25: =IF(INTRO!$E$41="Endemic", IF($J25>1, IF($J25=4, "Unknown", IF($J25=99, "Surveillance", ROUND(D25*INTRO!$E$51,0))), 0),"Not required") -> 0 | Q25: =IF(INTRO!$E$41="Endemic", IF($J25>1, IF($J25=4, "Unknown", IF($J25=99, "Surveillance", SUM($N25:$P25))), 0),"Not required") -> 0 | R25: =IF(INTRO!$E$43="Endemic", IF($K25>1, IF($K25=4, "Unknown", IF($K25=99, "Surveillance", ROUND(E25*0.75,0))), 0),"Not required") -> 0 | S25: =IF(INTRO!$E$43="Endemic", IF($K25>1, IF($K25=4, "Unknown", IF($K25=99, "Surveillance", F25)), 0),"Not required") -> 0 | T25: =IF(INTRO!$E$43="Endemic", IF($K25>1, IF($K25=4, "Unknown", IF($K25=99, "Surveillance", G25)), 0),"Not required") -> 0 | U25: =IF(INTRO!$E$43="Endemic", IF($K25>1, IF($K25=4, "Unknown", IF($K25=99, "Surveillance", SUM($R25:$T25))), 0),"Not required") -> 0 | V25: 0 | W25: 0 | X25: 0 | Y25: 0 | AF25: No | AH25: 18501 | AI25: Amibara
A26: =IF(INTRO!$E$33<>0,INTRO!$E$33, " ") -> Ethiopia | B26: Afar Awsa | C26: Aregoba | D26: 29285.53408 | E26: =IF(INTRO!$E$48="","",ROUND($D26*INTRO!$E$48,0)) -> 3104 | F26: =IF(INTRO!$E$49="","",ROUND($D26*INTRO!$E$49,0)) -> 8707 | G26: =IF(INTRO!$E$50="","",ROUND($D26*INTRO!$E$50,0)) -> 16894 | H26: 0 | I26: 4 | J26: 0 | K26: 0 | L26: =IF(INTRO!$E$37="Endemic",IF($H26>0,IF($H26=4,"Unknown",IF($H26=99,"Stopped",$D26)),0),"Not required") -> 0 | M26: =IF(INTRO!$E$39="Endemic", IF($I26>0, IF($I26=4,"Unknown",IF($I26=99,"Stopped",$D26)), 0),"Not required") -> Unknown | N26: =IF(INTRO!$E$41="Endemic", IF($J26>1, IF($J26=4, "Unknown", IF($J26=99, "Surveillance", E26)), 0),"Not required") -> 0 | O26: =IF(INTRO!$E$41="Endemic", IF($J26>1, IF($J26=4, "Unknown", IF($J26=99, "Surveillance", F26)), 0),"Not required") -> 0 | P26: =IF(INTRO!$E$41="Endemic", IF($J26>1, IF($J26=4, "Unknown", IF($J26=99, "Surveillance", ROUND(D26*INTRO!$E$51,0))), 0),"Not required") -> 0 | Q26: =IF(INTRO!$E$41="Endemic", IF($J26>1, IF($J26=4, "Unknown", IF($J26=99, "Surveillance", SUM($N26:$P26))), 0),"Not required") -> 0 | R26: =IF(INTRO!$E$43="Endemic", IF($K26>1, IF($K26=4, "Unknown", IF($K26=99, "Surveillance", ROUND(E26*0.75,0))), 0),"Not required") -> 0 | S26: =IF(INTRO!$E$43="Endemic", IF($K26>1, IF($K26=4, "Unknown", IF($K26=99, "Surveillance", F26)), 0),"Not required") -> 0 | T26: =IF(INTRO!$E$43="Endemic", IF($K26>1, IF($K26=4, "Unknown", IF($K26=99, "Surveillance", G26)), 0),"Not required") -> 0 | U26: =IF(INTRO!$E$43="Endemic", IF($K26>1, IF($K26=4, "Unknown", IF($K26=99, "Surveillance", SUM($R26:$T26))), 0),"Not required") -> 0 | V26: 0 | W26: 0 | X26: 0 | Y26: 0 | AF26: No | AH26: 18543 | AI26: Aregoba
A27: =IF(INTRO!$E$33<>0,INTRO!$E$33, " ") -> Ethiopia | B27: Afar Awsa | C27: Awash fentale | D27: 19611.71057 | E27: =IF(INTRO!$E$48="","",ROUND($D27*INTRO!$E$48,0)) -> 2079 | F27: =IF(INTRO!$E$49="","",ROUND($D27*INTRO!$E$49,0)) -> 5831 | G27: =IF(INTRO!$E$50="","",ROUND($D27*INTRO!$E$50,0)) -> 11313 | H27: 0 | I27: 4 | J27: 1 | K27: 0 | L27: =IF(INTRO!$E$37="Endemic",IF($H27>0,IF($H27=4,"Unknown",IF($H27=99,"Stopped",$D27)),0),"Not required") -> 0 | M27: =IF(INTRO!$E$39="Endemic", IF($I27>0, IF($I27=4,"Unknown",IF($I27=99,"Stopped",$D27)), 0),"Not required") -> Unknown | N27: =IF(INTRO!$E$41="Endemic", IF($J27>1, IF($J27=4, "Unknown", IF($J27=99, "Surveillance", E27)), 0),"Not required") -> 0 | O27: =IF(INTRO!$E$41="Endemic", IF($J27>1, IF($J27=4, "Unknown", IF($J27=99, "Surveillance", F27)), 0),"Not required") -> 0 | P27: =IF(INTRO!$E$41="Endemic", IF($J27>1, IF($J27=4, "Unknown", IF($J27=99, "Surveillance", ROUND(D27*INTRO!$E$51,0))), 0),"Not required") -> 0 | Q27: =IF(INTRO!$E$41="Endemic", IF($J27>1, IF($J27=4, "Unknown", IF($J27=99, "Surveillance", SUM($N27:$P27))), 0),"Not required") -> 0 | R27: =IF(INTRO!$E$43="Endemic", IF($K27>1, IF($K27=4, "Unknown", IF($K27=99, "Surveillance", ROUND(E27*0.75,0))), 0),"Not required") -> 0 | S27: =IF(INTRO!$E$43="Endemic", IF($K27>1, IF($K27=4, "Unknown", IF($K27=99, "Surveillance", F27)), 0),"Not required") -> 0 | T27: =IF(INTRO!$E$43="Endemic", IF($K27>1, IF($K27=4, "Unknown", IF($K27=99, "Surveillance", G27)), 0),"Not required") -> 0 | U27: =IF(INTRO!$E$43="Endemic", IF($K27>1, IF($K27=4, "Unknown", IF($K27=99, "Surveillance", SUM($R27:$T27))), 0),"Not required") -> 0 | V27: 0 | W27: 0 | X27: 0 | Y27: 0 | AF27: No | AH27: 18503 | AI27: Awash fentale
A28: =IF(INTRO!$E$33<>0,INTRO!$E$33, " ") -> Ethiopia | B28: Afar Awsa | C28: Awash Town | D28: 19835.83172 | E28: =IF(INTRO!$E$48="","",ROUND($D28*INTRO!$E$48,0)) -> 2103 | F28: =IF(INTRO!$E$49="","",ROUND($D28*INTRO!$E$49,0)) -> 5897 | G28: =IF(INTRO!$E$50="","",ROUND($D28*INTRO!$E$50,0)) -> 11442 | H28: 0 | I28: 4 | J28: 0 | K28: 0 | L28: =IF(INTRO!$E$37="Endemic",IF($H28>0,IF($H28=4,"Unknown",IF($H28=99,"Stopped",$D28)),0),"Not required") -> 0 | M28: =IF(INTRO!$E$39="Endemic", IF($I28>0, IF($I28=4,"Unknown",IF($I28=99,"Stopped",$D28)), 0),"Not required") -> Unknown | N28: =IF(INTRO!$E$41="Endemic", IF($J28>1, IF($J28=4, "Unknown", IF($J28=99, "Surveillance", E28)), 0),"Not required") -> 0 | O28: =IF(INTRO!$E$41="Endemic", IF($J28>1, IF($J28=4, "Unknown", IF($J28=99, "Surveillance", F28)), 0),"Not required") -> 0 | P28: =IF(INTRO!$E$41="Endemic", IF($J28>1, IF($J28=4, "Unknown", IF($J28=99, "Surveillance", ROUND(D28*INTRO!$E$51,0))), 0),"Not required") -> 0 | Q28: =IF(INTRO!$E$41="Endemic", IF($J28>1, IF($J28=4, "Unknown", IF($J28=99, "Surveillance", SUM($N28:$P28))), 0),"Not required") -> 0 | R28: =IF(INTRO!$E$43="Endemic", IF($K28>1, IF($K28=4, "Unknown", IF($K28=99, "Surveillance", ROUND(E28*0.75,0))), 0),"Not required") -> 0 | S28: =IF(INTRO!$E$43="Endemic", IF($K28>1, IF($K28=4, "Unknown", IF($K28=99, "Surveillance", F28)), 0),"Not required") -> 0 | T28: =IF(INTRO!$E$43="Endemic", IF($K28>1, IF($K28=4, "Unknown", IF($K28=99, "Surveillance", G28)), 0),"Not required") -> 0 | U28: =IF(INTRO!$E$43="Endemic", IF($K28>1, IF($K28=4, "Unknown", IF($K28=99, "Surveillance", SUM($R28:$T28))), 0),"Not required") -> 0 | V28: 0 | W28: 0 | X28: 0 | Y28: 0 | AF28: No | AH28: 18504 | AI28: Awash Town
A29: =IF(INTRO!$E$33<>0,INTRO!$E$33, " ") -> Ethiopia | B29: Afar Awsa | C29: Awra | D29: 47911.99918 | E29: =IF(INTRO!$E$48="","",ROUND($D29*INTRO!$E$48,0)) -> 5079 | F29: =IF(INTRO!$E$49="","",ROUND($D29*INTRO!$E$49,0)) -> 14244 | G29: =IF(INTRO!$E$50="","",ROUND($D29*INTRO!$E$50,0)) -> 27638 | H29: 0 | I29: 4 | J29: 0 | K29: 0 | L29: =IF(INTRO!$E$37="Endemic",IF($H29>0,IF($H29=4,"Unknown",IF($H29=99,"Stopped",$D29)),0),"Not required") -> 0 | M29: =IF(INTRO!$E$39="Endemic", IF($I29>0, IF($I29=4,"Unknown",IF($I29=99,"Stopped",$D29)), 0),"Not required") -> Unknown | N29: =IF(INTRO!$E$41="Endemic", IF($J29>1, IF($J29=4, "Unknown", IF($J29=99, "Surveillance", E29)), 0),"Not required") -> 0 | O29: =IF(INTRO!$E$41="Endemic", IF($J29>1, IF($J29=4, "Unknown", IF($J29=99, "Surveillance", F29)), 0),"Not required") -> 0 | P29: =IF(INTRO!$E$41="Endemic", IF($J29>1, IF($J29=4, "Unknown", IF($J29=99, "Surveillance", ROUND(D29*INTRO!$E$51,0))), 0),"Not required") -> 0 | Q29: =IF(INTRO!$E$41="Endemic", IF($J29>1, IF($J29=4, "Unknown", IF($J29=99, "Surveillance", SUM($N29:$P29))), 0),"Not required") -> 0 | R29: =IF(INTRO!$E$43="Endemic", IF($K29>1, IF($K29=4, "Unknown", IF($K29=99, "Surveillance", ROUND(E29*0.75,0))), 0),"Not required") -> 0 | S29: =IF(INTRO!$E$43="Endemic", IF($K29>1, IF($K29=4, "Unknown", IF($K29=99, "Surveillance", F29)), 0),"Not required") -> 0 | T29: =IF(INTRO!$E$43="Endemic", IF($K29>1, IF($K29=4, "Unknown", IF($K29=99, "Surveillance", G29)), 0),"Not required") -> 0 | U29: =IF(INTRO!$E$43="Endemic", IF($K29>1, IF($K29=4, "Unknown", IF($K29=99, "Surveillance", SUM($R29:$T29))), 0),"Not required") -> 0 | V29: 0 | W29: 0 | X29: 0 | Y29: 0 | AF29: No | AH29: 18505 | AI29: Awra
A30: =IF(INTRO!$E$33<>0,INTRO!$E$33, " ") -> Ethiopia | B30: Afar Awsa | C30: Aysaeta | D30: 63262.07927 | E30: =IF(INTRO!$E$48="","",ROUND($D30*INTRO!$E$48,0)) -> 6706 | F30: =IF(INTRO!$E$49="","",ROUND($D30*INTRO!$E$49,0)) -> 18808 | G30: =IF(INTRO!$E$50="","",ROUND($D30*INTRO!$E$50,0)) -> 36493 | H30: 0 | I30: 4 | J30: 0 | K30: 1 | L30: =IF(INTRO!$E$37="Endemic",IF($H30>0,IF($H30=4,"Unknown",IF($H30=99,"Stopped",$D30)),0),"Not required") -> 0 | M30: =IF(INTRO!$E$39="Endemic", IF($I30>0, IF($I30=4,"Unknown",IF($I30=99,"Stopped",$D30)), 0),"Not required") -> Unknown | N30: =IF(INTRO!$E$41="Endemic", IF($J30>1, IF($J30=4, "Unknown", IF($J30=99, "Surveillance", E30)), 0),"Not required") -> 0 | O30: =IF(INTRO!$E$41="Endemic", IF($J30>1, IF($J30=4, "Unknown", IF($J30=99, "Surveillance", F30)), 0),"Not required") -> 0 | P30: =IF(INTRO!$E$41="Endemic", IF($J30>1, IF($J30=4, "Unknown", IF($J30=99, "Surveillance", ROUND(D30*INTRO!$E$51,0))), 0),"Not required") -> 0 | Q30: =IF(INTRO!$E$41="Endemic", IF($J30>1, IF($J30=4, "Unknown", IF($J30=99, "Surveillance", SUM($N30:$P30))), 0),"Not required") -> 0 | R30: =IF(INTRO!$E$43="Endemic", IF($K30>1, IF($K30=4, "Unknown", IF($K30=99, "Surveillance", ROUND(E30*0.75,0))), 0),"Not required") -> 0 | S30: =IF(INTRO!$E$43="Endemic", IF($K30>1, IF($K30=4, "Unknown", IF($K30=99, "Surveillance", F30)), 0),"Not required") -> 0 | T30: =IF(INTRO!$E$43="Endemic", IF($K30>1, IF($K30=4, "Unknown", IF($K30=99, "Surveillance", G30)), 0),"Not required") -> 0 | U30: =IF(INTRO!$E$43="Endemic", IF($K30>1, IF($K30=4, "Unknown", IF($K30=99, "Surveillance", SUM($R30:$T30))), 0),"Not required") -> 0 | V30: 0 | W30: 0 | X30: 0 | Y30: 0 | AF30: No | AH30: 18506 | AI30: Aysaeta
A31: =IF(INTRO!$E$33<>0,INTRO!$E$33, " ") -> Ethiopia | B31: Afar Awsa | C31: Chifra | D31: 122043.9545 | E31: =IF(INTRO!$E$48="","",ROUND($D31*INTRO!$E$48,0)) -> 12937 | F31: =IF(INTRO!$E$49="","",ROUND($D31*INTRO!$E$49,0)) -> 36284 | G31: =IF(INTRO!$E$50="","",ROUND($D31*INTRO!$E$50,0)) -> 70402 | H31: 0 | I31: 4 | J31: 0 | K31: 0 | L31: =IF(INTRO!$E$37="Endemic",IF($H31>0,IF($H31=4,"Unknown",IF($H31=99,"Stopped",$D31)),0),"Not required") -> 0 | M31: =IF(INTRO!$E$39="Endemic", IF($I31>0, IF($I31=4,"Unknown",IF($I31=99,"Stopped",$D31)), 0),"Not required") -> Unknown | N31: =IF(INTRO!$E$41="Endemic", IF($J31>1, IF($J31=4, "Unknown", IF($J31=99, "Surveillance", E31)), 0),"Not required") -> 0 | O31: =IF(INTRO!$E$41="Endemic", IF($J31>1, IF($J31=4, "Unknown", IF($J31=99, "Surveillance", F31)), 0),"Not required") -> 0 | P31: =IF(INTRO!$E$41="Endemic", IF($J31>1, IF($J31=4, "Unknown", IF($J31=99, "Surveillance", ROUND(D31*INTRO!$E$51,0))), 0),"Not required") -> 0 | Q31: =IF(INTRO!$E$41="Endemic", IF($J31>1, IF($J31=4, "Unknown", IF($J31=99, "Surveillance", SUM($N31:$P31))), 0),"Not required") -> 0 | R31: =IF(INTRO!$E$43="Endemic", IF($K31>1, IF($K31=4, "Unknown", IF($K31=99, "Surveillance", ROUND(E31*0.75,0))), 0),"Not required") -> 0 | S31: =IF(INTRO!$E$43="Endemic", IF($K31>1, IF($K31=4, "Unknown", IF($K31=99, "Surveillance", F31)), 0),"Not required") -> 0 | T31: =IF(INTRO!$E$43="Endemic", IF($K31>1, IF($K31=4, "Unknown", IF($K31=99, "Surveillance", G31)), 0),"Not required") -> 0 | U31: =IF(INTRO!$E$43="Endemic", IF($K31>1, IF($K31=4, "Unknown", IF($K31=99, "Surveillance", SUM($R31:$T31))), 0),"Not required") -> 0 | V31: 0 | W31: 0 | X31: 0 | Y31: 0 | AF31: No | AH31: 18510 | AI31: Chifra
A32: =IF(INTRO!$E$33<>0,INTRO!$E$33, " ") -> Ethiopia | B32: Afar Awsa | C32: Dubti | D32: 87520.42052 | E32: =IF(INTRO!$E$48="","",ROUND($D32*INTRO!$E$48,0)) -> 9277 | F32: =IF(INTRO!$E$49="","",ROUND($D32*INTRO!$E$49,0)) -> 26020 | G32: =IF(INTRO!$E$50="","",ROUND($D32*INTRO!$E$50,0)) -> 50487 | H32: 0 | I32: 4 | J32: 1 | K32: 0 | L32: =IF(INTRO!$E$37="Endemic",IF($H32>0,IF($H32=4,"Unknown",IF($H32=99,"Stopped",$D32)),0),"Not required") -> 0 | M32: =IF(INTRO!$E$39="Endemic", IF($I32>0, IF($I32=4,"Unknown",IF($I32=99,"Stopped",$D32)), 0),"Not required") -> Unknown | N32: =IF(INTRO!$E$41="Endemic", IF($J32>1, IF($J32=4, "Unknown", IF($J32=99, "Surveillance", E32)), 0),"Not required") -> 0 | O32: =IF(INTRO!$E$41="Endemic", IF($J32>1, IF($J32=4, "Unknown", IF($J32=99, "Surveillance", F32)), 0),"Not required") -> 0 | P32: =IF(INTRO!$E$41="Endemic", IF($J32>1, IF($J32=4, "Unknown", IF($J32=99, "Surveillance", ROUND(D32*INTRO!$E$51,0))), 0),"Not required") -> 0 | Q32: =IF(INTRO!$E$41="Endemic", IF($J32>1, IF($J32=4, "Unknown", IF($J32=99, "Surveillance", SUM($N32:$P32))), 0),"Not required") -> 0 | R32: =IF(INTRO!$E$43="Endemic", IF($K32>1, IF($K32=4, "Unknown", IF($K32=99, "Surveillance", ROUND(E32*0.75,0))), 0),"Not required") -> 0 | S32: =IF(INTRO!$E$43="Endemic", IF($K32>1, IF($K32=4, "Unknown", IF($K32=99, "Surveillance", F32)), 0),"Not required") -> 0 | T32: =IF(INTRO!$E$43="Endemic", IF($K32>1, IF($K32=4, "Unknown", IF($K32=99, "Surveillance", G32)), 0),"Not required") -> 0 | U32: =IF(INTRO!$E$43="Endemic", IF($K32>1, IF($K32=4, "Unknown", IF($K32=99, "Surveillance", SUM($R32:$T32))), 0),"Not required") -> 0 | V32: 0 | W32: 0 | X32: 0 | Y32: 0 | AF32: No | AH32: 18514 | AI32: Dubti
A33: =IF(INTRO!$E$33<>0,INTRO!$E$33, " ") -> Ethiopia | B33: Afar Awsa | C33: Elidar | D33: 107458.3272 | E33: =IF(INTRO!$E$48="","",ROUND($D33*INTRO!$E$48,0)) -> 11391 | F33: =IF(INTRO!$E$49="","",ROUND($D33*INTRO!$E$49,0)) -> 31947 | G33: =IF(INTRO!$E$50="","",ROUND($D33*INTRO!$E$50,0)) -> 61988 | H33: 0 | I33: 4 | J33: 3 | K33: 0 | L33: =IF(INTRO!$E$37="Endemic",IF($H33>0,IF($H33=4,"Unknown",IF($H33=99,"Stopped",$D33)),0),"Not required") -> 0 | M33: =IF(INTRO!$E$39="Endemic", IF($I33>0, IF($I33=4,"Unknown",IF($I33=99,"Stopped",$D33)), 0),"Not required") -> Unknown | N33: =IF(INTRO!$E$41="Endemic", IF($J33>1, IF($J33=4, "Unknown", IF($J33=99, "Surveillance", E33)), 0),"Not required") -> 11391 | O33: =IF(INTRO!$E$41="Endemic", IF($J33>1, IF($J33=4, "Unknown", IF($J33=99, "Surveillance", F33)), 0),"Not required") -> 31947 | P33: =IF(INTRO!$E$41="Endemic", IF($J33>1, IF($J33=4, "Unknown", IF($J33=99, "Surveillance", ROUND(D33*INTRO!$E$51,0))), 0),"Not required") -> 0 | Q33: =IF(INTRO!$E$41="Endemic", IF($J33>1, IF($J33=4, "Unknown", IF($J33=99, "Surveillance", SUM($N33:$P33))), 0),"Not required") -> 43338 | R33: =IF(INTRO!$E$43="Endemic", IF($K33>1, IF($K33=4, "Unknown", IF($K33=99, "Surveillance", ROUND(E33*0.75,0))), 0),"Not required") -> 0 | S33: =IF(INTRO!$E$43="Endemic", IF($K33>1, IF($K33=4, "Unknown", IF($K33=99, "Surveillance", F33)), 0),"Not required") -> 0 | T33: =IF(INTRO!$E$43="Endemic", IF($K33>1, IF($K33=4, "Unknown", IF($K33=99, "Surveillance", G33)), 0),"Not required") -> 0 | U33: =IF(INTRO!$E$43="Endemic", IF($K33>1, IF($K33=4, "Unknown", IF($K33=99, "Surveillance", SUM($R33:$T33))), 0),"Not required") -> 0 | V33: 0 | W33: 0 | X33: 2 | Y33: 0 | AE33: Yes | AF33: No | AH33: 18516 | AI33: Elidar
A34: =IF(INTRO!$E$33<>0,INTRO!$E$33, " ") -> Ethiopia | B34: Afar Awsa | C34: Kori | D34: 65027.31074 | E34: =IF(INTRO!$E$48="","",ROUND($D34*INTRO!$E$48,0)) -> 6893 | F34: =IF(INTRO!$E$49="","",ROUND($D34*INTRO!$E$49,0)) -> 19333 | G34: =IF(INTRO!$E$50="","",ROUND($D34*INTRO!$E$50,0)) -> 37511 | H34: 0 | I34: 4 | J34: 0 | K34: 0 | L34: =IF(INTRO!$E$37="Endemic",IF($H34>0,IF($H34=4,"Unknown",IF($H34=99,"Stopped",$D34)),0),"Not required") -> 0 | M34: =IF(INTRO!$E$39="Endemic", IF($I34>0, IF($I34=4,"Unknown",IF($I34=99,"Stopped",$D34)), 0),"Not required") -> Unknown | N34: =IF(INTRO!$E$41="Endemic", IF($J34>1, IF($J34=4, "Unknown", IF($J34=99, "Surveillance", E34)), 0),"Not required") -> 0 | O34: =IF(INTRO!$E$41="Endemic", IF($J34>1, IF($J34=4, "Unknown", IF($J34=99, "Surveillance", F34)), 0),"Not required") -> 0 | P34: =IF(INTRO!$E$41="Endemic", IF($J34>1, IF($J34=4, "Unknown", IF($J34=99, "Surveillance", ROUND(D34*INTRO!$E$51,0))), 0),"Not required") -> 0 | Q34: =IF(INTRO!$E$41="Endemic", IF($J34>1, IF($J34=4, "Unknown", IF($J34=99, "Surveillance", SUM($N34:$P34))), 0),"Not required") -> 0 | R34: =IF(INTRO!$E$43="Endemic", IF($K34>1, IF($K34=4, "Unknown", IF($K34=99, "Surveillance", ROUND(E34*0.75,0))), 0),"Not required") -> 0 | S34: =IF(INTRO!$E$43="Endemic", IF($K34>1, IF($K34=4, "Unknown", IF($K34=99, "Surveillance", F34)), 0),"Not required") -> 0 | T34: =IF(INTRO!$E$43="Endemic", IF($K34>1, IF($K34=4, "Unknown", IF($K34=99, "Surveillance", G34)), 0),"Not required") -> 0 | U34: =IF(INTRO!$E$43="Endemic", IF($K34>1, IF($K34=4, "Unknown", IF($K34=99, "Surveillance", SUM($R34:$T34))), 0),"Not required") -> 0 | V34: 0 | W34: 0 | X34: 0 | Y34: 0 | AF34: No | AH34: 18524 | AI34: Kori
A35: =IF(INTRO!$E$33<>0,INTRO!$E$33, " ") -> Ethiopia | B35: Afar Awsa | C35: Mile | D35: 124321.7799 | E35: =IF(INTRO!$E$48="","",ROUND($D35*INTRO!$E$48,0)) -> 13178 | F35: =IF(INTRO!$E$49="","",ROUND($D35*INTRO!$E$49,0)) -> 36961 | G35: =IF(INTRO!$E$50="","",ROUND($D35*INTRO!$E$50,0)) -> 71716 | H35: 0 | I35: 4 | J35: 1 | K35: 0 | L35: =IF(INTRO!$E$37="Endemic",IF($H35>0,IF($H35=4,"Unknown",IF($H35=99,"Stopped",$D35)),0),"Not required") -> 0 | M35: =IF(INTRO!$E$39="Endemic", IF($I35>0, IF($I35=4,"Unknown",IF($I35=99,"Stopped",$D35)), 0),"Not required") -> Unknown | N35: =IF(INTRO!$E$41="Endemic", IF($J35>1, IF($J35=4, "Unknown", IF($J35=99, "Surveillance", E35)), 0),"Not required") -> 0 | O35: =IF(INTRO!$E$41="Endemic", IF($J35>1, IF($J35=4, "Unknown", IF($J35=99, "Surveillance", F35)), 0),"Not required") -> 0 | P35: =IF(INTRO!$E$41="Endemic", IF($J35>1, IF($J35=4, "Unknown", IF($J35=99, "Surveillance", ROUND(D35*INTRO!$E$51,0))), 0),"Not required") -> 0 | Q35: =IF(INTRO!$E$41="Endemic", IF($J35>1, IF($J35=4, "Unknown", IF($J35=99, "Surveillance", SUM($N35:$P35))), 0),"Not required") -> 0 | R35: =IF(INTRO!$E$43="Endemic", IF($K35>1, IF($K35=4, "Unknown", IF($K35=99, "Surveillance", ROUND(E35*0.75,0))), 0),"Not required") -> 0 | S35: =IF(INTRO!$E$43="Endemic", IF($K35>1, IF($K35=4, "Unknown", IF($K35=99, "Surveillance", F35)), 0),"Not required") -> 0 | T35: =IF(INTRO!$E$43="Endemic", IF($K35>1, IF($K35=4, "Unknown", IF($K35=99, "Surveillance", G35)), 0),"Not required") -> 0 | U35: =IF(INTRO!$E$43="Endemic", IF($K35>1, IF($K35=4, "Unknown", IF($K35=99, "Surveillance", SUM($R35:$T35))), 0),"Not required") -> 0 | V35: 0 | W35: 0 | X35: 0 | Y35: 0 | AF35: No | AH35: 18526 | AI35: Mile
A36: =IF(INTRO!$E$33<>0,INTRO!$E$33, " ") -> Ethiopia | B36: Afar Awsa | C36: Semra Logya Town | D36: 45467.74718 | E36: =IF(INTRO!$E$48="","",ROUND($D36*INTRO!$E$48,0)) -> 4820 | F36: =IF(INTRO!$E$49="","",ROUND($D36*INTRO!$E$49,0)) -> 13518 | G36: =IF(INTRO!$E$50="","",ROUND($D36*INTRO!$E$50,0)) -> 26228 | H36: 0 | I36: 4 | J36: 0 | K36: 0 | L36: =IF(INTRO!$E$37="Endemic",IF($H36>0,IF($H36=4,"Unknown",IF($H36=99,"Stopped",$D36)),0),"Not required") -> 0 | M36: =IF(INTRO!$E$39="Endemic", IF($I36>0, IF($I36=4,"Unknown",IF($I36=99,"Stopped",$D36)), 0),"Not required") -> Unknown | N36: =IF(INTRO!$E$41="Endemic", IF($J36>1, IF($J36=4, "Unknown", IF($J36=99, "Surveillance", E36)), 0),"Not required") -> 0 | O36: =IF(INTRO!$E$41="Endemic", IF($J36>1, IF($J36=4, "Unknown", IF($J36=99, "Surveillance", F36)), 0),"Not required") -> 0 | P36: =IF(INTRO!$E$41="Endemic", IF($J36>1, IF($J36=4, "Unknown", IF($J36=99, "Surveillance", ROUND(D36*INTRO!$E$51,0))), 0),"Not required") -> 0 | Q36: =IF(INTRO!$E$41="Endemic", IF($J36>1, IF($J36=4, "Unknown", IF($J36=99, "Surveillance", SUM($N36:$P36))), 0),"Not required") -> 0 | R36: =IF(INTRO!$E$43="Endemic", IF($K36>1, IF($K36=4, "Unknown", IF($K36=99, "Surveillance", ROUND(E36*0.75,0))), 0),"Not required") -> 0 | S36: =IF(INTRO!$E$43="Endemic", IF($K36>1, IF($K36=4, "Unknown", IF($K36=99, "Surveillance", F36)), 0),"Not required") -> 0 | T36: =IF(INTRO!$E$43="Endemic", IF($K36>1, IF($K36=4, "Unknown", IF($K36=99, "Surveillance", G36)), 0),"Not required") -> 0 | U36: =IF(INTRO!$E$43="Endemic", IF($K36>1, IF($K36=4, "Unknown", IF($K36=99, "Surveillance", SUM($R36:$T36))), 0),"Not required") -> 0 | V36: 0 | W36: 0 | X36: 0 | Y36: 0 | AF36: No | AH36: 18527 | AI36: Semra Logya Town
A37: =IF(INTRO!$E$33<>0,INTRO!$E$33, " ") -> Ethiopia | B37: Afar Fanti | C37: Bedu | D37: 85043.99271 | E37: =IF(INTRO!$E$48="","",ROUND($D37*INTRO!$E$48,0)) -> 9015 | F37: =IF(INTRO!$E$49="","",ROUND($D37*INTRO!$E$49,0)) -> 25284 | G37: =IF(INTRO!$E$50="","",ROUND($D37*INTRO!$E$50,0)) -> 49058 | H37: 0 | I37: 4 | J37: 0 | K37: 0 | L37: =IF(INTRO!$E$37="Endemic",IF($H37>0,IF($H37=4,"Unknown",IF($H37=99,"Stopped",$D37)),0),"Not required") -> 0 | M37: =IF(INTRO!$E$39="Endemic", IF($I37>0, IF($I37=4,"Unknown",IF($I37=99,"Stopped",$D37)), 0),"Not required") -> Unknown | N37: =IF(INTRO!$E$41="Endemic", IF($J37>1, IF($J37=4, "Unknown", IF($J37=99, "Surveillance", E37)), 0),"Not required") -> 0 | O37: =IF(INTRO!$E$41="Endemic", IF($J37>1, IF($J37=4, "Unknown", IF($J37=99, "Surveillance", F37)), 0),"Not required") -> 0 | P37: =IF(INTRO!$E$41="Endemic", IF($J37>1, IF($J37=4, "Unknown", IF($J37=99, "Surveillance", ROUND(D37*INTRO!$E$51,0))), 0),"Not required") -> 0 | Q37: =IF(INTRO!$E$41="Endemic", IF($J37>1, IF($J37=4, "Unknown", IF($J37=99, "Surveillance", SUM($N37:$P37))), 0),"Not required") -> 0 | R37: =IF(INTRO!$E$43="Endemic", IF($K37>1, IF($K37=4, "Unknown", IF($K37=99, "Surveillance", ROUND(E37*0.75,0))), 0),"Not required") -> 0 | S37: =IF(INTRO!$E$43="Endemic", IF($K37>1, IF($K37=4, "Unknown", IF($K37=99, "Surveillance", F37)), 0),"Not required") -> 0 | T37: =IF(INTRO!$E$43="Endemic", IF($K37>1, IF($K37=4, "Unknown", IF($K37=99, "Surveillance", G37)), 0),"Not required") -> 0 | U37: =IF(INTRO!$E$43="Endemic", IF($K37>1, IF($K37=4, "Unknown", IF($K37=99, "Surveillance", SUM($R37:$T37))), 0),"Not required") -> 0 | V37: 0 | W37: 0 | X37: 0 | Y37: 0 | AF37: No | AH37: 18508 | AI37: Bedu
A38: =IF(INTRO!$E$33<>0,INTRO!$E$33, " ") -> Ethiopia | B38: Afar Fanti | C38: Berahle | D38: 106351.0356 | E38: =IF(INTRO!$E$48="","",ROUND($D38*INTRO!$E$48,0)) -> 11273 | F38: =IF(INTRO!$E$49="","",ROUND($D38*INTRO!$E$49,0)) -> 31618 | G38: =IF(INTRO!$E$50="","",ROUND($D38*INTRO!$E$50,0)) -> 61349 | H38: 0 | I38: 4 | J38: 0 | K38: 0 | L38: =IF(INTRO!$E$37="Endemic",IF($H38>0,IF($H38=4,"Unknown",IF($H38=99,"Stopped",$D38)),0),"Not required") -> 0 | M38: =IF(INTRO!$E$39="Endemic", IF($I38>0, IF($I38=4,"Unknown",IF($I38=99,"Stopped",$D38)), 0),"Not required") -> Unknown | N38: =IF(INTRO!$E$41="Endemic", IF($J38>1, IF($J38=4, "Unknown", IF($J38=99, "Surveillance", E38)), 0),"Not required") -> 0 | O38: =IF(INTRO!$E$41="Endemic", IF($J38>1, IF($J38=4, "Unknown", IF($J38=99, "Surveillance", F38)), 0),"Not required") -> 0 | P38: =IF(INTRO!$E$41="Endemic", IF($J38>1, IF($J38=4, "Unknown", IF($J38=99, "Surveillance", ROUND(D38*INTRO!$E$51,0))), 0),"Not required") -> 0 | Q38: =IF(INTRO!$E$41="Endemic", IF($J38>1, IF($J38=4, "Unknown", IF($J38=99, "Surveillance", SUM($N38:$P38))), 0),"Not required") -> 0 | R38: =IF(INTRO!$E$43="Endemic", IF($K38>1, IF($K38=4, "Unknown", IF($K38=99, "Surveillance", ROUND(E38*0.75,0))), 0),"Not required") -> 0 | S38: =IF(INTRO!$E$43="Endemic", IF($K38>1, IF($K38=4, "Unknown", IF($K38=99, "Surveillance", F38)), 0),"Not required") -> 0 | T38: =IF(INTRO!$E$43="Endemic", IF($K38>1, IF($K38=4, "Unknown", IF($K38=99, "Surveillance", G38)), 0),"Not required") -> 0 | U38: =IF(INTRO!$E$43="Endemic", IF($K38>1, IF($K38=4, "Unknown", IF($K38=99, "Surveillance", SUM($R38:$T38))), 0),"Not required") -> 0 | V38: 0 | W38: 0 | X38: 0 | Y38: 0 | AF38: No | AH38: 18507 | AI38: Berahle
A39: =IF(INTRO!$E$33<>0,INTRO!$E$33, " ") -> Ethiopia | B39: Afar Fanti | C39: Buremodaytu/Gelealu | D39: 42718.37974 | E39: =IF(INTRO!$E$48="","",ROUND($D39*INTRO!$E$48,0)) -> 4528 | F39: =IF(INTRO!$E$49="","",ROUND($D39*INTRO!$E$49,0)) -> 12700 | G39: =IF(INTRO!$E$50="","",ROUND($D39*INTRO!$E$50,0)) -> 24642 | H39: 0 | I39: 4 | J39: 3 | K39: 0 | L39: =IF(INTRO!$E$37="Endemic",IF($H39>0,IF($H39=4,"Unknown",IF($H39=99,"Stopped",$D39)),0),"Not required") -> 0 | M39: =IF(INTRO!$E$39="Endemic", IF($I39>0, IF($I39=4,"Unknown",IF($I39=99,"Stopped",$D39)), 0),"Not required") -> Unknown | N39: =IF(INTRO!$E$41="Endemic", IF($J39>1, IF($J39=4, "Unknown", IF($J39=99, "Surveillance", E39)), 0),"Not required") -> 4528 | O39: =IF(INTRO!$E$41="Endemic", IF($J39>1, IF($J39=4, "Unknown", IF($J39=99, "Surveillance", F39)), 0),"Not required") -> 12700 | P39: =IF(INTRO!$E$41="Endemic", IF($J39>1, IF($J39=4, "Unknown", IF($J39=99, "Surveillance", ROUND(D39*INTRO!$E$51,0))), 0),"Not required") -> 0 | Q39: =IF(INTRO!$E$41="Endemic", IF($J39>1, IF($J39=4, "Unknown", IF($J39=99, "Surveillance", SUM($N39:$P39))), 0),"Not required") -> 17228 | R39: =IF(INTRO!$E$43="Endemic", IF($K39>1, IF($K39=4, "Unknown", IF($K39=99, "Surveillance", ROUND(E39*0.75,0))), 0),"Not required") -> 0 | S39: =IF(INTRO!$E$43="Endemic", IF($K39>1, IF($K39=4, "Unknown", IF($K39=99, "Surveillance", F39)), 0),"Not required") -> 0 | T39: =IF(INTRO!$E$43="Endemic", IF($K39>1, IF($K39=4, "Unknown", IF($K39=99, "Surveillance", G39)), 0),"Not required") -> 0 | U39: =IF(INTRO!$E$43="Endemic", IF($K39>1, IF($K39=4, "Unknown", IF($K39=99, "Surveillance", SUM($R39:$T39))), 0),"Not required") -> 0 | V39: 0 | W39: 0 | X39: 2 | Y39: 0 | AE39: Yes | AF39: No | AH39: 18509 | AI39: Buremodaytu
A40: =IF(INTRO!$E$33<>0,INTRO!$E$33, " ") -> Ethiopia | B40: Afar Gabi | C40: Dalifage | D40: 48442.34528 | E40: =IF(INTRO!$E$48="","",ROUND($D40*INTRO!$E$48,0)) -> 5135 | F40: =IF(INTRO!$E$49="","",ROUND($D40*INTRO!$E$49,0)) -> 14402 | G40: =IF(INTRO!$E$50="","",ROUND($D40*INTRO!$E$50,0)) -> 27944 | H40: 0 | I40: 4 | J40: 0 | K40: 0 | L40: =IF(INTRO!$E$37="Endemic",IF($H40>0,IF($H40=4,"Unknown",IF($H40=99,"Stopped",$D40)),0),"Not required") -> 0 | M40: =IF(INTRO!$E$39="Endemic", IF($I40>0, IF($I40=4,"Unknown",IF($I40=99,"Stopped",$D40)), 0),"Not required") -> Unknown | N40: =IF(INTRO!$E$41="Endemic", IF($J40>1, IF($J40=4, "Unknown", IF($J40=99, "Surveillance", E40)), 0),"Not required") -> 0 | O40: =IF(INTRO!$E$41="Endemic", IF($J40>1, IF($J40=4, "Unknown", IF($J40=99, "Surveillance", F40)), 0),"Not required") -> 0 | P40: =IF(INTRO!$E$41="Endemic", IF($J40>1, IF($J40=4, "Unknown", IF($J40=99, "Surveillance", ROUND(D40*INTRO!$E$51,0))), 0),"Not required") -> 0 | Q40: =IF(INTRO!$E$41="Endemic", IF($J40>1, IF($J40=4, "Unknown", IF($J40=99, "Surveillance", SUM($N40:$P40))), 0),"Not required") -> 0 | R40: =IF(INTRO!$E$43="Endemic", IF($K40>1, IF($K40=4, "Unknown", IF($K40=99, "Surveillance", ROUND(E40*0.75,0))), 0),"Not required") -> 0 | S40: =IF(INTRO!$E$43="Endemic", IF($K40>1, IF($K40=4, "Unknown", IF($K40=99, "Surveillance", F40)), 0),"Not required") -> 0 | T40: =IF(INTRO!$E$43="Endemic", IF($K40>1, IF($K40=4, "Unknown", IF($K40=99, "Surveillance", G40)), 0),"Not required") -> 0 | U40: =IF(INTRO!$E$43="Endemic", IF($K40>1, IF($K40=4, "Unknown", IF($K40=99, "Surveillance", SUM($R40:$T40))), 0),"Not required") -> 0 | V40: 0 | W40: 0 | X40: 0 | Y40: 0 | AF40: No | AH40: 18511 | AI40: Dalifage
A41: =IF(INTRO!$E$33<>0,INTRO!$E$33, " ") -> Ethiopia | B41: Afar Gabi | C41: Dalul | D41: 112451.1252 | E41: =IF(INTRO!$E$48="","",ROUND($D41*INTRO!$E$48,0)) -> 11920 | F41: =IF(INTRO!$E$49="","",ROUND($D41*INTRO!$E$49,0)) -> 33432 | G41: =IF(INTRO!$E$50="","",ROUND($D41*INTRO!$E$50,0)) -> 64868 | H41: 0 | I41: 4 | J41: 0 | K41: 0 | L41: =IF(INTRO!$E$37="Endemic",IF($H41>0,IF($H41=4,"Unknown",IF($H41=99,"Stopped",$D41)),0),"Not required") -> 0 | M41: =IF(INTRO!$E$39="Endemic", IF($I41>0, IF($I41=4,"Unknown",IF($I41=99,"Stopped",$D41)), 0),"Not required") -> Unknown | N41: =IF(INTRO!$E$41="Endemic", IF($J41>1, IF($J41=4, "Unknown", IF($J41=99, "Surveillance", E41)), 0),"Not required") -> 0 | O41: =IF(INTRO!$E$41="Endemic", IF($J41>1, IF($J41=4, "Unknown", IF($J41=99, "Surveillance", F41)), 0),"Not required") -> 0 | P41: =IF(INTRO!$E$41="Endemic", IF($J41>1, IF($J41=4, "Unknown", IF($J41=99, "Surveillance", ROUND(D41*INTRO!$E$51,0))), 0),"Not required") -> 0 | Q41: =IF(INTRO!$E$41="Endemic", IF($J41>1, IF($J41=4, "Unknown", IF($J41=99, "Surveillance", SUM($N41:$P41))), 0),"Not required") -> 0 | R41: =IF(INTRO!$E$43="Endemic", IF($K41>1, IF($K41=4, "Unknown", IF($K41=99, "Surveillance", ROUND(E41*0.75,0))), 0),"Not required") -> 0 | S41: =IF(INTRO!$E$43="Endemic", IF($K41>1, IF($K41=4, "Unknown", IF($K41=99, "Surveillance", F41)), 0),"Not required") -> 0 | T41: =IF(INTRO!$E$43="Endemic", IF($K41>1, IF($K41=4, "Unknown", IF($K41=99, "Surveillance", G41)), 0),"Not required") -> 0 | U41: =IF(INTRO!$E$43="Endemic", IF($K41>1, IF($K41=4, "Unknown", IF($K41=99, "Surveillance", SUM($R41:$T41))), 0),"Not required") -> 0 | V41: 0 | W41: 0 | X41: 0 | Y41: 0 | AF41: No | AH41: 18512 | AI41: Dalul
A42: =IF(INTRO!$E$33<>0,INTRO!$E$33, " ") -> Ethiopia | B42: Afar Gabi | C42: Dewe | D42: 56712.6378 | E42: =IF(INTRO!$E$48="","",ROUND($D42*INTRO!$E$48,0)) -> 6012 | F42: =IF(INTRO!$E$49="","",ROUND($D42*INTRO!$E$49,0)) -> 16861 | G42: =IF(INTRO!$E$50="","",ROUND($D42*INTRO!$E$50,0)) -> 32715 | H42: 0 | I42: 4 | J42: 0 | K42: 3 | L42: =IF(INTRO!$E$37="Endemic",IF($H42>0,IF($H42=4,"Unknown",IF($H42=99,"Stopped",$D42)),0),"Not required") -> 0 | M42: =IF(INTRO!$E$39="Endemic", IF($I42>0, IF($I42=4,"Unknown",IF($I42=99,"Stopped",$D42)), 0),"Not required") -> Unknown | N42: =IF(INTRO!$E$41="Endemic", IF($J42>1, IF($J42=4, "Unknown", IF($J42=99, "Surveillance", E42)), 0),"Not required") -> 0 | O42: =IF(INTRO!$E$41="Endemic", IF($J42>1, IF($J42=4, "Unknown", IF($J42=99, "Surveillance", F42)), 0),"Not required") -> 0 | P42: =IF(INTRO!$E$41="Endemic", IF($J42>1, IF($J42=4, "Unknown", IF($J42=99, "Surveillance", ROUND(D42*INTRO!$E$51,0))), 0),"Not required") -> 0 | Q42: =IF(INTRO!$E$41="Endemic", IF($J42>1, IF($J42=4, "Unknown", IF($J42=99, "Surveillance", SUM($N42:$P42))), 0),"Not required") -> 0 | R42: =IF(INTRO!$E$43="Endemic", IF($K42>1, IF($K42=4, "Unknown", IF($K42=99, "Surveillance", ROUND(E42*0.75,0))), 0),"Not required") -> 4509 | S42: =IF(INTRO!$E$43="Endemic", IF($K42>1, IF($K42=4, "Unknown", IF($K42=99, "Surveillance", F42)), 0),"Not required") -> 16861 | T42: =IF(INTRO!$E$43="Endemic", IF($K42>1, IF($K42=4, "Unknown", IF($K42=99, "Surveillance", G42)), 0),"Not required") -> 32715 | U42: =IF(INTRO!$E$43="Endemic", IF($K42>1, IF($K42=4, "Unknown", IF($K42=99, "Surveillance", SUM($R42:$T42))), 0),"Not required") -> 54085 | V42: 0 | W42: 0 | X42: 0 | Y42: 1 | AF42: Yes | AH42: 18513 | AI42: Dewe
A43: =IF(INTRO!$E$33<>0,INTRO!$E$33, " ") -> Ethiopia | B43: Afar Gabi | C43: Dulech | D43: 27773.27104 | E43: =IF(INTRO!$E$48="","",ROUND($D43*INTRO!$E$48,0)) -> 2944 | F43: =IF(INTRO!$E$49="","",ROUND($D43*INTRO!$E$49,0)) -> 8257 | G43: =IF(INTRO!$E$50="","",ROUND($D43*INTRO!$E$50,0)) -> 16021 | H43: 0 | I43: 4 | J43: 0 | K43: 1 | L43: =IF(INTRO!$E$37="Endemic",IF($H43>0,IF($H43=4,"Unknown",IF($H43=99,"Stopped",$D43)),0),"Not required") -> 0 | M43: =IF(INTRO!$E$39="Endemic", IF($I43>0, IF($I43=4,"Unknown",IF($I43=99,"Stopped",$D43)), 0),"Not required") -> Unknown | N43: =IF(INTRO!$E$41="Endemic", IF($J43>1, IF($J43=4, "Unknown", IF($J43=99, "Surveillance", E43)), 0),"Not required") -> 0 | O43: =IF(INTRO!$E$41="Endemic", IF($J43>1, IF($J43=4, "Unknown", IF($J43=99, "Surveillance", F43)), 0),"Not required") -> 0 | P43: =IF(INTRO!$E$41="Endemic", IF($J43>1, IF($J43=4, "Unknown", IF($J43=99, "Surveillance", ROUND(D43*INTRO!$E$51,0))), 0),"Not required") -> 0 | Q43: =IF(INTRO!$E$41="Endemic", IF($J43>1, IF($J43=4, "Unknown", IF($J43=99, "Surveillance", SUM($N43:$P43))), 0),"Not required") -> 0 | R43: =IF(INTRO!$E$43="Endemic", IF($K43>1, IF($K43=4, "Unknown", IF($K43=99, "Surveillance", ROUND(E43*0.75,0))), 0),"Not required") -> 0 | S43: =IF(INTRO!$E$43="Endemic", IF($K43>1, IF($K43=4, "Unknown", IF($K43=99, "Surveillance", F43)), 0),"Not required") -> 0 | T43: =IF(INTRO!$E$43="Endemic", IF($K43>1, IF($K43=4, "Unknown", IF($K43=99, "Surveillance", G43)), 0),"Not required") -> 0 | U43: =IF(INTRO!$E$43="Endemic", IF($K43>1, IF($K43=4, "Unknown", IF($K43=99, "Surveillance", SUM($R43:$T43))), 0),"Not required") -> 0 | V43: 0 | W43: 0 | X43: 0 | Y43: 0 | AF43: No | AH43: 18515 | AI43: Dulech
A44: =IF(INTRO!$E$33<>0,INTRO!$E$33, " ") -> Ethiopia | B44: AfarHarri | C44: Erebti | D44: 77551.46716 | E44: =IF(INTRO!$E$48="","",ROUND($D44*INTRO!$E$48,0)) -> 8221 | F44: =IF(INTRO!$E$49="","",ROUND($D44*INTRO!$E$49,0)) -> 23056 | G44: =IF(INTRO!$E$50="","",ROUND($D44*INTRO!$E$50,0)) -> 44736 | H44: 0 | I44: 4 | J44: 0 | K44: 0 | L44: =IF(INTRO!$E$37="Endemic",IF($H44>0,IF($H44=4,"Unknown",IF($H44=99,"Stopped",$D44)),0),"Not required") -> 0 | M44: =IF(INTRO!$E$39="Endemic", IF($I44>0, IF($I44=4,"Unknown",IF($I44=99,"Stopped",$D44)), 0),"Not required") -> Unknown | N44: =IF(INTRO!$E$41="Endemic", IF($J44>1, IF($J44=4, "Unknown", IF($J44=99, "Surveillance", E44)), 0),"Not required") -> 0 | O44: =IF(INTRO!$E$41="Endemic", IF($J44>1, IF($J44=4, "Unknown", IF($J44=99, "Surveillance", F44)), 0),"Not required") -> 0 | P44: =IF(INTRO!$E$41="Endemic", IF($J44>1, IF($J44=4, "Unknown", IF($J44=99, "Surveillance", ROUND(D44*INTRO!$E$51,0))), 0),"Not required") -> 0 | Q44: =IF(INTRO!$E$41="Endemic", IF($J44>1, IF($J44=4, "Unknown", IF($J44=99, "Surveillance", SUM($N44:$P44))), 0),"Not required") -> 0 | R44: =IF(INTRO!$E$43="Endemic", IF($K44>1, IF($K44=4, "Unknown", IF($K44=99, "Surveillance", ROUND(E44*0.75,0))), 0),"Not required") -> 0 | S44: =IF(INTRO!$E$43="Endemic", IF($K44>1, IF($K44=4, "Unknown", IF($K44=99, "Surveillance", F44)), 0),"Not required") -> 0 | T44: =IF(INTRO!$E$43="Endemic", IF($K44>1, IF($K44=4, "Unknown", IF($K44=99, "Surveillance", G44)), 0),"Not required") -> 0 | U44: =IF(INTRO!$E$43="Endemic", IF($K44>1, IF($K44=4, "Unknown", IF($K44=99, "Surveillance", SUM($R44:$T44))), 0),"Not required") -> 0 | V44: 0 | W44: 0 | X44: 0 | Y44: 0 | AF44: No | AH44: 18517 | AI44: Erebti
A45: =IF(INTRO!$E$33<>0,INTRO!$E$33, " ") -> Ethiopia | B45: AfarHarri | C45: Ewa | D45: 63861.21503 | E45: =IF(INTRO!$E$48="","",ROUND($D45*INTRO!$E$48,0)) -> 6769 | F45: =IF(INTRO!$E$49="","",ROUND($D45*INTRO!$E$49,0)) -> 18986 | G45: =IF(INTRO!$E$50="","",ROUND($D45*INTRO!$E$50,0)) -> 36839 | H45: 0 | I45: 4 | J45: 0 | K45: 0 | L45: =IF(INTRO!$E$37="Endemic",IF($H45>0,IF($H45=4,"Unknown",IF($H45=99,"Stopped",$D45)),0),"Not required") -> 0 | M45: =IF(INTRO!$E$39="Endemic", IF($I45>0, IF($I45=4,"Unknown",IF($I45=99,"Stopped",$D45)), 0),"Not required") -> Unknown | N45: =IF(INTRO!$E$41="Endemic", IF($J45>1, IF($J45=4, "Unknown", IF($J45=99, "Surveillance", E45)), 0),"Not required") -> 0 | O45: =IF(INTRO!$E$41="Endemic", IF($J45>1, IF($J45=4, "Unknown", IF($J45=99, "Surveillance", F45)), 0),"Not required") -> 0 | P45: =IF(INTRO!$E$41="Endemic", IF($J45>1, IF($J45=4, "Unknown", IF($J45=99, "Surveillance", ROUND(D45*INTRO!$E$51,0))), 0),"Not required") -> 0 | Q45: =IF(INTRO!$E$41="Endemic", IF($J45>1, IF($J45=4, "Unknown", IF($J45=99, "Surveillance", SUM($N45:$P45))), 0),"Not required") -> 0 | R45: =IF(INTRO!$E$43="Endemic", IF($K45>1, IF($K45=4, "Unknown", IF($K45=99, "Surveillance", ROUND(E45*0.75,0))), 0),"Not required") -> 0 | S45: =IF(INTRO!$E$43="Endemic", IF($K45>1, IF($K45=4, "Unknown", IF($K45=99, "Surveillance", F45)), 0),"Not required") -> 0 | T45: =IF(INTRO!$E$43="Endemic", IF($K45>1, IF($K45=4, "Unknown", IF($K45=99, "Surveillance", G45)), 0),"Not required") -> 0 | U45: =IF(INTRO!$E$43="Endemic", IF($K45>1, IF($K45=4, "Unknown", IF($K45=99, "Surveillance", SUM($R45:$T45))), 0),"Not required") -> 0 | V45: 0 | W45: 0 | X45: 0 | Y45: 0 | AF45: No | AH45: 18518 | AI45: Ewa
A46: =IF(INTRO!$E$33<>0,INTRO!$E$33, " ") -> Ethiopia | B46: AfarHarri | C46: Gewane | D46: 42328.9415 | E46: =IF(INTRO!$E$48="","",ROUND($D46*INTRO!$E$48,0)) -> 4487 | F46: =IF(INTRO!$E$49="","",ROUND($D46*INTRO!$E$49,0)) -> 12584 | G46: =IF(INTRO!$E$50="","",ROUND($D46*INTRO!$E$50,0)) -> 24418 | H46: 0 | I46: 4 | J46: 1 | K46: 0 | L46: =IF(INTRO!$E$37="Endemic",IF($H46>0,IF($H46=4,"Unknown",IF($H46=99,"Stopped",$D46)),0),"Not required") -> 0 | M46: =IF(INTRO!$E$39="Endemic", IF($I46>0, IF($I46=4,"Unknown",IF($I46=99,"Stopped",$D46)), 0),"Not required") -> Unknown | N46: =IF(INTRO!$E$41="Endemic", IF($J46>1, IF($J46=4, "Unknown", IF($J46=99, "Surveillance", E46)), 0),"Not required") -> 0 | O46: =IF(INTRO!$E$41="Endemic", IF($J46>1, IF($J46=4, "Unknown", IF($J46=99, "Surveillance", F46)), 0),"Not required") -> 0 | P46: =IF(INTRO!$E$41="Endemic", IF($J46>1, IF($J46=4, "Unknown", IF($J46=99, "Surveillance", ROUND(D46*INTRO!$E$51,0))), 0),"Not required") -> 0 | Q46: =IF(INTRO!$E$41="Endemic", IF($J46>1, IF($J46=4, "Unknown", IF($J46=99, "Surveillance", SUM($N46:$P46))), 0),"Not required") -> 0 | R46: =IF(INTRO!$E$43="Endemic", IF($K46>1, IF($K46=4, "Unknown", IF($K46=99, "Surveillance", ROUND(E46*0.75,0))), 0),"Not required") -> 0 | S46: =IF(INTRO!$E$43="Endemic", IF($K46>1, IF($K46=4, "Unknown", IF($K46=99, "Surveillance", F46)), 0),"Not required") -> 0 | T46: =IF(INTRO!$E$43="Endemic", IF($K46>1, IF($K46=4, "Unknown", IF($K46=99, "Surveillance", G46)), 0),"Not required") -> 0 | U46: =IF(INTRO!$E$43="Endemic", IF($K46>1, IF($K46=4, "Unknown", IF($K46=99, "Surveillance", SUM($R46:$T46))), 0),"Not required") -> 0 | V46: 0 | W46: 0 | X46: 0 | Y46: 0 | AF46: No | AH46: 18520 | AI46: Gewane
A47: =IF(INTRO!$E$33<>0,INTRO!$E$33, " ") -> Ethiopia | B47: AfarHarri | C47: Gulina | D47: 66719.31451 | E47: =IF(INTRO!$E$48="","",ROUND($D47*INTRO!$E$48,0)) -> 7072 | F47: =IF(INTRO!$E$49="","",ROUND($D47*INTRO!$E$49,0)) -> 19836 | G47: =IF(INTRO!$E$50="","",ROUND($D47*INTRO!$E$50,0)) -> 38488 | H47: 0 | I47: 4 | J47: 0 | K47: 0 | L47: =IF(INTRO!$E$37="Endemic",IF($H47>0,IF($H47=4,"Unknown",IF($H47=99,"Stopped",$D47)),0),"Not required") -> 0 | M47: =IF(INTRO!$E$39="Endemic", IF($I47>0, IF($I47=4,"Unknown",IF($I47=99,"Stopped",$D47)), 0),"Not required") -> Unknown | N47: =IF(INTRO!$E$41="Endemic", IF($J47>1, IF($J47=4, "Unknown", IF($J47=99, "Surveillance", E47)), 0),"Not required") -> 0 | O47: =IF(INTRO!$E$41="Endemic", IF($J47>1, IF($J47=4, "Unknown", IF($J47=99, "Surveillance", F47)), 0),"Not required") -> 0 | P47: =IF(INTRO!$E$41="Endemic", IF($J47>1, IF($J47=4, "Unknown", IF($J47=99, "Surveillance", ROUND(D47*INTRO!$E$51,0))), 0),"Not required") -> 0 | Q47: =IF(INTRO!$E$41="Endemic", IF($J47>1, IF($J47=4, "Unknown", IF($J47=99, "Surveillance", SUM($N47:$P47))), 0),"Not required") -> 0 | R47: =IF(INTRO!$E$43="Endemic", IF($K47>1, IF($K47=4, "Unknown", IF($K47=99, "Surveillance", ROUND(E47*0.75,0))), 0),"Not required") -> 0 | S47: =IF(INTRO!$E$43="Endemic", IF($K47>1, IF($K47=4, "Unknown", IF($K47=99, "Surveillance", F47)), 0),"Not required") -> 0 | T47: =IF(INTRO!$E$43="Endemic", IF($K47>1, IF($K47=4, "Unknown", IF($K47=99, "Surveillance", G47)), 0),"Not required") -> 0 | U47: =IF(INTRO!$E$43="Endemic", IF($K47>1, IF($K47=4, "Unknown", IF($K47=99, "Surveillance", SUM($R47:$T47))), 0),"Not required") -> 0 | V47: 0 | W47: 0 | X47: 0 | Y47: 0 | AF47: No | AH47: 18521 | AI47: Gulina
A48: =IF(INTRO!$E$33<>0,INTRO!$E$33, " ") -> Ethiopia | B48: AfarHarri | C48: Hadaleelila | D48: 47239.63571 | E48: =IF(INTRO!$E$48="","",ROUND($D48*INTRO!$E$48,0)) -> 5007 | F48: =IF(INTRO!$E$49="","",ROUND($D48*INTRO!$E$49,0)) -> 14044 | G48: =IF(INTRO!$E$50="","",ROUND($D48*INTRO!$E$50,0)) -> 27251 | H48: 0 | I48: 4 | J48: 3 | K48: 0 | L48: =IF(INTRO!$E$37="Endemic",IF($H48>0,IF($H48=4,"Unknown",IF($H48=99,"Stopped",$D48)),0),"Not required") -> 0 | M48: =IF(INTRO!$E$39="Endemic", IF($I48>0, IF($I48=4,"Unknown",IF($I48=99,"Stopped",$D48)), 0),"Not required") -> Unknown | N48: =IF(INTRO!$E$41="Endemic", IF($J48>1, IF($J48=4, "Unknown", IF($J48=99, "Surveillance", E48)), 0),"Not required") -> 5007 | O48: =IF(INTRO!$E$41="Endemic", IF($J48>1, IF($J48=4, "Unknown", IF($J48=99, "Surveillance", F48)), 0),"Not required") -> 14044 | P48: =IF(INTRO!$E$41="Endemic", IF($J48>1, IF($J48=4, "Unknown", IF($J48=99, "Surveillance", ROUND(D48*INTRO!$E$51,0))), 0),"Not required") -> 0 | Q48: =IF(INTRO!$E$41="Endemic", IF($J48>1, IF($J48=4, "Unknown", IF($J48=99, "Surveillance", SUM($N48:$P48))), 0),"Not required") -> 19051 | R48: =IF(INTRO!$E$43="Endemic", IF($K48>1, IF($K48=4, "Unknown", IF($K48=99, "Surveillance", ROUND(E48*0.75,0))), 0),"Not required") -> 0 | S48: =IF(INTRO!$E$43="Endemic", IF($K48>1, IF($K48=4, "Unknown", IF($K48=99, "Surveillance", F48)), 0),"Not required") -> 0 | T48: =IF(INTRO!$E$43="Endemic", IF($K48>1, IF($K48=4, "Unknown", IF($K48=99, "Surveillance", G48)), 0),"Not required") -> 0 | U48: =IF(INTRO!$E$43="Endemic", IF($K48>1, IF($K48=4, "Unknown", IF($K48=99, "Surveillance", SUM($R48:$T48))), 0),"Not required") -> 0 | V48: 0 | W48: 0 | X48: 2 | Y48: 0 | AE48: Yes | AF48: No | AH48: 18522 | AI48: Hadaleelila
A49: =IF(INTRO!$E$33<>0,INTRO!$E$33, " ") -> Ethiopia | B49: AfarHarri | C49: Koneba | D49: 72583.07839 | E49: =IF(INTRO!$E$48="","",ROUND($D49*INTRO!$E$48,0)) -> 7694 | F49: =IF(INTRO!$E$49="","",ROUND($D49*INTRO!$E$49,0)) -> 21579 | G49: =IF(INTRO!$E$50="","",ROUND($D49*INTRO!$E$50,0)) -> 41870 | H49: 0 | I49: 4 | J49: 0 | K49: 0 | L49: =IF(INTRO!$E$37="Endemic",IF($H49>0,IF($H49=4,"Unknown",IF($H49=99,"Stopped",$D49)),0),"Not required") -> 0 | M49: =IF(INTRO!$E$39="Endemic", IF($I49>0, IF($I49=4,"Unknown",IF($I49=99,"Stopped",$D49)), 0),"Not required") -> Unknown | N49: =IF(INTRO!$E$41="Endemic", IF($J49>1, IF($J49=4, "Unknown", IF($J49=99, "Surveillance", E49)), 0),"Not required") -> 0 | O49: =IF(INTRO!$E$41="Endemic", IF($J49>1, IF($J49=4, "Unknown", IF($J49=99, "Surveillance", F49)), 0),"Not required") -> 0 | P49: =IF(INTRO!$E$41="Endemic", IF($J49>1, IF($J49=4, "Unknown", IF($J49=99, "Surveillance", ROUND(D49*INTRO!$E$51,0))), 0),"Not required") -> 0 | Q49: =IF(INTRO!$E$41="Endemic", IF($J49>1, IF($J49=4, "Unknown", IF($J49=99, "Surveillance", SUM($N49:$P49))), 0),"Not required") -> 0 | R49: =IF(INTRO!$E$43="Endemic", IF($K49>1, IF($K49=4, "Unknown", IF($K49=99, "Surveillance", ROUND(E49*0.75,0))), 0),"Not required") -> 0 | S49: =IF(INTRO!$E$43="Endemic", IF($K49>1, IF($K49=4, "Unknown", IF($K49=99, "Surveillance", F49)), 0),"Not required") -> 0 | T49: =IF(INTRO!$E$43="Endemic", IF($K49>1, IF($K49=4, "Unknown", IF($K49=99, "Surveillance", G49)), 0),"Not required") -> 0 | U49: =IF(INTRO!$E$43="Endemic", IF($K49>1, IF($K49=4, "Unknown", IF($K49=99, "Surveillance", SUM($R49:$T49))), 0),"Not required") -> 0 | V49: 0 | W49: 0 | X49: 0 | Y49: 0 | AF49: No | AH49: 18523 | AI49: Koneba
A50: =IF(INTRO!$E$33<>0,INTRO!$E$33, " ") -> Ethiopia | B50: AfarKilbat | C50: Megalle | D50: 37662.33963 | E50: =IF(INTRO!$E$48="","",ROUND($D50*INTRO!$E$48,0)) -> 3992 | F50: =IF(INTRO!$E$49="","",ROUND($D50*INTRO!$E$49,0)) -> 11197 | G50: =IF(INTRO!$E$50="","",ROUND($D50*INTRO!$E$50,0)) -> 21726 | H50: 0 | I50: 4 | J50: 0 | K50: 0 | L50: =IF(INTRO!$E$37="Endemic",IF($H50>0,IF($H50=4,"Unknown",IF($H50=99,"Stopped",$D50)),0),"Not required") -> 0 | M50: =IF(INTRO!$E$39="Endemic", IF($I50>0, IF($I50=4,"Unknown",IF($I50=99,"Stopped",$D50)), 0),"Not required") -> Unknown | N50: =IF(INTRO!$E$41="Endemic", IF($J50>1, IF($J50=4, "Unknown", IF($J50=99, "Surveillance", E50)), 0),"Not required") -> 0 | O50: =IF(INTRO!$E$41="Endemic", IF($J50>1, IF($J50=4, "Unknown", IF($J50=99, "Surveillance", F50)), 0),"Not required") -> 0 | P50: =IF(INTRO!$E$41="Endemic", IF($J50>1, IF($J50=4, "Unknown", IF($J50=99, "Surveillance", ROUND(D50*INTRO!$E$51,0))), 0),"Not required") -> 0 | Q50: =IF(INTRO!$E$41="Endemic", IF($J50>1, IF($J50=4, "Unknown", IF($J50=99, "Surveillance", SUM($N50:$P50))), 0),"Not required") -> 0 | R50: =IF(INTRO!$E$43="Endemic", IF($K50>1, IF($K50=4, "Unknown", IF($K50=99, "Surveillance", ROUND(E50*0.75,0))), 0),"Not required") -> 0 | S50: =IF(INTRO!$E$43="Endemic", IF($K50>1, IF($K50=4, "Unknown", IF($K50=99, "Surveillance", F50)), 0),"Not required") -> 0 | T50: =IF(INTRO!$E$43="Endemic", IF($K50>1, IF($K50=4, "Unknown", IF($K50=99, "Surveillance", G50)), 0),"Not required") -> 0 | U50: =IF(INTRO!$E$43="Endemic", IF($K50>1, IF($K50=4, "Unknown", IF($K50=99, "Surveillance", SUM($R50:$T50))), 0),"Not required") -> 0 | V50: 0 | W50: 0 | X50: 0 | Y50: 0 | AF50: No | AH50: 18525 | AI50: Megalle
A51: =IF(INTRO!$E$33<>0,INTRO!$E$33, " ") -> Ethiopia | B51: AfarKilbat | C51: Samorobigelalu | D51: 42898.12047 | E51: =IF(INTRO!$E$48="","",ROUND($D51*INTRO!$E$48,0)) -> 4547 | F51: =IF(INTRO!$E$49="","",ROUND($D51*INTRO!$E$49,0)) -> 12754 | G51: =IF(INTRO!$E$50="","",ROUND($D51*INTRO!$E$50,0)) -> 24746 | H51: 0 | I51: 4 | J51: 1 | K51: 0 | L51: =IF(INTRO!$E$37="Endemic",IF($H51>0,IF($H51=4,"Unknown",IF($H51=99,"Stopped",$D51)),0),"Not required") -> 0 | M51: =IF(INTRO!$E$39="Endemic", IF($I51>0, IF($I51=4,"Unknown",IF($I51=99,"Stopped",$D51)), 0),"Not required") -> Unknown | N51: =IF(INTRO!$E$41="Endemic", IF($J51>1, IF($J51=4, "Unknown", IF($J51=99, "Surveillance", E51)), 0),"Not required") -> 0 | O51: =IF(INTRO!$E$41="Endemic", IF($J51>1, IF($J51=4, "Unknown", IF($J51=99, "Surveillance", F51)), 0),"Not required") -> 0 | P51: =IF(INTRO!$E$41="Endemic", IF($J51>1, IF($J51=4, "Unknown", IF($J51=99, "Surveillance", ROUND(D51*INTRO!$E$51,0))), 0),"Not required") -> 0 | Q51: =IF(INTRO!$E$41="Endemic", IF($J51>1, IF($J51=4, "Unknown", IF($J51=99, "Surveillance", SUM($N51:$P51))), 0),"Not required") -> 0 | R51: =IF(INTRO!$E$43="Endemic", IF($K51>1, IF($K51=4, "Unknown", IF($K51=99, "Surveillance", ROUND(E51*0.75,0))), 0),"Not required") -> 0 | S51: =IF(INTRO!$E$43="Endemic", IF($K51>1, IF($K51=4, "Unknown", IF($K51=99, "Surveillance", F51)), 0),"Not required") -> 0 | T51: =IF(INTRO!$E$43="Endemic", IF($K51>1, IF($K51=4, "Unknown", IF($K51=99, "Surveillance", G51)), 0),"Not required") -> 0 | U51: =IF(INTRO!$E$43="Endemic", IF($K51>1, IF($K51=4, "Unknown", IF($K51=99, "Surveillance", SUM($R51:$T51))), 0),"Not required") -> 0 | V51: 0 | W51: 0 | X51: 0 | Y51: 0 | AF51: No | AH51: 18528 | AI51: Samorobigelalu
A52: =IF(INTRO!$E$33<>0,INTRO!$E$33, " ") -> Ethiopia | B52: AfarKilbat | C52: Telalak | D52: 50866.62609 | E52: =IF(INTRO!$E$48="","",ROUND($D52*INTRO!$E$48,0)) -> 5392 | F52: =IF(INTRO!$E$49="","",ROUND($D52*INTRO!$E$49,0)) -> 15123 | G52: =IF(INTRO!$E$50="","",ROUND($D52*INTRO!$E$50,0)) -> 29343 | H52: 0 | I52: 4 | J52: 0 | K52: 0 | L52: =IF(INTRO!$E$37="Endemic",IF($H52>0,IF($H52=4,"Unknown",IF($H52=99,"Stopped",$D52)),0),"Not required") -> 0 | M52: =IF(INTRO!$E$39="Endemic", IF($I52>0, IF($I52=4,"Unknown",IF($I52=99,"Stopped",$D52)), 0),"Not required") -> Unknown | N52: =IF(INTRO!$E$41="Endemic", IF($J52>1, IF($J52=4, "Unknown", IF($J52=99, "Surveillance", E52)), 0),"Not required") -> 0 | O52: =IF(INTRO!$E$41="Endemic", IF($J52>1, IF($J52=4, "Unknown", IF($J52=99, "Surveillance", F52)), 0),"Not required") -> 0 | P52: =IF(INTRO!$E$41="Endemic", IF($J52>1, IF($J52=4, "Unknown", IF($J52=99, "Surveillance", ROUND(D52*INTRO!$E$51,0))), 0),"Not required") -> 0 | Q52: =IF(INTRO!$E$41="Endemic", IF($J52>1, IF($J52=4, "Unknown", IF($J52=99, "Surveillance", SUM($N52:$P52))), 0),"Not required") -> 0 | R52: =IF(INTRO!$E$43="Endemic", IF($K52>1, IF($K52=4, "Unknown", IF($K52=99, "Surveillance", ROUND(E52*0.75,0))), 0),"Not required") -> 0 | S52: =IF(INTRO!$E$43="Endemic", IF($K52>1, IF($K52=4, "Unknown", IF($K52=99, "Surveillance", F52)), 0),"Not required") -> 0 | T52: =IF(INTRO!$E$43="Endemic", IF($K52>1, IF($K52=4, "Unknown", IF($K52=99, "Surveillance", G52)), 0),"Not required") -> 0 | U52: =IF(INTRO!$E$43="Endemic", IF($K52>1, IF($K52=4, "Unknown", IF($K52=99, "Surveillance", SUM($R52:$T52))), 0),"Not required") -> 0 | V52: 0 | W52: 0 | X52: 0 | Y52: 0 | AF52: No | AH52: 18529 | AI52: Telalak
A53: =IF(INTRO!$E$33<>0,INTRO!$E$33, " ") -> Ethiopia | B53: AfarKilbat | C53: Teru | D53: 63594.93247 | E53: =IF(INTRO!$E$48="","",ROUND($D53*INTRO!$E$48,0)) -> 6741 | F53: =IF(INTRO!$E$49="","",ROUND($D53*INTRO!$E$49,0)) -> 18907 | G53: =IF(INTRO!$E$50="","",ROUND($D53*INTRO!$E$50,0)) -> 36685 | H53: 0 | I53: 4 | J53: 0 | K53: 0 | L53: =IF(INTRO!$E$37="Endemic",IF($H53>0,IF($H53=4,"Unknown",IF($H53=99,"Stopped",$D53)),0),"Not required") -> 0 | M53: =IF(INTRO!$E$39="Endemic", IF($I53>0, IF($I53=4,"Unknown",IF($I53=99,"Stopped",$D53)), 0),"Not required") -> Unknown | N53: =IF(INTRO!$E$41="Endemic", IF($J53>1, IF($J53=4, "Unknown", IF($J53=99, "Surveillance", E53)), 0),"Not required") -> 0 | O53: =IF(INTRO!$E$41="Endemic", IF($J53>1, IF($J53=4, "Unknown", IF($J53=99, "Surveillance", F53)), 0),"Not required") -> 0 | P53: =IF(INTRO!$E$41="Endemic", IF($J53>1, IF($J53=4, "Unknown", IF($J53=99, "Surveillance", ROUND(D53*INTRO!$E$51,0))), 0),"Not required") -> 0 | Q53: =IF(INTRO!$E$41="Endemic", IF($J53>1, IF($J53=4, "Unknown", IF($J53=99, "Surveillance", SUM($N53:$P53))), 0),"Not required") -> 0 | R53: =IF(INTRO!$E$43="Endemic", IF($K53>1, IF($K53=4, "Unknown", IF($K53=99, "Surveillance", ROUND(E53*0.75,0))), 0),"Not required") -> 0 | S53: =IF(INTRO!$E$43="Endemic", IF($K53>1, IF($K53=4, "Unknown", IF($K53=99, "Surveillance", F53)), 0),"Not required") -> 0 | T53: =IF(INTRO!$E$43="Endemic", IF($K53>1, IF($K53=4, "Unknown", IF($K53=99, "Surveillance", G53)), 0),"Not required") -> 0 | U53: =IF(INTRO!$E$43="Endemic", IF($K53>1, IF($K53=4, "Unknown", IF($K53=99, "Surveillance", SUM($R53:$T53))), 0),"Not required") -> 0 | V53: 0 | W53: 0 | X53: 0 | Y53: 0 | AF53: No | AH53: 18530 | AI53: Teru
A54: =IF(INTRO!$E$33<>0,INTRO!$E$33, " ") -> Ethiopia | B54: AfarKilbat | C54: Yalo | D54: 65216.07196 | E54: =IF(INTRO!$E$48="","",ROUND($D54*INTRO!$E$48,0)) -> 6913 | F54: =IF(INTRO!$E$49="","",ROUND($D54*INTRO!$E$49,0)) -> 19389 | G54: =IF(INTRO!$E$50="","",ROUND($D54*INTRO!$E$50,0)) -> 37620 | H54: 0 | I54: 4 | J54: 0 | K54: 0 | L54: =IF(INTRO!$E$37="Endemic",IF($H54>0,IF($H54=4,"Unknown",IF($H54=99,"Stopped",$D54)),0),"Not required") -> 0 | M54: =IF(INTRO!$E$39="Endemic", IF($I54>0, IF($I54=4,"Unknown",IF($I54=99,"Stopped",$D54)), 0),"Not required") -> Unknown | N54: =IF(INTRO!$E$41="Endemic", IF($J54>1, IF($J54=4, "Unknown", IF($J54=99, "Surveillance", E54)), 0),"Not required") -> 0 | O54: =IF(INTRO!$E$41="Endemic", IF($J54>1, IF($J54=4, "Unknown", IF($J54=99, "Surveillance", F54)), 0),"Not required") -> 0 | P54: =IF(INTRO!$E$41="Endemic", IF($J54>1, IF($J54=4, "Unknown", IF($J54=99, "Surveillance", ROUND(D54*INTRO!$E$51,0))), 0),"Not required") -> 0 | Q54: =IF(INTRO!$E$41="Endemic", IF($J54>1, IF($J54=4, "Unknown", IF($J54=99, "Surveillance", SUM($N54:$P54))), 0),"Not required") -> 0 | R54: =IF(INTRO!$E$43="Endemic", IF($K54>1, IF($K54=4, "Unknown", IF($K54=99, "Surveillance", ROUND(E54*0.75,0))), 0),"Not required") -> 0 | S54: =IF(INTRO!$E$43="Endemic", IF($K54>1, IF($K54=4, "Unknown", IF($K54=99, "Surveillance", F54)), 0),"Not required") -> 0 | T54: =IF(INTRO!$E$43="Endemic", IF($K54>1, IF($K54=4, "Unknown", IF($K54=99, "Surveillance", G54)), 0),"Not required") -> 0 | U54: =IF(INTRO!$E$43="Endemic", IF($K54>1, IF($K54=4, "Unknown", IF($K54=99, "Surveillance", SUM($R54:$T54))), 0),"Not required") -> 0 | V54: 0 | W54: 0 | X54: 0 | Y54: 0 | AF54: No | AH54: 18531 | AI54: Yalo
A55: =IF(INTRO!$E$33<>0,INTRO!$E$33, " ") -> Ethiopia | B55: AmharaAwi | C55: Ankesha | D55: 119609.4801 | E55: =IF(INTRO!$E$48="","",ROUND($D55*INTRO!$E$48,0)) -> 12679 | F55: =IF(INTRO!$E$49="","",ROUND($D55*INTRO!$E$49,0)) -> 35560 | G55: =IF(INTRO!$E$50="","",ROUND($D55*INTRO!$E$50,0)) -> 68998 | H55: 0 | I55: 0 | J55: 3 | K55: 1 | L55: =IF(INTRO!$E$37="Endemic",IF($H55>0,IF($H55=4,"Unknown",IF($H55=99,"Stopped",$D55)),0),"Not required") -> 0 | M55: =IF(INTRO!$E$39="Endemic", IF($I55>0, IF($I55=4,"Unknown",IF($I55=99,"Stopped",$D55)), 0),"Not required") -> 0 | N55: =IF(INTRO!$E$41="Endemic", IF($J55>1, IF($J55=4, "Unknown", IF($J55=99, "Surveillance", E55)), 0),"Not required") -> 12679 | O55: =IF(INTRO!$E$41="Endemic", IF($J55>1, IF($J55=4, "Unknown", IF($J55=99, "Surveillance", F55)), 0),"Not required") -> 35560 | P55: =IF(INTRO!$E$41="Endemic", IF($J55>1, IF($J55=4, "Unknown", IF($J55=99, "Surveillance", ROUND(D55*INTRO!$E$51,0))), 0),"Not required") -> 0 | Q55: =IF(INTRO!$E$41="Endemic", IF($J55>1, IF($J55=4, "Unknown", IF($J55=99, "Surveillance", SUM($N55:$P55))), 0),"Not required") -> 48239 | R55: =IF(INTRO!$E$43="Endemic", IF($K55>1, IF($K55=4, "Unknown", IF($K55=99, "Surveillance", ROUND(E55*0.75,0))), 0),"Not required") -> 0 | S55: =IF(INTRO!$E$43="Endemic", IF($K55>1, IF($K55=4, "Unknown", IF($K55=99, "Surveillance", F55)), 0),"Not required") -> 0 | T55: =IF(INTRO!$E$43="Endemic", IF($K55>1, IF($K55=4, "Unknown", IF($K55=99, "Surveillance", G55)), 0),"Not required") -> 0 | U55: =IF(INTRO!$E$43="Endemic", IF($K55>1, IF($K55=4, "Unknown", IF($K55=99, "Surveillance", SUM($R55:$T55))), 0),"Not required") -> 0 | V55: 0 | W55: 0 | X55: 2 | Y55: 0 | AE55: Yes | AF55: No | AH55: 19449 | AI55: Ankesha Guagusa
A56: =IF(INTRO!$E$33<>0,INTRO!$E$33, " ") -> Ethiopia | B56: AmharaAwi | C56: Ayehu | D56: 146147.856 | E56: =IF(INTRO!$E$48="","",ROUND($D56*INTRO!$E$48,0)) -> 15492 | F56: =IF(INTRO!$E$49="","",ROUND($D56*INTRO!$E$49,0)) -> 43450 | G56: =IF(INTRO!$E$50="","",ROUND($D56*INTRO!$E$50,0)) -> 84306 | H56: 0 | I56: 0 | J56: 3 | K56: 1 | L56: =IF(INTRO!$E$37="Endemic",IF($H56>0,IF($H56=4,"Unknown",IF($H56=99,"Stopped",$D56)),0),"Not required") -> 0 | M56: =IF(INTRO!$E$39="Endemic", IF($I56>0, IF($I56=4,"Unknown",IF($I56=99,"Stopped",$D56)), 0),"Not required") -> 0 | N56: =IF(INTRO!$E$41="Endemic", IF($J56>1, IF($J56=4, "Unknown", IF($J56=99, "Surveillance", E56)), 0),"Not required") -> 15492 | O56: =IF(INTRO!$E$41="Endemic", IF($J56>1, IF($J56=4, "Unknown", IF($J56=99, "Surveillance", F56)), 0),"Not required") -> 43450 | P56: =IF(INTRO!$E$41="Endemic", IF($J56>1, IF($J56=4, "Unknown", IF($J56=99, "Surveillance", ROUND(D56*INTRO!$E$51,0))), 0),"Not required") -> 0 | Q56: =IF(INTRO!$E$41="Endemic", IF($J56>1, IF($J56=4, "Unknown", IF($J56=99, "Surveillance", SUM($N56:$P56))), 0),"Not required") -> 58942 | R56: =IF(INTRO!$E$43="Endemic", IF($K56>1, IF($K56=4, "Unknown", IF($K56=99, "Surveillance", ROUND(E56*0.75,0))), 0),"Not required") -> 0 | S56: =IF(INTRO!$E$43="Endemic", IF($K56>1, IF($K56=4, "Unknown", IF($K56=99, "Surveillance", F56)), 0),"Not required") -> 0 | T56: =IF(INTRO!$E$43="Endemic", IF($K56>1, IF($K56=4, "Unknown", IF($K56=99, "Surveillance", G56)), 0),"Not required") -> 0 | U56: =IF(INTRO!$E$43="Endemic", IF($K56>1, IF($K56=4, "Unknown", IF($K56=99, "Surveillance", SUM($R56:$T56))), 0),"Not required") -> 0 | V56: 0 | W56: 0 | X56: 2 | Y56: 0 | AE56: Yes | AF56: No | AH56: 19344 | AI56: Ayehu
A57: =IF(INTRO!$E$33<>0,INTRO!$E$33, " ") -> Ethiopia | B57: AmharaAwi | C57: Banja Shikudad | D57: 94263.45929 | E57: =IF(INTRO!$E$48="","",ROUND($D57*INTRO!$E$48,0)) -> 9992 | F57: =IF(INTRO!$E$49="","",ROUND($D57*INTRO!$E$49,0)) -> 28025 | G57: =IF(INTRO!$E$50="","",ROUND($D57*INTRO!$E$50,0)) -> 54377 | H57: 0 | I57: 0 | J57: 2 | K57: 0 | L57: =IF(INTRO!$E$37="Endemic",IF($H57>0,IF($H57=4,"Unknown",IF($H57=99,"Stopped",$D57)),0),"Not required") -> 0 | M57: =IF(INTRO!$E$39="Endemic", IF($I57>0, IF($I57=4,"Unknown",IF($I57=99,"Stopped",$D57)), 0),"Not required") -> 0 | N57: =IF(INTRO!$E$41="Endemic", IF($J57>1, IF($J57=4, "Unknown", IF($J57=99, "Surveillance", E57)), 0),"Not required") -> 9992 | O57: =IF(INTRO!$E$41="Endemic", IF($J57>1, IF($J57=4, "Unknown", IF($J57=99, "Surveillance", F57)), 0),"Not required") -> 28025 | P57: =IF(INTRO!$E$41="Endemic", IF($J57>1, IF($J57=4, "Unknown", IF($J57=99, "Surveillance", ROUND(D57*INTRO!$E$51,0))), 0),"Not required") -> 0 | Q57: =IF(INTRO!$E$41="Endemic", IF($J57>1, IF($J57=4, "Unknown", IF($J57=99, "Surveillance", SUM($N57:$P57))), 0),"Not required") -> 38017 | R57: =IF(INTRO!$E$43="Endemic", IF($K57>1, IF($K57=4, "Unknown", IF($K57=99, "Surveillance", ROUND(E57*0.75,0))), 0),"Not required") -> 0 | S57: =IF(INTRO!$E$43="Endemic", IF($K57>1, IF($K57=4, "Unknown", IF($K57=99, "Surveillance", F57)), 0),"Not required") -> 0 | T57: =IF(INTRO!$E$43="Endemic", IF($K57>1, IF($K57=4, "Unknown", IF($K57=99, "Surveillance", G57)), 0),"Not required") -> 0 | U57: =IF(INTRO!$E$43="Endemic", IF($K57>1, IF($K57=4, "Unknown", IF($K57=99, "Surveillance", SUM($R57:$T57))), 0),"Not required") -> 0 | V57: 0 | W57: 0 | X57: 1 | Y57: 0 | AE57: Yes | AF57: No | AH57: 18549 | AI57: Banja Shikudad
A58: =IF(INTRO!$E$33<>0,INTRO!$E$33, " ") -> Ethiopia | B58: AmharaAwi | C58: Chagni Town | D58: 56936.44554 | E58: =IF(INTRO!$E$48="","",ROUND($D58*INTRO!$E$48,0)) -> 6035 | F58: =IF(INTRO!$E$49="","",ROUND($D58*INTRO!$E$49,0)) -> 16927 | G58: =IF(INTRO!$E$50="","",ROUND($D58*INTRO!$E$50,0)) -> 32844 | H58: 99 | I58: 0 | J58: 2 | K58: 2 | L58: =IF(INTRO!$E$37="Endemic",IF($H58>0,IF($H58=4,"Unknown",IF($H58=99,"Stopped",$D58)),0),"Not required") -> Stopped | M58: =IF(INTRO!$E$39="Endemic", IF($I58>0, IF($I58=4,"Unknown",IF($I58=99,"Stopped",$D58)), 0),"Not required") -> 0 | N58: =IF(INTRO!$E$41="Endemic", IF($J58>1, IF($J58=4, "Unknown", IF($J58=99, "Surveillance", E58)), 0),"Not required") -> 6035 | O58: =IF(INTRO!$E$41="Endemic", IF($J58>1, IF($J58=4, "Unknown", IF($J58=99, "Surveillance", F58)), 0),"Not required") -> 16927 | P58: =IF(INTRO!$E$41="Endemic", IF($J58>1, IF($J58=4, "Unknown", IF($J58=99, "Surveillance", ROUND(D58*INTRO!$E$51,0))), 0),"Not required") -> 0 | Q58: =IF(INTRO!$E$41="Endemic", IF($J58>1, IF($J58=4, "Unknown", IF($J58=99, "Surveillance", SUM($N58:$P58))), 0),"Not required") -> 22962 | R58: =IF(INTRO!$E$43="Endemic", IF($K58>1, IF($K58=4, "Unknown", IF($K58=99, "Surveillance", ROUND(E58*0.75,0))), 0),"Not required") -> 4526 | S58: =IF(INTRO!$E$43="Endemic", IF($K58>1, IF($K58=4, "Unknown", IF($K58=99, "Surveillance", F58)), 0),"Not required") -> 16927 | T58: =IF(INTRO!$E$43="Endemic", IF($K58>1, IF($K58=4, "Unknown", IF($K58=99, "Surveillance", G58)), 0),"Not required") -> 32844 | U58: =IF(INTRO!$E$43="Endemic", IF($K58>1, IF($K58=4, "Unknown", IF($K58=99, "Surveillance", SUM($R58:$T58))), 0),"Not required") -> 54297 | V58: 0 | W58: 0 | X58: 1 | Y58: 0 | AA58: TAS | AE58: Yes | AH58: 18561 | AI58: Chagni Town
A59: =IF(INTRO!$E$33<>0,INTRO!$E$33, " ") -> Ethiopia | B59: AmharaAwi | C59: Dangila | D59: 152197.0714 | E59: =IF(INTRO!$E$48="","",ROUND($D59*INTRO!$E$48,0)) -> 16133 | F59: =IF(INTRO!$E$49="","",ROUND($D59*INTRO!$E$49,0)) -> 45248 | G59: =IF(INTRO!$E$50="","",ROUND($D59*INTRO!$E$50,0)) -> 87796 | H59: 0 | I59: 0 | J59: 3 | K59: 0 | L59: =IF(INTRO!$E$37="Endemic",IF($H59>0,IF($H59=4,"Unknown",IF($H59=99,"Stopped",$D59)),0),"Not required") -> 0 | M59: =IF(INTRO!$E$39="Endemic", IF($I59>0, IF($I59=4,"Unknown",IF($I59=99,"Stopped",$D59)), 0),"Not required") -> 0 | N59: =IF(INTRO!$E$41="Endemic", IF($J59>1, IF($J59=4, "Unknown", IF($J59=99, "Surveillance", E59)), 0),"Not required") -> 16133 | O59: =IF(INTRO!$E$41="Endemic", IF($J59>1, IF($J59=4, "Unknown", IF($J59=99, "Surveillance", F59)), 0),"Not required") -> 45248 | P59: =IF(INTRO!$E$41="Endemic", IF($J59>1, IF($J59=4, "Unknown", IF($J59=99, "Surveillance", ROUND(D59*INTRO!$E$51,0))), 0),"Not required") -> 0 | Q59: =IF(INTRO!$E$41="Endemic", IF($J59>1, IF($J59=4, "Unknown", IF($J59=99, "Surveillance", SUM($N59:$P59))), 0),"Not required") -> 61381 | R59: =IF(INTRO!$E$43="Endemic", IF($K59>1, IF($K59=4, "Unknown", IF($K59=99, "Surveillance", ROUND(E59*0.75,0))), 0),"Not required") -> 0 | S59: =IF(INTRO!$E$43="Endemic", IF($K59>1, IF($K59=4, "Unknown", IF($K59=99, "Surveillance", F59)), 0),"Not required") -> 0 | T59: =IF(INTRO!$E$43="Endemic", IF($K59>1, IF($K59=4, "Unknown", IF($K59=99, "Surveillance", G59)), 0),"Not required") -> 0 | U59: =IF(INTRO!$E$43="Endemic", IF($K59>1, IF($K59=4, "Unknown", IF($K59=99, "Surveillance", SUM($R59:$T59))), 0),"Not required") -> 0 | V59: 0 | W59: 0 | X59: 2 | Y59: 0 | AE59: Yes | AF59: No | AH59: 18567 | AI59: Dangila
A60: =IF(INTRO!$E$33<>0,INTRO!$E$33, " ") -> Ethiopia | B60: AmharaAwi | C60: Dangla Town | D60: 66577.72754 | E60: =IF(INTRO!$E$48="","",ROUND($D60*INTRO!$E$48,0)) -> 7057 | F60: =IF(INTRO!$E$49="","",ROUND($D60*INTRO!$E$49,0)) -> 19794 | G60: =IF(INTRO!$E$50="","",ROUND($D60*INTRO!$E$50,0)) -> 38406 | H60: 0 | I60: 0 | J60: 3 | K60: 0 | L60: =IF(INTRO!$E$37="Endemic",IF($H60>0,IF($H60=4,"Unknown",IF($H60=99,"Stopped",$D60)),0),"Not required") -> 0 | M60: =IF(INTRO!$E$39="Endemic", IF($I60>0, IF($I60=4,"Unknown",IF($I60=99,"Stopped",$D60)), 0),"Not required") -> 0 | N60: =IF(INTRO!$E$41="Endemic", IF($J60>1, IF($J60=4, "Unknown", IF($J60=99, "Surveillance", E60)), 0),"Not required") -> 7057 | O60: =IF(INTRO!$E$41="Endemic", IF($J60>1, IF($J60=4, "Unknown", IF($J60=99, "Surveillance", F60)), 0),"Not required") -> 19794 | P60: =IF(INTRO!$E$41="Endemic", IF($J60>1, IF($J60=4, "Unknown", IF($J60=99, "Surveillance", ROUND(D60*INTRO!$E$51,0))), 0),"Not required") -> 0 | Q60: =IF(INTRO!$E$41="Endemic", IF($J60>1, IF($J60=4, "Unknown", IF($J60=99, "Surveillance", SUM($N60:$P60))), 0),"Not required") -> 26851 | R60: =IF(INTRO!$E$43="Endemic", IF($K60>1, IF($K60=4, "Unknown", IF($K60=99, "Surveillance", ROUND(E60*0.75,0))), 0),"Not required") -> 0 | S60: =IF(INTRO!$E$43="Endemic", IF($K60>1, IF($K60=4, "Unknown", IF($K60=99, "Surveillance", F60)), 0),"Not required") -> 0 | T60: =IF(INTRO!$E$43="Endemic", IF($K60>1, IF($K60=4, "Unknown", IF($K60=99, "Surveillance", G60)), 0),"Not required") -> 0 | U60: =IF(INTRO!$E$43="Endemic", IF($K60>1, IF($K60=4, "Unknown", IF($K60=99, "Surveillance", SUM($R60:$T60))), 0),"Not required") -> 0 | V60: 0 | W60: 0 | X60: 2 | Y60: 0 | AE60: Yes | AF60: No | AH60: 18568 | AI60: Dangla Town
A61: =IF(INTRO!$E$33<>0,INTRO!$E$33, " ") -> Ethiopia | B61: AmharaAwi | C61: Fagita Lekoma | D61: 180823.1287 | E61: =IF(INTRO!$E$48="","",ROUND($D61*INTRO!$E$48,0)) -> 19167 | F61: =IF(INTRO!$E$49="","",ROUND($D61*INTRO!$E$49,0)) -> 53759 | G61: =IF(INTRO!$E$50="","",ROUND($D61*INTRO!$E$50,0)) -> 104309 | H61: 0 | I61: 0 | J61: 3 | K61: 0 | L61: =IF(INTRO!$E$37="Endemic",IF($H61>0,IF($H61=4,"Unknown",IF($H61=99,"Stopped",$D61)),0),"Not required") -> 0 | M61: =IF(INTRO!$E$39="Endemic", IF($I61>0, IF($I61=4,"Unknown",IF($I61=99,"Stopped",$D61)), 0),"Not required") -> 0 | N61: =IF(INTRO!$E$41="Endemic", IF($J61>1, IF($J61=4, "Unknown", IF($J61=99, "Surveillance", E61)), 0),"Not required") -> 19167 | O61: =IF(INTRO!$E$41="Endemic", IF($J61>1, IF($J61=4, "Unknown", IF($J61=99, "Surveillance", F61)), 0),"Not required") -> 53759 | P61: =IF(INTRO!$E$41="Endemic", IF($J61>1, IF($J61=4, "Unknown", IF($J61=99, "Surveillance", ROUND(D61*INTRO!$E$51,0))), 0),"Not required") -> 0 | Q61: =IF(INTRO!$E$41="Endemic", IF($J61>1, IF($J61=4, "Unknown", IF($J61=99, "Surveillance", SUM($N61:$P61))), 0),"Not required") -> 72926 | R61: =IF(INTRO!$E$43="Endemic", IF($K61>1, IF($K61=4, "Unknown", IF($K61=99, "Surveillance", ROUND(E61*0.75,0))), 0),"Not required") -> 0 | S61: =IF(INTRO!$E$43="Endemic", IF($K61>1, IF($K61=4, "Unknown", IF($K61=99, "Surveillance", F61)), 0),"Not required") -> 0 | T61: =IF(INTRO!$E$43="Endemic", IF($K61>1, IF($K61=4, "Unknown", IF($K61=99, "Surveillance", G61)), 0),"Not required") -> 0 | U61: =IF(INTRO!$E$43="Endemic", IF($K61>1, IF($K61=4, "Unknown", IF($K61=99, "Surveillance", SUM($R61:$T61))), 0),"Not required") -> 0 | V61: 0 | W61: 0 | X61: 2 | Y61: 0 | AE61: Yes | AF61: No | AH61: 18593 | AI61: Fagita Lekoma
A62: =IF(INTRO!$E$33<>0,INTRO!$E$33, " ") -> Ethiopia | B62: AmharaAwi | C62: Guagusa Shikudad | D62: 119523.8322 | E62: =IF(INTRO!$E$48="","",ROUND($D62*INTRO!$E$48,0)) -> 12670 | F62: =IF(INTRO!$E$49="","",ROUND($D62*INTRO!$E$49,0)) -> 35534 | G62: =IF(INTRO!$E$50="","",ROUND($D62*INTRO!$E$50,0)) -> 68948 | H62: 0 | I62: 0 | J62: 3 | K62: 1 | L62: =IF(INTRO!$E$37="Endemic",IF($H62>0,IF($H62=4,"Unknown",IF($H62=99,"Stopped",$D62)),0),"Not required") -> 0 | M62: =IF(INTRO!$E$39="Endemic", IF($I62>0, IF($I62=4,"Unknown",IF($I62=99,"Stopped",$D62)), 0),"Not required") -> 0 | N62: =IF(INTRO!$E$41="Endemic", IF($J62>1, IF($J62=4, "Unknown", IF($J62=99, "Surveillance", E62)), 0),"Not required") -> 12670 | O62: =IF(INTRO!$E$41="Endemic", IF($J62>1, IF($J62=4, "Unknown", IF($J62=99, "Surveillance", F62)), 0),"Not required") -> 35534 | P62: =IF(INTRO!$E$41="Endemic", IF($J62>1, IF($J62=4, "Unknown", IF($J62=99, "Surveillance", ROUND(D62*INTRO!$E$51,0))), 0),"Not required") -> 0 | Q62: =IF(INTRO!$E$41="Endemic", IF($J62>1, IF($J62=4, "Unknown", IF($J62=99, "Surveillance", SUM($N62:$P62))), 0),"Not required") -> 48204 | R62: =IF(INTRO!$E$43="Endemic", IF($K62>1, IF($K62=4, "Unknown", IF($K62=99, "Surveillance", ROUND(E62*0.75,0))), 0),"Not required") -> 0 | S62: =IF(INTRO!$E$43="Endemic", IF($K62>1, IF($K62=4, "Unknown", IF($K62=99, "Surveillance", F62)), 0),"Not required") -> 0 | T62: =IF(INTRO!$E$43="Endemic", IF($K62>1, IF($K62=4, "Unknown", IF($K62=99, "Surveillance", G62)), 0),"Not required") -> 0 | U62: =IF(INTRO!$E$43="Endemic", IF($K62>1, IF($K62=4, "Unknown", IF($K62=99, "Surveillance", SUM($R62:$T62))), 0),"Not required") -> 0 | V62: 0 | W62: 0 | X62: 2 | Y62: 0 | AE62: Yes | AF62: No | AH62: 18606 | AI62: Guagusa Shikudad
A63: =IF(INTRO!$E$33<>0,INTRO!$E$33, " ") -> Ethiopia | B63: AmharaAwi | C63: Guangua | D63: 154386.5017 | E63: =IF(INTRO!$E$48="","",ROUND($D63*INTRO!$E$48,0)) -> 16365 | F63: =IF(INTRO!$E$49="","",ROUND($D63*INTRO!$E$49,0)) -> 45899 | G63: =IF(INTRO!$E$50="","",ROUND($D63*INTRO!$E$50,0)) -> 89059 | H63: 0 | I63: 0 | J63: 2 | K63: 0 | L63: =IF(INTRO!$E$37="Endemic",IF($H63>0,IF($H63=4,"Unknown",IF($H63=99,"Stopped",$D63)),0),"Not required") -> 0 | M63: =IF(INTRO!$E$39="Endemic", IF($I63>0, IF($I63=4,"Unknown",IF($I63=99,"Stopped",$D63)), 0),"Not required") -> 0 | N63: =IF(INTRO!$E$41="Endemic", IF($J63>1, IF($J63=4, "Unknown", IF($J63=99, "Surveillance", E63)), 0),"Not required") -> 16365 | O63: =IF(INTRO!$E$41="Endemic", IF($J63>1, IF($J63=4, "Unknown", IF($J63=99, "Surveillance", F63)), 0),"Not required") -> 45899 | P63: =IF(INTRO!$E$41="Endemic", IF($J63>1, IF($J63=4, "Unknown", IF($J63=99, "Surveillance", ROUND(D63*INTRO!$E$51,0))), 0),"Not required") -> 0 | Q63: =IF(INTRO!$E$41="Endemic", IF($J63>1, IF($J63=4, "Unknown", IF($J63=99, "Surveillance", SUM($N63:$P63))), 0),"Not required") -> 62264 | R63: =IF(INTRO!$E$43="Endemic", IF($K63>1, IF($K63=4, "Unknown", IF($K63=99, "Surveillance", ROUND(E63*0.75,0))), 0),"Not required") -> 0 | S63: =IF(INTRO!$E$43="Endemic", IF($K63>1, IF($K63=4, "Unknown", IF($K63=99, "Surveillance", F63)), 0),"Not required") -> 0 | T63: =IF(INTRO!$E$43="Endemic", IF($K63>1, IF($K63=4, "Unknown", IF($K63=99, "Surveillance", G63)), 0),"Not required") -> 0 | U63: =IF(INTRO!$E$43="Endemic", IF($K63>1, IF($K63=4, "Unknown", IF($K63=99, "Surveillance", SUM($R63:$T63))), 0),"Not required") -> 0 | V63: 0 | W63: 0 | X63: 1 | Y63: 0 | AE63: Yes | AF63: No | AH63: 18607 | AI63: Guangua
A64: =IF(INTRO!$E$33<>0,INTRO!$E$33, " ") -> Ethiopia | B64: AmharaAwi | C64: Injibara Town | D64: 68574.02334 | E64: =IF(INTRO!$E$48="","",ROUND($D64*INTRO!$E$48,0)) -> 7269 | F64: =IF(INTRO!$E$49="","",ROUND($D64*INTRO!$E$49,0)) -> 20387 | G64: =IF(INTRO!$E$50="","",ROUND($D64*INTRO!$E$50,0)) -> 39557 | H64: 0 | I64: 0 | J64: 2 | K64: 0 | L64: =IF(INTRO!$E$37="Endemic",IF($H64>0,IF($H64=4,"Unknown",IF($H64=99,"Stopped",$D64)),0),"Not required") -> 0 | M64: =IF(INTRO!$E$39="Endemic", IF($I64>0, IF($I64=4,"Unknown",IF($I64=99,"Stopped",$D64)), 0),"Not required") -> 0 | N64: =IF(INTRO!$E$41="Endemic", IF($J64>1, IF($J64=4, "Unknown", IF($J64=99, "Surveillance", E64)), 0),"Not required") -> 7269 | O64: =IF(INTRO!$E$41="Endemic", IF($J64>1, IF($J64=4, "Unknown", IF($J64=99, "Surveillance", F64)), 0),"Not required") -> 20387 | P64: =IF(INTRO!$E$41="Endemic", IF($J64>1, IF($J64=4, "Unknown", IF($J64=99, "Surveillance", ROUND(D64*INTRO!$E$51,0))), 0),"Not required") -> 0 | Q64: =IF(INTRO!$E$41="Endemic", IF($J64>1, IF($J64=4, "Unknown", IF($J64=99, "Surveillance", SUM($N64:$P64))), 0),"Not required") -> 27656 | R64: =IF(INTRO!$E$43="Endemic", IF($K64>1, IF($K64=4, "Unknown", IF($K64=99, "Surveillance", ROUND(E64*0.75,0))), 0),"Not required") -> 0 | S64: =IF(INTRO!$E$43="Endemic", IF($K64>1, IF($K64=4, "Unknown", IF($K64=99, "Surveillance", F64)), 0),"Not required") -> 0 | T64: =IF(INTRO!$E$43="Endemic", IF($K64>1, IF($K64=4, "Unknown", IF($K64=99, "Surveillance", G64)), 0),"Not required") -> 0 | U64: =IF(INTRO!$E$43="Endemic", IF($K64>1, IF($K64=4, "Unknown", IF($K64=99, "Surveillance", SUM($R64:$T64))), 0),"Not required") -> 0 | V64: 0 | W64: 0 | X64: 1 | Y64: 0 | AE64: Yes | AF64: No | AH64: 18612 | AI64: Injibara Town
A65: =IF(INTRO!$E$33<>0,INTRO!$E$33, " ") -> Ethiopia | B65: AmharaAwi | C65: Jawi | D65: 158731.3149 | E65: =IF(INTRO!$E$48="","",ROUND($D65*INTRO!$E$48,0)) -> 16826 | F65: =IF(INTRO!$E$49="","",ROUND($D65*INTRO!$E$49,0)) -> 47191 | G65: =IF(INTRO!$E$50="","",ROUND($D65*INTRO!$E$50,0)) -> 91565 | H65: 1 | I65: 1 | J65: 3 | K65: 3 | L65: =IF(INTRO!$E$37="Endemic",IF($H65>0,IF($H65=4,"Unknown",IF($H65=99,"Stopped",$D65)),0),"Not required") -> 158731.3149 | M65: =IF(INTRO!$E$39="Endemic", IF($I65>0, IF($I65=4,"Unknown",IF($I65=99,"Stopped",$D65)), 0),"Not required") -> 158731.3149 | N65: =IF(INTRO!$E$41="Endemic", IF($J65>1, IF($J65=4, "Unknown", IF($J65=99, "Surveillance", E65)), 0),"Not required") -> 16826 | O65: =IF(INTRO!$E$41="Endemic", IF($J65>1, IF($J65=4, "Unknown", IF($J65=99, "Surveillance", F65)), 0),"Not required") -> 47191 | P65: =IF(INTRO!$E$41="Endemic", IF($J65>1, IF($J65=4, "Unknown", IF($J65=99, "Surveillance", ROUND(D65*INTRO!$E$51,0))), 0),"Not required") -> 0 | Q65: =IF(INTRO!$E$41="Endemic", IF($J65>1, IF($J65=4, "Unknown", IF($J65=99, "Surveillance", SUM($N65:$P65))), 0),"Not required") -> 64017 | R65: =IF(INTRO!$E$43="Endemic", IF($K65>1, IF($K65=4, "Unknown", IF($K65=99, "Surveillance", ROUND(E65*0.75,0))), 0),"Not required") -> 12620 | S65: =IF(INTRO!$E$43="Endemic", IF($K65>1, IF($K65=4, "Unknown", IF($K65=99, "Surveillance", F65)), 0),"Not required") -> 47191 | T65: =IF(INTRO!$E$43="Endemic", IF($K65>1, IF($K65=4, "Unknown", IF($K65=99, "Surveillance", G65)), 0),"Not required") -> 91565 | U65: =IF(INTRO!$E$43="Endemic", IF($K65>1, IF($K65=4, "Unknown", IF($K65=99, "Surveillance", SUM($R65:$T65))), 0),"Not required") -> 151376 | V65: 1 | W65: 2 | X65: 2 | Y65: 0 | AA65: Both | AE65: Yes | AH65: 18616 | AI65: Jawi
A66: =IF(INTRO!$E$33<>0,INTRO!$E$33, " ") -> Ethiopia | B66: AmharaAwi | C66: Zigem | D66: 119320.6101 | E66: =IF(INTRO!$E$48="","",ROUND($D66*INTRO!$E$48,0)) -> 12648 | F66: =IF(INTRO!$E$49="","",ROUND($D66*INTRO!$E$49,0)) -> 35474 | G66: =IF(INTRO!$E$50="","",ROUND($D66*INTRO!$E$50,0)) -> 68831 | H66: 99 | I66: 0 | J66: 2 | K66: 0 | L66: =IF(INTRO!$E$37="Endemic",IF($H66>0,IF($H66=4,"Unknown",IF($H66=99,"Stopped",$D66)),0),"Not required") -> Stopped | M66: =IF(INTRO!$E$39="Endemic", IF($I66>0, IF($I66=4,"Unknown",IF($I66=99,"Stopped",$D66)), 0),"Not required") -> 0 | N66: =IF(INTRO!$E$41="Endemic", IF($J66>1, IF($J66=4, "Unknown", IF($J66=99, "Surveillance", E66)), 0),"Not required") -> 12648 | O66: =IF(INTRO!$E$41="Endemic", IF($J66>1, IF($J66=4, "Unknown", IF($J66=99, "Surveillance", F66)), 0),"Not required") -> 35474 | P66: =IF(INTRO!$E$41="Endemic", IF($J66>1, IF($J66=4, "Unknown", IF($J66=99, "Surveillance", ROUND(D66*INTRO!$E$51,0))), 0),"Not required") -> 0 | Q66: =IF(INTRO!$E$41="Endemic", IF($J66>1, IF($J66=4, "Unknown", IF($J66=99, "Surveillance", SUM($N66:$P66))), 0),"Not required") -> 48122 | R66: =IF(INTRO!$E$43="Endemic", IF($K66>1, IF($K66=4, "Unknown", IF($K66=99, "Surveillance", ROUND(E66*0.75,0))), 0),"Not required") -> 0 | S66: =IF(INTRO!$E$43="Endemic", IF($K66>1, IF($K66=4, "Unknown", IF($K66=99, "Surveillance", F66)), 0),"Not required") -> 0 | T66: =IF(INTRO!$E$43="Endemic", IF($K66>1, IF($K66=4, "Unknown", IF($K66=99, "Surveillance", G66)), 0),"Not required") -> 0 | U66: =IF(INTRO!$E$43="Endemic", IF($K66>1, IF($K66=4, "Unknown", IF($K66=99, "Surveillance", SUM($R66:$T66))), 0),"Not required") -> 0 | V66: 0 | W66: 0 | X66: 1 | Y66: 0 | AA66: TAS | AE66: Yes | AF66: No | AH66: 18679 | AI66: Zigem
A67: =IF(INTRO!$E$33<>0,INTRO!$E$33, " ") -> Ethiopia | B67: AmharaCentral Gondar | C67: Alefa | D67: 266172.3649 | E67: =IF(INTRO!$E$48="","",ROUND($D67*INTRO!$E$48,0)) -> 28215 | F67: =IF(INTRO!$E$49="","",ROUND($D67*INTRO!$E$49,0)) -> 79133 | G67: =IF(INTRO!$E$50="","",ROUND($D67*INTRO!$E$50,0)) -> 153544 | H67: 0 | I67: 1 | J67: 2 | K67: 1 | L67: =IF(INTRO!$E$37="Endemic",IF($H67>0,IF($H67=4,"Unknown",IF($H67=99,"Stopped",$D67)),0),"Not required") -> 0 | M67: =IF(INTRO!$E$39="Endemic", IF($I67>0, IF($I67=4,"Unknown",IF($I67=99,"Stopped",$D67)), 0),"Not required") -> 266172.3649 | N67: =IF(INTRO!$E$41="Endemic", IF($J67>1, IF($J67=4, "Unknown", IF($J67=99, "Surveillance", E67)), 0),"Not required") -> 28215 | O67: =IF(INTRO!$E$41="Endemic", IF($J67>1, IF($J67=4, "Unknown", IF($J67=99, "Surveillance", F67)), 0),"Not required") -> 79133 | P67: =IF(INTRO!$E$41="Endemic", IF($J67>1, IF($J67=4, "Unknown", IF($J67=99, "Surveillance", ROUND(D67*INTRO!$E$51,0))), 0),"Not required") -> 0 | Q67: =IF(INTRO!$E$41="Endemic", IF($J67>1, IF($J67=4, "Unknown", IF($J67=99, "Surveillance", SUM($N67:$P67))), 0),"Not required") -> 107348 | R67: =IF(INTRO!$E$43="Endemic", IF($K67>1, IF($K67=4, "Unknown", IF($K67=99, "Surveillance", ROUND(E67*0.75,0))), 0),"Not required") -> 0 | S67: =IF(INTRO!$E$43="Endemic", IF($K67>1, IF($K67=4, "Unknown", IF($K67=99, "Surveillance", F67)), 0),"Not required") -> 0 | T67: =IF(INTRO!$E$43="Endemic", IF($K67>1, IF($K67=4, "Unknown", IF($K67=99, "Surveillance", G67)), 0),"Not required") -> 0 | U67: =IF(INTRO!$E$43="Endemic", IF($K67>1, IF($K67=4, "Unknown", IF($K67=99, "Surveillance", SUM($R67:$T67))), 0),"Not required") -> 0 | V67: 0 | W67: 2 | X67: 1 | Y67: 0 | AE67: Yes | AF67: No | AH67: 18535 | AI67: Alefa
A68: =IF(INTRO!$E$33<>0,INTRO!$E$33, " ") -> Ethiopia | B68: AmharaCentral Gondar | C68: Central Armachiho | D68: 53251.28912 | E68: =IF(INTRO!$E$48="","",ROUND($D68*INTRO!$E$48,0)) -> 5645 | F68: =IF(INTRO!$E$49="","",ROUND($D68*INTRO!$E$49,0)) -> 15832 | G68: =IF(INTRO!$E$50="","",ROUND($D68*INTRO!$E$50,0)) -> 30718 | H68: 0 | I68: 99 | J68: 3 | K68: 3 | L68: =IF(INTRO!$E$37="Endemic",IF($H68>0,IF($H68=4,"Unknown",IF($H68=99,"Stopped",$D68)),0),"Not required") -> 0 | M68: =IF(INTRO!$E$39="Endemic", IF($I68>0, IF($I68=4,"Unknown",IF($I68=99,"Stopped",$D68)), 0),"Not required") -> Stopped | N68: =IF(INTRO!$E$41="Endemic", IF($J68>1, IF($J68=4, "Unknown", IF($J68=99, "Surveillance", E68)), 0),"Not required") -> 5645 | O68: =IF(INTRO!$E$41="Endemic", IF($J68>1, IF($J68=4, "Unknown", IF($J68=99, "Surveillance", F68)), 0),"Not required") -> 15832 | P68: =IF(INTRO!$E$41="Endemic", IF($J68>1, IF($J68=4, "Unknown", IF($J68=99, "Surveillance", ROUND(D68*INTRO!$E$51,0))), 0),"Not required") -> 0 | Q68: =IF(INTRO!$E$41="Endemic", IF($J68>1, IF($J68=4, "Unknown", IF($J68=99, "Surveillance", SUM($N68:$P68))), 0),"Not required") -> 21477 | R68: =IF(INTRO!$E$43="Endemic", IF($K68>1, IF($K68=4, "Unknown", IF($K68=99, "Surveillance", ROUND(E68*0.75,0))), 0),"Not required") -> 4234 | S68: =IF(INTRO!$E$43="Endemic", IF($K68>1, IF($K68=4, "Unknown", IF($K68=99, "Surveillance", F68)), 0),"Not required") -> 15832 | T68: =IF(INTRO!$E$43="Endemic", IF($K68>1, IF($K68=4, "Unknown", IF($K68=99, "Surveillance", G68)), 0),"Not required") -> 30718 | U68: =IF(INTRO!$E$43="Endemic", IF($K68>1, IF($K68=4, "Unknown", IF($K68=99, "Surveillance", SUM($R68:$T68))), 0),"Not required") -> 50784 | V68: 0 | W68: 0 | X68: 2 | Y68: 0 | AE68: Yes | AH68: 19570 | AI68: Central Armachiho
A69: =IF(INTRO!$E$33<>0,INTRO!$E$33, " ") -> Ethiopia | B69: AmharaCentral Gondar | C69: Chilga | D69: 172851.4473 | E69: =IF(INTRO!$E$48="","",ROUND($D69*INTRO!$E$48,0)) -> 18322 | F69: =IF(INTRO!$E$49="","",ROUND($D69*INTRO!$E$49,0)) -> 51389 | G69: =IF(INTRO!$E$50="","",ROUND($D69*INTRO!$E$50,0)) -> 99711 | H69: 0 | I69: 99 | J69: 3 | K69: 2 | L69: =IF(INTRO!$E$37="Endemic",IF($H69>0,IF($H69=4,"Unknown",IF($H69=99,"Stopped",$D69)),0),"Not required") -> 0 | M69: =IF(INTRO!$E$39="Endemic", IF($I69>0, IF($I69=4,"Unknown",IF($I69=99,"Stopped",$D69)), 0),"Not required") -> Stopped | N69: =IF(INTRO!$E$41="Endemic", IF($J69>1, IF($J69=4, "Unknown", IF($J69=99, "Surveillance", E69)), 0),"Not required") -> 18322 | O69: =IF(INTRO!$E$41="Endemic", IF($J69>1, IF($J69=4, "Unknown", IF($J69=99, "Surveillance", F69)), 0),"Not required") -> 51389 | P69: =IF(INTRO!$E$41="Endemic", IF($J69>1, IF($J69=4, "Unknown", IF($J69=99, "Surveillance", ROUND(D69*INTRO!$E$51,0))), 0),"Not required") -> 0 | Q69: =IF(INTRO!$E$41="Endemic", IF($J69>1, IF($J69=4, "Unknown", IF($J69=99, "Surveillance", SUM($N69:$P69))), 0),"Not required") -> 69711 | R69: =IF(INTRO!$E$43="Endemic", IF($K69>1, IF($K69=4, "Unknown", IF($K69=99, "Surveillance", ROUND(E69*0.75,0))), 0),"Not required") -> 13742 | S69: =IF(INTRO!$E$43="Endemic", IF($K69>1, IF($K69=4, "Unknown", IF($K69=99, "Surveillance", F69)), 0),"Not required") -> 51389 | T69: =IF(INTRO!$E$43="Endemic", IF($K69>1, IF($K69=4, "Unknown", IF($K69=99, "Surveillance", G69)), 0),"Not required") -> 99711 | U69: =IF(INTRO!$E$43="Endemic", IF($K69>1, IF($K69=4, "Unknown", IF($K69=99, "Surveillance", SUM($R69:$T69))), 0),"Not required") -> 164842 | V69: 0 | W69: 0 | X69: 2 | Y69: 0 | AE69: Yes | AH69: 19408 | AI69: Chilga 1
A70: =IF(INTRO!$E$33<>0,INTRO!$E$33, " ") -> Ethiopia | B70: AmharaCentral Gondar | C70: Chilga 2 | D70: 71220.53899 | E70: =IF(INTRO!$E$48="","",ROUND($D70*INTRO!$E$48,0)) -> 7549 | F70: =IF(INTRO!$E$49="","",ROUND($D70*INTRO!$E$49,0)) -> 21174 | G70: =IF(INTRO!$E$50="","",ROUND($D70*INTRO!$E$50,0)) -> 41084 | H70: 0 | I70: 99 | J70: 3 | K70: 2 | L70: =IF(INTRO!$E$37="Endemic",IF($H70>0,IF($H70=4,"Unknown",IF($H70=99,"Stopped",$D70)),0),"Not required") -> 0 | M70: =IF(INTRO!$E$39="Endemic", IF($I70>0, IF($I70=4,"Unknown",IF($I70=99,"Stopped",$D70)), 0),"Not required") -> Stopped | N70: =IF(INTRO!$E$41="Endemic", IF($J70>1, IF($J70=4, "Unknown", IF($J70=99, "Surveillance", E70)), 0),"Not required") -> 7549 | O70: =IF(INTRO!$E$41="Endemic", IF($J70>1, IF($J70=4, "Unknown", IF($J70=99, "Surveillance", F70)), 0),"Not required") -> 21174 | P70: =IF(INTRO!$E$41="Endemic", IF($J70>1, IF($J70=4, "Unknown", IF($J70=99, "Surveillance", ROUND(D70*INTRO!$E$51,0))), 0),"Not required") -> 0 | Q70: =IF(INTRO!$E$41="Endemic", IF($J70>1, IF($J70=4, "Unknown", IF($J70=99, "Surveillance", SUM($N70:$P70))), 0),"Not required") -> 28723 | R70: =IF(INTRO!$E$43="Endemic", IF($K70>1, IF($K70=4, "Unknown", IF($K70=99, "Surveillance", ROUND(E70*0.75,0))), 0),"Not required") -> 5662 | S70: =IF(INTRO!$E$43="Endemic", IF($K70>1, IF($K70=4, "Unknown", IF($K70=99, "Surveillance", F70)), 0),"Not required") -> 21174 | T70: =IF(INTRO!$E$43="Endemic", IF($K70>1, IF($K70=4, "Unknown", IF($K70=99, "Surveillance", G70)), 0),"Not required") -> 41084 | U70: =IF(INTRO!$E$43="Endemic", IF($K70>1, IF($K70=4, "Unknown", IF($K70=99, "Surveillance", SUM($R70:$T70))), 0),"Not required") -> 67920 | V70: 0 | W70: 0 | X70: 2 | Y70: 0 | AE70: Yes | AH70: 19409 | AI70: Chilga 2
A71: =IF(INTRO!$E$33<>0,INTRO!$E$33, " ") -> Ethiopia | B71: AmharaCentral Gondar | C71: East Belesa | D71: 159260.1909 | E71: =IF(INTRO!$E$48="","",ROUND($D71*INTRO!$E$48,0)) -> 16882 | F71: =IF(INTRO!$E$49="","",ROUND($D71*INTRO!$E$49,0)) -> 47348 | G71: =IF(INTRO!$E$50="","",ROUND($D71*INTRO!$E$50,0)) -> 91870 | H71: 0 | I71: 0 | J71: 1 | K71: 2 | L71: =IF(INTRO!$E$37="Endemic",IF($H71>0,IF($H71=4,"Unknown",IF($H71=99,"Stopped",$D71)),0),"Not required") -> 0 | M71: =IF(INTRO!$E$39="Endemic", IF($I71>0, IF($I71=4,"Unknown",IF($I71=99,"Stopped",$D71)), 0),"Not required") -> 0 | N71: =IF(INTRO!$E$41="Endemic", IF($J71>1, IF($J71=4, "Unknown", IF($J71=99, "Surveillance", E71)), 0),"Not required") -> 0 | O71: =IF(INTRO!$E$41="Endemic", IF($J71>1, IF($J71=4, "Unknown", IF($J71=99, "Surveillance", F71)), 0),"Not required") -> 0 | P71: =IF(INTRO!$E$41="Endemic", IF($J71>1, IF($J71=4, "Unknown", IF($J71=99, "Surveillance", ROUND(D71*INTRO!$E$51,0))), 0),"Not required") -> 0 | Q71: =IF(INTRO!$E$41="Endemic", IF($J71>1, IF($J71=4, "Unknown", IF($J71=99, "Surveillance", SUM($N71:$P71))), 0),"Not required") -> 0 | R71: =IF(INTRO!$E$43="Endemic", IF($K71>1, IF($K71=4, "Unknown", IF($K71=99, "Surveillance", ROUND(E71*0.75,0))), 0),"Not required") -> 12662 | S71: =IF(INTRO!$E$43="Endemic", IF($K71>1, IF($K71=4, "Unknown", IF($K71=99, "Surveillance", F71)), 0),"Not required") -> 47348 | T71: =IF(INTRO!$E$43="Endemic", IF($K71>1, IF($K71=4, "Unknown", IF($K71=99, "Surveillance", G71)), 0),"Not required") -> 91870 | U71: =IF(INTRO!$E$43="Endemic", IF($K71>1, IF($K71=4, "Unknown", IF($K71=99, "Surveillance", SUM($R71:$T71))), 0),"Not required") -> 151880 | V71: 0 | W71: 0 | X71: 0 | Y71: 0 | AH71: 18646 | AI71: East Belesa
A72: =IF(INTRO!$E$33<>0,INTRO!$E$33, " ") -> Ethiopia | B72: AmharaCentral Gondar | C72: East Dembia | D72: 229482.9314 | E72: =IF(INTRO!$E$48="","",ROUND($D72*INTRO!$E$48,0)) -> 24325 | F72: =IF(INTRO!$E$49="","",ROUND($D72*INTRO!$E$49,0)) -> 68225 | G72: =IF(INTRO!$E$50="","",ROUND($D72*INTRO!$E$50,0)) -> 132379 | H72: 0 | I72: 0 | J72: 3 | K72: 2 | L72: =IF(INTRO!$E$37="Endemic",IF($H72>0,IF($H72=4,"Unknown",IF($H72=99,"Stopped",$D72)),0),"Not required") -> 0 | M72: =IF(INTRO!$E$39="Endemic", IF($I72>0, IF($I72=4,"Unknown",IF($I72=99,"Stopped",$D72)), 0),"Not required") -> 0 | N72: =IF(INTRO!$E$41="Endemic", IF($J72>1, IF($J72=4, "Unknown", IF($J72=99, "Surveillance", E72)), 0),"Not required") -> 24325 | O72: =IF(INTRO!$E$41="Endemic", IF($J72>1, IF($J72=4, "Unknown", IF($J72=99, "Surveillance", F72)), 0),"Not required") -> 68225 | P72: =IF(INTRO!$E$41="Endemic", IF($J72>1, IF($J72=4, "Unknown", IF($J72=99, "Surveillance", ROUND(D72*INTRO!$E$51,0))), 0),"Not required") -> 0 | Q72: =IF(INTRO!$E$41="Endemic", IF($J72>1, IF($J72=4, "Unknown", IF($J72=99, "Surveillance", SUM($N72:$P72))), 0),"Not required") -> 92550 | R72: =IF(INTRO!$E$43="Endemic", IF($K72>1, IF($K72=4, "Unknown", IF($K72=99, "Surveillance", ROUND(E72*0.75,0))), 0),"Not required") -> 18244 | S72: =IF(INTRO!$E$43="Endemic", IF($K72>1, IF($K72=4, "Unknown", IF($K72=99, "Surveillance", F72)), 0),"Not required") -> 68225 | T72: =IF(INTRO!$E$43="Endemic", IF($K72>1, IF($K72=4, "Unknown", IF($K72=99, "Surveillance", G72)), 0),"Not required") -> 132379 | U72: =IF(INTRO!$E$43="Endemic", IF($K72>1, IF($K72=4, "Unknown", IF($K72=99, "Surveillance", SUM($R72:$T72))), 0),"Not required") -> 218848 | V72: 0 | W72: 0 | X72: 2 | Y72: 0 | AE72: Yes | AH72: 19346 | AI72: East Dembia
A73: =IF(INTRO!$E$33<>0,INTRO!$E$33, " ") -> Ethiopia | B73: AmharaCentral Gondar | C73: Gonder town | D73: 486528.9003 | E73: =IF(INTRO!$E$48="","",ROUND($D73*INTRO!$E$48,0)) -> 51573 | F73: =IF(INTRO!$E$49="","",ROUND($D73*INTRO!$E$49,0)) -> 144645 | G73: =IF(INTRO!$E$50="","",ROUND($D73*INTRO!$E$50,0)) -> 280658 | H73: 0 | I73: 0 | J73: 3 | K73: 2 | L73: =IF(INTRO!$E$37="Endemic",IF($H73>0,IF($H73=4,"Unknown",IF($H73=99,"Stopped",$D73)),0),"Not required") -> 0 | M73: =IF(INTRO!$E$39="Endemic", IF($I73>0, IF($I73=4,"Unknown",IF($I73=99,"Stopped",$D73)), 0),"Not required") -> 0 | N73: =IF(INTRO!$E$41="Endemic", IF($J73>1, IF($J73=4, "Unknown", IF($J73=99, "Surveillance", E73)), 0),"Not required") -> 51573 | O73: =IF(INTRO!$E$41="Endemic", IF($J73>1, IF($J73=4, "Unknown", IF($J73=99, "Surveillance", F73)), 0),"Not required") -> 144645 | P73: =IF(INTRO!$E$41="Endemic", IF($J73>1, IF($J73=4, "Unknown", IF($J73=99, "Surveillance", ROUND(D73*INTRO!$E$51,0))), 0),"Not required") -> 0 | Q73: =IF(INTRO!$E$41="Endemic", IF($J73>1, IF($J73=4, "Unknown", IF($J73=99, "Surveillance", SUM($N73:$P73))), 0),"Not required") -> 196218 | R73: =IF(INTRO!$E$43="Endemic", IF($K73>1, IF($K73=4, "Unknown", IF($K73=99, "Surveillance", ROUND(E73*0.75,0))), 0),"Not required") -> 38680 | S73: =IF(INTRO!$E$43="Endemic", IF($K73>1, IF($K73=4, "Unknown", IF($K73=99, "Surveillance", F73)), 0),"Not required") -> 144645 | T73: =IF(INTRO!$E$43="Endemic", IF($K73>1, IF($K73=4, "Unknown", IF($K73=99, "Surveillance", G73)), 0),"Not required") -> 280658 | U73: =IF(INTRO!$E$43="Endemic", IF($K73>1, IF($K73=4, "Unknown", IF($K73=99, "Surveillance", SUM($R73:$T73))), 0),"Not required") -> 463983 | V73: 0 | W73: 0 | X73: 2 | Y73: 0 | AE73: Yes | AH73: 18602 | AI73: Gonder town
A74: =IF(INTRO!$E$33<>0,INTRO!$E$33, " ") -> Ethiopia | B74: AmharaCentral Gondar | C74: Gonder Zuriya | D74: 263329.3992 | E74: =IF(INTRO!$E$48="","",ROUND($D74*INTRO!$E$48,0)) -> 27913 | F74: =IF(INTRO!$E$49="","",ROUND($D74*INTRO!$E$49,0)) -> 78288 | G74: =IF(INTRO!$E$50="","",ROUND($D74*INTRO!$E$50,0)) -> 151904 | H74: 0 | I74: 0 | J74: 3 | K74: 1 | L74: =IF(INTRO!$E$37="Endemic",IF($H74>0,IF($H74=4,"Unknown",IF($H74=99,"Stopped",$D74)),0),"Not required") -> 0 | M74: =IF(INTRO!$E$39="Endemic", IF($I74>0, IF($I74=4,"Unknown",IF($I74=99,"Stopped",$D74)), 0),"Not required") -> 0 | N74: =IF(INTRO!$E$41="Endemic", IF($J74>1, IF($J74=4, "Unknown", IF($J74=99, "Surveillance", E74)), 0),"Not required") -> 27913 | O74: =IF(INTRO!$E$41="Endemic", IF($J74>1, IF($J74=4, "Unknown", IF($J74=99, "Surveillance", F74)), 0),"Not required") -> 78288 | P74: =IF(INTRO!$E$41="Endemic", IF($J74>1, IF($J74=4, "Unknown", IF($J74=99, "Surveillance", ROUND(D74*INTRO!$E$51,0))), 0),"Not required") -> 0 | Q74: =IF(INTRO!$E$41="Endemic", IF($J74>1, IF($J74=4, "Unknown", IF($J74=99, "Surveillance", SUM($N74:$P74))), 0),"Not required") -> 106201 | R74: =IF(INTRO!$E$43="Endemic", IF($K74>1, IF($K74=4, "Unknown", IF($K74=99, "Surveillance", ROUND(E74*0.75,0))), 0),"Not required") -> 0 | S74: =IF(INTRO!$E$43="Endemic", IF($K74>1, IF($K74=4, "Unknown", IF($K74=99, "Surveillance", F74)), 0),"Not required") -> 0 | T74: =IF(INTRO!$E$43="Endemic", IF($K74>1, IF($K74=4, "Unknown", IF($K74=99, "Surveillance", G74)), 0),"Not required") -> 0 | U74: =IF(INTRO!$E$43="Endemic", IF($K74>1, IF($K74=4, "Unknown", IF($K74=99, "Surveillance", SUM($R74:$T74))), 0),"Not required") -> 0 | V74: 0 | W74: 0 | X74: 2 | Y74: 0 | AE74: Yes | AF74: No | AH74: 18603 | AI74: Gonder Zuriya
A75: =IF(INTRO!$E$33<>0,INTRO!$E$33, " ") -> Ethiopia | B75: AmharaCentral Gondar | C75: Kinfazbegela | D75: 78867.28647 | E75: =IF(INTRO!$E$48="","",ROUND($D75*INTRO!$E$48,0)) -> 8360 | F75: =IF(INTRO!$E$49="","",ROUND($D75*INTRO!$E$49,0)) -> 23447 | G75: =IF(INTRO!$E$50="","",ROUND($D75*INTRO!$E$50,0)) -> 45495 | H75: 0 | I75: 0 | J75: 3 | K75: 2 | L75: =IF(INTRO!$E$37="Endemic",IF($H75>0,IF($H75=4,"Unknown",IF($H75=99,"Stopped",$D75)),0),"Not required") -> 0 | M75: =IF(INTRO!$E$39="Endemic", IF($I75>0, IF($I75=4,"Unknown",IF($I75=99,"Stopped",$D75)), 0),"Not required") -> 0 | N75: =IF(INTRO!$E$41="Endemic", IF($J75>1, IF($J75=4, "Unknown", IF($J75=99, "Surveillance", E75)), 0),"Not required") -> 8360 | O75: =IF(INTRO!$E$41="Endemic", IF($J75>1, IF($J75=4, "Unknown", IF($J75=99, "Surveillance", F75)), 0),"Not required") -> 23447 | P75: =IF(INTRO!$E$41="Endemic", IF($J75>1, IF($J75=4, "Unknown", IF($J75=99, "Surveillance", ROUND(D75*INTRO!$E$51,0))), 0),"Not required") -> 0 | Q75: =IF(INTRO!$E$41="Endemic", IF($J75>1, IF($J75=4, "Unknown", IF($J75=99, "Surveillance", SUM($N75:$P75))), 0),"Not required") -> 31807 | R75: =IF(INTRO!$E$43="Endemic", IF($K75>1, IF($K75=4, "Unknown", IF($K75=99, "Surveillance", ROUND(E75*0.75,0))), 0),"Not required") -> 6270 | S75: =IF(INTRO!$E$43="Endemic", IF($K75>1, IF($K75=4, "Unknown", IF($K75=99, "Surveillance", F75)), 0),"Not required") -> 23447 | T75: =IF(INTRO!$E$43="Endemic", IF($K75>1, IF($K75=4, "Unknown", IF($K75=99, "Surveillance", G75)), 0),"Not required") -> 45495 | U75: =IF(INTRO!$E$43="Endemic", IF($K75>1, IF($K75=4, "Unknown", IF($K75=99, "Surveillance", SUM($R75:$T75))), 0),"Not required") -> 75212 | V75: 0 | W75: 0 | X75: 2 | Y75: 0 | AE75: Yes | AH75: 19347 | AI75: Kinfazbegela
A76: =IF(INTRO!$E$33<>0,INTRO!$E$33, " ") -> Ethiopia | B76: AmharaCentral Gondar | C76: Lay Armachiho | D76: 160165.8502 | E76: =IF(INTRO!$E$48="","",ROUND($D76*INTRO!$E$48,0)) -> 16978 | F76: =IF(INTRO!$E$49="","",ROUND($D76*INTRO!$E$49,0)) -> 47617 | G76: =IF(INTRO!$E$50="","",ROUND($D76*INTRO!$E$50,0)) -> 92393 | H76: 0 | I76: 0 | J76: 3 | K76: 3 | L76: =IF(INTRO!$E$37="Endemic",IF($H76>0,IF($H76=4,"Unknown",IF($H76=99,"Stopped",$D76)),0),"Not required") -> 0 | M76: =IF(INTRO!$E$39="Endemic", IF($I76>0, IF($I76=4,"Unknown",IF($I76=99,"Stopped",$D76)), 0),"Not required") -> 0 | N76: =IF(INTRO!$E$41="Endemic", IF($J76>1, IF($J76=4, "Unknown", IF($J76=99, "Surveillance", E76)), 0),"Not required") -> 16978 | O76: =IF(INTRO!$E$41="Endemic", IF($J76>1, IF($J76=4, "Unknown", IF($J76=99, "Surveillance", F76)), 0),"Not required") -> 47617 | P76: =IF(INTRO!$E$41="Endemic", IF($J76>1, IF($J76=4, "Unknown", IF($J76=99, "Surveillance", ROUND(D76*INTRO!$E$51,0))), 0),"Not required") -> 0 | Q76: =IF(INTRO!$E$41="Endemic", IF($J76>1, IF($J76=4, "Unknown", IF($J76=99, "Surveillance", SUM($N76:$P76))), 0),"Not required") -> 64595 | R76: =IF(INTRO!$E$43="Endemic", IF($K76>1, IF($K76=4, "Unknown", IF($K76=99, "Surveillance", ROUND(E76*0.75,0))), 0),"Not required") -> 12734 | S76: =IF(INTRO!$E$43="Endemic", IF($K76>1, IF($K76=4, "Unknown", IF($K76=99, "Surveillance", F76)), 0),"Not required") -> 47617 | T76: =IF(INTRO!$E$43="Endemic", IF($K76>1, IF($K76=4, "Unknown", IF($K76=99, "Surveillance", G76)), 0),"Not required") -> 92393 | U76: =IF(INTRO!$E$43="Endemic", IF($K76>1, IF($K76=4, "Unknown", IF($K76=99, "Surveillance", SUM($R76:$T76))), 0),"Not required") -> 152744 | V76: 0 | W76: 0 | X76: 2 | Y76: 0 | AE76: Yes | AH76: 18627 | AI76: Lay Armachiho
A77: =IF(INTRO!$E$33<>0,INTRO!$E$33, " ") -> Ethiopia | B77: AmharaCentral Gondar | C77: Tach Armachiho | D77: 131904.4843 | E77: =IF(INTRO!$E$48="","",ROUND($D77*INTRO!$E$48,0)) -> 13982 | F77: =IF(INTRO!$E$49="","",ROUND($D77*INTRO!$E$49,0)) -> 39215 | G77: =IF(INTRO!$E$50="","",ROUND($D77*INTRO!$E$50,0)) -> 76090 | H77: 0 | I77: 99 | J77: 3 | K77: 3 | L77: =IF(INTRO!$E$37="Endemic",IF($H77>0,IF($H77=4,"Unknown",IF($H77=99,"Stopped",$D77)),0),"Not required") -> 0 | M77: =IF(INTRO!$E$39="Endemic", IF($I77>0, IF($I77=4,"Unknown",IF($I77=99,"Stopped",$D77)), 0),"Not required") -> Stopped | N77: =IF(INTRO!$E$41="Endemic", IF($J77>1, IF($J77=4, "Unknown", IF($J77=99, "Surveillance", E77)), 0),"Not required") -> 13982 | O77: =IF(INTRO!$E$41="Endemic", IF($J77>1, IF($J77=4, "Unknown", IF($J77=99, "Surveillance", F77)), 0),"Not required") -> 39215 | P77: =IF(INTRO!$E$41="Endemic", IF($J77>1, IF($J77=4, "Unknown", IF($J77=99, "Surveillance", ROUND(D77*INTRO!$E$51,0))), 0),"Not required") -> 0 | Q77: =IF(INTRO!$E$41="Endemic", IF($J77>1, IF($J77=4, "Unknown", IF($J77=99, "Surveillance", SUM($N77:$P77))), 0),"Not required") -> 53197 | R77: =IF(INTRO!$E$43="Endemic", IF($K77>1, IF($K77=4, "Unknown", IF($K77=99, "Surveillance", ROUND(E77*0.75,0))), 0),"Not required") -> 10487 | S77: =IF(INTRO!$E$43="Endemic", IF($K77>1, IF($K77=4, "Unknown", IF($K77=99, "Surveillance", F77)), 0),"Not required") -> 39215 | T77: =IF(INTRO!$E$43="Endemic", IF($K77>1, IF($K77=4, "Unknown", IF($K77=99, "Surveillance", G77)), 0),"Not required") -> 76090 | U77: =IF(INTRO!$E$43="Endemic", IF($K77>1, IF($K77=4, "Unknown", IF($K77=99, "Surveillance", SUM($R77:$T77))), 0),"Not required") -> 125792 | V77: 0 | W77: 0 | X77: 2 | Y77: 0 | AE77: Yes | AH77: 18665 | AI77: Tach Armachiho
A78: =IF(INTRO!$E$33<>0,INTRO!$E$33, " ") -> Ethiopia | B78: AmharaCentral Gondar | C78: Takusa | D78: 196873.2196 | E78: =IF(INTRO!$E$48="","",ROUND($D78*INTRO!$E$48,0)) -> 20869 | F78: =IF(INTRO!$E$49="","",ROUND($D78*INTRO!$E$49,0)) -> 58530 | G78: =IF(INTRO!$E$50="","",ROUND($D78*INTRO!$E$50,0)) -> 113568 | H78: 0 | I78: 0 | J78: 3 | K78: 3 | L78: =IF(INTRO!$E$37="Endemic",IF($H78>0,IF($H78=4,"Unknown",IF($H78=99,"Stopped",$D78)),0),"Not required") -> 0 | M78: =IF(INTRO!$E$39="Endemic", IF($I78>0, IF($I78=4,"Unknown",IF($I78=99,"Stopped",$D78)), 0),"Not required") -> 0 | N78: =IF(INTRO!$E$41="Endemic", IF($J78>1, IF($J78=4, "Unknown", IF($J78=99, "Surveillance", E78)), 0),"Not required") -> 20869 | O78: =IF(INTRO!$E$41="Endemic", IF($J78>1, IF($J78=4, "Unknown", IF($J78=99, "Surveillance", F78)), 0),"Not required") -> 58530 | P78: =IF(INTRO!$E$41="Endemic", IF($J78>1, IF($J78=4, "Unknown", IF($J78=99, "Surveillance", ROUND(D78*INTRO!$E$51,0))), 0),"Not required") -> 0 | Q78: =IF(INTRO!$E$41="Endemic", IF($J78>1, IF($J78=4, "Unknown", IF($J78=99, "Surveillance", SUM($N78:$P78))), 0),"Not required") -> 79399 | R78: =IF(INTRO!$E$43="Endemic", IF($K78>1, IF($K78=4, "Unknown", IF($K78=99, "Surveillance", ROUND(E78*0.75,0))), 0),"Not required") -> 15652 | S78: =IF(INTRO!$E$43="Endemic", IF($K78>1, IF($K78=4, "Unknown", IF($K78=99, "Surveillance", F78)), 0),"Not required") -> 58530 | T78: =IF(INTRO!$E$43="Endemic", IF($K78>1, IF($K78=4, "Unknown", IF($K78=99, "Surveillance", G78)), 0),"Not required") -> 113568 | U78: =IF(INTRO!$E$43="Endemic", IF($K78>1, IF($K78=4, "Unknown", IF($K78=99, "Surveillance", SUM($R78:$T78))), 0),"Not required") -> 187750 | V78: 0 | W78: 0 | X78: 2 | Y78: 0 | AE78: Yes | AH78: 18666 | AI78: Takusa
A79: =IF(INTRO!$E$33<>0,INTRO!$E$33, " ") -> Ethiopia | B79: AmharaCentral Gondar | C79: Tegedie 1 | D79: 103928.2096 | E79: =IF(INTRO!$E$48="","",ROUND($D79*INTRO!$E$48,0)) -> 11017 | F79: =IF(INTRO!$E$49="","",ROUND($D79*INTRO!$E$49,0)) -> 30898 | G79: =IF(INTRO!$E$50="","",ROUND($D79*INTRO!$E$50,0)) -> 59952 | H79: 0 | I79: 99 | J79: 3 | K79: 3 | L79: =IF(INTRO!$E$37="Endemic",IF($H79>0,IF($H79=4,"Unknown",IF($H79=99,"Stopped",$D79)),0),"Not required") -> 0 | M79: =IF(INTRO!$E$39="Endemic", IF($I79>0, IF($I79=4,"Unknown",IF($I79=99,"Stopped",$D79)), 0),"Not required") -> Stopped | N79: =IF(INTRO!$E$41="Endemic", IF($J79>1, IF($J79=4, "Unknown", IF($J79=99, "Surveillance", E79)), 0),"Not required") -> 11017 | O79: =IF(INTRO!$E$41="Endemic", IF($J79>1, IF($J79=4, "Unknown", IF($J79=99, "Surveillance", F79)), 0),"Not required") -> 30898 | P79: =IF(INTRO!$E$41="Endemic", IF($J79>1, IF($J79=4, "Unknown", IF($J79=99, "Surveillance", ROUND(D79*INTRO!$E$51,0))), 0),"Not required") -> 0 | Q79: =IF(INTRO!$E$41="Endemic", IF($J79>1, IF($J79=4, "Unknown", IF($J79=99, "Surveillance", SUM($N79:$P79))), 0),"Not required") -> 41915 | R79: =IF(INTRO!$E$43="Endemic", IF($K79>1, IF($K79=4, "Unknown", IF($K79=99, "Surveillance", ROUND(E79*0.75,0))), 0),"Not required") -> 8263 | S79: =IF(INTRO!$E$43="Endemic", IF($K79>1, IF($K79=4, "Unknown", IF($K79=99, "Surveillance", F79)), 0),"Not required") -> 30898 | T79: =IF(INTRO!$E$43="Endemic", IF($K79>1, IF($K79=4, "Unknown", IF($K79=99, "Surveillance", G79)), 0),"Not required") -> 59952 | U79: =IF(INTRO!$E$43="Endemic", IF($K79>1, IF($K79=4, "Unknown", IF($K79=99, "Surveillance", SUM($R79:$T79))), 0),"Not required") -> 99113 | V79: 0 | W79: 0 | X79: 2 | Y79: 0 | AE79: Yes | AH79: 18670 | AI79: Tegedie
A80: =IF(INTRO!$E$33<>0,INTRO!$E$33, " ") -> Ethiopia | B80: AmharaNorth Gondar | C80: West Belesa | D80: 181676.8183 | E80: =IF(INTRO!$E$48="","",ROUND($D80*INTRO!$E$48,0)) -> 19258 | F80: =IF(INTRO!$E$49="","",ROUND($D80*INTRO!$E$49,0)) -> 54013 | G80: =IF(INTRO!$E$50="","",ROUND($D80*INTRO!$E$50,0)) -> 104802 | H80: 0 | I80: 0 | J80: 3 | K80: 2 | L80: =IF(INTRO!$E$37="Endemic",IF($H80>0,IF($H80=4,"Unknown",IF($H80=99,"Stopped",$D80)),0),"Not required") -> 0 | M80: =IF(INTRO!$E$39="Endemic", IF($I80>0, IF($I80=4,"Unknown",IF($I80=99,"Stopped",$D80)), 0),"Not required") -> 0 | N80: =IF(INTRO!$E$41="Endemic", IF($J80>1, IF($J80=4, "Unknown", IF($J80=99, "Surveillance", E80)), 0),"Not required") -> 19258 | O80: =IF(INTRO!$E$41="Endemic", IF($J80>1, IF($J80=4, "Unknown", IF($J80=99, "Surveillance", F80)), 0),"Not required") -> 54013 | P80: =IF(INTRO!$E$41="Endemic", IF($J80>1, IF($J80=4, "Unknown", IF($J80=99, "Surveillance", ROUND(D80*INTRO!$E$51,0))), 0),"Not required") -> 0 | Q80: =IF(INTRO!$E$41="Endemic", IF($J80>1, IF($J80=4, "Unknown", IF($J80=99, "Surveillance", SUM($N80:$P80))), 0),"Not required") -> 73271 | R80: =IF(INTRO!$E$43="Endemic", IF($K80>1, IF($K80=4, "Unknown", IF($K80=99, "Surveillance", ROUND(E80*0.75,0))), 0),"Not required") -> 14444 | S80: =IF(INTRO!$E$43="Endemic", IF($K80>1, IF($K80=4, "Unknown", IF($K80=99, "Surveillance", F80)), 0),"Not required") -> 54013 | T80: =IF(INTRO!$E$43="Endemic", IF($K80>1, IF($K80=4, "Unknown", IF($K80=99, "Surveillance", G80)), 0),"Not required") -> 104802 | U80: =IF(INTRO!$E$43="Endemic", IF($K80>1, IF($K80=4, "Unknown", IF($K80=99, "Surveillance", SUM($R80:$T80))), 0),"Not required") -> 173259 | V80: 0 | W80: 0 | X80: 2 | Y80: 0 | AE80: Yes | AH80: 18645 | AI80: Mirab Belesa
A81: =IF(INTRO!$E$33<>0,INTRO!$E$33, " ") -> Ethiopia | B81: AmharaCentral Gondar | C81: West Dembia | D81: 143711.9872 | E81: =IF(INTRO!$E$48="","",ROUND($D81*INTRO!$E$48,0)) -> 15234 | F81: =IF(INTRO!$E$49="","",ROUND($D81*INTRO!$E$49,0)) -> 42726 | G81: =IF(INTRO!$E$50="","",ROUND($D81*INTRO!$E$50,0)) -> 82901 | H81: 0 | I81: 0 | J81: 3 | K81: 2 | L81: =IF(INTRO!$E$37="Endemic",IF($H81>0,IF($H81=4,"Unknown",IF($H81=99,"Stopped",$D81)),0),"Not required") -> 0 | M81: =IF(INTRO!$E$39="Endemic", IF($I81>0, IF($I81=4,"Unknown",IF($I81=99,"Stopped",$D81)), 0),"Not required") -> 0 | N81: =IF(INTRO!$E$41="Endemic", IF($J81>1, IF($J81=4, "Unknown", IF($J81=99, "Surveillance", E81)), 0),"Not required") -> 15234 | O81: =IF(INTRO!$E$41="Endemic", IF($J81>1, IF($J81=4, "Unknown", IF($J81=99, "Surveillance", F81)), 0),"Not required") -> 42726 | P81: =IF(INTRO!$E$41="Endemic", IF($J81>1, IF($J81=4, "Unknown", IF($J81=99, "Surveillance", ROUND(D81*INTRO!$E$51,0))), 0),"Not required") -> 0 | Q81: =IF(INTRO!$E$41="Endemic", IF($J81>1, IF($J81=4, "Unknown", IF($J81=99, "Surveillance", SUM($N81:$P81))), 0),"Not required") -> 57960 | R81: =IF(INTRO!$E$43="Endemic", IF($K81>1, IF($K81=4, "Unknown", IF($K81=99, "Surveillance", ROUND(E81*0.75,0))), 0),"Not required") -> 11426 | S81: =IF(INTRO!$E$43="Endemic", IF($K81>1, IF($K81=4, "Unknown", IF($K81=99, "Surveillance", F81)), 0),"Not required") -> 42726 | T81: =IF(INTRO!$E$43="Endemic", IF($K81>1, IF($K81=4, "Unknown", IF($K81=99, "Surveillance", G81)), 0),"Not required") -> 82901 | U81: =IF(INTRO!$E$43="Endemic", IF($K81>1, IF($K81=4, "Unknown", IF($K81=99, "Surveillance", SUM($R81:$T81))), 0),"Not required") -> 137053 | V81: 0 | W81: 0 | X81: 2 | Y81: 0 | AE81: Yes | AH81: 19348 | AI81: West Dembia
A82: =IF(INTRO!$E$33<>0,INTRO!$E$33, " ") -> Ethiopia | B82: AmharaCentral Gondar | C82: Wogera | D82: 270755.8403 | E82: =IF(INTRO!$E$48="","",ROUND($D82*INTRO!$E$48,0)) -> 28700 | F82: =IF(INTRO!$E$49="","",ROUND($D82*INTRO!$E$49,0)) -> 80496 | G82: =IF(INTRO!$E$50="","",ROUND($D82*INTRO!$E$50,0)) -> 156188 | H82: 0 | I82: 0 | J82: 3 | K82: 2 | L82: =IF(INTRO!$E$37="Endemic",IF($H82>0,IF($H82=4,"Unknown",IF($H82=99,"Stopped",$D82)),0),"Not required") -> 0 | M82: =IF(INTRO!$E$39="Endemic", IF($I82>0, IF($I82=4,"Unknown",IF($I82=99,"Stopped",$D82)), 0),"Not required") -> 0 | N82: =IF(INTRO!$E$41="Endemic", IF($J82>1, IF($J82=4, "Unknown", IF($J82=99, "Surveillance", E82)), 0),"Not required") -> 28700 | O82: =IF(INTRO!$E$41="Endemic", IF($J82>1, IF($J82=4, "Unknown", IF($J82=99, "Surveillance", F82)), 0),"Not required") -> 80496 | P82: =IF(INTRO!$E$41="Endemic", IF($J82>1, IF($J82=4, "Unknown", IF($J82=99, "Surveillance", ROUND(D82*INTRO!$E$51,0))), 0),"Not required") -> 0 | Q82: =IF(INTRO!$E$41="Endemic", IF($J82>1, IF($J82=4, "Unknown", IF($J82=99, "Surveillance", SUM($N82:$P82))), 0),"Not required") -> 109196 | R82: =IF(INTRO!$E$43="Endemic", IF($K82>1, IF($K82=4, "Unknown", IF($K82=99, "Surveillance", ROUND(E82*0.75,0))), 0),"Not required") -> 21525 | S82: =IF(INTRO!$E$43="Endemic", IF($K82>1, IF($K82=4, "Unknown", IF($K82=99, "Surveillance", F82)), 0),"Not required") -> 80496 | T82: =IF(INTRO!$E$43="Endemic", IF($K82>1, IF($K82=4, "Unknown", IF($K82=99, "Surveillance", G82)), 0),"Not required") -> 156188 | U82: =IF(INTRO!$E$43="Endemic", IF($K82>1, IF($K82=4, "Unknown", IF($K82=99, "Surveillance", SUM($R82:$T82))), 0),"Not required") -> 258209 | V82: 0 | W82: 0 | X82: 2 | Y82: 0 | AE82: Yes | AH82: 19451 | AI82: Wogera
A83: =IF(INTRO!$E$33<>0,INTRO!$E$33, " ") -> Ethiopia | B83: AmharaEast Gojam | C83: Aneded | D83: 103658.0603 | E83: =IF(INTRO!$E$48="","",ROUND($D83*INTRO!$E$48,0)) -> 10988 | F83: =IF(INTRO!$E$49="","",ROUND($D83*INTRO!$E$49,0)) -> 30818 | G83: =IF(INTRO!$E$50="","",ROUND($D83*INTRO!$E$50,0)) -> 59796 | H83: 0 | I83: 0 | J83: 2 | K83: 1 | L83: =IF(INTRO!$E$37="Endemic",IF($H83>0,IF($H83=4,"Unknown",IF($H83=99,"Stopped",$D83)),0),"Not required") -> 0 | M83: =IF(INTRO!$E$39="Endemic", IF($I83>0, IF($I83=4,"Unknown",IF($I83=99,"Stopped",$D83)), 0),"Not required") -> 0 | N83: =IF(INTRO!$E$41="Endemic", IF($J83>1, IF($J83=4, "Unknown", IF($J83=99, "Surveillance", E83)), 0),"Not required") -> 10988 | O83: =IF(INTRO!$E$41="Endemic", IF($J83>1, IF($J83=4, "Unknown", IF($J83=99, "Surveillance", F83)), 0),"Not required") -> 30818 | P83: =IF(INTRO!$E$41="Endemic", IF($J83>1, IF($J83=4, "Unknown", IF($J83=99, "Surveillance", ROUND(D83*INTRO!$E$51,0))), 0),"Not required") -> 0 | Q83: =IF(INTRO!$E$41="Endemic", IF($J83>1, IF($J83=4, "Unknown", IF($J83=99, "Surveillance", SUM($N83:$P83))), 0),"Not required") -> 41806 | R83: =IF(INTRO!$E$43="Endemic", IF($K83>1, IF($K83=4, "Unknown", IF($K83=99, "Surveillance", ROUND(E83*0.75,0))), 0),"Not required") -> 0 | S83: =IF(INTRO!$E$43="Endemic", IF($K83>1, IF($K83=4, "Unknown", IF($K83=99, "Surveillance", F83)), 0),"Not required") -> 0 | T83: =IF(INTRO!$E$43="Endemic", IF($K83>1, IF($K83=4, "Unknown", IF($K83=99, "Surveillance", G83)), 0),"Not required") -> 0 | U83: =IF(INTRO!$E$43="Endemic", IF($K83>1, IF($K83=4, "Unknown", IF($K83=99, "Surveillance", SUM($R83:$T83))), 0),"Not required") -> 0 | V83: 0 | W83: 0 | X83: 1 | Y83: 0 | AE83: Yes | AF83: No | AH83: 18538 | AI83: Aneded
A84: =IF(INTRO!$E$33<>0,INTRO!$E$33, " ") -> Ethiopia | B84: AmharaEast Gojam | C84: Awabel | D84: 165527.3881 | E84: =IF(INTRO!$E$48="","",ROUND($D84*INTRO!$E$48,0)) -> 17546 | F84: =IF(INTRO!$E$49="","",ROUND($D84*INTRO!$E$49,0)) -> 49211 | G84: =IF(INTRO!$E$50="","",ROUND($D84*INTRO!$E$50,0)) -> 95486 | H84: 0 | I84: 0 | J84: 3 | K84: 1 | L84: =IF(INTRO!$E$37="Endemic",IF($H84>0,IF($H84=4,"Unknown",IF($H84=99,"Stopped",$D84)),0),"Not required") -> 0 | M84: =IF(INTRO!$E$39="Endemic", IF($I84>0, IF($I84=4,"Unknown",IF($I84=99,"Stopped",$D84)), 0),"Not required") -> 0 | N84: =IF(INTRO!$E$41="Endemic", IF($J84>1, IF($J84=4, "Unknown", IF($J84=99, "Surveillance", E84)), 0),"Not required") -> 17546 | O84: =IF(INTRO!$E$41="Endemic", IF($J84>1, IF($J84=4, "Unknown", IF($J84=99, "Surveillance", F84)), 0),"Not required") -> 49211 | P84: =IF(INTRO!$E$41="Endemic", IF($J84>1, IF($J84=4, "Unknown", IF($J84=99, "Surveillance", ROUND(D84*INTRO!$E$51,0))), 0),"Not required") -> 0 | Q84: =IF(INTRO!$E$41="Endemic", IF($J84>1, IF($J84=4, "Unknown", IF($J84=99, "Surveillance", SUM($N84:$P84))), 0),"Not required") -> 66757 | R84: =IF(INTRO!$E$43="Endemic", IF($K84>1, IF($K84=4, "Unknown", IF($K84=99, "Surveillance", ROUND(E84*0.75,0))), 0),"Not required") -> 0 | S84: =IF(INTRO!$E$43="Endemic", IF($K84>1, IF($K84=4, "Unknown", IF($K84=99, "Surveillance", F84)), 0),"Not required") -> 0 | T84: =IF(INTRO!$E$43="Endemic", IF($K84>1, IF($K84=4, "Unknown", IF($K84=99, "Surveillance", G84)), 0),"Not required") -> 0 | U84: =IF(INTRO!$E$43="Endemic", IF($K84>1, IF($K84=4, "Unknown", IF($K84=99, "Surveillance", SUM($R84:$T84))), 0),"Not required") -> 0 | V84: 0 | W84: 0 | X84: 2 | Y84: 0 | AE84: Yes | AF84: No | AH84: 18546 | AI84: Awabel
A85: =IF(INTRO!$E$33<>0,INTRO!$E$33, " ") -> Ethiopia | B85: AmharaEast Gojam | C85: Basoliben | D85: 186156.4137 | E85: =IF(INTRO!$E$48="","",ROUND($D85*INTRO!$E$48,0)) -> 19733 | F85: =IF(INTRO!$E$49="","",ROUND($D85*INTRO!$E$49,0)) -> 55344 | G85: =IF(INTRO!$E$50="","",ROUND($D85*INTRO!$E$50,0)) -> 107386 | H85: 0 | I85: 0 | J85: 3 | K85: 1 | L85: =IF(INTRO!$E$37="Endemic",IF($H85>0,IF($H85=4,"Unknown",IF($H85=99,"Stopped",$D85)),0),"Not required") -> 0 | M85: =IF(INTRO!$E$39="Endemic", IF($I85>0, IF($I85=4,"Unknown",IF($I85=99,"Stopped",$D85)), 0),"Not required") -> 0 | N85: =IF(INTRO!$E$41="Endemic", IF($J85>1, IF($J85=4, "Unknown", IF($J85=99, "Surveillance", E85)), 0),"Not required") -> 19733 | O85: =IF(INTRO!$E$41="Endemic", IF($J85>1, IF($J85=4, "Unknown", IF($J85=99, "Surveillance", F85)), 0),"Not required") -> 55344 | P85: =IF(INTRO!$E$41="Endemic", IF($J85>1, IF($J85=4, "Unknown", IF($J85=99, "Surveillance", ROUND(D85*INTRO!$E$51,0))), 0),"Not required") -> 0 | Q85: =IF(INTRO!$E$41="Endemic", IF($J85>1, IF($J85=4, "Unknown", IF($J85=99, "Surveillance", SUM($N85:$P85))), 0),"Not required") -> 75077 | R85: =IF(INTRO!$E$43="Endemic", IF($K85>1, IF($K85=4, "Unknown", IF($K85=99, "Surveillance", ROUND(E85*0.75,0))), 0),"Not required") -> 0 | S85: =IF(INTRO!$E$43="Endemic", IF($K85>1, IF($K85=4, "Unknown", IF($K85=99, "Surveillance", F85)), 0),"Not required") -> 0 | T85: =IF(INTRO!$E$43="Endemic", IF($K85>1, IF($K85=4, "Unknown", IF($K85=99, "Surveillance", G85)), 0),"Not required") -> 0 | U85: =IF(INTRO!$E$43="Endemic", IF($K85>1, IF($K85=4, "Unknown", IF($K85=99, "Surveillance", SUM($R85:$T85))), 0),"Not required") -> 0 | V85: 0 | W85: 0 | X85: 2 | Y85: 0 | AE85: Yes | AF85: No | AH85: 18550 | AI85: Basoliben
A86: =IF(INTRO!$E$33<>0,INTRO!$E$33, " ") -> Ethiopia | B86: AmharaEast Gojam | C86: Bibugn | D86: 105811.8599 | E86: =IF(INTRO!$E$48="","",ROUND($D86*INTRO!$E$48,0)) -> 11216 | F86: =IF(INTRO!$E$49="","",ROUND($D86*INTRO!$E$49,0)) -> 31458 | G86: =IF(INTRO!$E$50="","",ROUND($D86*INTRO!$E$50,0)) -> 61038 | H86: 0 | I86: 0 | J86: 2 | K86: 2 | L86: =IF(INTRO!$E$37="Endemic",IF($H86>0,IF($H86=4,"Unknown",IF($H86=99,"Stopped",$D86)),0),"Not required") -> 0 | M86: =IF(INTRO!$E$39="Endemic", IF($I86>0, IF($I86=4,"Unknown",IF($I86=99,"Stopped",$D86)), 0),"Not required") -> 0 | N86: =IF(INTRO!$E$41="Endemic", IF($J86>1, IF($J86=4, "Unknown", IF($J86=99, "Surveillance", E86)), 0),"Not required") -> 11216 | O86: =IF(INTRO!$E$41="Endemic", IF($J86>1, IF($J86=4, "Unknown", IF($J86=99, "Surveillance", F86)), 0),"Not required") -> 31458 | P86: =IF(INTRO!$E$41="Endemic", IF($J86>1, IF($J86=4, "Unknown", IF($J86=99, "Surveillance", ROUND(D86*INTRO!$E$51,0))), 0),"Not required") -> 0 | Q86: =IF(INTRO!$E$41="Endemic", IF($J86>1, IF($J86=4, "Unknown", IF($J86=99, "Surveillance", SUM($N86:$P86))), 0),"Not required") -> 42674 | R86: =IF(INTRO!$E$43="Endemic", IF($K86>1, IF($K86=4, "Unknown", IF($K86=99, "Surveillance", ROUND(E86*0.75,0))), 0),"Not required") -> 8412 | S86: =IF(INTRO!$E$43="Endemic", IF($K86>1, IF($K86=4, "Unknown", IF($K86=99, "Surveillance", F86)), 0),"Not required") -> 31458 | T86: =IF(INTRO!$E$43="Endemic", IF($K86>1, IF($K86=4, "Unknown", IF($K86=99, "Surveillance", G86)), 0),"Not required") -> 61038 | U86: =IF(INTRO!$E$43="Endemic", IF($K86>1, IF($K86=4, "Unknown", IF($K86=99, "Surveillance", SUM($R86:$T86))), 0),"Not required") -> 100908 | V86: 0 | W86: 0 | X86: 1 | Y86: 0 | AE86: Yes | AH86: 18556 | AI86: Bibugn
A87: =IF(INTRO!$E$33<>0,INTRO!$E$33, " ") -> Ethiopia | B87: AmharaEast Gojam | C87: Debay Tilatgen | D87: 162150.1704 | E87: =IF(INTRO!$E$48="","",ROUND($D87*INTRO!$E$48,0)) -> 17188 | F87: =IF(INTRO!$E$49="","",ROUND($D87*INTRO!$E$49,0)) -> 48207 | G87: =IF(INTRO!$E$50="","",ROUND($D87*INTRO!$E$50,0)) -> 93538 | H87: 0 | I87: 0 | J87: 1 | K87: 1 | L87: =IF(INTRO!$E$37="Endemic",IF($H87>0,IF($H87=4,"Unknown",IF($H87=99,"Stopped",$D87)),0),"Not required") -> 0 | M87: =IF(INTRO!$E$39="Endemic", IF($I87>0, IF($I87=4,"Unknown",IF($I87=99,"Stopped",$D87)), 0),"Not required") -> 0 | N87: =IF(INTRO!$E$41="Endemic", IF($J87>1, IF($J87=4, "Unknown", IF($J87=99, "Surveillance", E87)), 0),"Not required") -> 0 | O87: =IF(INTRO!$E$41="Endemic", IF($J87>1, IF($J87=4, "Unknown", IF($J87=99, "Surveillance", F87)), 0),"Not required") -> 0 | P87: =IF(INTRO!$E$41="Endemic", IF($J87>1, IF($J87=4, "Unknown", IF($J87=99, "Surveillance", ROUND(D87*INTRO!$E$51,0))), 0),"Not required") -> 0 | Q87: =IF(INTRO!$E$41="Endemic", IF($J87>1, IF($J87=4, "Unknown", IF($J87=99, "Surveillance", SUM($N87:$P87))), 0),"Not required") -> 0 | R87: =IF(INTRO!$E$43="Endemic", IF($K87>1, IF($K87=4, "Unknown", IF($K87=99, "Surveillance", ROUND(E87*0.75,0))), 0),"Not required") -> 0 | S87: =IF(INTRO!$E$43="Endemic", IF($K87>1, IF($K87=4, "Unknown", IF($K87=99, "Surveillance", F87)), 0),"Not required") -> 0 | T87: =IF(INTRO!$E$43="Endemic", IF($K87>1, IF($K87=4, "Unknown", IF($K87=99, "Surveillance", G87)), 0),"Not required") -> 0 | U87: =IF(INTRO!$E$43="Endemic", IF($K87>1, IF($K87=4, "Unknown", IF($K87=99, "Surveillance", SUM($R87:$T87))), 0),"Not required") -> 0 | V87: 0 | W87: 0 | X87: 0 | Y87: 0 | AF87: No | AH87: 18573 | AI87: Debay Tilatgen
A88: =IF(INTRO!$E$33<>0,INTRO!$E$33, " ") -> Ethiopia | B88: AmharaEast Gojam | C88: Debre Elias | D88: 116171.7591 | E88: =IF(INTRO!$E$48="","",ROUND($D88*INTRO!$E$48,0)) -> 12314 | F88: =IF(INTRO!$E$49="","",ROUND($D88*INTRO!$E$49,0)) -> 34538 | G88: =IF(INTRO!$E$50="","",ROUND($D88*INTRO!$E$50,0)) -> 67015 | H88: 0 | I88: 0 | J88: 3 | K88: 0 | L88: =IF(INTRO!$E$37="Endemic",IF($H88>0,IF($H88=4,"Unknown",IF($H88=99,"Stopped",$D88)),0),"Not required") -> 0 | M88: =IF(INTRO!$E$39="Endemic", IF($I88>0, IF($I88=4,"Unknown",IF($I88=99,"Stopped",$D88)), 0),"Not required") -> 0 | N88: =IF(INTRO!$E$41="Endemic", IF($J88>1, IF($J88=4, "Unknown", IF($J88=99, "Surveillance", E88)), 0),"Not required") -> 12314 | O88: =IF(INTRO!$E$41="Endemic", IF($J88>1, IF($J88=4, "Unknown", IF($J88=99, "Surveillance", F88)), 0),"Not required") -> 34538 | P88: =IF(INTRO!$E$41="Endemic", IF($J88>1, IF($J88=4, "Unknown", IF($J88=99, "Surveillance", ROUND(D88*INTRO!$E$51,0))), 0),"Not required") -> 0 | Q88: =IF(INTRO!$E$41="Endemic", IF($J88>1, IF($J88=4, "Unknown", IF($J88=99, "Surveillance", SUM($N88:$P88))), 0),"Not required") -> 46852 | R88: =IF(INTRO!$E$43="Endemic", IF($K88>1, IF($K88=4, "Unknown", IF($K88=99, "Surveillance", ROUND(E88*0.75,0))), 0),"Not required") -> 0 | S88: =IF(INTRO!$E$43="Endemic", IF($K88>1, IF($K88=4, "Unknown", IF($K88=99, "Surveillance", F88)), 0),"Not required") -> 0 | T88: =IF(INTRO!$E$43="Endemic", IF($K88>1, IF($K88=4, "Unknown", IF($K88=99, "Surveillance", G88)), 0),"Not required") -> 0 | U88: =IF(INTRO!$E$43="Endemic", IF($K88>1, IF($K88=4, "Unknown", IF($K88=99, "Surveillance", SUM($R88:$T88))), 0),"Not required") -> 0 | V88: 0 | W88: 0 | X88: 2 | Y88: 0 | AE88: Yes | AF88: No | AH88: 18563 | AI88: Debre Elias
A89: =IF(INTRO!$E$33<>0,INTRO!$E$33, " ") -> Ethiopia | B89: AmharaEast Gojam | C89: Debre Markos Town | D89: 191681.0501 | E89: =IF(INTRO!$E$48="","",ROUND($D89*INTRO!$E$48,0)) -> 20318 | F89: =IF(INTRO!$E$49="","",ROUND($D89*INTRO!$E$49,0)) -> 56987 | G89: =IF(INTRO!$E$50="","",ROUND($D89*INTRO!$E$50,0)) -> 110573 | H89: 0 | I89: 0 | J89: 1 | K89: 0 | L89: =IF(INTRO!$E$37="Endemic",IF($H89>0,IF($H89=4,"Unknown",IF($H89=99,"Stopped",$D89)),0),"Not required") -> 0 | M89: =IF(INTRO!$E$39="Endemic", IF($I89>0, IF($I89=4,"Unknown",IF($I89=99,"Stopped",$D89)), 0),"Not required") -> 0 | N89: =IF(INTRO!$E$41="Endemic", IF($J89>1, IF($J89=4, "Unknown", IF($J89=99, "Surveillance", E89)), 0),"Not required") -> 0 | O89: =IF(INTRO!$E$41="Endemic", IF($J89>1, IF($J89=4, "Unknown", IF($J89=99, "Surveillance", F89)), 0),"Not required") -> 0 | P89: =IF(INTRO!$E$41="Endemic", IF($J89>1, IF($J89=4, "Unknown", IF($J89=99, "Surveillance", ROUND(D89*INTRO!$E$51,0))), 0),"Not required") -> 0 | Q89: =IF(INTRO!$E$41="Endemic", IF($J89>1, IF($J89=4, "Unknown", IF($J89=99, "Surveillance", SUM($N89:$P89))), 0),"Not required") -> 0 | R89: =IF(INTRO!$E$43="Endemic", IF($K89>1, IF($K89=4, "Unknown", IF($K89=99, "Surveillance", ROUND(E89*0.75,0))), 0),"Not required") -> 0 | S89: =IF(INTRO!$E$43="Endemic", IF($K89>1, IF($K89=4, "Unknown", IF($K89=99, "Surveillance", F89)), 0),"Not required") -> 0 | T89: =IF(INTRO!$E$43="Endemic", IF($K89>1, IF($K89=4, "Unknown", IF($K89=99, "Surveillance", G89)), 0),"Not required") -> 0 | U89: =IF(INTRO!$E$43="Endemic", IF($K89>1, IF($K89=4, "Unknown", IF($K89=99, "Surveillance", SUM($R89:$T89))), 0),"Not required") -> 0 | V89: 0 | W89: 0 | X89: 0 | Y89: 0 | AF89: No | AH89: 18564 | AI89: Debre Markos Town
A90: =IF(INTRO!$E$33<>0,INTRO!$E$33, " ") -> Ethiopia | B90: AmharaEast Gojam | C90: Dejen | D90: 139757.0859 | E90: =IF(INTRO!$E$48="","",ROUND($D90*INTRO!$E$48,0)) -> 14814 | F90: =IF(INTRO!$E$49="","",ROUND($D90*INTRO!$E$49,0)) -> 41550 | G90: =IF(INTRO!$E$50="","",ROUND($D90*INTRO!$E$50,0)) -> 80620 | H90: 0 | I90: 0 | J90: 2 | K90: 3 | L90: =IF(INTRO!$E$37="Endemic",IF($H90>0,IF($H90=4,"Unknown",IF($H90=99,"Stopped",$D90)),0),"Not required") -> 0 | M90: =IF(INTRO!$E$39="Endemic", IF($I90>0, IF($I90=4,"Unknown",IF($I90=99,"Stopped",$D90)), 0),"Not required") -> 0 | N90: =IF(INTRO!$E$41="Endemic", IF($J90>1, IF($J90=4, "Unknown", IF($J90=99, "Surveillance", E90)), 0),"Not required") -> 14814 | O90: =IF(INTRO!$E$41="Endemic", IF($J90>1, IF($J90=4, "Unknown", IF($J90=99, "Surveillance", F90)), 0),"Not required") -> 41550 | P90: =IF(INTRO!$E$41="Endemic", IF($J90>1, IF($J90=4, "Unknown", IF($J90=99, "Surveillance", ROUND(D90*INTRO!$E$51,0))), 0),"Not required") -> 0 | Q90: =IF(INTRO!$E$41="Endemic", IF($J90>1, IF($J90=4, "Unknown", IF($J90=99, "Surveillance", SUM($N90:$P90))), 0),"Not required") -> 56364 | R90: =IF(INTRO!$E$43="Endemic", IF($K90>1, IF($K90=4, "Unknown", IF($K90=99, "Surveillance", ROUND(E90*0.75,0))), 0),"Not required") -> 11111 | S90: =IF(INTRO!$E$43="Endemic", IF($K90>1, IF($K90=4, "Unknown", IF($K90=99, "Surveillance", F90)), 0),"Not required") -> 41550 | T90: =IF(INTRO!$E$43="Endemic", IF($K90>1, IF($K90=4, "Unknown", IF($K90=99, "Surveillance", G90)), 0),"Not required") -> 80620 | U90: =IF(INTRO!$E$43="Endemic", IF($K90>1, IF($K90=4, "Unknown", IF($K90=99, "Surveillance", SUM($R90:$T90))), 0),"Not required") -> 133281 | V90: 0 | W90: 0 | X90: 1 | Y90: 0 | AE90: Yes | AH90: 18579 | AI90: Dejen
A91: =IF(INTRO!$E$33<>0,INTRO!$E$33, " ") -> Ethiopia | B91: AmharaEast Gojam | C91: Enarje Enawuga | D91: 237227.3297 | E91: =IF(INTRO!$E$48="","",ROUND($D91*INTRO!$E$48,0)) -> 25146 | F91: =IF(INTRO!$E$49="","",ROUND($D91*INTRO!$E$49,0)) -> 70528 | G91: =IF(INTRO!$E$50="","",ROUND($D91*INTRO!$E$50,0)) -> 136846 | H91: 0 | I91: 0 | J91: 1 | K91: 0 | L91: =IF(INTRO!$E$37="Endemic",IF($H91>0,IF($H91=4,"Unknown",IF($H91=99,"Stopped",$D91)),0),"Not required") -> 0 | M91: =IF(INTRO!$E$39="Endemic", IF($I91>0, IF($I91=4,"Unknown",IF($I91=99,"Stopped",$D91)), 0),"Not required") -> 0 | N91: =IF(INTRO!$E$41="Endemic", IF($J91>1, IF($J91=4, "Unknown", IF($J91=99, "Surveillance", E91)), 0),"Not required") -> 0 | O91: =IF(INTRO!$E$41="Endemic", IF($J91>1, IF($J91=4, "Unknown", IF($J91=99, "Surveillance", F91)), 0),"Not required") -> 0 | P91: =IF(INTRO!$E$41="Endemic", IF($J91>1, IF($J91=4, "Unknown", IF($J91=99, "Surveillance", ROUND(D91*INTRO!$E$51,0))), 0),"Not required") -> 0 | Q91: =IF(INTRO!$E$41="Endemic", IF($J91>1, IF($J91=4, "Unknown", IF($J91=99, "Surveillance", SUM($N91:$P91))), 0),"Not required") -> 0 | R91: =IF(INTRO!$E$43="Endemic", IF($K91>1, IF($K91=4, "Unknown", IF($K91=99, "Surveillance", ROUND(E91*0.75,0))), 0),"Not required") -> 0 | S91: =IF(INTRO!$E$43="Endemic", IF($K91>1, IF($K91=4, "Unknown", IF($K91=99, "Surveillance", F91)), 0),"Not required") -> 0 | T91: =IF(INTRO!$E$43="Endemic", IF($K91>1, IF($K91=4, "Unknown", IF($K91=99, "Surveillance", G91)), 0),"Not required") -> 0 | U91: =IF(INTRO!$E$43="Endemic", IF($K91>1, IF($K91=4, "Unknown", IF($K91=99, "Surveillance", SUM($R91:$T91))), 0),"Not required") -> 0 | V91: 0 | W91: 0 | X91: 0 | Y91: 0 | AF91: No | AH91: 18588 | AI91: Enarje Enawuga
A92: =IF(INTRO!$E$33<>0,INTRO!$E$33, " ") -> Ethiopia | B92: AmharaEast Gojam | C92: Enebsie Sarmeder | D92: 184650.7494 | E92: =IF(INTRO!$E$48="","",ROUND($D92*INTRO!$E$48,0)) -> 19573 | F92: =IF(INTRO!$E$49="","",ROUND($D92*INTRO!$E$49,0)) -> 54897 | G92: =IF(INTRO!$E$50="","",ROUND($D92*INTRO!$E$50,0)) -> 106517 | H92: 0 | I92: 0 | J92: 2 | K92: 1 | L92: =IF(INTRO!$E$37="Endemic",IF($H92>0,IF($H92=4,"Unknown",IF($H92=99,"Stopped",$D92)),0),"Not required") -> 0 | M92: =IF(INTRO!$E$39="Endemic", IF($I92>0, IF($I92=4,"Unknown",IF($I92=99,"Stopped",$D92)), 0),"Not required") -> 0 | N92: =IF(INTRO!$E$41="Endemic", IF($J92>1, IF($J92=4, "Unknown", IF($J92=99, "Surveillance", E92)), 0),"Not required") -> 19573 | O92: =IF(INTRO!$E$41="Endemic", IF($J92>1, IF($J92=4, "Unknown", IF($J92=99, "Surveillance", F92)), 0),"Not required") -> 54897 | P92: =IF(INTRO!$E$41="Endemic", IF($J92>1, IF($J92=4, "Unknown", IF($J92=99, "Surveillance", ROUND(D92*INTRO!$E$51,0))), 0),"Not required") -> 0 | Q92: =IF(INTRO!$E$41="Endemic", IF($J92>1, IF($J92=4, "Unknown", IF($J92=99, "Surveillance", SUM($N92:$P92))), 0),"Not required") -> 74470 | R92: =IF(INTRO!$E$43="Endemic", IF($K92>1, IF($K92=4, "Unknown", IF($K92=99, "Surveillance", ROUND(E92*0.75,0))), 0),"Not required") -> 0 | S92: =IF(INTRO!$E$43="Endemic", IF($K92>1, IF($K92=4, "Unknown", IF($K92=99, "Surveillance", F92)), 0),"Not required") -> 0 | T92: =IF(INTRO!$E$43="Endemic", IF($K92>1, IF($K92=4, "Unknown", IF($K92=99, "Surveillance", G92)), 0),"Not required") -> 0 | U92: =IF(INTRO!$E$43="Endemic", IF($K92>1, IF($K92=4, "Unknown", IF($K92=99, "Surveillance", SUM($R92:$T92))), 0),"Not required") -> 0 | V92: 0 | W92: 0 | X92: 1 | Y92: 0 | AE92: Yes | AF92: No | AH92: 18589 | AI92: Enebsie Sarmeder
A93: =IF(INTRO!$E$33<>0,INTRO!$E$33, " ") -> Ethiopia | B93: AmharaEast Gojam | C93: Enemay | D93: 223234.9607 | E93: =IF(INTRO!$E$48="","",ROUND($D93*INTRO!$E$48,0)) -> 23663 | F93: =IF(INTRO!$E$49="","",ROUND($D93*INTRO!$E$49,0)) -> 66368 | G93: =IF(INTRO!$E$50="","",ROUND($D93*INTRO!$E$50,0)) -> 128775 | H93: 0 | I93: 0 | J93: 1 | K93: 0 | L93: =IF(INTRO!$E$37="Endemic",IF($H93>0,IF($H93=4,"Unknown",IF($H93=99,"Stopped",$D93)),0),"Not required") -> 0 | M93: =IF(INTRO!$E$39="Endemic", IF($I93>0, IF($I93=4,"Unknown",IF($I93=99,"Stopped",$D93)), 0),"Not required") -> 0 | N93: =IF(INTRO!$E$41="Endemic", IF($J93>1, IF($J93=4, "Unknown", IF($J93=99, "Surveillance", E93)), 0),"Not required") -> 0 | O93: =IF(INTRO!$E$41="Endemic", IF($J93>1, IF($J93=4, "Unknown", IF($J93=99, "Surveillance", F93)), 0),"Not required") -> 0 | P93: =IF(INTRO!$E$41="Endemic", IF($J93>1, IF($J93=4, "Unknown", IF($J93=99, "Surveillance", ROUND(D93*INTRO!$E$51,0))), 0),"Not required") -> 0 | Q93: =IF(INTRO!$E$41="Endemic", IF($J93>1, IF($J93=4, "Unknown", IF($J93=99, "Surveillance", SUM($N93:$P93))), 0),"Not required") -> 0 | R93: =IF(INTRO!$E$43="Endemic", IF($K93>1, IF($K93=4, "Unknown", IF($K93=99, "Surveillance", ROUND(E93*0.75,0))), 0),"Not required") -> 0 | S93: =IF(INTRO!$E$43="Endemic", IF($K93>1, IF($K93=4, "Unknown", IF($K93=99, "Surveillance", F93)), 0),"Not required") -> 0 | T93: =IF(INTRO!$E$43="Endemic", IF($K93>1, IF($K93=4, "Unknown", IF($K93=99, "Surveillance", G93)), 0),"Not required") -> 0 | U93: =IF(INTRO!$E$43="Endemic", IF($K93>1, IF($K93=4, "Unknown", IF($K93=99, "Surveillance", SUM($R93:$T93))), 0),"Not required") -> 0 | V93: 0 | W93: 0 | X93: 0 | Y93: 0 | AF93: No | AH93: 18590 | AI93: Enemay
A94: =IF(INTRO!$E$33<>0,INTRO!$E$33, " ") -> Ethiopia | B94: AmharaEast Gojam | C94: Gonchasieso enesie | D94: 228832.2094 | E94: =IF(INTRO!$E$48="","",ROUND($D94*INTRO!$E$48,0)) -> 24256 | F94: =IF(INTRO!$E$49="","",ROUND($D94*INTRO!$E$49,0)) -> 68032 | G94: =IF(INTRO!$E$50="","",ROUND($D94*INTRO!$E$50,0)) -> 132004 | H94: 0 | I94: 0 | J94: 3 | K94: 0 | L94: =IF(INTRO!$E$37="Endemic",IF($H94>0,IF($H94=4,"Unknown",IF($H94=99,"Stopped",$D94)),0),"Not required") -> 0 | M94: =IF(INTRO!$E$39="Endemic", IF($I94>0, IF($I94=4,"Unknown",IF($I94=99,"Stopped",$D94)), 0),"Not required") -> 0 | N94: =IF(INTRO!$E$41="Endemic", IF($J94>1, IF($J94=4, "Unknown", IF($J94=99, "Surveillance", E94)), 0),"Not required") -> 24256 | O94: =IF(INTRO!$E$41="Endemic", IF($J94>1, IF($J94=4, "Unknown", IF($J94=99, "Surveillance", F94)), 0),"Not required") -> 68032 | P94: =IF(INTRO!$E$41="Endemic", IF($J94>1, IF($J94=4, "Unknown", IF($J94=99, "Surveillance", ROUND(D94*INTRO!$E$51,0))), 0),"Not required") -> 0 | Q94: =IF(INTRO!$E$41="Endemic", IF($J94>1, IF($J94=4, "Unknown", IF($J94=99, "Surveillance", SUM($N94:$P94))), 0),"Not required") -> 92288 | R94: =IF(INTRO!$E$43="Endemic", IF($K94>1, IF($K94=4, "Unknown", IF($K94=99, "Surveillance", ROUND(E94*0.75,0))), 0),"Not required") -> 0 | S94: =IF(INTRO!$E$43="Endemic", IF($K94>1, IF($K94=4, "Unknown", IF($K94=99, "Surveillance", F94)), 0),"Not required") -> 0 | T94: =IF(INTRO!$E$43="Endemic", IF($K94>1, IF($K94=4, "Unknown", IF($K94=99, "Surveillance", G94)), 0),"Not required") -> 0 | U94: =IF(INTRO!$E$43="Endemic", IF($K94>1, IF($K94=4, "Unknown", IF($K94=99, "Surveillance", SUM($R94:$T94))), 0),"Not required") -> 0 | V94: 0 | W94: 0 | X94: 2 | Y94: 0 | AE94: Yes | AF94: No | AH94: 18601 | AI94: Gonchasieso enesie
A95: =IF(INTRO!$E$33<>0,INTRO!$E$33, " ") -> Ethiopia | B95: AmharaEast Gojam | C95: Gozamen | D95: 152210.2298 | E95: =IF(INTRO!$E$48="","",ROUND($D95*INTRO!$E$48,0)) -> 16134 | F95: =IF(INTRO!$E$49="","",ROUND($D95*INTRO!$E$49,0)) -> 45252 | G95: =IF(INTRO!$E$50="","",ROUND($D95*INTRO!$E$50,0)) -> 87804 | H95: 0 | I95: 0 | J95: 2 | K95: 0 | L95: =IF(INTRO!$E$37="Endemic",IF($H95>0,IF($H95=4,"Unknown",IF($H95=99,"Stopped",$D95)),0),"Not required") -> 0 | M95: =IF(INTRO!$E$39="Endemic", IF($I95>0, IF($I95=4,"Unknown",IF($I95=99,"Stopped",$D95)), 0),"Not required") -> 0 | N95: =IF(INTRO!$E$41="Endemic", IF($J95>1, IF($J95=4, "Unknown", IF($J95=99, "Surveillance", E95)), 0),"Not required") -> 16134 | O95: =IF(INTRO!$E$41="Endemic", IF($J95>1, IF($J95=4, "Unknown", IF($J95=99, "Surveillance", F95)), 0),"Not required") -> 45252 | P95: =IF(INTRO!$E$41="Endemic", IF($J95>1, IF($J95=4, "Unknown", IF($J95=99, "Surveillance", ROUND(D95*INTRO!$E$51,0))), 0),"Not required") -> 0 | Q95: =IF(INTRO!$E$41="Endemic", IF($J95>1, IF($J95=4, "Unknown", IF($J95=99, "Surveillance", SUM($N95:$P95))), 0),"Not required") -> 61386 | R95: =IF(INTRO!$E$43="Endemic", IF($K95>1, IF($K95=4, "Unknown", IF($K95=99, "Surveillance", ROUND(E95*0.75,0))), 0),"Not required") -> 0 | S95: =IF(INTRO!$E$43="Endemic", IF($K95>1, IF($K95=4, "Unknown", IF($K95=99, "Surveillance", F95)), 0),"Not required") -> 0 | T95: =IF(INTRO!$E$43="Endemic", IF($K95>1, IF($K95=4, "Unknown", IF($K95=99, "Surveillance", G95)), 0),"Not required") -> 0 | U95: =IF(INTRO!$E$43="Endemic", IF($K95>1, IF($K95=4, "Unknown", IF($K95=99, "Surveillance", SUM($R95:$T95))), 0),"Not required") -> 0 | V95: 0 | W95: 0 | X95: 1 | Y95: 0 | AE95: Yes | AF95: No | AH95: 18605 | AI95: Gozamen
A96: =IF(INTRO!$E$33<>0,INTRO!$E$33, " ") -> Ethiopia | B96: AmharaEast Gojam | C96: Huletejuenesie | D96: 166058.3673 | E96: =IF(INTRO!$E$48="","",ROUND($D96*INTRO!$E$48,0)) -> 17602 | F96: =IF(INTRO!$E$49="","",ROUND($D96*INTRO!$E$49,0)) -> 49369 | G96: =IF(INTRO!$E$50="","",ROUND($D96*INTRO!$E$50,0)) -> 95792 | H96: 0 | I96: 0 | J96: 3 | K96: 2 | L96: =IF(INTRO!$E$37="Endemic",IF($H96>0,IF($H96=4,"Unknown",IF($H96=99,"Stopped",$D96)),0),"Not required") -> 0 | M96: =IF(INTRO!$E$39="Endemic", IF($I96>0, IF($I96=4,"Unknown",IF($I96=99,"Stopped",$D96)), 0),"Not required") -> 0 | N96: =IF(INTRO!$E$41="Endemic", IF($J96>1, IF($J96=4, "Unknown", IF($J96=99, "Surveillance", E96)), 0),"Not required") -> 17602 | O96: =IF(INTRO!$E$41="Endemic", IF($J96>1, IF($J96=4, "Unknown", IF($J96=99, "Surveillance", F96)), 0),"Not required") -> 49369 | P96: =IF(INTRO!$E$41="Endemic", IF($J96>1, IF($J96=4, "Unknown", IF($J96=99, "Surveillance", ROUND(D96*INTRO!$E$51,0))), 0),"Not required") -> 0 | Q96: =IF(INTRO!$E$41="Endemic", IF($J96>1, IF($J96=4, "Unknown", IF($J96=99, "Surveillance", SUM($N96:$P96))), 0),"Not required") -> 66971 | R96: =IF(INTRO!$E$43="Endemic", IF($K96>1, IF($K96=4, "Unknown", IF($K96=99, "Surveillance", ROUND(E96*0.75,0))), 0),"Not required") -> 13202 | S96: =IF(INTRO!$E$43="Endemic", IF($K96>1, IF($K96=4, "Unknown", IF($K96=99, "Surveillance", F96)), 0),"Not required") -> 49369 | T96: =IF(INTRO!$E$43="Endemic", IF($K96>1, IF($K96=4, "Unknown", IF($K96=99, "Surveillance", G96)), 0),"Not required") -> 95792 | U96: =IF(INTRO!$E$43="Endemic", IF($K96>1, IF($K96=4, "Unknown", IF($K96=99, "Surveillance", SUM($R96:$T96))), 0),"Not required") -> 158363 | V96: 0 | W96: 0 | X96: 2 | Y96: 0 | AE96: Yes | AH96: 19450 | AI96: Huletejuenesie
A97: =IF(INTRO!$E$33<>0,INTRO!$E$33, " ") -> Ethiopia | B97: AmharaEast Gojam | C97: Machakel | D97: 157277.2613 | E97: =IF(INTRO!$E$48="","",ROUND($D97*INTRO!$E$48,0)) -> 16672 | F97: =IF(INTRO!$E$49="","",ROUND($D97*INTRO!$E$49,0)) -> 46759 | G97: =IF(INTRO!$E$50="","",ROUND($D97*INTRO!$E$50,0)) -> 90727 | H97: 0 | I97: 0 | J97: 2 | K97: 0 | L97: =IF(INTRO!$E$37="Endemic",IF($H97>0,IF($H97=4,"Unknown",IF($H97=99,"Stopped",$D97)),0),"Not required") -> 0 | M97: =IF(INTRO!$E$39="Endemic", IF($I97>0, IF($I97=4,"Unknown",IF($I97=99,"Stopped",$D97)), 0),"Not required") -> 0 | N97: =IF(INTRO!$E$41="Endemic", IF($J97>1, IF($J97=4, "Unknown", IF($J97=99, "Surveillance", E97)), 0),"Not required") -> 16672 | O97: =IF(INTRO!$E$41="Endemic", IF($J97>1, IF($J97=4, "Unknown", IF($J97=99, "Surveillance", F97)), 0),"Not required") -> 46759 | P97: =IF(INTRO!$E$41="Endemic", IF($J97>1, IF($J97=4, "Unknown", IF($J97=99, "Surveillance", ROUND(D97*INTRO!$E$51,0))), 0),"Not required") -> 0 | Q97: =IF(INTRO!$E$41="Endemic", IF($J97>1, IF($J97=4, "Unknown", IF($J97=99, "Surveillance", SUM($N97:$P97))), 0),"Not required") -> 63431 | R97: =IF(INTRO!$E$43="Endemic", IF($K97>1, IF($K97=4, "Unknown", IF($K97=99, "Surveillance", ROUND(E97*0.75,0))), 0),"Not required") -> 0 | S97: =IF(INTRO!$E$43="Endemic", IF($K97>1, IF($K97=4, "Unknown", IF($K97=99, "Surveillance", F97)), 0),"Not required") -> 0 | T97: =IF(INTRO!$E$43="Endemic", IF($K97>1, IF($K97=4, "Unknown", IF($K97=99, "Surveillance", G97)), 0),"Not required") -> 0 | U97: =IF(INTRO!$E$43="Endemic", IF($K97>1, IF($K97=4, "Unknown", IF($K97=99, "Surveillance", SUM($R97:$T97))), 0),"Not required") -> 0 | V97: 0 | W97: 0 | X97: 1 | Y97: 0 | AE97: Yes | AF97: No | AH97: 18632 | AI97: Machakel
A98: =IF(INTRO!$E$33<>0,INTRO!$E$33, " ") -> Ethiopia | B98: AmharaEast Gojam | C98: Motta town | D98: 58844.69955 | E98: =IF(INTRO!$E$48="","",ROUND($D98*INTRO!$E$48,0)) -> 6238 | F98: =IF(INTRO!$E$49="","",ROUND($D98*INTRO!$E$49,0)) -> 17495 | G98: =IF(INTRO!$E$50="","",ROUND($D98*INTRO!$E$50,0)) -> 33945 | H98: 0 | I98: 0 | J98: 2 | K98: 2 | L98: =IF(INTRO!$E$37="Endemic",IF($H98>0,IF($H98=4,"Unknown",IF($H98=99,"Stopped",$D98)),0),"Not required") -> 0 | M98: =IF(INTRO!$E$39="Endemic", IF($I98>0, IF($I98=4,"Unknown",IF($I98=99,"Stopped",$D98)), 0),"Not required") -> 0 | N98: =IF(INTRO!$E$41="Endemic", IF($J98>1, IF($J98=4, "Unknown", IF($J98=99, "Surveillance", E98)), 0),"Not required") -> 6238 | O98: =IF(INTRO!$E$41="Endemic", IF($J98>1, IF($J98=4, "Unknown", IF($J98=99, "Surveillance", F98)), 0),"Not required") -> 17495 | P98: =IF(INTRO!$E$41="Endemic", IF($J98>1, IF($J98=4, "Unknown", IF($J98=99, "Surveillance", ROUND(D98*INTRO!$E$51,0))), 0),"Not required") -> 0 | Q98: =IF(INTRO!$E$41="Endemic", IF($J98>1, IF($J98=4, "Unknown", IF($J98=99, "Surveillance", SUM($N98:$P98))), 0),"Not required") -> 23733 | R98: =IF(INTRO!$E$43="Endemic", IF($K98>1, IF($K98=4, "Unknown", IF($K98=99, "Surveillance", ROUND(E98*0.75,0))), 0),"Not required") -> 4679 | S98: =IF(INTRO!$E$43="Endemic", IF($K98>1, IF($K98=4, "Unknown", IF($K98=99, "Surveillance", F98)), 0),"Not required") -> 17495 | T98: =IF(INTRO!$E$43="Endemic", IF($K98>1, IF($K98=4, "Unknown", IF($K98=99, "Surveillance", G98)), 0),"Not required") -> 33945 | U98: =IF(INTRO!$E$43="Endemic", IF($K98>1, IF($K98=4, "Unknown", IF($K98=99, "Surveillance", SUM($R98:$T98))), 0),"Not required") -> 56119 | V98: 0 | W98: 0 | X98: 1 | Y98: 0 | AE98: Yes | AH98: 18649 | AI98: Motta town
A99: =IF(INTRO!$E$33<>0,INTRO!$E$33, " ") -> Ethiopia | B99: AmharaEast Gojam | C99: Sedie | D99: 117018.3337 | E99: =IF(INTRO!$E$48="","",ROUND($D99*INTRO!$E$48,0)) -> 12404 | F99: =IF(INTRO!$E$49="","",ROUND($D99*INTRO!$E$49,0)) -> 34790 | G99: =IF(INTRO!$E$50="","",ROUND($D99*INTRO!$E$50,0)) -> 67503 | H99: 0 | I99: 0 | J99: 3 | K99: 2 | L99: =IF(INTRO!$E$37="Endemic",IF($H99>0,IF($H99=4,"Unknown",IF($H99=99,"Stopped",$D99)),0),"Not required") -> 0 | M99: =IF(INTRO!$E$39="Endemic", IF($I99>0, IF($I99=4,"Unknown",IF($I99=99,"Stopped",$D99)), 0),"Not required") -> 0 | N99: =IF(INTRO!$E$41="Endemic", IF($J99>1, IF($J99=4, "Unknown", IF($J99=99, "Surveillance", E99)), 0),"Not required") -> 12404 | O99: =IF(INTRO!$E$41="Endemic", IF($J99>1, IF($J99=4, "Unknown", IF($J99=99, "Surveillance", F99)), 0),"Not required") -> 34790 | P99: =IF(INTRO!$E$41="Endemic", IF($J99>1, IF($J99=4, "Unknown", IF($J99=99, "Surveillance", ROUND(D99*INTRO!$E$51,0))), 0),"Not required") -> 0 | Q99: =IF(INTRO!$E$41="Endemic", IF($J99>1, IF($J99=4, "Unknown", IF($J99=99, "Surveillance", SUM($N99:$P99))), 0),"Not required") -> 47194 | R99: =IF(INTRO!$E$43="Endemic", IF($K99>1, IF($K99=4, "Unknown", IF($K99=99, "Surveillance", ROUND(E99*0.75,0))), 0),"Not required") -> 9303 | S99: =IF(INTRO!$E$43="Endemic", IF($K99>1, IF($K99=4, "Unknown", IF($K99=99, "Surveillance", F99)), 0),"Not required") -> 34790 | T99: =IF(INTRO!$E$43="Endemic", IF($K99>1, IF($K99=4, "Unknown", IF($K99=99, "Surveillance", G99)), 0),"Not required") -> 67503 | U99: =IF(INTRO!$E$43="Endemic", IF($K99>1, IF($K99=4, "Unknown", IF($K99=99, "Surveillance", SUM($R99:$T99))), 0),"Not required") -> 111596 | V99: 0 | W99: 0 | X99: 2 | Y99: 0 | AE99: Yes | AH99: 19345 | AI99: Sedie
A100: =IF(INTRO!$E$33<>0,INTRO!$E$33, " ") -> Ethiopia | B100: AmharaEast Gojam | C100: Shebel berenta | D100: 146616.4514 | E100: =IF(INTRO!$E$48="","",ROUND($D100*INTRO!$E$48,0)) -> 15542 | F100: =IF(INTRO!$E$49="","",ROUND($D100*INTRO!$E$49,0)) -> 43589 | G100: =IF(INTRO!$E$50="","",ROUND($D100*INTRO!$E$50,0)) -> 84577 | H100: 0 | I100: 0 | J100: 2 | K100: 2 | L100: =IF(INTRO!$E$37="Endemic",IF($H100>0,IF($H100=4,"Unknown",IF($H100=99,"Stopped",$D100)),0),"Not required") -> 0 | M100: =IF(INTRO!$E$39="Endemic", IF($I100>0, IF($I100=4,"Unknown",IF($I100=99,"Stopped",$D100)), 0),"Not required") -> 0 | N100: =IF(INTRO!$E$41="Endemic", IF($J100>1, IF($J100=4, "Unknown", IF($J100=99, "Surveillance", E100)), 0),"Not required") -> 15542 | O100: =IF(INTRO!$E$41="Endemic", IF($J100>1, IF($J100=4, "Unknown", IF($J100=99, "Surveillance", F100)), 0),"Not required") -> 43589 | P100: =IF(INTRO!$E$41="Endemic", IF($J100>1, IF($J100=4, "Unknown", IF($J100=99, "Surveillance", ROUND(D100*INTRO!$E$51,0))), 0),"Not required") -> 0 | Q100: =IF(INTRO!$E$41="Endemic", IF($J100>1, IF($J100=4, "Unknown", IF($J100=99, "Surveillance", SUM($N100:$P100))), 0),"Not required") -> 59131 | R100: =IF(INTRO!$E$43="Endemic", IF($K100>1, IF($K100=4, "Unknown", IF($K100=99, "Surveillance", ROUND(E100*0.75,0))), 0),"Not required") -> 11657 | S100: =IF(INTRO!$E$43="Endemic", IF($K100>1, IF($K100=4, "Unknown", IF($K100=99, "Surveillance", F100)), 0),"Not required") -> 43589 | T100: =IF(INTRO!$E$43="Endemic", IF($K100>1, IF($K100=4, "Unknown", IF($K100=99, "Surveillance", G100)), 0),"Not required") -> 84577 | U100: =IF(INTRO!$E$43="Endemic", IF($K100>1, IF($K100=4, "Unknown", IF($K100=99, "Surveillance", SUM($R100:$T100))), 0),"Not required") -> 139823 | V100: 0 | W100: 0 | X100: 1 | Y100: 0 | AE100: Yes | AH100: 18659 | AI100: Shebel berenta
A101: =IF(INTRO!$E$33<>0,INTRO!$E$33, " ") -> Ethiopia | B101: AmharaEast Gojam | C101: Sinan | D101: 132324.2031 | E101: =IF(INTRO!$E$48="","",ROUND($D101*INTRO!$E$48,0)) -> 14027 | F101: =IF(INTRO!$E$49="","",ROUND($D101*INTRO!$E$49,0)) -> 39340 | G101: =IF(INTRO!$E$50="","",ROUND($D101*INTRO!$E$50,0)) -> 76332 | H101: 0 | I101: 0 | J101: 2 | K101: 0 | L101: =IF(INTRO!$E$37="Endemic",IF($H101>0,IF($H101=4,"Unknown",IF($H101=99,"Stopped",$D101)),0),"Not required") -> 0 | M101: =IF(INTRO!$E$39="Endemic", IF($I101>0, IF($I101=4,"Unknown",IF($I101=99,"Stopped",$D101)), 0),"Not required") -> 0 | N101: =IF(INTRO!$E$41="Endemic", IF($J101>1, IF($J101=4, "Unknown", IF($J101=99, "Surveillance", E101)), 0),"Not required") -> 14027 | O101: =IF(INTRO!$E$41="Endemic", IF($J101>1, IF($J101=4, "Unknown", IF($J101=99, "Surveillance", F101)), 0),"Not required") -> 39340 | P101: =IF(INTRO!$E$41="Endemic", IF($J101>1, IF($J101=4, "Unknown", IF($J101=99, "Surveillance", ROUND(D101*INTRO!$E$51,0))), 0),"Not required") -> 0 | Q101: =IF(INTRO!$E$41="Endemic", IF($J101>1, IF($J101=4, "Unknown", IF($J101=99, "Surveillance", SUM($N101:$P101))), 0),"Not required") -> 53367 | R101: =IF(INTRO!$E$43="Endemic", IF($K101>1, IF($K101=4, "Unknown", IF($K101=99, "Surveillance", ROUND(E101*0.75,0))), 0),"Not required") -> 0 | S101: =IF(INTRO!$E$43="Endemic", IF($K101>1, IF($K101=4, "Unknown", IF($K101=99, "Surveillance", F101)), 0),"Not required") -> 0 | T101: =IF(INTRO!$E$43="Endemic", IF($K101>1, IF($K101=4, "Unknown", IF($K101=99, "Surveillance", G101)), 0),"Not required") -> 0 | U101: =IF(INTRO!$E$43="Endemic", IF($K101>1, IF($K101=4, "Unknown", IF($K101=99, "Surveillance", SUM($R101:$T101))), 0),"Not required") -> 0 | V101: 0 | W101: 0 | X101: 1 | Y101: 0 | AE101: Yes | AF101: No | AH101: 18662 | AI101: Sinan
A102: =IF(INTRO!$E$33<>0,INTRO!$E$33, " ") -> Ethiopia | B102: AmharaNorth Gondar | C102: Adi Arkay | D102: 132818.5528 | E102: =IF(INTRO!$E$48="","",ROUND($D102*INTRO!$E$48,0)) -> 14079 | F102: =IF(INTRO!$E$49="","",ROUND($D102*INTRO!$E$49,0)) -> 39487 | G102: =IF(INTRO!$E$50="","",ROUND($D102*INTRO!$E$50,0)) -> 76617 | H102: 0 | I102: 0 | J102: 3 | K102: 1 | L102: =IF(INTRO!$E$37="Endemic",IF($H102>0,IF($H102=4,"Unknown",IF($H102=99,"Stopped",$D102)),0),"Not required") -> 0 | M102: =IF(INTRO!$E$39="Endemic", IF($I102>0, IF($I102=4,"Unknown",IF($I102=99,"Stopped",$D102)), 0),"Not required") -> 0 | N102: =IF(INTRO!$E$41="Endemic", IF($J102>1, IF($J102=4, "Unknown", IF($J102=99, "Surveillance", E102)), 0),"Not required") -> 14079 | O102: =IF(INTRO!$E$41="Endemic", IF($J102>1, IF($J102=4, "Unknown", IF($J102=99, "Surveillance", F102)), 0),"Not required") -> 39487 | P102: =IF(INTRO!$E$41="Endemic", IF($J102>1, IF($J102=4, "Unknown", IF($J102=99, "Surveillance", ROUND(D102*INTRO!$E$51,0))), 0),"Not required") -> 0 | Q102: =IF(INTRO!$E$41="Endemic", IF($J102>1, IF($J102=4, "Unknown", IF($J102=99, "Surveillance", SUM($N102:$P102))), 0),"Not required") -> 53566 | R102: =IF(INTRO!$E$43="Endemic", IF($K102>1, IF($K102=4, "Unknown", IF($K102=99, "Surveillance", ROUND(E102*0.75,0))), 0),"Not required") -> 0 | S102: =IF(INTRO!$E$43="Endemic", IF($K102>1, IF($K102=4, "Unknown", IF($K102=99, "Surveillance", F102)), 0),"Not required") -> 0 | T102: =IF(INTRO!$E$43="Endemic", IF($K102>1, IF($K102=4, "Unknown", IF($K102=99, "Surveillance", G102)), 0),"Not required") -> 0 | U102: =IF(INTRO!$E$43="Endemic", IF($K102>1, IF($K102=4, "Unknown", IF($K102=99, "Surveillance", SUM($R102:$T102))), 0),"Not required") -> 0 | V102: 0 | W102: 0 | X102: 2 | Y102: 0 | AE102: Yes | AF102: No | AH102: 18533 | AI102: Adi Arkay
A103: =IF(INTRO!$E$33<>0,INTRO!$E$33, " ") -> Ethiopia | B103: AmharaNorth Gondar | C103: Beyeda | D103: 104446.9066 | E103: =IF(INTRO!$E$48="","",ROUND($D103*INTRO!$E$48,0)) -> 11071 | F103: =IF(INTRO!$E$49="","",ROUND($D103*INTRO!$E$49,0)) -> 31052 | G103: =IF(INTRO!$E$50="","",ROUND($D103*INTRO!$E$50,0)) -> 60251 | H103: 0 | I103: 0 | J103: 3 | K103: 3 | L103: =IF(INTRO!$E$37="Endemic",IF($H103>0,IF($H103=4,"Unknown",IF($H103=99,"Stopped",$D103)),0),"Not required") -> 0 | M103: =IF(INTRO!$E$39="Endemic", IF($I103>0, IF($I103=4,"Unknown",IF($I103=99,"Stopped",$D103)), 0),"Not required") -> 0 | N103: =IF(INTRO!$E$41="Endemic", IF($J103>1, IF($J103=4, "Unknown", IF($J103=99, "Surveillance", E103)), 0),"Not required") -> 11071 | O103: =IF(INTRO!$E$41="Endemic", IF($J103>1, IF($J103=4, "Unknown", IF($J103=99, "Surveillance", F103)), 0),"Not required") -> 31052 | P103: =IF(INTRO!$E$41="Endemic", IF($J103>1, IF($J103=4, "Unknown", IF($J103=99, "Surveillance", ROUND(D103*INTRO!$E$51,0))), 0),"Not required") -> 0 | Q103: =IF(INTRO!$E$41="Endemic", IF($J103>1, IF($J103=4, "Unknown", IF($J103=99, "Surveillance", SUM($N103:$P103))), 0),"Not required") -> 42123 | R103: =IF(INTRO!$E$43="Endemic", IF($K103>1, IF($K103=4, "Unknown", IF($K103=99, "Surveillance", ROUND(E103*0.75,0))), 0),"Not required") -> 8303 | S103: =IF(INTRO!$E$43="Endemic", IF($K103>1, IF($K103=4, "Unknown", IF($K103=99, "Surveillance", F103)), 0),"Not required") -> 31052 | T103: =IF(INTRO!$E$43="Endemic", IF($K103>1, IF($K103=4, "Unknown", IF($K103=99, "Surveillance", G103)), 0),"Not required") -> 60251 | U103: =IF(INTRO!$E$43="Endemic", IF($K103>1, IF($K103=4, "Unknown", IF($K103=99, "Surveillance", SUM($R103:$T103))), 0),"Not required") -> 99606 | V103: 0 | W103: 0 | X103: 2 | Y103: 0 | AE103: Yes | AH103: 18555 | AI103: Beyeda
A104: =IF(INTRO!$E$33<>0,INTRO!$E$33, " ") -> Ethiopia | B104: AmharaNorth Gondar | C104: Dabat | D104: 205318.4376 | E104: =IF(INTRO!$E$48="","",ROUND($D104*INTRO!$E$48,0)) -> 21764 | F104: =IF(INTRO!$E$49="","",ROUND($D104*INTRO!$E$49,0)) -> 61041 | G104: =IF(INTRO!$E$50="","",ROUND($D104*INTRO!$E$50,0)) -> 118439 | H104: 0 | I104: 0 | J104: 3 | K104: 1 | L104: =IF(INTRO!$E$37="Endemic",IF($H104>0,IF($H104=4,"Unknown",IF($H104=99,"Stopped",$D104)),0),"Not required") -> 0 | M104: =IF(INTRO!$E$39="Endemic", IF($I104>0, IF($I104=4,"Unknown",IF($I104=99,"Stopped",$D104)), 0),"Not required") -> 0 | N104: =IF(INTRO!$E$41="Endemic", IF($J104>1, IF($J104=4, "Unknown", IF($J104=99, "Surveillance", E104)), 0),"Not required") -> 21764 | O104: =IF(INTRO!$E$41="Endemic", IF($J104>1, IF($J104=4, "Unknown", IF($J104=99, "Surveillance", F104)), 0),"Not required") -> 61041 | P104: =IF(INTRO!$E$41="Endemic", IF($J104>1, IF($J104=4, "Unknown", IF($J104=99, "Surveillance", ROUND(D104*INTRO!$E$51,0))), 0),"Not required") -> 0 | Q104: =IF(INTRO!$E$41="Endemic", IF($J104>1, IF($J104=4, "Unknown", IF($J104=99, "Surveillance", SUM($N104:$P104))), 0),"Not required") -> 82805 | R104: =IF(INTRO!$E$43="Endemic", IF($K104>1, IF($K104=4, "Unknown", IF($K104=99, "Surveillance", ROUND(E104*0.75,0))), 0),"Not required") -> 0 | S104: =IF(INTRO!$E$43="Endemic", IF($K104>1, IF($K104=4, "Unknown", IF($K104=99, "Surveillance", F104)), 0),"Not required") -> 0 | T104: =IF(INTRO!$E$43="Endemic", IF($K104>1, IF($K104=4, "Unknown", IF($K104=99, "Surveillance", G104)), 0),"Not required") -> 0 | U104: =IF(INTRO!$E$43="Endemic", IF($K104>1, IF($K104=4, "Unknown", IF($K104=99, "Surveillance", SUM($R104:$T104))), 0),"Not required") -> 0 | V104: 0 | W104: 0 | X104: 2 | Y104: 0 | AE104: Yes | AF104: No | AH104: 18566 | AI104: Dabat
A105: =IF(INTRO!$E$33<>0,INTRO!$E$33, " ") -> Ethiopia | B105: AmharaNorth Gondar | C105: Debark | D105: 174567.9456 | E105: =IF(INTRO!$E$48="","",ROUND($D105*INTRO!$E$48,0)) -> 18504 | F105: =IF(INTRO!$E$49="","",ROUND($D105*INTRO!$E$49,0)) -> 51899 | G105: =IF(INTRO!$E$50="","",ROUND($D105*INTRO!$E$50,0)) -> 100701 | H105: 0 | I105: 0 | J105: 3 | K105: 0 | L105: =IF(INTRO!$E$37="Endemic",IF($H105>0,IF($H105=4,"Unknown",IF($H105=99,"Stopped",$D105)),0),"Not required") -> 0 | M105: =IF(INTRO!$E$39="Endemic", IF($I105>0, IF($I105=4,"Unknown",IF($I105=99,"Stopped",$D105)), 0),"Not required") -> 0 | N105: =IF(INTRO!$E$41="Endemic", IF($J105>1, IF($J105=4, "Unknown", IF($J105=99, "Surveillance", E105)), 0),"Not required") -> 18504 | O105: =IF(INTRO!$E$41="Endemic", IF($J105>1, IF($J105=4, "Unknown", IF($J105=99, "Surveillance", F105)), 0),"Not required") -> 51899 | P105: =IF(INTRO!$E$41="Endemic", IF($J105>1, IF($J105=4, "Unknown", IF($J105=99, "Surveillance", ROUND(D105*INTRO!$E$51,0))), 0),"Not required") -> 0 | Q105: =IF(INTRO!$E$41="Endemic", IF($J105>1, IF($J105=4, "Unknown", IF($J105=99, "Surveillance", SUM($N105:$P105))), 0),"Not required") -> 70403 | R105: =IF(INTRO!$E$43="Endemic", IF($K105>1, IF($K105=4, "Unknown", IF($K105=99, "Surveillance", ROUND(E105*0.75,0))), 0),"Not required") -> 0 | S105: =IF(INTRO!$E$43="Endemic", IF($K105>1, IF($K105=4, "Unknown", IF($K105=99, "Surveillance", F105)), 0),"Not required") -> 0 | T105: =IF(INTRO!$E$43="Endemic", IF($K105>1, IF($K105=4, "Unknown", IF($K105=99, "Surveillance", G105)), 0),"Not required") -> 0 | U105: =IF(INTRO!$E$43="Endemic", IF($K105>1, IF($K105=4, "Unknown", IF($K105=99, "Surveillance", SUM($R105:$T105))), 0),"Not required") -> 0 | V105: 0 | W105: 0 | X105: 2 | Y105: 0 | AE105: Yes | AF105: No | AH105: 18571 | AI105: Debark
A106: =IF(INTRO!$E$33<>0,INTRO!$E$33, " ") -> Ethiopia | B106: AmharaNorth Gondar | C106: Debark town | D106: 36989.04008 | E106: =IF(INTRO!$E$48="","",ROUND($D106*INTRO!$E$48,0)) -> 3921 | F106: =IF(INTRO!$E$49="","",ROUND($D106*INTRO!$E$49,0)) -> 10997 | G106: =IF(INTRO!$E$50="","",ROUND($D106*INTRO!$E$50,0)) -> 21337 | H106: 0 | I106: 0 | J106: 3 | K106: 1 | L106: =IF(INTRO!$E$37="Endemic",IF($H106>0,IF($H106=4,"Unknown",IF($H106=99,"Stopped",$D106)),0),"Not required") -> 0 | M106: =IF(INTRO!$E$39="Endemic", IF($I106>0, IF($I106=4,"Unknown",IF($I106=99,"Stopped",$D106)), 0),"Not required") -> 0 | N106: =IF(INTRO!$E$41="Endemic", IF($J106>1, IF($J106=4, "Unknown", IF($J106=99, "Surveillance", E106)), 0),"Not required") -> 3921 | O106: =IF(INTRO!$E$41="Endemic", IF($J106>1, IF($J106=4, "Unknown", IF($J106=99, "Surveillance", F106)), 0),"Not required") -> 10997 | P106: =IF(INTRO!$E$41="Endemic", IF($J106>1, IF($J106=4, "Unknown", IF($J106=99, "Surveillance", ROUND(D106*INTRO!$E$51,0))), 0),"Not required") -> 0 | Q106: =IF(INTRO!$E$41="Endemic", IF($J106>1, IF($J106=4, "Unknown", IF($J106=99, "Surveillance", SUM($N106:$P106))), 0),"Not required") -> 14918 | R106: =IF(INTRO!$E$43="Endemic", IF($K106>1, IF($K106=4, "Unknown", IF($K106=99, "Surveillance", ROUND(E106*0.75,0))), 0),"Not required") -> 0 | S106: =IF(INTRO!$E$43="Endemic", IF($K106>1, IF($K106=4, "Unknown", IF($K106=99, "Surveillance", F106)), 0),"Not required") -> 0 | T106: =IF(INTRO!$E$43="Endemic", IF($K106>1, IF($K106=4, "Unknown", IF($K106=99, "Surveillance", G106)), 0),"Not required") -> 0 | U106: =IF(INTRO!$E$43="Endemic", IF($K106>1, IF($K106=4, "Unknown", IF($K106=99, "Surveillance", SUM($R106:$T106))), 0),"Not required") -> 0 | V106: 0 | W106: 0 | X106: 2 | Y106: 0 | AE106: Yes | AF106: No | AH106: 18572 | AI106: Debark town
A107: =IF(INTRO!$E$33<>0,INTRO!$E$33, " ") -> Ethiopia | B107: AmharaNorth Gondar | C107: Janamora | D107: 221403.8118 | E107: =IF(INTRO!$E$48="","",ROUND($D107*INTRO!$E$48,0)) -> 23469 | F107: =IF(INTRO!$E$49="","",ROUND($D107*INTRO!$E$49,0)) -> 65823 | G107: =IF(INTRO!$E$50="","",ROUND($D107*INTRO!$E$50,0)) -> 127718 | H107: 0 | I107: 0 | J107: 3 | K107: 0 | L107: =IF(INTRO!$E$37="Endemic",IF($H107>0,IF($H107=4,"Unknown",IF($H107=99,"Stopped",$D107)),0),"Not required") -> 0 | M107: =IF(INTRO!$E$39="Endemic", IF($I107>0, IF($I107=4,"Unknown",IF($I107=99,"Stopped",$D107)), 0),"Not required") -> 0 | N107: =IF(INTRO!$E$41="Endemic", IF($J107>1, IF($J107=4, "Unknown", IF($J107=99, "Surveillance", E107)), 0),"Not required") -> 23469 | O107: =IF(INTRO!$E$41="Endemic", IF($J107>1, IF($J107=4, "Unknown", IF($J107=99, "Surveillance", F107)), 0),"Not required") -> 65823 | P107: =IF(INTRO!$E$41="Endemic", IF($J107>1, IF($J107=4, "Unknown", IF($J107=99, "Surveillance", ROUND(D107*INTRO!$E$51,0))), 0),"Not required") -> 0 | Q107: =IF(INTRO!$E$41="Endemic", IF($J107>1, IF($J107=4, "Unknown", IF($J107=99, "Surveillance", SUM($N107:$P107))), 0),"Not required") -> 89292 | R107: =IF(INTRO!$E$43="Endemic", IF($K107>1, IF($K107=4, "Unknown", IF($K107=99, "Surveillance", ROUND(E107*0.75,0))), 0),"Not required") -> 0 | S107: =IF(INTRO!$E$43="Endemic", IF($K107>1, IF($K107=4, "Unknown", IF($K107=99, "Surveillance", F107)), 0),"Not required") -> 0 | T107: =IF(INTRO!$E$43="Endemic", IF($K107>1, IF($K107=4, "Unknown", IF($K107=99, "Surveillance", G107)), 0),"Not required") -> 0 | U107: =IF(INTRO!$E$43="Endemic", IF($K107>1, IF($K107=4, "Unknown", IF($K107=99, "Surveillance", SUM($R107:$T107))), 0),"Not required") -> 0 | V107: 0 | W107: 0 | X107: 2 | Y107: 0 | AE107: Yes | AF107: No | AH107: 18615 | AI107: Janamora
A108: =IF(INTRO!$E$33<>0,INTRO!$E$33, " ") -> Ethiopia | B108: AmharaNorth Gondar | C108: Telemt | D108: 100054.3037 | E108: =IF(INTRO!$E$48="","",ROUND($D108*INTRO!$E$48,0)) -> 10606 | F108: =IF(INTRO!$E$49="","",ROUND($D108*INTRO!$E$49,0)) -> 29746 | G108: =IF(INTRO!$E$50="","",ROUND($D108*INTRO!$E$50,0)) -> 57717 | H108: 0 | I108: 0 | J108: 3 | K108: 3 | L108: =IF(INTRO!$E$37="Endemic",IF($H108>0,IF($H108=4,"Unknown",IF($H108=99,"Stopped",$D108)),0),"Not required") -> 0 | M108: =IF(INTRO!$E$39="Endemic", IF($I108>0, IF($I108=4,"Unknown",IF($I108=99,"Stopped",$D108)), 0),"Not required") -> 0 | N108: =IF(INTRO!$E$41="Endemic", IF($J108>1, IF($J108=4, "Unknown", IF($J108=99, "Surveillance", E108)), 0),"Not required") -> 10606 | O108: =IF(INTRO!$E$41="Endemic", IF($J108>1, IF($J108=4, "Unknown", IF($J108=99, "Surveillance", F108)), 0),"Not required") -> 29746 | P108: =IF(INTRO!$E$41="Endemic", IF($J108>1, IF($J108=4, "Unknown", IF($J108=99, "Surveillance", ROUND(D108*INTRO!$E$51,0))), 0),"Not required") -> 0 | Q108: =IF(INTRO!$E$41="Endemic", IF($J108>1, IF($J108=4, "Unknown", IF($J108=99, "Surveillance", SUM($N108:$P108))), 0),"Not required") -> 40352 | R108: =IF(INTRO!$E$43="Endemic", IF($K108>1, IF($K108=4, "Unknown", IF($K108=99, "Surveillance", ROUND(E108*0.75,0))), 0),"Not required") -> 7955 | S108: =IF(INTRO!$E$43="Endemic", IF($K108>1, IF($K108=4, "Unknown", IF($K108=99, "Surveillance", F108)), 0),"Not required") -> 29746 | T108: =IF(INTRO!$E$43="Endemic", IF($K108>1, IF($K108=4, "Unknown", IF($K108=99, "Surveillance", G108)), 0),"Not required") -> 57717 | U108: =IF(INTRO!$E$43="Endemic", IF($K108>1, IF($K108=4, "Unknown", IF($K108=99, "Surveillance", SUM($R108:$T108))), 0),"Not required") -> 95418 | V108: 0 | W108: 0 | X108: 2 | Y108: 0 | AE108: Yes | AH108: 18671 | AI108: Telemt
A109: =IF(INTRO!$E$33<>0,INTRO!$E$33, " ") -> Ethiopia | B109: AmharaNorth Shoa | C109: Angolelna tera | D109: 79965.23479 | E109: =IF(INTRO!$E$48="","",ROUND($D109*INTRO!$E$48,0)) -> 8476 | F109: =IF(INTRO!$E$49="","",ROUND($D109*INTRO!$E$49,0)) -> 23774 | G109: =IF(INTRO!$E$50="","",ROUND($D109*INTRO!$E$50,0)) -> 46129 | H109: 0 | I109: 0 | J109: 1 | K109: 0 | L109: =IF(INTRO!$E$37="Endemic",IF($H109>0,IF($H109=4,"Unknown",IF($H109=99,"Stopped",$D109)),0),"Not required") -> 0 | M109: =IF(INTRO!$E$39="Endemic", IF($I109>0, IF($I109=4,"Unknown",IF($I109=99,"Stopped",$D109)), 0),"Not required") -> 0 | N109: =IF(INTRO!$E$41="Endemic", IF($J109>1, IF($J109=4, "Unknown", IF($J109=99, "Surveillance", E109)), 0),"Not required") -> 0 | O109: =IF(INTRO!$E$41="Endemic", IF($J109>1, IF($J109=4, "Unknown", IF($J109=99, "Surveillance", F109)), 0),"Not required") -> 0 | P109: =IF(INTRO!$E$41="Endemic", IF($J109>1, IF($J109=4, "Unknown", IF($J109=99, "Surveillance", ROUND(D109*INTRO!$E$51,0))), 0),"Not required") -> 0 | Q109: =IF(INTRO!$E$41="Endemic", IF($J109>1, IF($J109=4, "Unknown", IF($J109=99, "Surveillance", SUM($N109:$P109))), 0),"Not required") -> 0 | R109: =IF(INTRO!$E$43="Endemic", IF($K109>1, IF($K109=4, "Unknown", IF($K109=99, "Surveillance", ROUND(E109*0.75,0))), 0),"Not required") -> 0 | S109: =IF(INTRO!$E$43="Endemic", IF($K109>1, IF($K109=4, "Unknown", IF($K109=99, "Surveillance", F109)), 0),"Not required") -> 0 | T109: =IF(INTRO!$E$43="Endemic", IF($K109>1, IF($K109=4, "Unknown", IF($K109=99, "Surveillance", G109)), 0),"Not required") -> 0 | U109: =IF(INTRO!$E$43="Endemic", IF($K109>1, IF($K109=4, "Unknown", IF($K109=99, "Surveillance", SUM($R109:$T109))), 0),"Not required") -> 0 | V109: 0 | W109: 0 | X109: 0 | Y109: 0 | AF109: No | AH109: 18539 | AI109: Angolelna tera
A110: =IF(INTRO!$E$33<>0,INTRO!$E$33, " ") -> Ethiopia | B110: AmharaNorth Shoa | C110: Ankober | D110: 102310.7335 | E110: =IF(INTRO!$E$48="","",ROUND($D110*INTRO!$E$48,0)) -> 10845 | F110: =IF(INTRO!$E$49="","",ROUND($D110*INTRO!$E$49,0)) -> 30417 | G110: =IF(INTRO!$E$50="","",ROUND($D110*INTRO!$E$50,0)) -> 59019 | H110: 0 | I110: 0 | J110: 1 | K110: 2 | L110: =IF(INTRO!$E$37="Endemic",IF($H110>0,IF($H110=4,"Unknown",IF($H110=99,"Stopped",$D110)),0),"Not required") -> 0 | M110: =IF(INTRO!$E$39="Endemic", IF($I110>0, IF($I110=4,"Unknown",IF($I110=99,"Stopped",$D110)), 0),"Not required") -> 0 | N110: =IF(INTRO!$E$41="Endemic", IF($J110>1, IF($J110=4, "Unknown", IF($J110=99, "Surveillance", E110)), 0),"Not required") -> 0 | O110: =IF(INTRO!$E$41="Endemic", IF($J110>1, IF($J110=4, "Unknown", IF($J110=99, "Surveillance", F110)), 0),"Not required") -> 0 | P110: =IF(INTRO!$E$41="Endemic", IF($J110>1, IF($J110=4, "Unknown", IF($J110=99, "Surveillance", ROUND(D110*INTRO!$E$51,0))), 0),"Not required") -> 0 | Q110: =IF(INTRO!$E$41="Endemic", IF($J110>1, IF($J110=4, "Unknown", IF($J110=99, "Surveillance", SUM($N110:$P110))), 0),"Not required") -> 0 | R110: =IF(INTRO!$E$43="Endemic", IF($K110>1, IF($K110=4, "Unknown", IF($K110=99, "Surveillance", ROUND(E110*0.75,0))), 0),"Not required") -> 8134 | S110: =IF(INTRO!$E$43="Endemic", IF($K110>1, IF($K110=4, "Unknown", IF($K110=99, "Surveillance", F110)), 0),"Not required") -> 30417 | T110: =IF(INTRO!$E$43="Endemic", IF($K110>1, IF($K110=4, "Unknown", IF($K110=99, "Surveillance", G110)), 0),"Not required") -> 59019 | U110: =IF(INTRO!$E$43="Endemic", IF($K110>1, IF($K110=4, "Unknown", IF($K110=99, "Surveillance", SUM($R110:$T110))), 0),"Not required") -> 97570 | V110: 0 | W110: 0 | X110: 0 | Y110: 0 | AH110: 18541 | AI110: Ankober
A111: =IF(INTRO!$E$33<>0,INTRO!$E$33, " ") -> Ethiopia | B111: AmharaNorth Shoa | C111: Antsokiagemza | D111: 71380.17194 | E111: =IF(INTRO!$E$48="","",ROUND($D111*INTRO!$E$48,0)) -> 7566 | F111: =IF(INTRO!$E$49="","",ROUND($D111*INTRO!$E$49,0)) -> 21221 | G111: =IF(INTRO!$E$50="","",ROUND($D111*INTRO!$E$50,0)) -> 41176 | H111: 0 | I111: 0 | J111: 2 | K111: 1 | L111: =IF(INTRO!$E$37="Endemic",IF($H111>0,IF($H111=4,"Unknown",IF($H111=99,"Stopped",$D111)),0),"Not required") -> 0 | M111: =IF(INTRO!$E$39="Endemic", IF($I111>0, IF($I111=4,"Unknown",IF($I111=99,"Stopped",$D111)), 0),"Not required") -> 0 | N111: =IF(INTRO!$E$41="Endemic", IF($J111>1, IF($J111=4, "Unknown", IF($J111=99, "Surveillance", E111)), 0),"Not required") -> 7566 | O111: =IF(INTRO!$E$41="Endemic", IF($J111>1, IF($J111=4, "Unknown", IF($J111=99, "Surveillance", F111)), 0),"Not required") -> 21221 | P111: =IF(INTRO!$E$41="Endemic", IF($J111>1, IF($J111=4, "Unknown", IF($J111=99, "Surveillance", ROUND(D111*INTRO!$E$51,0))), 0),"Not required") -> 0 | Q111: =IF(INTRO!$E$41="Endemic", IF($J111>1, IF($J111=4, "Unknown", IF($J111=99, "Surveillance", SUM($N111:$P111))), 0),"Not required") -> 28787 | R111: =IF(INTRO!$E$43="Endemic", IF($K111>1, IF($K111=4, "Unknown", IF($K111=99, "Surveillance", ROUND(E111*0.75,0))), 0),"Not required") -> 0 | S111: =IF(INTRO!$E$43="Endemic", IF($K111>1, IF($K111=4, "Unknown", IF($K111=99, "Surveillance", F111)), 0),"Not required") -> 0 | T111: =IF(INTRO!$E$43="Endemic", IF($K111>1, IF($K111=4, "Unknown", IF($K111=99, "Surveillance", G111)), 0),"Not required") -> 0 | U111: =IF(INTRO!$E$43="Endemic", IF($K111>1, IF($K111=4, "Unknown", IF($K111=99, "Surveillance", SUM($R111:$T111))), 0),"Not required") -> 0 | V111: 0 | W111: 0 | X111: 1 | Y111: 0 | AE111: Yes | AF111: No | AH111: 18542 | AI111: Antsokiagemza
A112: =IF(INTRO!$E$33<>0,INTRO!$E$33, " ") -> Ethiopia | B112: AmharaNorth Shoa | C112: Assagirt | D112: 61873.97629 | E112: =IF(INTRO!$E$48="","",ROUND($D112*INTRO!$E$48,0)) -> 6559 | F112: =IF(INTRO!$E$49="","",ROUND($D112*INTRO!$E$49,0)) -> 18395 | G112: =IF(INTRO!$E$50="","",ROUND($D112*INTRO!$E$50,0)) -> 35692 | H112: 0 | I112: 0 | J112: 1 | K112: 0 | L112: =IF(INTRO!$E$37="Endemic",IF($H112>0,IF($H112=4,"Unknown",IF($H112=99,"Stopped",$D112)),0),"Not required") -> 0 | M112: =IF(INTRO!$E$39="Endemic", IF($I112>0, IF($I112=4,"Unknown",IF($I112=99,"Stopped",$D112)), 0),"Not required") -> 0 | N112: =IF(INTRO!$E$41="Endemic", IF($J112>1, IF($J112=4, "Unknown", IF($J112=99, "Surveillance", E112)), 0),"Not required") -> 0 | O112: =IF(INTRO!$E$41="Endemic", IF($J112>1, IF($J112=4, "Unknown", IF($J112=99, "Surveillance", F112)), 0),"Not required") -> 0 | P112: =IF(INTRO!$E$41="Endemic", IF($J112>1, IF($J112=4, "Unknown", IF($J112=99, "Surveillance", ROUND(D112*INTRO!$E$51,0))), 0),"Not required") -> 0 | Q112: =IF(INTRO!$E$41="Endemic", IF($J112>1, IF($J112=4, "Unknown", IF($J112=99, "Surveillance", SUM($N112:$P112))), 0),"Not required") -> 0 | R112: =IF(INTRO!$E$43="Endemic", IF($K112>1, IF($K112=4, "Unknown", IF($K112=99, "Surveillance", ROUND(E112*0.75,0))), 0),"Not required") -> 0 | S112: =IF(INTRO!$E$43="Endemic", IF($K112>1, IF($K112=4, "Unknown", IF($K112=99, "Surveillance", F112)), 0),"Not required") -> 0 | T112: =IF(INTRO!$E$43="Endemic", IF($K112>1, IF($K112=4, "Unknown", IF($K112=99, "Surveillance", G112)), 0),"Not required") -> 0 | U112: =IF(INTRO!$E$43="Endemic", IF($K112>1, IF($K112=4, "Unknown", IF($K112=99, "Surveillance", SUM($R112:$T112))), 0),"Not required") -> 0 | V112: 0 | W112: 0 | X112: 0 | Y112: 0 | AF112: No | AH112: 18545 | AI112: Assagirt
A113: =IF(INTRO!$E$33<>0,INTRO!$E$33, " ") -> Ethiopia | B113: AmharaNorth Shoa | C113: Baso Naworana | D113: 106891.6155 | E113: =IF(INTRO!$E$48="","",ROUND($D113*INTRO!$E$48,0)) -> 11331 | F113: =IF(INTRO!$E$49="","",ROUND($D113*INTRO!$E$49,0)) -> 31779 | G113: =IF(INTRO!$E$50="","",ROUND($D113*INTRO!$E$50,0)) -> 61661 | H113: 0 | I113: 0 | J113: 1 | K113: 0 | L113: =IF(INTRO!$E$37="Endemic",IF($H113>0,IF($H113=4,"Unknown",IF($H113=99,"Stopped",$D113)),0),"Not required") -> 0 | M113: =IF(INTRO!$E$39="Endemic", IF($I113>0, IF($I113=4,"Unknown",IF($I113=99,"Stopped",$D113)), 0),"Not required") -> 0 | N113: =IF(INTRO!$E$41="Endemic", IF($J113>1, IF($J113=4, "Unknown", IF($J113=99, "Surveillance", E113)), 0),"Not required") -> 0 | O113: =IF(INTRO!$E$41="Endemic", IF($J113>1, IF($J113=4, "Unknown", IF($J113=99, "Surveillance", F113)), 0),"Not required") -> 0 | P113: =IF(INTRO!$E$41="Endemic", IF($J113>1, IF($J113=4, "Unknown", IF($J113=99, "Surveillance", ROUND(D113*INTRO!$E$51,0))), 0),"Not required") -> 0 | Q113: =IF(INTRO!$E$41="Endemic", IF($J113>1, IF($J113=4, "Unknown", IF($J113=99, "Surveillance", SUM($N113:$P113))), 0),"Not required") -> 0 | R113: =IF(INTRO!$E$43="Endemic", IF($K113>1, IF($K113=4, "Unknown", IF($K113=99, "Surveillance", ROUND(E113*0.75,0))), 0),"Not required") -> 0 | S113: =IF(INTRO!$E$43="Endemic", IF($K113>1, IF($K113=4, "Unknown", IF($K113=99, "Surveillance", F113)), 0),"Not required") -> 0 | T113: =IF(INTRO!$E$43="Endemic", IF($K113>1, IF($K113=4, "Unknown", IF($K113=99, "Surveillance", G113)), 0),"Not required") -> 0 | U113: =IF(INTRO!$E$43="Endemic", IF($K113>1, IF($K113=4, "Unknown", IF($K113=99, "Surveillance", SUM($R113:$T113))), 0),"Not required") -> 0 | V113: 0 | W113: 0 | X113: 0 | Y113: 0 | AF113: No | AH113: 18551 | AI113: Baso Naworana
A114: =IF(INTRO!$E$33<>0,INTRO!$E$33, " ") -> Ethiopia | B114: AmharaNorth Shoa | C114: Berehet | D114: 48550.74836 | E114: =IF(INTRO!$E$48="","",ROUND($D114*INTRO!$E$48,0)) -> 5146 | F114: =IF(INTRO!$E$49="","",ROUND($D114*INTRO!$E$49,0)) -> 14434 | G114: =IF(INTRO!$E$50="","",ROUND($D114*INTRO!$E$50,0)) -> 28007 | H114: 0 | I114: 0 | J114: 0 | K114: 2 | L114: =IF(INTRO!$E$37="Endemic",IF($H114>0,IF($H114=4,"Unknown",IF($H114=99,"Stopped",$D114)),0),"Not required") -> 0 | M114: =IF(INTRO!$E$39="Endemic", IF($I114>0, IF($I114=4,"Unknown",IF($I114=99,"Stopped",$D114)), 0),"Not required") -> 0 | N114: =IF(INTRO!$E$41="Endemic", IF($J114>1, IF($J114=4, "Unknown", IF($J114=99, "Surveillance", E114)), 0),"Not required") -> 0 | O114: =IF(INTRO!$E$41="Endemic", IF($J114>1, IF($J114=4, "Unknown", IF($J114=99, "Surveillance", F114)), 0),"Not required") -> 0 | P114: =IF(INTRO!$E$41="Endemic", IF($J114>1, IF($J114=4, "Unknown", IF($J114=99, "Surveillance", ROUND(D114*INTRO!$E$51,0))), 0),"Not required") -> 0 | Q114: =IF(INTRO!$E$41="Endemic", IF($J114>1, IF($J114=4, "Unknown", IF($J114=99, "Surveillance", SUM($N114:$P114))), 0),"Not required") -> 0 | R114: =IF(INTRO!$E$43="Endemic", IF($K114>1, IF($K114=4, "Unknown", IF($K114=99, "Surveillance", ROUND(E114*0.75,0))), 0),"Not required") -> 3860 | S114: =IF(INTRO!$E$43="Endemic", IF($K114>1, IF($K114=4, "Unknown", IF($K114=99, "Surveillance", F114)), 0),"Not required") -> 14434 | T114: =IF(INTRO!$E$43="Endemic", IF($K114>1, IF($K114=4, "Unknown", IF($K114=99, "Surveillance", G114)), 0),"Not required") -> 28007 | U114: =IF(INTRO!$E$43="Endemic", IF($K114>1, IF($K114=4, "Unknown", IF($K114=99, "Surveillance", SUM($R114:$T114))), 0),"Not required") -> 46301 | V114: 0 | W114: 0 | X114: 0 | Y114: 0 | AH114: 18554 | AI114: Berehet
A115: =IF(INTRO!$E$33<>0,INTRO!$E$33, " ") -> Ethiopia | B115: AmharaNorth Shoa | C115: Debirebirhan | D115: 209383.8291 | E115: =IF(INTRO!$E$48="","",ROUND($D115*INTRO!$E$48,0)) -> 22195 | F115: =IF(INTRO!$E$49="","",ROUND($D115*INTRO!$E$49,0)) -> 62250 | G115: =IF(INTRO!$E$50="","",ROUND($D115*INTRO!$E$50,0)) -> 120785 | H115: 0 | I115: 0 | J115: 0 | K115: 0 | L115: =IF(INTRO!$E$37="Endemic",IF($H115>0,IF($H115=4,"Unknown",IF($H115=99,"Stopped",$D115)),0),"Not required") -> 0 | M115: =IF(INTRO!$E$39="Endemic", IF($I115>0, IF($I115=4,"Unknown",IF($I115=99,"Stopped",$D115)), 0),"Not required") -> 0 | N115: =IF(INTRO!$E$41="Endemic", IF($J115>1, IF($J115=4, "Unknown", IF($J115=99, "Surveillance", E115)), 0),"Not required") -> 0 | O115: =IF(INTRO!$E$41="Endemic", IF($J115>1, IF($J115=4, "Unknown", IF($J115=99, "Surveillance", F115)), 0),"Not required") -> 0 | P115: =IF(INTRO!$E$41="Endemic", IF($J115>1, IF($J115=4, "Unknown", IF($J115=99, "Surveillance", ROUND(D115*INTRO!$E$51,0))), 0),"Not required") -> 0 | Q115: =IF(INTRO!$E$41="Endemic", IF($J115>1, IF($J115=4, "Unknown", IF($J115=99, "Surveillance", SUM($N115:$P115))), 0),"Not required") -> 0 | R115: =IF(INTRO!$E$43="Endemic", IF($K115>1, IF($K115=4, "Unknown", IF($K115=99, "Surveillance", ROUND(E115*0.75,0))), 0),"Not required") -> 0 | S115: =IF(INTRO!$E$43="Endemic", IF($K115>1, IF($K115=4, "Unknown", IF($K115=99, "Surveillance", F115)), 0),"Not required") -> 0 | T115: =IF(INTRO!$E$43="Endemic", IF($K115>1, IF($K115=4, "Unknown", IF($K115=99, "Surveillance", G115)), 0),"Not required") -> 0 | U115: =IF(INTRO!$E$43="Endemic", IF($K115>1, IF($K115=4, "Unknown", IF($K115=99, "Surveillance", SUM($R115:$T115))), 0),"Not required") -> 0 | V115: 0 | W115: 0 | X115: 0 | Y115: 0 | AF115: No | AH115: 18575 | AI115: Debirebirhan Town
A116: =IF(INTRO!$E$33<>0,INTRO!$E$33, " ") -> Ethiopia | B116: AmharaNorth Shoa | C116: Efratanagidem | D116: 197308.1556 | E116: =IF(INTRO!$E$48="","",ROUND($D116*INTRO!$E$48,0)) -> 20915 | F116: =IF(INTRO!$E$49="","",ROUND($D116*INTRO!$E$49,0)) -> 58660 | G116: =IF(INTRO!$E$50="","",ROUND($D116*INTRO!$E$50,0)) -> 113819 | H116: 0 | I116: 0 | J116: 2 | K116: 2 | L116: =IF(INTRO!$E$37="Endemic",IF($H116>0,IF($H116=4,"Unknown",IF($H116=99,"Stopped",$D116)),0),"Not required") -> 0 | M116: =IF(INTRO!$E$39="Endemic", IF($I116>0, IF($I116=4,"Unknown",IF($I116=99,"Stopped",$D116)), 0),"Not required") -> 0 | N116: =IF(INTRO!$E$41="Endemic", IF($J116>1, IF($J116=4, "Unknown", IF($J116=99, "Surveillance", E116)), 0),"Not required") -> 20915 | O116: =IF(INTRO!$E$41="Endemic", IF($J116>1, IF($J116=4, "Unknown", IF($J116=99, "Surveillance", F116)), 0),"Not required") -> 58660 | P116: =IF(INTRO!$E$41="Endemic", IF($J116>1, IF($J116=4, "Unknown", IF($J116=99, "Surveillance", ROUND(D116*INTRO!$E$51,0))), 0),"Not required") -> 0 | Q116: =IF(INTRO!$E$41="Endemic", IF($J116>1, IF($J116=4, "Unknown", IF($J116=99, "Surveillance", SUM($N116:$P116))), 0),"Not required") -> 79575 | R116: =IF(INTRO!$E$43="Endemic", IF($K116>1, IF($K116=4, "Unknown", IF($K116=99, "Surveillance", ROUND(E116*0.75,0))), 0),"Not required") -> 15686 | S116: =IF(INTRO!$E$43="Endemic", IF($K116>1, IF($K116=4, "Unknown", IF($K116=99, "Surveillance", F116)), 0),"Not required") -> 58660 | T116: =IF(INTRO!$E$43="Endemic", IF($K116>1, IF($K116=4, "Unknown", IF($K116=99, "Surveillance", G116)), 0),"Not required") -> 113819 | U116: =IF(INTRO!$E$43="Endemic", IF($K116>1, IF($K116=4, "Unknown", IF($K116=99, "Surveillance", SUM($R116:$T116))), 0),"Not required") -> 188165 | V116: 0 | W116: 0 | X116: 1 | Y116: 0 | AE116: Yes | AH116: 18587 | AI116: Efratanagidem
A117: =IF(INTRO!$E$33<>0,INTRO!$E$33, " ") -> Ethiopia | B117: AmharaNorth Shoa | C117: Ensaro | D117: 81035.62721 | E117: =IF(INTRO!$E$48="","",ROUND($D117*INTRO!$E$48,0)) -> 8590 | F117: =IF(INTRO!$E$49="","",ROUND($D117*INTRO!$E$49,0)) -> 24092 | G117: =IF(INTRO!$E$50="","",ROUND($D117*INTRO!$E$50,0)) -> 46746 | H117: 0 | I117: 1 | J117: 3 | K117: 0 | L117: =IF(INTRO!$E$37="Endemic",IF($H117>0,IF($H117=4,"Unknown",IF($H117=99,"Stopped",$D117)),0),"Not required") -> 0 | M117: =IF(INTRO!$E$39="Endemic", IF($I117>0, IF($I117=4,"Unknown",IF($I117=99,"Stopped",$D117)), 0),"Not required") -> 81035.62721 | N117: =IF(INTRO!$E$41="Endemic", IF($J117>1, IF($J117=4, "Unknown", IF($J117=99, "Surveillance", E117)), 0),"Not required") -> 8590 | O117: =IF(INTRO!$E$41="Endemic", IF($J117>1, IF($J117=4, "Unknown", IF($J117=99, "Surveillance", F117)), 0),"Not required") -> 24092 | P117: =IF(INTRO!$E$41="Endemic", IF($J117>1, IF($J117=4, "Unknown", IF($J117=99, "Surveillance", ROUND(D117*INTRO!$E$51,0))), 0),"Not required") -> 0 | Q117: =IF(INTRO!$E$41="Endemic", IF($J117>1, IF($J117=4, "Unknown", IF($J117=99, "Surveillance", SUM($N117:$P117))), 0),"Not required") -> 32682 | R117: =IF(INTRO!$E$43="Endemic", IF($K117>1, IF($K117=4, "Unknown", IF($K117=99, "Surveillance", ROUND(E117*0.75,0))), 0),"Not required") -> 0 | S117: =IF(INTRO!$E$43="Endemic", IF($K117>1, IF($K117=4, "Unknown", IF($K117=99, "Surveillance", F117)), 0),"Not required") -> 0 | T117: =IF(INTRO!$E$43="Endemic", IF($K117>1, IF($K117=4, "Unknown", IF($K117=99, "Surveillance", G117)), 0),"Not required") -> 0 | U117: =IF(INTRO!$E$43="Endemic", IF($K117>1, IF($K117=4, "Unknown", IF($K117=99, "Surveillance", SUM($R117:$T117))), 0),"Not required") -> 0 | V117: 0 | W117: 2 | X117: 2 | Y117: 0 | AE117: Yes | AF117: No | AH117: 18591 | AI117: Ensaro
A118: =IF(INTRO!$E$33<>0,INTRO!$E$33, " ") -> Ethiopia | B118: AmharaNorth Shoa | C118: Geshe | D118: 80373.09094 | E118: =IF(INTRO!$E$48="","",ROUND($D118*INTRO!$E$48,0)) -> 8520 | F118: =IF(INTRO!$E$49="","",ROUND($D118*INTRO!$E$49,0)) -> 23895 | G118: =IF(INTRO!$E$50="","",ROUND($D118*INTRO!$E$50,0)) -> 46364 | H118: 0 | I118: 0 | J118: 1 | K118: 0 | L118: =IF(INTRO!$E$37="Endemic",IF($H118>0,IF($H118=4,"Unknown",IF($H118=99,"Stopped",$D118)),0),"Not required") -> 0 | M118: =IF(INTRO!$E$39="Endemic", IF($I118>0, IF($I118=4,"Unknown",IF($I118=99,"Stopped",$D118)), 0),"Not required") -> 0 | N118: =IF(INTRO!$E$41="Endemic", IF($J118>1, IF($J118=4, "Unknown", IF($J118=99, "Surveillance", E118)), 0),"Not required") -> 0 | O118: =IF(INTRO!$E$41="Endemic", IF($J118>1, IF($J118=4, "Unknown", IF($J118=99, "Surveillance", F118)), 0),"Not required") -> 0 | P118: =IF(INTRO!$E$41="Endemic", IF($J118>1, IF($J118=4, "Unknown", IF($J118=99, "Surveillance", ROUND(D118*INTRO!$E$51,0))), 0),"Not required") -> 0 | Q118: =IF(INTRO!$E$41="Endemic", IF($J118>1, IF($J118=4, "Unknown", IF($J118=99, "Surveillance", SUM($N118:$P118))), 0),"Not required") -> 0 | R118: =IF(INTRO!$E$43="Endemic", IF($K118>1, IF($K118=4, "Unknown", IF($K118=99, "Surveillance", ROUND(E118*0.75,0))), 0),"Not required") -> 0 | S118: =IF(INTRO!$E$43="Endemic", IF($K118>1, IF($K118=4, "Unknown", IF($K118=99, "Surveillance", F118)), 0),"Not required") -> 0 | T118: =IF(INTRO!$E$43="Endemic", IF($K118>1, IF($K118=4, "Unknown", IF($K118=99, "Surveillance", G118)), 0),"Not required") -> 0 | U118: =IF(INTRO!$E$43="Endemic", IF($K118>1, IF($K118=4, "Unknown", IF($K118=99, "Surveillance", SUM($R118:$T118))), 0),"Not required") -> 0 | V118: 0 | W118: 0 | X118: 0 | Y118: 0 | AF118: No | AH118: 18600 | AI118: Geshe
A119: =IF(INTRO!$E$33<>0,INTRO!$E$33, " ") -> Ethiopia | B119: AmharaNorth Shoa | C119: Hageremariam | D119: 72449.03781 | E119: =IF(INTRO!$E$48="","",ROUND($D119*INTRO!$E$48,0)) -> 7680 | F119: =IF(INTRO!$E$49="","",ROUND($D119*INTRO!$E$49,0)) -> 21539 | G119: =IF(INTRO!$E$50="","",ROUND($D119*INTRO!$E$50,0)) -> 41793 | H119: 0 | I119: 0 | J119: 2 | K119: 0 | L119: =IF(INTRO!$E$37="Endemic",IF($H119>0,IF($H119=4,"Unknown",IF($H119=99,"Stopped",$D119)),0),"Not required") -> 0 | M119: =IF(INTRO!$E$39="Endemic", IF($I119>0, IF($I119=4,"Unknown",IF($I119=99,"Stopped",$D119)), 0),"Not required") -> 0 | N119: =IF(INTRO!$E$41="Endemic", IF($J119>1, IF($J119=4, "Unknown", IF($J119=99, "Surveillance", E119)), 0),"Not required") -> 7680 | O119: =IF(INTRO!$E$41="Endemic", IF($J119>1, IF($J119=4, "Unknown", IF($J119=99, "Surveillance", F119)), 0),"Not required") -> 21539 | P119: =IF(INTRO!$E$41="Endemic", IF($J119>1, IF($J119=4, "Unknown", IF($J119=99, "Surveillance", ROUND(D119*INTRO!$E$51,0))), 0),"Not required") -> 0 | Q119: =IF(INTRO!$E$41="Endemic", IF($J119>1, IF($J119=4, "Unknown", IF($J119=99, "Surveillance", SUM($N119:$P119))), 0),"Not required") -> 29219 | R119: =IF(INTRO!$E$43="Endemic", IF($K119>1, IF($K119=4, "Unknown", IF($K119=99, "Surveillance", ROUND(E119*0.75,0))), 0),"Not required") -> 0 | S119: =IF(INTRO!$E$43="Endemic", IF($K119>1, IF($K119=4, "Unknown", IF($K119=99, "Surveillance", F119)), 0),"Not required") -> 0 | T119: =IF(INTRO!$E$43="Endemic", IF($K119>1, IF($K119=4, "Unknown", IF($K119=99, "Surveillance", G119)), 0),"Not required") -> 0 | U119: =IF(INTRO!$E$43="Endemic", IF($K119>1, IF($K119=4, "Unknown", IF($K119=99, "Surveillance", SUM($R119:$T119))), 0),"Not required") -> 0 | V119: 0 | W119: 0 | X119: 1 | Y119: 0 | AE119: Yes | AF119: No | AH119: 18611 | AI119: Hageremariam
A120: =IF(INTRO!$E$33<>0,INTRO!$E$33, " ") -> Ethiopia | B120: AmharaNorth Shoa | C120: Kewot | D120: 99917.48954 | E120: =IF(INTRO!$E$48="","",ROUND($D120*INTRO!$E$48,0)) -> 10591 | F120: =IF(INTRO!$E$49="","",ROUND($D120*INTRO!$E$49,0)) -> 29705 | G120: =IF(INTRO!$E$50="","",ROUND($D120*INTRO!$E$50,0)) -> 57638 | H120: 0 | I120: 0 | J120: 1 | K120: 3 | L120: =IF(INTRO!$E$37="Endemic",IF($H120>0,IF($H120=4,"Unknown",IF($H120=99,"Stopped",$D120)),0),"Not required") -> 0 | M120: =IF(INTRO!$E$39="Endemic", IF($I120>0, IF($I120=4,"Unknown",IF($I120=99,"Stopped",$D120)), 0),"Not required") -> 0 | N120: =IF(INTRO!$E$41="Endemic", IF($J120>1, IF($J120=4, "Unknown", IF($J120=99, "Surveillance", E120)), 0),"Not required") -> 0 | O120: =IF(INTRO!$E$41="Endemic", IF($J120>1, IF($J120=4, "Unknown", IF($J120=99, "Surveillance", F120)), 0),"Not required") -> 0 | P120: =IF(INTRO!$E$41="Endemic", IF($J120>1, IF($J120=4, "Unknown", IF($J120=99, "Surveillance", ROUND(D120*INTRO!$E$51,0))), 0),"Not required") -> 0 | Q120: =IF(INTRO!$E$41="Endemic", IF($J120>1, IF($J120=4, "Unknown", IF($J120=99, "Surveillance", SUM($N120:$P120))), 0),"Not required") -> 0 | R120: =IF(INTRO!$E$43="Endemic", IF($K120>1, IF($K120=4, "Unknown", IF($K120=99, "Surveillance", ROUND(E120*0.75,0))), 0),"Not required") -> 7943 | S120: =IF(INTRO!$E$43="Endemic", IF($K120>1, IF($K120=4, "Unknown", IF($K120=99, "Surveillance", F120)), 0),"Not required") -> 29705 | T120: =IF(INTRO!$E$43="Endemic", IF($K120>1, IF($K120=4, "Unknown", IF($K120=99, "Surveillance", G120)), 0),"Not required") -> 57638 | U120: =IF(INTRO!$E$43="Endemic", IF($K120>1, IF($K120=4, "Unknown", IF($K120=99, "Surveillance", SUM($R120:$T120))), 0),"Not required") -> 95286 | V120: 0 | W120: 0 | X120: 0 | Y120: 0 | AH120: 18621 | AI120: Kewot
A121: =IF(INTRO!$E$33<>0,INTRO!$E$33, " ") -> Ethiopia | B121: AmharaNorth Shoa | C121: Menzgera | D121: 139238.8933 | E121: =IF(INTRO!$E$48="","",ROUND($D121*INTRO!$E$48,0)) -> 14759 | F121: =IF(INTRO!$E$49="","",ROUND($D121*INTRO!$E$49,0)) -> 41396 | G121: =IF(INTRO!$E$50="","",ROUND($D121*INTRO!$E$50,0)) -> 80321 | H121: 0 | I121: 0 | J121: 1 | K121: 1 | L121: =IF(INTRO!$E$37="Endemic",IF($H121>0,IF($H121=4,"Unknown",IF($H121=99,"Stopped",$D121)),0),"Not required") -> 0 | M121: =IF(INTRO!$E$39="Endemic", IF($I121>0, IF($I121=4,"Unknown",IF($I121=99,"Stopped",$D121)), 0),"Not required") -> 0 | N121: =IF(INTRO!$E$41="Endemic", IF($J121>1, IF($J121=4, "Unknown", IF($J121=99, "Surveillance", E121)), 0),"Not required") -> 0 | O121: =IF(INTRO!$E$41="Endemic", IF($J121>1, IF($J121=4, "Unknown", IF($J121=99, "Surveillance", F121)), 0),"Not required") -> 0 | P121: =IF(INTRO!$E$41="Endemic", IF($J121>1, IF($J121=4, "Unknown", IF($J121=99, "Surveillance", ROUND(D121*INTRO!$E$51,0))), 0),"Not required") -> 0 | Q121: =IF(INTRO!$E$41="Endemic", IF($J121>1, IF($J121=4, "Unknown", IF($J121=99, "Surveillance", SUM($N121:$P121))), 0),"Not required") -> 0 | R121: =IF(INTRO!$E$43="Endemic", IF($K121>1, IF($K121=4, "Unknown", IF($K121=99, "Surveillance", ROUND(E121*0.75,0))), 0),"Not required") -> 0 | S121: =IF(INTRO!$E$43="Endemic", IF($K121>1, IF($K121=4, "Unknown", IF($K121=99, "Surveillance", F121)), 0),"Not required") -> 0 | T121: =IF(INTRO!$E$43="Endemic", IF($K121>1, IF($K121=4, "Unknown", IF($K121=99, "Surveillance", G121)), 0),"Not required") -> 0 | U121: =IF(INTRO!$E$43="Endemic", IF($K121>1, IF($K121=4, "Unknown", IF($K121=99, "Surveillance", SUM($R121:$T121))), 0),"Not required") -> 0 | V121: 0 | W121: 0 | X121: 0 | Y121: 0 | AF121: No | AH121: 18636 | AI121: Menzgera
A122: =IF(INTRO!$E$33<>0,INTRO!$E$33, " ") -> Ethiopia | B122: AmharaNorth Shoa | C122: Menzkeya | D122: 64784.32974 | E122: =IF(INTRO!$E$48="","",ROUND($D122*INTRO!$E$48,0)) -> 6867 | F122: =IF(INTRO!$E$49="","",ROUND($D122*INTRO!$E$49,0)) -> 19260 | G122: =IF(INTRO!$E$50="","",ROUND($D122*INTRO!$E$50,0)) -> 37371 | H122: 0 | I122: 0 | J122: 1 | K122: 1 | L122: =IF(INTRO!$E$37="Endemic",IF($H122>0,IF($H122=4,"Unknown",IF($H122=99,"Stopped",$D122)),0),"Not required") -> 0 | M122: =IF(INTRO!$E$39="Endemic", IF($I122>0, IF($I122=4,"Unknown",IF($I122=99,"Stopped",$D122)), 0),"Not required") -> 0 | N122: =IF(INTRO!$E$41="Endemic", IF($J122>1, IF($J122=4, "Unknown", IF($J122=99, "Surveillance", E122)), 0),"Not required") -> 0 | O122: =IF(INTRO!$E$41="Endemic", IF($J122>1, IF($J122=4, "Unknown", IF($J122=99, "Surveillance", F122)), 0),"Not required") -> 0 | P122: =IF(INTRO!$E$41="Endemic", IF($J122>1, IF($J122=4, "Unknown", IF($J122=99, "Surveillance", ROUND(D122*INTRO!$E$51,0))), 0),"Not required") -> 0 | Q122: =IF(INTRO!$E$41="Endemic", IF($J122>1, IF($J122=4, "Unknown", IF($J122=99, "Surveillance", SUM($N122:$P122))), 0),"Not required") -> 0 | R122: =IF(INTRO!$E$43="Endemic", IF($K122>1, IF($K122=4, "Unknown", IF($K122=99, "Surveillance", ROUND(E122*0.75,0))), 0),"Not required") -> 0 | S122: =IF(INTRO!$E$43="Endemic", IF($K122>1, IF($K122=4, "Unknown", IF($K122=99, "Surveillance", F122)), 0),"Not required") -> 0 | T122: =IF(INTRO!$E$43="Endemic", IF($K122>1, IF($K122=4, "Unknown", IF($K122=99, "Surveillance", G122)), 0),"Not required") -> 0 | U122: =IF(INTRO!$E$43="Endemic", IF($K122>1, IF($K122=4, "Unknown", IF($K122=99, "Surveillance", SUM($R122:$T122))), 0),"Not required") -> 0 | V122: 0 | W122: 0 | X122: 0 | Y122: 0 | AF122: No | AH122: 18637 | AI122: Menzkeya
A123: =IF(INTRO!$E$33<>0,INTRO!$E$33, " ") -> Ethiopia | B123: AmharaNorth Shoa | C123: Menzlallo | D123: 44940.15814 | E123: =IF(INTRO!$E$48="","",ROUND($D123*INTRO!$E$48,0)) -> 4764 | F123: =IF(INTRO!$E$49="","",ROUND($D123*INTRO!$E$49,0)) -> 13361 | G123: =IF(INTRO!$E$50="","",ROUND($D123*INTRO!$E$50,0)) -> 25924 | H123: 0 | I123: 0 | J123: 2 | K123: 0 | L123: =IF(INTRO!$E$37="Endemic",IF($H123>0,IF($H123=4,"Unknown",IF($H123=99,"Stopped",$D123)),0),"Not required") -> 0 | M123: =IF(INTRO!$E$39="Endemic", IF($I123>0, IF($I123=4,"Unknown",IF($I123=99,"Stopped",$D123)), 0),"Not required") -> 0 | N123: =IF(INTRO!$E$41="Endemic", IF($J123>1, IF($J123=4, "Unknown", IF($J123=99, "Surveillance", E123)), 0),"Not required") -> 4764 | O123: =IF(INTRO!$E$41="Endemic", IF($J123>1, IF($J123=4, "Unknown", IF($J123=99, "Surveillance", F123)), 0),"Not required") -> 13361 | P123: =IF(INTRO!$E$41="Endemic", IF($J123>1, IF($J123=4, "Unknown", IF($J123=99, "Surveillance", ROUND(D123*INTRO!$E$51,0))), 0),"Not required") -> 0 | Q123: =IF(INTRO!$E$41="Endemic", IF($J123>1, IF($J123=4, "Unknown", IF($J123=99, "Surveillance", SUM($N123:$P123))), 0),"Not required") -> 18125 | R123: =IF(INTRO!$E$43="Endemic", IF($K123>1, IF($K123=4, "Unknown", IF($K123=99, "Surveillance", ROUND(E123*0.75,0))), 0),"Not required") -> 0 | S123: =IF(INTRO!$E$43="Endemic", IF($K123>1, IF($K123=4, "Unknown", IF($K123=99, "Surveillance", F123)), 0),"Not required") -> 0 | T123: =IF(INTRO!$E$43="Endemic", IF($K123>1, IF($K123=4, "Unknown", IF($K123=99, "Surveillance", G123)), 0),"Not required") -> 0 | U123: =IF(INTRO!$E$43="Endemic", IF($K123>1, IF($K123=4, "Unknown", IF($K123=99, "Surveillance", SUM($R123:$T123))), 0),"Not required") -> 0 | V123: 0 | W123: 0 | X123: 1 | Y123: 0 | AE123: Yes | AF123: No | AH123: 18638 | AI123: Menzlallo
A124: =IF(INTRO!$E$33<>0,INTRO!$E$33, " ") -> Ethiopia | B124: AmharaNorth Shoa | C124: Menzmamma | D124: 114346.1042 | E124: =IF(INTRO!$E$48="","",ROUND($D124*INTRO!$E$48,0)) -> 12121 | F124: =IF(INTRO!$E$49="","",ROUND($D124*INTRO!$E$49,0)) -> 33995 | G124: =IF(INTRO!$E$50="","",ROUND($D124*INTRO!$E$50,0)) -> 65961 | H124: 0 | I124: 0 | J124: 2 | K124: 0 | L124: =IF(INTRO!$E$37="Endemic",IF($H124>0,IF($H124=4,"Unknown",IF($H124=99,"Stopped",$D124)),0),"Not required") -> 0 | M124: =IF(INTRO!$E$39="Endemic", IF($I124>0, IF($I124=4,"Unknown",IF($I124=99,"Stopped",$D124)), 0),"Not required") -> 0 | N124: =IF(INTRO!$E$41="Endemic", IF($J124>1, IF($J124=4, "Unknown", IF($J124=99, "Surveillance", E124)), 0),"Not required") -> 12121 | O124: =IF(INTRO!$E$41="Endemic", IF($J124>1, IF($J124=4, "Unknown", IF($J124=99, "Surveillance", F124)), 0),"Not required") -> 33995 | P124: =IF(INTRO!$E$41="Endemic", IF($J124>1, IF($J124=4, "Unknown", IF($J124=99, "Surveillance", ROUND(D124*INTRO!$E$51,0))), 0),"Not required") -> 0 | Q124: =IF(INTRO!$E$41="Endemic", IF($J124>1, IF($J124=4, "Unknown", IF($J124=99, "Surveillance", SUM($N124:$P124))), 0),"Not required") -> 46116 | R124: =IF(INTRO!$E$43="Endemic", IF($K124>1, IF($K124=4, "Unknown", IF($K124=99, "Surveillance", ROUND(E124*0.75,0))), 0),"Not required") -> 0 | S124: =IF(INTRO!$E$43="Endemic", IF($K124>1, IF($K124=4, "Unknown", IF($K124=99, "Surveillance", F124)), 0),"Not required") -> 0 | T124: =IF(INTRO!$E$43="Endemic", IF($K124>1, IF($K124=4, "Unknown", IF($K124=99, "Surveillance", G124)), 0),"Not required") -> 0 | U124: =IF(INTRO!$E$43="Endemic", IF($K124>1, IF($K124=4, "Unknown", IF($K124=99, "Surveillance", SUM($R124:$T124))), 0),"Not required") -> 0 | V124: 0 | W124: 0 | X124: 1 | Y124: 0 | AE124: Yes | AF124: No | AH124: 18639 | AI124: Menzmamma
A125: =IF(INTRO!$E$33<>0,INTRO!$E$33, " ") -> Ethiopia | B125: AmharaNorth Shoa | C125: Merhabete | D125: 164899.6004 | E125: =IF(INTRO!$E$48="","",ROUND($D125*INTRO!$E$48,0)) -> 17480 | F125: =IF(INTRO!$E$49="","",ROUND($D125*INTRO!$E$49,0)) -> 49025 | G125: =IF(INTRO!$E$50="","",ROUND($D125*INTRO!$E$50,0)) -> 95124 | H125: 0 | I125: 0 | J125: 2 | K125: 0 | L125: =IF(INTRO!$E$37="Endemic",IF($H125>0,IF($H125=4,"Unknown",IF($H125=99,"Stopped",$D125)),0),"Not required") -> 0 | M125: =IF(INTRO!$E$39="Endemic", IF($I125>0, IF($I125=4,"Unknown",IF($I125=99,"Stopped",$D125)), 0),"Not required") -> 0 | N125: =IF(INTRO!$E$41="Endemic", IF($J125>1, IF($J125=4, "Unknown", IF($J125=99, "Surveillance", E125)), 0),"Not required") -> 17480 | O125: =IF(INTRO!$E$41="Endemic", IF($J125>1, IF($J125=4, "Unknown", IF($J125=99, "Surveillance", F125)), 0),"Not required") -> 49025 | P125: =IF(INTRO!$E$41="Endemic", IF($J125>1, IF($J125=4, "Unknown", IF($J125=99, "Surveillance", ROUND(D125*INTRO!$E$51,0))), 0),"Not required") -> 0 | Q125: =IF(INTRO!$E$41="Endemic", IF($J125>1, IF($J125=4, "Unknown", IF($J125=99, "Surveillance", SUM($N125:$P125))), 0),"Not required") -> 66505 | R125: =IF(INTRO!$E$43="Endemic", IF($K125>1, IF($K125=4, "Unknown", IF($K125=99, "Surveillance", ROUND(E125*0.75,0))), 0),"Not required") -> 0 | S125: =IF(INTRO!$E$43="Endemic", IF($K125>1, IF($K125=4, "Unknown", IF($K125=99, "Surveillance", F125)), 0),"Not required") -> 0 | T125: =IF(INTRO!$E$43="Endemic", IF($K125>1, IF($K125=4, "Unknown", IF($K125=99, "Surveillance", G125)), 0),"Not required") -> 0 | U125: =IF(INTRO!$E$43="Endemic", IF($K125>1, IF($K125=4, "Unknown", IF($K125=99, "Surveillance", SUM($R125:$T125))), 0),"Not required") -> 0 | V125: 0 | W125: 0 | X125: 1 | Y125: 0 | AE125: Yes | AF125: No | AH125: 18640 | AI125: Merhabete
A126: =IF(INTRO!$E$33<>0,INTRO!$E$33, " ") -> Ethiopia | B126: AmharaNorth Shoa | C126: Midana Worem | D126: 125697.8381 | E126: =IF(INTRO!$E$48="","",ROUND($D126*INTRO!$E$48,0)) -> 13324 | F126: =IF(INTRO!$E$49="","",ROUND($D126*INTRO!$E$49,0)) -> 37370 | G126: =IF(INTRO!$E$50="","",ROUND($D126*INTRO!$E$50,0)) -> 72510 | H126: 0 | I126: 0 | J126: 1 | K126: 0 | L126: =IF(INTRO!$E$37="Endemic",IF($H126>0,IF($H126=4,"Unknown",IF($H126=99,"Stopped",$D126)),0),"Not required") -> 0 | M126: =IF(INTRO!$E$39="Endemic", IF($I126>0, IF($I126=4,"Unknown",IF($I126=99,"Stopped",$D126)), 0),"Not required") -> 0 | N126: =IF(INTRO!$E$41="Endemic", IF($J126>1, IF($J126=4, "Unknown", IF($J126=99, "Surveillance", E126)), 0),"Not required") -> 0 | O126: =IF(INTRO!$E$41="Endemic", IF($J126>1, IF($J126=4, "Unknown", IF($J126=99, "Surveillance", F126)), 0),"Not required") -> 0 | P126: =IF(INTRO!$E$41="Endemic", IF($J126>1, IF($J126=4, "Unknown", IF($J126=99, "Surveillance", ROUND(D126*INTRO!$E$51,0))), 0),"Not required") -> 0 | Q126: =IF(INTRO!$E$41="Endemic", IF($J126>1, IF($J126=4, "Unknown", IF($J126=99, "Surveillance", SUM($N126:$P126))), 0),"Not required") -> 0 | R126: =IF(INTRO!$E$43="Endemic", IF($K126>1, IF($K126=4, "Unknown", IF($K126=99, "Surveillance", ROUND(E126*0.75,0))), 0),"Not required") -> 0 | S126: =IF(INTRO!$E$43="Endemic", IF($K126>1, IF($K126=4, "Unknown", IF($K126=99, "Surveillance", F126)), 0),"Not required") -> 0 | T126: =IF(INTRO!$E$43="Endemic", IF($K126>1, IF($K126=4, "Unknown", IF($K126=99, "Surveillance", G126)), 0),"Not required") -> 0 | U126: =IF(INTRO!$E$43="Endemic", IF($K126>1, IF($K126=4, "Unknown", IF($K126=99, "Surveillance", SUM($R126:$T126))), 0),"Not required") -> 0 | V126: 0 | W126: 0 | X126: 0 | Y126: 0 | AF126: No | AH126: 18642 | AI126: Midana Worem
A127: =IF(INTRO!$E$33<>0,INTRO!$E$33, " ") -> Ethiopia | B127: AmharaNorth Shoa | C127: Minjarshenkora | D127: 185133.9038 | E127: =IF(INTRO!$E$48="","",ROUND($D127*INTRO!$E$48,0)) -> 19624 | F127: =IF(INTRO!$E$49="","",ROUND($D127*INTRO!$E$49,0)) -> 55040 | G127: =IF(INTRO!$E$50="","",ROUND($D127*INTRO!$E$50,0)) -> 106796 | H127: 0 | I127: 0 | J127: 1 | K127: 0 | L127: =IF(INTRO!$E$37="Endemic",IF($H127>0,IF($H127=4,"Unknown",IF($H127=99,"Stopped",$D127)),0),"Not required") -> 0 | M127: =IF(INTRO!$E$39="Endemic", IF($I127>0, IF($I127=4,"Unknown",IF($I127=99,"Stopped",$D127)), 0),"Not required") -> 0 | N127: =IF(INTRO!$E$41="Endemic", IF($J127>1, IF($J127=4, "Unknown", IF($J127=99, "Surveillance", E127)), 0),"Not required") -> 0 | O127: =IF(INTRO!$E$41="Endemic", IF($J127>1, IF($J127=4, "Unknown", IF($J127=99, "Surveillance", F127)), 0),"Not required") -> 0 | P127: =IF(INTRO!$E$41="Endemic", IF($J127>1, IF($J127=4, "Unknown", IF($J127=99, "Surveillance", ROUND(D127*INTRO!$E$51,0))), 0),"Not required") -> 0 | Q127: =IF(INTRO!$E$41="Endemic", IF($J127>1, IF($J127=4, "Unknown", IF($J127=99, "Surveillance", SUM($N127:$P127))), 0),"Not required") -> 0 | R127: =IF(INTRO!$E$43="Endemic", IF($K127>1, IF($K127=4, "Unknown", IF($K127=99, "Surveillance", ROUND(E127*0.75,0))), 0),"Not required") -> 0 | S127: =IF(INTRO!$E$43="Endemic", IF($K127>1, IF($K127=4, "Unknown", IF($K127=99, "Surveillance", F127)), 0),"Not required") -> 0 | T127: =IF(INTRO!$E$43="Endemic", IF($K127>1, IF($K127=4, "Unknown", IF($K127=99, "Surveillance", G127)), 0),"Not required") -> 0 | U127: =IF(INTRO!$E$43="Endemic", IF($K127>1, IF($K127=4, "Unknown", IF($K127=99, "Surveillance", SUM($R127:$T127))), 0),"Not required") -> 0 | V127: 0 | W127: 0 | X127: 0 | Y127: 0 | AF127: No | AH127: 18643 | AI127: Minjarshenkora
A128: =IF(INTRO!$E$33<>0,INTRO!$E$33, " ") -> Ethiopia | B128: AmharaNorth Shoa | C128: Mojanawodera | D128: 91745.84586 | E128: =IF(INTRO!$E$48="","",ROUND($D128*INTRO!$E$48,0)) -> 9725 | F128: =IF(INTRO!$E$49="","",ROUND($D128*INTRO!$E$49,0)) -> 27276 | G128: =IF(INTRO!$E$50="","",ROUND($D128*INTRO!$E$50,0)) -> 52924 | H128: 0 | I128: 0 | J128: 2 | K128: 0 | L128: =IF(INTRO!$E$37="Endemic",IF($H128>0,IF($H128=4,"Unknown",IF($H128=99,"Stopped",$D128)),0),"Not required") -> 0 | M128: =IF(INTRO!$E$39="Endemic", IF($I128>0, IF($I128=4,"Unknown",IF($I128=99,"Stopped",$D128)), 0),"Not required") -> 0 | N128: =IF(INTRO!$E$41="Endemic", IF($J128>1, IF($J128=4, "Unknown", IF($J128=99, "Surveillance", E128)), 0),"Not required") -> 9725 | O128: =IF(INTRO!$E$41="Endemic", IF($J128>1, IF($J128=4, "Unknown", IF($J128=99, "Surveillance", F128)), 0),"Not required") -> 27276 | P128: =IF(INTRO!$E$41="Endemic", IF($J128>1, IF($J128=4, "Unknown", IF($J128=99, "Surveillance", ROUND(D128*INTRO!$E$51,0))), 0),"Not required") -> 0 | Q128: =IF(INTRO!$E$41="Endemic", IF($J128>1, IF($J128=4, "Unknown", IF($J128=99, "Surveillance", SUM($N128:$P128))), 0),"Not required") -> 37001 | R128: =IF(INTRO!$E$43="Endemic", IF($K128>1, IF($K128=4, "Unknown", IF($K128=99, "Surveillance", ROUND(E128*0.75,0))), 0),"Not required") -> 0 | S128: =IF(INTRO!$E$43="Endemic", IF($K128>1, IF($K128=4, "Unknown", IF($K128=99, "Surveillance", F128)), 0),"Not required") -> 0 | T128: =IF(INTRO!$E$43="Endemic", IF($K128>1, IF($K128=4, "Unknown", IF($K128=99, "Surveillance", G128)), 0),"Not required") -> 0 | U128: =IF(INTRO!$E$43="Endemic", IF($K128>1, IF($K128=4, "Unknown", IF($K128=99, "Surveillance", SUM($R128:$T128))), 0),"Not required") -> 0 | V128: 0 | W128: 0 | X128: 1 | Y128: 0 | AE128: Yes | AF128: No | AH128: 18647 | AI128: Mojanawodera
A129: =IF(INTRO!$E$33<>0,INTRO!$E$33, " ") -> Ethiopia | B129: AmharaNorth Shoa | C129: Moretnajiru | D129: 125227.624 | E129: =IF(INTRO!$E$48="","",ROUND($D129*INTRO!$E$48,0)) -> 13274 | F129: =IF(INTRO!$E$49="","",ROUND($D129*INTRO!$E$49,0)) -> 37230 | G129: =IF(INTRO!$E$50="","",ROUND($D129*INTRO!$E$50,0)) -> 72238 | H129: 0 | I129: 0 | J129: 1 | K129: 0 | L129: =IF(INTRO!$E$37="Endemic",IF($H129>0,IF($H129=4,"Unknown",IF($H129=99,"Stopped",$D129)),0),"Not required") -> 0 | M129: =IF(INTRO!$E$39="Endemic", IF($I129>0, IF($I129=4,"Unknown",IF($I129=99,"Stopped",$D129)), 0),"Not required") -> 0 | N129: =IF(INTRO!$E$41="Endemic", IF($J129>1, IF($J129=4, "Unknown", IF($J129=99, "Surveillance", E129)), 0),"Not required") -> 0 | O129: =IF(INTRO!$E$41="Endemic", IF($J129>1, IF($J129=4, "Unknown", IF($J129=99, "Surveillance", F129)), 0),"Not required") -> 0 | P129: =IF(INTRO!$E$41="Endemic", IF($J129>1, IF($J129=4, "Unknown", IF($J129=99, "Surveillance", ROUND(D129*INTRO!$E$51,0))), 0),"Not required") -> 0 | Q129: =IF(INTRO!$E$41="Endemic", IF($J129>1, IF($J129=4, "Unknown", IF($J129=99, "Surveillance", SUM($N129:$P129))), 0),"Not required") -> 0 | R129: =IF(INTRO!$E$43="Endemic", IF($K129>1, IF($K129=4, "Unknown", IF($K129=99, "Surveillance", ROUND(E129*0.75,0))), 0),"Not required") -> 0 | S129: =IF(INTRO!$E$43="Endemic", IF($K129>1, IF($K129=4, "Unknown", IF($K129=99, "Surveillance", F129)), 0),"Not required") -> 0 | T129: =IF(INTRO!$E$43="Endemic", IF($K129>1, IF($K129=4, "Unknown", IF($K129=99, "Surveillance", G129)), 0),"Not required") -> 0 | U129: =IF(INTRO!$E$43="Endemic", IF($K129>1, IF($K129=4, "Unknown", IF($K129=99, "Surveillance", SUM($R129:$T129))), 0),"Not required") -> 0 | V129: 0 | W129: 0 | X129: 0 | Y129: 0 | AF129: No | AH129: 18648 | AI129: Moretnajiru
A130: =IF(INTRO!$E$33<>0,INTRO!$E$33, " ") -> Ethiopia | B130: AmharaNorth Shoa | C130: Shewarobit | D130: 66753.64056 | E130: =IF(INTRO!$E$48="","",ROUND($D130*INTRO!$E$48,0)) -> 7076 | F130: =IF(INTRO!$E$49="","",ROUND($D130*INTRO!$E$49,0)) -> 19846 | G130: =IF(INTRO!$E$50="","",ROUND($D130*INTRO!$E$50,0)) -> 38507 | H130: 0 | I130: 0 | J130: 1 | K130: 3 | L130: =IF(INTRO!$E$37="Endemic",IF($H130>0,IF($H130=4,"Unknown",IF($H130=99,"Stopped",$D130)),0),"Not required") -> 0 | M130: =IF(INTRO!$E$39="Endemic", IF($I130>0, IF($I130=4,"Unknown",IF($I130=99,"Stopped",$D130)), 0),"Not required") -> 0 | N130: =IF(INTRO!$E$41="Endemic", IF($J130>1, IF($J130=4, "Unknown", IF($J130=99, "Surveillance", E130)), 0),"Not required") -> 0 | O130: =IF(INTRO!$E$41="Endemic", IF($J130>1, IF($J130=4, "Unknown", IF($J130=99, "Surveillance", F130)), 0),"Not required") -> 0 | P130: =IF(INTRO!$E$41="Endemic", IF($J130>1, IF($J130=4, "Unknown", IF($J130=99, "Surveillance", ROUND(D130*INTRO!$E$51,0))), 0),"Not required") -> 0 | Q130: =IF(INTRO!$E$41="Endemic", IF($J130>1, IF($J130=4, "Unknown", IF($J130=99, "Surveillance", SUM($N130:$P130))), 0),"Not required") -> 0 | R130: =IF(INTRO!$E$43="Endemic", IF($K130>1, IF($K130=4, "Unknown", IF($K130=99, "Surveillance", ROUND(E130*0.75,0))), 0),"Not required") -> 5307 | S130: =IF(INTRO!$E$43="Endemic", IF($K130>1, IF($K130=4, "Unknown", IF($K130=99, "Surveillance", F130)), 0),"Not required") -> 19846 | T130: =IF(INTRO!$E$43="Endemic", IF($K130>1, IF($K130=4, "Unknown", IF($K130=99, "Surveillance", G130)), 0),"Not required") -> 38507 | U130: =IF(INTRO!$E$43="Endemic", IF($K130>1, IF($K130=4, "Unknown", IF($K130=99, "Surveillance", SUM($R130:$T130))), 0),"Not required") -> 63660 | V130: 0 | W130: 0 | X130: 0 | Y130: 0 | AH130: 18660 | AI130: Shewarobit Town
A131: =IF(INTRO!$E$33<>0,INTRO!$E$33, " ") -> Ethiopia | B131: AmharaNorth Shoa | C131: Siyadebirnawayu | D131: 81456.13796 | E131: =IF(INTRO!$E$48="","",ROUND($D131*INTRO!$E$48,0)) -> 8634 | F131: =IF(INTRO!$E$49="","",ROUND($D131*INTRO!$E$49,0)) -> 24217 | G131: =IF(INTRO!$E$50="","",ROUND($D131*INTRO!$E$50,0)) -> 46989 | H131: 0 | I131: 0 | J131: 1 | K131: 2 | L131: =IF(INTRO!$E$37="Endemic",IF($H131>0,IF($H131=4,"Unknown",IF($H131=99,"Stopped",$D131)),0),"Not required") -> 0 | M131: =IF(INTRO!$E$39="Endemic", IF($I131>0, IF($I131=4,"Unknown",IF($I131=99,"Stopped",$D131)), 0),"Not required") -> 0 | N131: =IF(INTRO!$E$41="Endemic", IF($J131>1, IF($J131=4, "Unknown", IF($J131=99, "Surveillance", E131)), 0),"Not required") -> 0 | O131: =IF(INTRO!$E$41="Endemic", IF($J131>1, IF($J131=4, "Unknown", IF($J131=99, "Surveillance", F131)), 0),"Not required") -> 0 | P131: =IF(INTRO!$E$41="Endemic", IF($J131>1, IF($J131=4, "Unknown", IF($J131=99, "Surveillance", ROUND(D131*INTRO!$E$51,0))), 0),"Not required") -> 0 | Q131: =IF(INTRO!$E$41="Endemic", IF($J131>1, IF($J131=4, "Unknown", IF($J131=99, "Surveillance", SUM($N131:$P131))), 0),"Not required") -> 0 | R131: =IF(INTRO!$E$43="Endemic", IF($K131>1, IF($K131=4, "Unknown", IF($K131=99, "Surveillance", ROUND(E131*0.75,0))), 0),"Not required") -> 6476 | S131: =IF(INTRO!$E$43="Endemic", IF($K131>1, IF($K131=4, "Unknown", IF($K131=99, "Surveillance", F131)), 0),"Not required") -> 24217 | T131: =IF(INTRO!$E$43="Endemic", IF($K131>1, IF($K131=4, "Unknown", IF($K131=99, "Surveillance", G131)), 0),"Not required") -> 46989 | U131: =IF(INTRO!$E$43="Endemic", IF($K131>1, IF($K131=4, "Unknown", IF($K131=99, "Surveillance", SUM($R131:$T131))), 0),"Not required") -> 77682 | V131: 0 | W131: 0 | X131: 0 | Y131: 0 | AH131: 18654 | AI131: Siyadebirnawayu
A132: =IF(INTRO!$E$33<>0,INTRO!$E$33, " ") -> Ethiopia | B132: AmharaNorth Shoa | C132: Tarmaber | D132: 122178.3332 | E132: =IF(INTRO!$E$48="","",ROUND($D132*INTRO!$E$48,0)) -> 12951 | F132: =IF(INTRO!$E$49="","",ROUND($D132*INTRO!$E$49,0)) -> 36324 | G132: =IF(INTRO!$E$50="","",ROUND($D132*INTRO!$E$50,0)) -> 70479 | H132: 0 | I132: 0 | J132: 3 | K132: 1 | L132: =IF(INTRO!$E$37="Endemic",IF($H132>0,IF($H132=4,"Unknown",IF($H132=99,"Stopped",$D132)),0),"Not required") -> 0 | M132: =IF(INTRO!$E$39="Endemic", IF($I132>0, IF($I132=4,"Unknown",IF($I132=99,"Stopped",$D132)), 0),"Not required") -> 0 | N132: =IF(INTRO!$E$41="Endemic", IF($J132>1, IF($J132=4, "Unknown", IF($J132=99, "Surveillance", E132)), 0),"Not required") -> 12951 | O132: =IF(INTRO!$E$41="Endemic", IF($J132>1, IF($J132=4, "Unknown", IF($J132=99, "Surveillance", F132)), 0),"Not required") -> 36324 | P132: =IF(INTRO!$E$41="Endemic", IF($J132>1, IF($J132=4, "Unknown", IF($J132=99, "Surveillance", ROUND(D132*INTRO!$E$51,0))), 0),"Not required") -> 0 | Q132: =IF(INTRO!$E$41="Endemic", IF($J132>1, IF($J132=4, "Unknown", IF($J132=99, "Surveillance", SUM($N132:$P132))), 0),"Not required") -> 49275 | R132: =IF(INTRO!$E$43="Endemic", IF($K132>1, IF($K132=4, "Unknown", IF($K132=99, "Surveillance", ROUND(E132*0.75,0))), 0),"Not required") -> 0 | S132: =IF(INTRO!$E$43="Endemic", IF($K132>1, IF($K132=4, "Unknown", IF($K132=99, "Surveillance", F132)), 0),"Not required") -> 0 | T132: =IF(INTRO!$E$43="Endemic", IF($K132>1, IF($K132=4, "Unknown", IF($K132=99, "Surveillance", G132)), 0),"Not required") -> 0 | U132: =IF(INTRO!$E$43="Endemic", IF($K132>1, IF($K132=4, "Unknown", IF($K132=99, "Surveillance", SUM($R132:$T132))), 0),"Not required") -> 0 | V132: 0 | W132: 0 | X132: 2 | Y132: 0 | AE132: Yes | AF132: No | AH132: 18667 | AI132: Tarmaber
A133: =IF(INTRO!$E$33<>0,INTRO!$E$33, " ") -> Ethiopia | B133: AmharaNorth Wello | C133: Angot | D133: 46935.2856 | E133: =IF(INTRO!$E$48="","",ROUND($D133*INTRO!$E$48,0)) -> 4975 | F133: =IF(INTRO!$E$49="","",ROUND($D133*INTRO!$E$49,0)) -> 13954 | G133: =IF(INTRO!$E$50="","",ROUND($D133*INTRO!$E$50,0)) -> 27075 | H133: 0 | I133: 0 | J133: 3 | K133: 0 | L133: =IF(INTRO!$E$37="Endemic",IF($H133>0,IF($H133=4,"Unknown",IF($H133=99,"Stopped",$D133)),0),"Not required") -> 0 | M133: =IF(INTRO!$E$39="Endemic", IF($I133>0, IF($I133=4,"Unknown",IF($I133=99,"Stopped",$D133)), 0),"Not required") -> 0 | N133: =IF(INTRO!$E$41="Endemic", IF($J133>1, IF($J133=4, "Unknown", IF($J133=99, "Surveillance", E133)), 0),"Not required") -> 4975 | O133: =IF(INTRO!$E$41="Endemic", IF($J133>1, IF($J133=4, "Unknown", IF($J133=99, "Surveillance", F133)), 0),"Not required") -> 13954 | P133: =IF(INTRO!$E$41="Endemic", IF($J133>1, IF($J133=4, "Unknown", IF($J133=99, "Surveillance", ROUND(D133*INTRO!$E$51,0))), 0),"Not required") -> 0 | Q133: =IF(INTRO!$E$41="Endemic", IF($J133>1, IF($J133=4, "Unknown", IF($J133=99, "Surveillance", SUM($N133:$P133))), 0),"Not required") -> 18929 | R133: =IF(INTRO!$E$43="Endemic", IF($K133>1, IF($K133=4, "Unknown", IF($K133=99, "Surveillance", ROUND(E133*0.75,0))), 0),"Not required") -> 0 | S133: =IF(INTRO!$E$43="Endemic", IF($K133>1, IF($K133=4, "Unknown", IF($K133=99, "Surveillance", F133)), 0),"Not required") -> 0 | T133: =IF(INTRO!$E$43="Endemic", IF($K133>1, IF($K133=4, "Unknown", IF($K133=99, "Surveillance", G133)), 0),"Not required") -> 0 | U133: =IF(INTRO!$E$43="Endemic", IF($K133>1, IF($K133=4, "Unknown", IF($K133=99, "Surveillance", SUM($R133:$T133))), 0),"Not required") -> 0 | V133: 0 | W133: 0 | X133: 2 | Y133: 0 | AE133: Yes | AF133: No | AH133: 19349 | AI133: Angot
A134: =IF(INTRO!$E$33<>0,INTRO!$E$33, " ") -> Ethiopia | B134: AmharaNorth Wello | C134: Bugna | D134: 103002.2896 | E134: =IF(INTRO!$E$48="","",ROUND($D134*INTRO!$E$48,0)) -> 10918 | F134: =IF(INTRO!$E$49="","",ROUND($D134*INTRO!$E$49,0)) -> 30623 | G134: =IF(INTRO!$E$50="","",ROUND($D134*INTRO!$E$50,0)) -> 59418 | H134: 0 | I134: 0 | J134: 1 | K134: 1 | L134: =IF(INTRO!$E$37="Endemic",IF($H134>0,IF($H134=4,"Unknown",IF($H134=99,"Stopped",$D134)),0),"Not required") -> 0 | M134: =IF(INTRO!$E$39="Endemic", IF($I134>0, IF($I134=4,"Unknown",IF($I134=99,"Stopped",$D134)), 0),"Not required") -> 0 | N134: =IF(INTRO!$E$41="Endemic", IF($J134>1, IF($J134=4, "Unknown", IF($J134=99, "Surveillance", E134)), 0),"Not required") -> 0 | O134: =IF(INTRO!$E$41="Endemic", IF($J134>1, IF($J134=4, "Unknown", IF($J134=99, "Surveillance", F134)), 0),"Not required") -> 0 | P134: =IF(INTRO!$E$41="Endemic", IF($J134>1, IF($J134=4, "Unknown", IF($J134=99, "Surveillance", ROUND(D134*INTRO!$E$51,0))), 0),"Not required") -> 0 | Q134: =IF(INTRO!$E$41="Endemic", IF($J134>1, IF($J134=4, "Unknown", IF($J134=99, "Surveillance", SUM($N134:$P134))), 0),"Not required") -> 0 | R134: =IF(INTRO!$E$43="Endemic", IF($K134>1, IF($K134=4, "Unknown", IF($K134=99, "Surveillance", ROUND(E134*0.75,0))), 0),"Not required") -> 0 | S134: =IF(INTRO!$E$43="Endemic", IF($K134>1, IF($K134=4, "Unknown", IF($K134=99, "Surveillance", F134)), 0),"Not required") -> 0 | T134: =IF(INTRO!$E$43="Endemic", IF($K134>1, IF($K134=4, "Unknown", IF($K134=99, "Surveillance", G134)), 0),"Not required") -> 0 | U134: =IF(INTRO!$E$43="Endemic", IF($K134>1, IF($K134=4, "Unknown", IF($K134=99, "Surveillance", SUM($R134:$T134))), 0),"Not required") -> 0 | V134: 0 | W134: 0 | X134: 0 | Y134: 0 | AF134: No | AH134: 18558 | AI134: Bugna
A135: =IF(INTRO!$E$33<>0,INTRO!$E$33, " ") -> Ethiopia | B135: AmharaNorth Wello | C135: Dawunt | D135: 87016.93984 | E135: =IF(INTRO!$E$48="","",ROUND($D135*INTRO!$E$48,0)) -> 9224 | F135: =IF(INTRO!$E$49="","",ROUND($D135*INTRO!$E$49,0)) -> 25870 | G135: =IF(INTRO!$E$50="","",ROUND($D135*INTRO!$E$50,0)) -> 50196 | H135: 0 | I135: 0 | J135: 3 | K135: 1 | L135: =IF(INTRO!$E$37="Endemic",IF($H135>0,IF($H135=4,"Unknown",IF($H135=99,"Stopped",$D135)),0),"Not required") -> 0 | M135: =IF(INTRO!$E$39="Endemic", IF($I135>0, IF($I135=4,"Unknown",IF($I135=99,"Stopped",$D135)), 0),"Not required") -> 0 | N135: =IF(INTRO!$E$41="Endemic", IF($J135>1, IF($J135=4, "Unknown", IF($J135=99, "Surveillance", E135)), 0),"Not required") -> 9224 | O135: =IF(INTRO!$E$41="Endemic", IF($J135>1, IF($J135=4, "Unknown", IF($J135=99, "Surveillance", F135)), 0),"Not required") -> 25870 | P135: =IF(INTRO!$E$41="Endemic", IF($J135>1, IF($J135=4, "Unknown", IF($J135=99, "Surveillance", ROUND(D135*INTRO!$E$51,0))), 0),"Not required") -> 0 | Q135: =IF(INTRO!$E$41="Endemic", IF($J135>1, IF($J135=4, "Unknown", IF($J135=99, "Surveillance", SUM($N135:$P135))), 0),"Not required") -> 35094 | R135: =IF(INTRO!$E$43="Endemic", IF($K135>1, IF($K135=4, "Unknown", IF($K135=99, "Surveillance", ROUND(E135*0.75,0))), 0),"Not required") -> 0 | S135: =IF(INTRO!$E$43="Endemic", IF($K135>1, IF($K135=4, "Unknown", IF($K135=99, "Surveillance", F135)), 0),"Not required") -> 0 | T135: =IF(INTRO!$E$43="Endemic", IF($K135>1, IF($K135=4, "Unknown", IF($K135=99, "Surveillance", G135)), 0),"Not required") -> 0 | U135: =IF(INTRO!$E$43="Endemic", IF($K135>1, IF($K135=4, "Unknown", IF($K135=99, "Surveillance", SUM($R135:$T135))), 0),"Not required") -> 0 | V135: 0 | W135: 0 | X135: 2 | Y135: 0 | AE135: Yes | AF135: No | AH135: 18570 | AI135: Dawunt
A136: =IF(INTRO!$E$33<>0,INTRO!$E$33, " ") -> Ethiopia | B136: AmharaNorth Wello | C136: Gazo | D136: 87310.75294 | E136: =IF(INTRO!$E$48="","",ROUND($D136*INTRO!$E$48,0)) -> 9255 | F136: =IF(INTRO!$E$49="","",ROUND($D136*INTRO!$E$49,0)) -> 25957 | G136: =IF(INTRO!$E$50="","",ROUND($D136*INTRO!$E$50,0)) -> 50366 | H136: 0 | I136: 0 | J136: 0 | K136: 0 | L136: =IF(INTRO!$E$37="Endemic",IF($H136>0,IF($H136=4,"Unknown",IF($H136=99,"Stopped",$D136)),0),"Not required") -> 0 | M136: =IF(INTRO!$E$39="Endemic", IF($I136>0, IF($I136=4,"Unknown",IF($I136=99,"Stopped",$D136)), 0),"Not required") -> 0 | N136: =IF(INTRO!$E$41="Endemic", IF($J136>1, IF($J136=4, "Unknown", IF($J136=99, "Surveillance", E136)), 0),"Not required") -> 0 | O136: =IF(INTRO!$E$41="Endemic", IF($J136>1, IF($J136=4, "Unknown", IF($J136=99, "Surveillance", F136)), 0),"Not required") -> 0 | P136: =IF(INTRO!$E$41="Endemic", IF($J136>1, IF($J136=4, "Unknown", IF($J136=99, "Surveillance", ROUND(D136*INTRO!$E$51,0))), 0),"Not required") -> 0 | Q136: =IF(INTRO!$E$41="Endemic", IF($J136>1, IF($J136=4, "Unknown", IF($J136=99, "Surveillance", SUM($N136:$P136))), 0),"Not required") -> 0 | R136: =IF(INTRO!$E$43="Endemic", IF($K136>1, IF($K136=4, "Unknown", IF($K136=99, "Surveillance", ROUND(E136*0.75,0))), 0),"Not required") -> 0 | S136: =IF(INTRO!$E$43="Endemic", IF($K136>1, IF($K136=4, "Unknown", IF($K136=99, "Surveillance", F136)), 0),"Not required") -> 0 | T136: =IF(INTRO!$E$43="Endemic", IF($K136>1, IF($K136=4, "Unknown", IF($K136=99, "Surveillance", G136)), 0),"Not required") -> 0 | U136: =IF(INTRO!$E$43="Endemic", IF($K136>1, IF($K136=4, "Unknown", IF($K136=99, "Surveillance", SUM($R136:$T136))), 0),"Not required") -> 0 | V136: 0 | W136: 0 | X136: 0 | Y136: 0 | AF136: No | AH136: 19350 | AI136: Gazo
A137: =IF(INTRO!$E$33<>0,INTRO!$E$33, " ") -> Ethiopia | B137: AmharaNorth Wello | C137: Gidan | D137: 159870.4109 | E137: =IF(INTRO!$E$48="","",ROUND($D137*INTRO!$E$48,0)) -> 16946 | F137: =IF(INTRO!$E$49="","",ROUND($D137*INTRO!$E$49,0)) -> 47529 | G137: =IF(INTRO!$E$50="","",ROUND($D137*INTRO!$E$50,0)) -> 92222 | H137: 0 | I137: 0 | J137: 1 | K137: 0 | L137: =IF(INTRO!$E$37="Endemic",IF($H137>0,IF($H137=4,"Unknown",IF($H137=99,"Stopped",$D137)),0),"Not required") -> 0 | M137: =IF(INTRO!$E$39="Endemic", IF($I137>0, IF($I137=4,"Unknown",IF($I137=99,"Stopped",$D137)), 0),"Not required") -> 0 | N137: =IF(INTRO!$E$41="Endemic", IF($J137>1, IF($J137=4, "Unknown", IF($J137=99, "Surveillance", E137)), 0),"Not required") -> 0 | O137: =IF(INTRO!$E$41="Endemic", IF($J137>1, IF($J137=4, "Unknown", IF($J137=99, "Surveillance", F137)), 0),"Not required") -> 0 | P137: =IF(INTRO!$E$41="Endemic", IF($J137>1, IF($J137=4, "Unknown", IF($J137=99, "Surveillance", ROUND(D137*INTRO!$E$51,0))), 0),"Not required") -> 0 | Q137: =IF(INTRO!$E$41="Endemic", IF($J137>1, IF($J137=4, "Unknown", IF($J137=99, "Surveillance", SUM($N137:$P137))), 0),"Not required") -> 0 | R137: =IF(INTRO!$E$43="Endemic", IF($K137>1, IF($K137=4, "Unknown", IF($K137=99, "Surveillance", ROUND(E137*0.75,0))), 0),"Not required") -> 0 | S137: =IF(INTRO!$E$43="Endemic", IF($K137>1, IF($K137=4, "Unknown", IF($K137=99, "Surveillance", F137)), 0),"Not required") -> 0 | T137: =IF(INTRO!$E$43="Endemic", IF($K137>1, IF($K137=4, "Unknown", IF($K137=99, "Surveillance", G137)), 0),"Not required") -> 0 | U137: =IF(INTRO!$E$43="Endemic", IF($K137>1, IF($K137=4, "Unknown", IF($K137=99, "Surveillance", SUM($R137:$T137))), 0),"Not required") -> 0 | V137: 0 | W137: 0 | X137: 0 | Y137: 0 | AF137: No | AH137: 18599 | AI137: Gidan
A138: =IF(INTRO!$E$33<>0,INTRO!$E$33, " ") -> Ethiopia | B138: AmharaNorth Wello | C138: Gubalafto | D138: 171532.4994 | E138: =IF(INTRO!$E$48="","",ROUND($D138*INTRO!$E$48,0)) -> 18183 | F138: =IF(INTRO!$E$49="","",ROUND($D138*INTRO!$E$49,0)) -> 50997 | G138: =IF(INTRO!$E$50="","",ROUND($D138*INTRO!$E$50,0)) -> 98950 | H138: 0 | I138: 0 | J138: 3 | K138: 0 | L138: =IF(INTRO!$E$37="Endemic",IF($H138>0,IF($H138=4,"Unknown",IF($H138=99,"Stopped",$D138)),0),"Not required") -> 0 | M138: =IF(INTRO!$E$39="Endemic", IF($I138>0, IF($I138=4,"Unknown",IF($I138=99,"Stopped",$D138)), 0),"Not required") -> 0 | N138: =IF(INTRO!$E$41="Endemic", IF($J138>1, IF($J138=4, "Unknown", IF($J138=99, "Surveillance", E138)), 0),"Not required") -> 18183 | O138: =IF(INTRO!$E$41="Endemic", IF($J138>1, IF($J138=4, "Unknown", IF($J138=99, "Surveillance", F138)), 0),"Not required") -> 50997 | P138: =IF(INTRO!$E$41="Endemic", IF($J138>1, IF($J138=4, "Unknown", IF($J138=99, "Surveillance", ROUND(D138*INTRO!$E$51,0))), 0),"Not required") -> 0 | Q138: =IF(INTRO!$E$41="Endemic", IF($J138>1, IF($J138=4, "Unknown", IF($J138=99, "Surveillance", SUM($N138:$P138))), 0),"Not required") -> 69180 | R138: =IF(INTRO!$E$43="Endemic", IF($K138>1, IF($K138=4, "Unknown", IF($K138=99, "Surveillance", ROUND(E138*0.75,0))), 0),"Not required") -> 0 | S138: =IF(INTRO!$E$43="Endemic", IF($K138>1, IF($K138=4, "Unknown", IF($K138=99, "Surveillance", F138)), 0),"Not required") -> 0 | T138: =IF(INTRO!$E$43="Endemic", IF($K138>1, IF($K138=4, "Unknown", IF($K138=99, "Surveillance", G138)), 0),"Not required") -> 0 | U138: =IF(INTRO!$E$43="Endemic", IF($K138>1, IF($K138=4, "Unknown", IF($K138=99, "Surveillance", SUM($R138:$T138))), 0),"Not required") -> 0 | V138: 0 | W138: 0 | X138: 2 | Y138: 0 | AE138: Yes | AF138: No | AH138: 18608 | AI138: Gubalafto
A139: =IF(INTRO!$E$33<>0,INTRO!$E$33, " ") -> Ethiopia | B139: AmharaNorth Wello | C139: Habru | D139: 257020.7755 | E139: =IF(INTRO!$E$48="","",ROUND($D139*INTRO!$E$48,0)) -> 27244 | F139: =IF(INTRO!$E$49="","",ROUND($D139*INTRO!$E$49,0)) -> 76412 | G139: =IF(INTRO!$E$50="","",ROUND($D139*INTRO!$E$50,0)) -> 148264 | H139: 0 | I139: 0 | J139: 0 | K139: 0 | L139: =IF(INTRO!$E$37="Endemic",IF($H139>0,IF($H139=4,"Unknown",IF($H139=99,"Stopped",$D139)),0),"Not required") -> 0 | M139: =IF(INTRO!$E$39="Endemic", IF($I139>0, IF($I139=4,"Unknown",IF($I139=99,"Stopped",$D139)), 0),"Not required") -> 0 | N139: =IF(INTRO!$E$41="Endemic", IF($J139>1, IF($J139=4, "Unknown", IF($J139=99, "Surveillance", E139)), 0),"Not required") -> 0 | O139: =IF(INTRO!$E$41="Endemic", IF($J139>1, IF($J139=4, "Unknown", IF($J139=99, "Surveillance", F139)), 0),"Not required") -> 0 | P139: =IF(INTRO!$E$41="Endemic", IF($J139>1, IF($J139=4, "Unknown", IF($J139=99, "Surveillance", ROUND(D139*INTRO!$E$51,0))), 0),"Not required") -> 0 | Q139: =IF(INTRO!$E$41="Endemic", IF($J139>1, IF($J139=4, "Unknown", IF($J139=99, "Surveillance", SUM($N139:$P139))), 0),"Not required") -> 0 | R139: =IF(INTRO!$E$43="Endemic", IF($K139>1, IF($K139=4, "Unknown", IF($K139=99, "Surveillance", ROUND(E139*0.75,0))), 0),"Not required") -> 0 | S139: =IF(INTRO!$E$43="Endemic", IF($K139>1, IF($K139=4, "Unknown", IF($K139=99, "Surveillance", F139)), 0),"Not required") -> 0 | T139: =IF(INTRO!$E$43="Endemic", IF($K139>1, IF($K139=4, "Unknown", IF($K139=99, "Surveillance", G139)), 0),"Not required") -> 0 | U139: =IF(INTRO!$E$43="Endemic", IF($K139>1, IF($K139=4, "Unknown", IF($K139=99, "Surveillance", SUM($R139:$T139))), 0),"Not required") -> 0 | V139: 0 | W139: 0 | X139: 0 | Y139: 0 | AF139: No | AH139: 18610 | AI139: Habru
A140: =IF(INTRO!$E$33<>0,INTRO!$E$33, " ") -> Ethiopia | B140: AmharaNorth Wello | C140: Kobo | D140: 264832.5934 | E140: =IF(INTRO!$E$48="","",ROUND($D140*INTRO!$E$48,0)) -> 28073 | F140: =IF(INTRO!$E$49="","",ROUND($D140*INTRO!$E$49,0)) -> 78735 | G140: =IF(INTRO!$E$50="","",ROUND($D140*INTRO!$E$50,0)) -> 152771 | H140: 0 | I140: 0 | J140: 2 | K140: 0 | L140: =IF(INTRO!$E$37="Endemic",IF($H140>0,IF($H140=4,"Unknown",IF($H140=99,"Stopped",$D140)),0),"Not required") -> 0 | M140: =IF(INTRO!$E$39="Endemic", IF($I140>0, IF($I140=4,"Unknown",IF($I140=99,"Stopped",$D140)), 0),"Not required") -> 0 | N140: =IF(INTRO!$E$41="Endemic", IF($J140>1, IF($J140=4, "Unknown", IF($J140=99, "Surveillance", E140)), 0),"Not required") -> 28073 | O140: =IF(INTRO!$E$41="Endemic", IF($J140>1, IF($J140=4, "Unknown", IF($J140=99, "Surveillance", F140)), 0),"Not required") -> 78735 | P140: =IF(INTRO!$E$41="Endemic", IF($J140>1, IF($J140=4, "Unknown", IF($J140=99, "Surveillance", ROUND(D140*INTRO!$E$51,0))), 0),"Not required") -> 0 | Q140: =IF(INTRO!$E$41="Endemic", IF($J140>1, IF($J140=4, "Unknown", IF($J140=99, "Surveillance", SUM($N140:$P140))), 0),"Not required") -> 106808 | R140: =IF(INTRO!$E$43="Endemic", IF($K140>1, IF($K140=4, "Unknown", IF($K140=99, "Surveillance", ROUND(E140*0.75,0))), 0),"Not required") -> 0 | S140: =IF(INTRO!$E$43="Endemic", IF($K140>1, IF($K140=4, "Unknown", IF($K140=99, "Surveillance", F140)), 0),"Not required") -> 0 | T140: =IF(INTRO!$E$43="Endemic", IF($K140>1, IF($K140=4, "Unknown", IF($K140=99, "Surveillance", G140)), 0),"Not required") -> 0 | U140: =IF(INTRO!$E$43="Endemic", IF($K140>1, IF($K140=4, "Unknown", IF($K140=99, "Surveillance", SUM($R140:$T140))), 0),"Not required") -> 0 | V140: 0 | W140: 0 | X140: 1 | Y140: 0 | AE140: Yes | AF140: No | AH140: 19351 | AI140: Raya Kobo
A141: =IF(INTRO!$E$33<>0,INTRO!$E$33, " ") -> Ethiopia | B141: AmharaNorth Wello | C141: Kobo Town | D141: 61530.78206 | E141: =IF(INTRO!$E$48="","",ROUND($D141*INTRO!$E$48,0)) -> 6522 | F141: =IF(INTRO!$E$49="","",ROUND($D141*INTRO!$E$49,0)) -> 18293 | G141: =IF(INTRO!$E$50="","",ROUND($D141*INTRO!$E$50,0)) -> 35494 | H141: 0 | I141: 0 | J141: 1 | K141: 1 | L141: =IF(INTRO!$E$37="Endemic",IF($H141>0,IF($H141=4,"Unknown",IF($H141=99,"Stopped",$D141)),0),"Not required") -> 0 | M141: =IF(INTRO!$E$39="Endemic", IF($I141>0, IF($I141=4,"Unknown",IF($I141=99,"Stopped",$D141)), 0),"Not required") -> 0 | N141: =IF(INTRO!$E$41="Endemic", IF($J141>1, IF($J141=4, "Unknown", IF($J141=99, "Surveillance", E141)), 0),"Not required") -> 0 | O141: =IF(INTRO!$E$41="Endemic", IF($J141>1, IF($J141=4, "Unknown", IF($J141=99, "Surveillance", F141)), 0),"Not required") -> 0 | P141: =IF(INTRO!$E$41="Endemic", IF($J141>1, IF($J141=4, "Unknown", IF($J141=99, "Surveillance", ROUND(D141*INTRO!$E$51,0))), 0),"Not required") -> 0 | Q141: =IF(INTRO!$E$41="Endemic", IF($J141>1, IF($J141=4, "Unknown", IF($J141=99, "Surveillance", SUM($N141:$P141))), 0),"Not required") -> 0 | R141: =IF(INTRO!$E$43="Endemic", IF($K141>1, IF($K141=4, "Unknown", IF($K141=99, "Surveillance", ROUND(E141*0.75,0))), 0),"Not required") -> 0 | S141: =IF(INTRO!$E$43="Endemic", IF($K141>1, IF($K141=4, "Unknown", IF($K141=99, "Surveillance", F141)), 0),"Not required") -> 0 | T141: =IF(INTRO!$E$43="Endemic", IF($K141>1, IF($K141=4, "Unknown", IF($K141=99, "Surveillance", G141)), 0),"Not required") -> 0 | U141: =IF(INTRO!$E$43="Endemic", IF($K141>1, IF($K141=4, "Unknown", IF($K141=99, "Surveillance", SUM($R141:$T141))), 0),"Not required") -> 0 | V141: 0 | W141: 0 | X141: 0 | Y141: 0 | AF141: No | AH141: 19452 | AI141: Kobo Town
A142: =IF(INTRO!$E$33<>0,INTRO!$E$33, " ") -> Ethiopia | B142: AmharaNorth Wello | C142: Lalibella Town | D142: 46009.38906 | E142: =IF(INTRO!$E$48="","",ROUND($D142*INTRO!$E$48,0)) -> 4877 | F142: =IF(INTRO!$E$49="","",ROUND($D142*INTRO!$E$49,0)) -> 13679 | G142: =IF(INTRO!$E$50="","",ROUND($D142*INTRO!$E$50,0)) -> 26541 | H142: 0 | I142: 0 | J142: 3 | K142: 1 | L142: =IF(INTRO!$E$37="Endemic",IF($H142>0,IF($H142=4,"Unknown",IF($H142=99,"Stopped",$D142)),0),"Not required") -> 0 | M142: =IF(INTRO!$E$39="Endemic", IF($I142>0, IF($I142=4,"Unknown",IF($I142=99,"Stopped",$D142)), 0),"Not required") -> 0 | N142: =IF(INTRO!$E$41="Endemic", IF($J142>1, IF($J142=4, "Unknown", IF($J142=99, "Surveillance", E142)), 0),"Not required") -> 4877 | O142: =IF(INTRO!$E$41="Endemic", IF($J142>1, IF($J142=4, "Unknown", IF($J142=99, "Surveillance", F142)), 0),"Not required") -> 13679 | P142: =IF(INTRO!$E$41="Endemic", IF($J142>1, IF($J142=4, "Unknown", IF($J142=99, "Surveillance", ROUND(D142*INTRO!$E$51,0))), 0),"Not required") -> 0 | Q142: =IF(INTRO!$E$41="Endemic", IF($J142>1, IF($J142=4, "Unknown", IF($J142=99, "Surveillance", SUM($N142:$P142))), 0),"Not required") -> 18556 | R142: =IF(INTRO!$E$43="Endemic", IF($K142>1, IF($K142=4, "Unknown", IF($K142=99, "Surveillance", ROUND(E142*0.75,0))), 0),"Not required") -> 0 | S142: =IF(INTRO!$E$43="Endemic", IF($K142>1, IF($K142=4, "Unknown", IF($K142=99, "Surveillance", F142)), 0),"Not required") -> 0 | T142: =IF(INTRO!$E$43="Endemic", IF($K142>1, IF($K142=4, "Unknown", IF($K142=99, "Surveillance", G142)), 0),"Not required") -> 0 | U142: =IF(INTRO!$E$43="Endemic", IF($K142>1, IF($K142=4, "Unknown", IF($K142=99, "Surveillance", SUM($R142:$T142))), 0),"Not required") -> 0 | V142: 0 | W142: 0 | X142: 2 | Y142: 0 | AE142: Yes | AF142: No | AH142: 18625 | AI142: Lalibella Town
A143: =IF(INTRO!$E$33<>0,INTRO!$E$33, " ") -> Ethiopia | B143: AmharaNorth Wello | C143: Lasta | D143: 154258.8077 | E143: =IF(INTRO!$E$48="","",ROUND($D143*INTRO!$E$48,0)) -> 16352 | F143: =IF(INTRO!$E$49="","",ROUND($D143*INTRO!$E$49,0)) -> 45861 | G143: =IF(INTRO!$E$50="","",ROUND($D143*INTRO!$E$50,0)) -> 88985 | H143: 0 | I143: 0 | J143: 3 | K143: 0 | L143: =IF(INTRO!$E$37="Endemic",IF($H143>0,IF($H143=4,"Unknown",IF($H143=99,"Stopped",$D143)),0),"Not required") -> 0 | M143: =IF(INTRO!$E$39="Endemic", IF($I143>0, IF($I143=4,"Unknown",IF($I143=99,"Stopped",$D143)), 0),"Not required") -> 0 | N143: =IF(INTRO!$E$41="Endemic", IF($J143>1, IF($J143=4, "Unknown", IF($J143=99, "Surveillance", E143)), 0),"Not required") -> 16352 | O143: =IF(INTRO!$E$41="Endemic", IF($J143>1, IF($J143=4, "Unknown", IF($J143=99, "Surveillance", F143)), 0),"Not required") -> 45861 | P143: =IF(INTRO!$E$41="Endemic", IF($J143>1, IF($J143=4, "Unknown", IF($J143=99, "Surveillance", ROUND(D143*INTRO!$E$51,0))), 0),"Not required") -> 0 | Q143: =IF(INTRO!$E$41="Endemic", IF($J143>1, IF($J143=4, "Unknown", IF($J143=99, "Surveillance", SUM($N143:$P143))), 0),"Not required") -> 62213 | R143: =IF(INTRO!$E$43="Endemic", IF($K143>1, IF($K143=4, "Unknown", IF($K143=99, "Surveillance", ROUND(E143*0.75,0))), 0),"Not required") -> 0 | S143: =IF(INTRO!$E$43="Endemic", IF($K143>1, IF($K143=4, "Unknown", IF($K143=99, "Surveillance", F143)), 0),"Not required") -> 0 | T143: =IF(INTRO!$E$43="Endemic", IF($K143>1, IF($K143=4, "Unknown", IF($K143=99, "Surveillance", G143)), 0),"Not required") -> 0 | U143: =IF(INTRO!$E$43="Endemic", IF($K143>1, IF($K143=4, "Unknown", IF($K143=99, "Surveillance", SUM($R143:$T143))), 0),"Not required") -> 0 | V143: 0 | W143: 0 | X143: 2 | Y143: 0 | AE143: Yes | AF143: No | AH143: 19453 | AI143: Lasta
A144: =IF(INTRO!$E$33<>0,INTRO!$E$33, " ") -> Ethiopia | B144: AmharaNorth Wello | C144: Meket | D144: 229208.007 | E144: =IF(INTRO!$E$48="","",ROUND($D144*INTRO!$E$48,0)) -> 24296 | F144: =IF(INTRO!$E$49="","",ROUND($D144*INTRO!$E$49,0)) -> 68144 | G144: =IF(INTRO!$E$50="","",ROUND($D144*INTRO!$E$50,0)) -> 132220 | H144: 0 | I144: 0 | J144: 1 | K144: 0 | L144: =IF(INTRO!$E$37="Endemic",IF($H144>0,IF($H144=4,"Unknown",IF($H144=99,"Stopped",$D144)),0),"Not required") -> 0 | M144: =IF(INTRO!$E$39="Endemic", IF($I144>0, IF($I144=4,"Unknown",IF($I144=99,"Stopped",$D144)), 0),"Not required") -> 0 | N144: =IF(INTRO!$E$41="Endemic", IF($J144>1, IF($J144=4, "Unknown", IF($J144=99, "Surveillance", E144)), 0),"Not required") -> 0 | O144: =IF(INTRO!$E$41="Endemic", IF($J144>1, IF($J144=4, "Unknown", IF($J144=99, "Surveillance", F144)), 0),"Not required") -> 0 | P144: =IF(INTRO!$E$41="Endemic", IF($J144>1, IF($J144=4, "Unknown", IF($J144=99, "Surveillance", ROUND(D144*INTRO!$E$51,0))), 0),"Not required") -> 0 | Q144: =IF(INTRO!$E$41="Endemic", IF($J144>1, IF($J144=4, "Unknown", IF($J144=99, "Surveillance", SUM($N144:$P144))), 0),"Not required") -> 0 | R144: =IF(INTRO!$E$43="Endemic", IF($K144>1, IF($K144=4, "Unknown", IF($K144=99, "Surveillance", ROUND(E144*0.75,0))), 0),"Not required") -> 0 | S144: =IF(INTRO!$E$43="Endemic", IF($K144>1, IF($K144=4, "Unknown", IF($K144=99, "Surveillance", F144)), 0),"Not required") -> 0 | T144: =IF(INTRO!$E$43="Endemic", IF($K144>1, IF($K144=4, "Unknown", IF($K144=99, "Surveillance", G144)), 0),"Not required") -> 0 | U144: =IF(INTRO!$E$43="Endemic", IF($K144>1, IF($K144=4, "Unknown", IF($K144=99, "Surveillance", SUM($R144:$T144))), 0),"Not required") -> 0 | V144: 0 | W144: 0 | X144: 0 | Y144: 0 | AF144: No | AH144: 19454 | AI144: Meket
A145: =IF(INTRO!$E$33<>0,INTRO!$E$33, " ") -> Ethiopia | B145: AmharaNorth Wello | C145: Wadlla | D145: 146037.4917 | E145: =IF(INTRO!$E$48="","",ROUND($D145*INTRO!$E$48,0)) -> 15480 | F145: =IF(INTRO!$E$49="","",ROUND($D145*INTRO!$E$49,0)) -> 43417 | G145: =IF(INTRO!$E$50="","",ROUND($D145*INTRO!$E$50,0)) -> 84243 | H145: 0 | I145: 0 | J145: 1 | K145: 0 | L145: =IF(INTRO!$E$37="Endemic",IF($H145>0,IF($H145=4,"Unknown",IF($H145=99,"Stopped",$D145)),0),"Not required") -> 0 | M145: =IF(INTRO!$E$39="Endemic", IF($I145>0, IF($I145=4,"Unknown",IF($I145=99,"Stopped",$D145)), 0),"Not required") -> 0 | N145: =IF(INTRO!$E$41="Endemic", IF($J145>1, IF($J145=4, "Unknown", IF($J145=99, "Surveillance", E145)), 0),"Not required") -> 0 | O145: =IF(INTRO!$E$41="Endemic", IF($J145>1, IF($J145=4, "Unknown", IF($J145=99, "Surveillance", F145)), 0),"Not required") -> 0 | P145: =IF(INTRO!$E$41="Endemic", IF($J145>1, IF($J145=4, "Unknown", IF($J145=99, "Surveillance", ROUND(D145*INTRO!$E$51,0))), 0),"Not required") -> 0 | Q145: =IF(INTRO!$E$41="Endemic", IF($J145>1, IF($J145=4, "Unknown", IF($J145=99, "Surveillance", SUM($N145:$P145))), 0),"Not required") -> 0 | R145: =IF(INTRO!$E$43="Endemic", IF($K145>1, IF($K145=4, "Unknown", IF($K145=99, "Surveillance", ROUND(E145*0.75,0))), 0),"Not required") -> 0 | S145: =IF(INTRO!$E$43="Endemic", IF($K145>1, IF($K145=4, "Unknown", IF($K145=99, "Surveillance", F145)), 0),"Not required") -> 0 | T145: =IF(INTRO!$E$43="Endemic", IF($K145>1, IF($K145=4, "Unknown", IF($K145=99, "Surveillance", G145)), 0),"Not required") -> 0 | U145: =IF(INTRO!$E$43="Endemic", IF($K145>1, IF($K145=4, "Unknown", IF($K145=99, "Surveillance", SUM($R145:$T145))), 0),"Not required") -> 0 | V145: 0 | W145: 0 | X145: 0 | Y145: 0 | AF145: No | AH145: 18672 | AI145: Wadlla
A146: =IF(INTRO!$E$33<>0,INTRO!$E$33, " ") -> Ethiopia | B146: AmharaNorth Wello | C146: Woldia | D146: 127249.6216 | E146: =IF(INTRO!$E$48="","",ROUND($D146*INTRO!$E$48,0)) -> 13489 | F146: =IF(INTRO!$E$49="","",ROUND($D146*INTRO!$E$49,0)) -> 37831 | G146: =IF(INTRO!$E$50="","",ROUND($D146*INTRO!$E$50,0)) -> 73405 | H146: 0 | I146: 0 | J146: 1 | K146: 1 | L146: =IF(INTRO!$E$37="Endemic",IF($H146>0,IF($H146=4,"Unknown",IF($H146=99,"Stopped",$D146)),0),"Not required") -> 0 | M146: =IF(INTRO!$E$39="Endemic", IF($I146>0, IF($I146=4,"Unknown",IF($I146=99,"Stopped",$D146)), 0),"Not required") -> 0 | N146: =IF(INTRO!$E$41="Endemic", IF($J146>1, IF($J146=4, "Unknown", IF($J146=99, "Surveillance", E146)), 0),"Not required") -> 0 | O146: =IF(INTRO!$E$41="Endemic", IF($J146>1, IF($J146=4, "Unknown", IF($J146=99, "Surveillance", F146)), 0),"Not required") -> 0 | P146: =IF(INTRO!$E$41="Endemic", IF($J146>1, IF($J146=4, "Unknown", IF($J146=99, "Surveillance", ROUND(D146*INTRO!$E$51,0))), 0),"Not required") -> 0 | Q146: =IF(INTRO!$E$41="Endemic", IF($J146>1, IF($J146=4, "Unknown", IF($J146=99, "Surveillance", SUM($N146:$P146))), 0),"Not required") -> 0 | R146: =IF(INTRO!$E$43="Endemic", IF($K146>1, IF($K146=4, "Unknown", IF($K146=99, "Surveillance", ROUND(E146*0.75,0))), 0),"Not required") -> 0 | S146: =IF(INTRO!$E$43="Endemic", IF($K146>1, IF($K146=4, "Unknown", IF($K146=99, "Surveillance", F146)), 0),"Not required") -> 0 | T146: =IF(INTRO!$E$43="Endemic", IF($K146>1, IF($K146=4, "Unknown", IF($K146=99, "Surveillance", G146)), 0),"Not required") -> 0 | U146: =IF(INTRO!$E$43="Endemic", IF($K146>1, IF($K146=4, "Unknown", IF($K146=99, "Surveillance", SUM($R146:$T146))), 0),"Not required") -> 0 | V146: 0 | W146: 0 | X146: 0 | Y146: 0 | AF146: No | AH146: 18674 | AI146: Woldia Town
A147: =IF(INTRO!$E$33<>0,INTRO!$E$33, " ") -> Ethiopia | B147: AmharaOromiya | C147: Artuma Fursi | D147: 108666.886 | E147: =IF(INTRO!$E$48="","",ROUND($D147*INTRO!$E$48,0)) -> 11519 | F147: =IF(INTRO!$E$49="","",ROUND($D147*INTRO!$E$49,0)) -> 32307 | G147: =IF(INTRO!$E$50="","",ROUND($D147*INTRO!$E$50,0)) -> 62685 | H147: 0 | I147: 0 | J147: 2 | K147: 3 | L147: =IF(INTRO!$E$37="Endemic",IF($H147>0,IF($H147=4,"Unknown",IF($H147=99,"Stopped",$D147)),0),"Not required") -> 0 | M147: =IF(INTRO!$E$39="Endemic", IF($I147>0, IF($I147=4,"Unknown",IF($I147=99,"Stopped",$D147)), 0),"Not required") -> 0 | N147: =IF(INTRO!$E$41="Endemic", IF($J147>1, IF($J147=4, "Unknown", IF($J147=99, "Surveillance", E147)), 0),"Not required") -> 11519 | O147: =IF(INTRO!$E$41="Endemic", IF($J147>1, IF($J147=4, "Unknown", IF($J147=99, "Surveillance", F147)), 0),"Not required") -> 32307 | P147: =IF(INTRO!$E$41="Endemic", IF($J147>1, IF($J147=4, "Unknown", IF($J147=99, "Surveillance", ROUND(D147*INTRO!$E$51,0))), 0),"Not required") -> 0 | Q147: =IF(INTRO!$E$41="Endemic", IF($J147>1, IF($J147=4, "Unknown", IF($J147=99, "Surveillance", SUM($N147:$P147))), 0),"Not required") -> 43826 | R147: =IF(INTRO!$E$43="Endemic", IF($K147>1, IF($K147=4, "Unknown", IF($K147=99, "Surveillance", ROUND(E147*0.75,0))), 0),"Not required") -> 8639 | S147: =IF(INTRO!$E$43="Endemic", IF($K147>1, IF($K147=4, "Unknown", IF($K147=99, "Surveillance", F147)), 0),"Not required") -> 32307 | T147: =IF(INTRO!$E$43="Endemic", IF($K147>1, IF($K147=4, "Unknown", IF($K147=99, "Surveillance", G147)), 0),"Not required") -> 62685 | U147: =IF(INTRO!$E$43="Endemic", IF($K147>1, IF($K147=4, "Unknown", IF($K147=99, "Surveillance", SUM($R147:$T147))), 0),"Not required") -> 103631 | V147: 0 | W147: 0 | X147: 1 | Y147: 0 | AE147: Yes | AH147: 18544 | AI147: Artuma Fursi
A148: =IF(INTRO!$E$33<>0,INTRO!$E$33, " ") -> Ethiopia | B148: AmharaOromiya | C148: Bati | D148: 104146.8164 | E148: =IF(INTRO!$E$48="","",ROUND($D148*INTRO!$E$48,0)) -> 11040 | F148: =IF(INTRO!$E$49="","",ROUND($D148*INTRO!$E$49,0)) -> 30963 | G148: =IF(INTRO!$E$50="","",ROUND($D148*INTRO!$E$50,0)) -> 60078 | H148: 0 | I148: 0 | J148: 1 | K148: 2 | L148: =IF(INTRO!$E$37="Endemic",IF($H148>0,IF($H148=4,"Unknown",IF($H148=99,"Stopped",$D148)),0),"Not required") -> 0 | M148: =IF(INTRO!$E$39="Endemic", IF($I148>0, IF($I148=4,"Unknown",IF($I148=99,"Stopped",$D148)), 0),"Not required") -> 0 | N148: =IF(INTRO!$E$41="Endemic", IF($J148>1, IF($J148=4, "Unknown", IF($J148=99, "Surveillance", E148)), 0),"Not required") -> 0 | O148: =IF(INTRO!$E$41="Endemic", IF($J148>1, IF($J148=4, "Unknown", IF($J148=99, "Surveillance", F148)), 0),"Not required") -> 0 | P148: =IF(INTRO!$E$41="Endemic", IF($J148>1, IF($J148=4, "Unknown", IF($J148=99, "Surveillance", ROUND(D148*INTRO!$E$51,0))), 0),"Not required") -> 0 | Q148: =IF(INTRO!$E$41="Endemic", IF($J148>1, IF($J148=4, "Unknown", IF($J148=99, "Surveillance", SUM($N148:$P148))), 0),"Not required") -> 0 | R148: =IF(INTRO!$E$43="Endemic", IF($K148>1, IF($K148=4, "Unknown", IF($K148=99, "Surveillance", ROUND(E148*0.75,0))), 0),"Not required") -> 8280 | S148: =IF(INTRO!$E$43="Endemic", IF($K148>1, IF($K148=4, "Unknown", IF($K148=99, "Surveillance", F148)), 0),"Not required") -> 30963 | T148: =IF(INTRO!$E$43="Endemic", IF($K148>1, IF($K148=4, "Unknown", IF($K148=99, "Surveillance", G148)), 0),"Not required") -> 60078 | U148: =IF(INTRO!$E$43="Endemic", IF($K148>1, IF($K148=4, "Unknown", IF($K148=99, "Surveillance", SUM($R148:$T148))), 0),"Not required") -> 99321 | V148: 0 | W148: 0 | X148: 0 | Y148: 0 | AH148: 18552 | AI148: Bati
A149: =IF(INTRO!$E$33<>0,INTRO!$E$33, " ") -> Ethiopia | B149: AmharaOromiya | C149: Bati Town | D149: 44772.45716 | E149: =IF(INTRO!$E$48="","",ROUND($D149*INTRO!$E$48,0)) -> 4746 | F149: =IF(INTRO!$E$49="","",ROUND($D149*INTRO!$E$49,0)) -> 13311 | G149: =IF(INTRO!$E$50="","",ROUND($D149*INTRO!$E$50,0)) -> 25827 | H149: 0 | I149: 0 | J149: 1 | K149: 2 | L149: =IF(INTRO!$E$37="Endemic",IF($H149>0,IF($H149=4,"Unknown",IF($H149=99,"Stopped",$D149)),0),"Not required") -> 0 | M149: =IF(INTRO!$E$39="Endemic", IF($I149>0, IF($I149=4,"Unknown",IF($I149=99,"Stopped",$D149)), 0),"Not required") -> 0 | N149: =IF(INTRO!$E$41="Endemic", IF($J149>1, IF($J149=4, "Unknown", IF($J149=99, "Surveillance", E149)), 0),"Not required") -> 0 | O149: =IF(INTRO!$E$41="Endemic", IF($J149>1, IF($J149=4, "Unknown", IF($J149=99, "Surveillance", F149)), 0),"Not required") -> 0 | P149: =IF(INTRO!$E$41="Endemic", IF($J149>1, IF($J149=4, "Unknown", IF($J149=99, "Surveillance", ROUND(D149*INTRO!$E$51,0))), 0),"Not required") -> 0 | Q149: =IF(INTRO!$E$41="Endemic", IF($J149>1, IF($J149=4, "Unknown", IF($J149=99, "Surveillance", SUM($N149:$P149))), 0),"Not required") -> 0 | R149: =IF(INTRO!$E$43="Endemic", IF($K149>1, IF($K149=4, "Unknown", IF($K149=99, "Surveillance", ROUND(E149*0.75,0))), 0),"Not required") -> 3560 | S149: =IF(INTRO!$E$43="Endemic", IF($K149>1, IF($K149=4, "Unknown", IF($K149=99, "Surveillance", F149)), 0),"Not required") -> 13311 | T149: =IF(INTRO!$E$43="Endemic", IF($K149>1, IF($K149=4, "Unknown", IF($K149=99, "Surveillance", G149)), 0),"Not required") -> 25827 | U149: =IF(INTRO!$E$43="Endemic", IF($K149>1, IF($K149=4, "Unknown", IF($K149=99, "Surveillance", SUM($R149:$T149))), 0),"Not required") -> 42698 | V149: 0 | W149: 0 | X149: 0 | Y149: 0 | AH149: 18553 | AI149: Bati Town
A150: =IF(INTRO!$E$33<>0,INTRO!$E$33, " ") -> Ethiopia | B150: AmharaOromiya | C150: Dawa chefa | D150: 174246.438 | E150: =IF(INTRO!$E$48="","",ROUND($D150*INTRO!$E$48,0)) -> 18470 | F150: =IF(INTRO!$E$49="","",ROUND($D150*INTRO!$E$49,0)) -> 51803 | G150: =IF(INTRO!$E$50="","",ROUND($D150*INTRO!$E$50,0)) -> 100515 | H150: 0 | I150: 0 | J150: 3 | K150: 3 | L150: =IF(INTRO!$E$37="Endemic",IF($H150>0,IF($H150=4,"Unknown",IF($H150=99,"Stopped",$D150)),0),"Not required") -> 0 | M150: =IF(INTRO!$E$39="Endemic", IF($I150>0, IF($I150=4,"Unknown",IF($I150=99,"Stopped",$D150)), 0),"Not required") -> 0 | N150: =IF(INTRO!$E$41="Endemic", IF($J150>1, IF($J150=4, "Unknown", IF($J150=99, "Surveillance", E150)), 0),"Not required") -> 18470 | O150: =IF(INTRO!$E$41="Endemic", IF($J150>1, IF($J150=4, "Unknown", IF($J150=99, "Surveillance", F150)), 0),"Not required") -> 51803 | P150: =IF(INTRO!$E$41="Endemic", IF($J150>1, IF($J150=4, "Unknown", IF($J150=99, "Surveillance", ROUND(D150*INTRO!$E$51,0))), 0),"Not required") -> 0 | Q150: =IF(INTRO!$E$41="Endemic", IF($J150>1, IF($J150=4, "Unknown", IF($J150=99, "Surveillance", SUM($N150:$P150))), 0),"Not required") -> 70273 | R150: =IF(INTRO!$E$43="Endemic", IF($K150>1, IF($K150=4, "Unknown", IF($K150=99, "Surveillance", ROUND(E150*0.75,0))), 0),"Not required") -> 13853 | S150: =IF(INTRO!$E$43="Endemic", IF($K150>1, IF($K150=4, "Unknown", IF($K150=99, "Surveillance", F150)), 0),"Not required") -> 51803 | T150: =IF(INTRO!$E$43="Endemic", IF($K150>1, IF($K150=4, "Unknown", IF($K150=99, "Surveillance", G150)), 0),"Not required") -> 100515 | U150: =IF(INTRO!$E$43="Endemic", IF($K150>1, IF($K150=4, "Unknown", IF($K150=99, "Surveillance", SUM($R150:$T150))), 0),"Not required") -> 166171 | V150: 0 | W150: 0 | X150: 2 | Y150: 0 | AE150: Yes | AH150: 18585 | AI150: Dawa chefa
A151: =IF(INTRO!$E$33<>0,INTRO!$E$33, " ") -> Ethiopia | B151: AmharaOromiya | C151: Dawe Harwa | D151: 56130.44373 | E151: =IF(INTRO!$E$48="","",ROUND($D151*INTRO!$E$48,0)) -> 5950 | F151: =IF(INTRO!$E$49="","",ROUND($D151*INTRO!$E$49,0)) -> 16688 | G151: =IF(INTRO!$E$50="","",ROUND($D151*INTRO!$E$50,0)) -> 32379 | H151: 0 | I151: 0 | J151: 1 | K151: 3 | L151: =IF(INTRO!$E$37="Endemic",IF($H151>0,IF($H151=4,"Unknown",IF($H151=99,"Stopped",$D151)),0),"Not required") -> 0 | M151: =IF(INTRO!$E$39="Endemic", IF($I151>0, IF($I151=4,"Unknown",IF($I151=99,"Stopped",$D151)), 0),"Not required") -> 0 | N151: =IF(INTRO!$E$41="Endemic", IF($J151>1, IF($J151=4, "Unknown", IF($J151=99, "Surveillance", E151)), 0),"Not required") -> 0 | O151: =IF(INTRO!$E$41="Endemic", IF($J151>1, IF($J151=4, "Unknown", IF($J151=99, "Surveillance", F151)), 0),"Not required") -> 0 | P151: =IF(INTRO!$E$41="Endemic", IF($J151>1, IF($J151=4, "Unknown", IF($J151=99, "Surveillance", ROUND(D151*INTRO!$E$51,0))), 0),"Not required") -> 0 | Q151: =IF(INTRO!$E$41="Endemic", IF($J151>1, IF($J151=4, "Unknown", IF($J151=99, "Surveillance", SUM($N151:$P151))), 0),"Not required") -> 0 | R151: =IF(INTRO!$E$43="Endemic", IF($K151>1, IF($K151=4, "Unknown", IF($K151=99, "Surveillance", ROUND(E151*0.75,0))), 0),"Not required") -> 4463 | S151: =IF(INTRO!$E$43="Endemic", IF($K151>1, IF($K151=4, "Unknown", IF($K151=99, "Surveillance", F151)), 0),"Not required") -> 16688 | T151: =IF(INTRO!$E$43="Endemic", IF($K151>1, IF($K151=4, "Unknown", IF($K151=99, "Surveillance", G151)), 0),"Not required") -> 32379 | U151: =IF(INTRO!$E$43="Endemic", IF($K151>1, IF($K151=4, "Unknown", IF($K151=99, "Surveillance", SUM($R151:$T151))), 0),"Not required") -> 53530 | V151: 0 | W151: 0 | X151: 0 | Y151: 0 | AH151: 18569 | AI151: Dawe Harwa
A152: =IF(INTRO!$E$33<>0,INTRO!$E$33, " ") -> Ethiopia | B152: AmharaOromiya | C152: Jille Timuga | D152: 102738.9785 | E152: =IF(INTRO!$E$48="","",ROUND($D152*INTRO!$E$48,0)) -> 10890 | F152: =IF(INTRO!$E$49="","",ROUND($D152*INTRO!$E$49,0)) -> 30544 | G152: =IF(INTRO!$E$50="","",ROUND($D152*INTRO!$E$50,0)) -> 59266 | H152: 0 | I152: 0 | J152: 1 | K152: 3 | L152: =IF(INTRO!$E$37="Endemic",IF($H152>0,IF($H152=4,"Unknown",IF($H152=99,"Stopped",$D152)),0),"Not required") -> 0 | M152: =IF(INTRO!$E$39="Endemic", IF($I152>0, IF($I152=4,"Unknown",IF($I152=99,"Stopped",$D152)), 0),"Not required") -> 0 | N152: =IF(INTRO!$E$41="Endemic", IF($J152>1, IF($J152=4, "Unknown", IF($J152=99, "Surveillance", E152)), 0),"Not required") -> 0 | O152: =IF(INTRO!$E$41="Endemic", IF($J152>1, IF($J152=4, "Unknown", IF($J152=99, "Surveillance", F152)), 0),"Not required") -> 0 | P152: =IF(INTRO!$E$41="Endemic", IF($J152>1, IF($J152=4, "Unknown", IF($J152=99, "Surveillance", ROUND(D152*INTRO!$E$51,0))), 0),"Not required") -> 0 | Q152: =IF(INTRO!$E$41="Endemic", IF($J152>1, IF($J152=4, "Unknown", IF($J152=99, "Surveillance", SUM($N152:$P152))), 0),"Not required") -> 0 | R152: =IF(INTRO!$E$43="Endemic", IF($K152>1, IF($K152=4, "Unknown", IF($K152=99, "Surveillance", ROUND(E152*0.75,0))), 0),"Not required") -> 8168 | S152: =IF(INTRO!$E$43="Endemic", IF($K152>1, IF($K152=4, "Unknown", IF($K152=99, "Surveillance", F152)), 0),"Not required") -> 30544 | T152: =IF(INTRO!$E$43="Endemic", IF($K152>1, IF($K152=4, "Unknown", IF($K152=99, "Surveillance", G152)), 0),"Not required") -> 59266 | U152: =IF(INTRO!$E$43="Endemic", IF($K152>1, IF($K152=4, "Unknown", IF($K152=99, "Surveillance", SUM($R152:$T152))), 0),"Not required") -> 97978 | V152: 0 | W152: 0 | X152: 0 | Y152: 0 | AH152: 18617 | AI152: Jille Timuga
A153: =IF(INTRO!$E$33<>0,INTRO!$E$33, " ") -> Ethiopia | B153: AmharaOromiya | C153: Kemissie | D153: 51573.97367 | E153: =IF(INTRO!$E$48="","",ROUND($D153*INTRO!$E$48,0)) -> 5467 | F153: =IF(INTRO!$E$49="","",ROUND($D153*INTRO!$E$49,0)) -> 15333 | G153: =IF(INTRO!$E$50="","",ROUND($D153*INTRO!$E$50,0)) -> 29751 | H153: 0 | I153: 0 | J153: 1 | K153: 3 | L153: =IF(INTRO!$E$37="Endemic",IF($H153>0,IF($H153=4,"Unknown",IF($H153=99,"Stopped",$D153)),0),"Not required") -> 0 | M153: =IF(INTRO!$E$39="Endemic", IF($I153>0, IF($I153=4,"Unknown",IF($I153=99,"Stopped",$D153)), 0),"Not required") -> 0 | N153: =IF(INTRO!$E$41="Endemic", IF($J153>1, IF($J153=4, "Unknown", IF($J153=99, "Surveillance", E153)), 0),"Not required") -> 0 | O153: =IF(INTRO!$E$41="Endemic", IF($J153>1, IF($J153=4, "Unknown", IF($J153=99, "Surveillance", F153)), 0),"Not required") -> 0 | P153: =IF(INTRO!$E$41="Endemic", IF($J153>1, IF($J153=4, "Unknown", IF($J153=99, "Surveillance", ROUND(D153*INTRO!$E$51,0))), 0),"Not required") -> 0 | Q153: =IF(INTRO!$E$41="Endemic", IF($J153>1, IF($J153=4, "Unknown", IF($J153=99, "Surveillance", SUM($N153:$P153))), 0),"Not required") -> 0 | R153: =IF(INTRO!$E$43="Endemic", IF($K153>1, IF($K153=4, "Unknown", IF($K153=99, "Surveillance", ROUND(E153*0.75,0))), 0),"Not required") -> 4100 | S153: =IF(INTRO!$E$43="Endemic", IF($K153>1, IF($K153=4, "Unknown", IF($K153=99, "Surveillance", F153)), 0),"Not required") -> 15333 | T153: =IF(INTRO!$E$43="Endemic", IF($K153>1, IF($K153=4, "Unknown", IF($K153=99, "Surveillance", G153)), 0),"Not required") -> 29751 | U153: =IF(INTRO!$E$43="Endemic", IF($K153>1, IF($K153=4, "Unknown", IF($K153=99, "Surveillance", SUM($R153:$T153))), 0),"Not required") -> 49184 | V153: 0 | W153: 0 | X153: 0 | Y153: 0 | AH153: 18620 | AI153: Kemissie
A154: =IF(INTRO!$E$33<>0,INTRO!$E$33, " ") -> Ethiopia | B154: AmharaSouth Gondar | C154: Andabet (West Estie) | D154: 158064.3316 | E154: =IF(INTRO!$E$48="","",ROUND($D154*INTRO!$E$48,0)) -> 16755 | F154: =IF(INTRO!$E$49="","",ROUND($D154*INTRO!$E$49,0)) -> 46993 | G154: =IF(INTRO!$E$50="","",ROUND($D154*INTRO!$E$50,0)) -> 91181 | H154: 0 | I154: 1 | J154: 3 | K154: 2 | L154: =IF(INTRO!$E$37="Endemic",IF($H154>0,IF($H154=4,"Unknown",IF($H154=99,"Stopped",$D154)),0),"Not required") -> 0 | M154: =IF(INTRO!$E$39="Endemic", IF($I154>0, IF($I154=4,"Unknown",IF($I154=99,"Stopped",$D154)), 0),"Not required") -> 158064.3316 | N154: =IF(INTRO!$E$41="Endemic", IF($J154>1, IF($J154=4, "Unknown", IF($J154=99, "Surveillance", E154)), 0),"Not required") -> 16755 | O154: =IF(INTRO!$E$41="Endemic", IF($J154>1, IF($J154=4, "Unknown", IF($J154=99, "Surveillance", F154)), 0),"Not required") -> 46993 | P154: =IF(INTRO!$E$41="Endemic", IF($J154>1, IF($J154=4, "Unknown", IF($J154=99, "Surveillance", ROUND(D154*INTRO!$E$51,0))), 0),"Not required") -> 0 | Q154: =IF(INTRO!$E$41="Endemic", IF($J154>1, IF($J154=4, "Unknown", IF($J154=99, "Surveillance", SUM($N154:$P154))), 0),"Not required") -> 63748 | R154: =IF(INTRO!$E$43="Endemic", IF($K154>1, IF($K154=4, "Unknown", IF($K154=99, "Surveillance", ROUND(E154*0.75,0))), 0),"Not required") -> 12566 | S154: =IF(INTRO!$E$43="Endemic", IF($K154>1, IF($K154=4, "Unknown", IF($K154=99, "Surveillance", F154)), 0),"Not required") -> 46993 | T154: =IF(INTRO!$E$43="Endemic", IF($K154>1, IF($K154=4, "Unknown", IF($K154=99, "Surveillance", G154)), 0),"Not required") -> 91181 | U154: =IF(INTRO!$E$43="Endemic", IF($K154>1, IF($K154=4, "Unknown", IF($K154=99, "Surveillance", SUM($R154:$T154))), 0),"Not required") -> 150740 | V154: 0 | W154: 2 | X154: 2 | Y154: 0 | AE154: Yes | AH154: 18537 | AI154: Andabet (West Estie)
A155: =IF(INTRO!$E$33<>0,INTRO!$E$33, " ") -> Ethiopia | B155: AmharaSouth Gondar | C155: Debre Tabor | D155: 121229.2967 | E155: =IF(INTRO!$E$48="","",ROUND($D155*INTRO!$E$48,0)) -> 12850 | F155: =IF(INTRO!$E$49="","",ROUND($D155*INTRO!$E$49,0)) -> 36041 | G155: =IF(INTRO!$E$50="","",ROUND($D155*INTRO!$E$50,0)) -> 69932 | H155: 0 | I155: 0 | J155: 1 | K155: 1 | L155: =IF(INTRO!$E$37="Endemic",IF($H155>0,IF($H155=4,"Unknown",IF($H155=99,"Stopped",$D155)),0),"Not required") -> 0 | M155: =IF(INTRO!$E$39="Endemic", IF($I155>0, IF($I155=4,"Unknown",IF($I155=99,"Stopped",$D155)), 0),"Not required") -> 0 | N155: =IF(INTRO!$E$41="Endemic", IF($J155>1, IF($J155=4, "Unknown", IF($J155=99, "Surveillance", E155)), 0),"Not required") -> 0 | O155: =IF(INTRO!$E$41="Endemic", IF($J155>1, IF($J155=4, "Unknown", IF($J155=99, "Surveillance", F155)), 0),"Not required") -> 0 | P155: =IF(INTRO!$E$41="Endemic", IF($J155>1, IF($J155=4, "Unknown", IF($J155=99, "Surveillance", ROUND(D155*INTRO!$E$51,0))), 0),"Not required") -> 0 | Q155: =IF(INTRO!$E$41="Endemic", IF($J155>1, IF($J155=4, "Unknown", IF($J155=99, "Surveillance", SUM($N155:$P155))), 0),"Not required") -> 0 | R155: =IF(INTRO!$E$43="Endemic", IF($K155>1, IF($K155=4, "Unknown", IF($K155=99, "Surveillance", ROUND(E155*0.75,0))), 0),"Not required") -> 0 | S155: =IF(INTRO!$E$43="Endemic", IF($K155>1, IF($K155=4, "Unknown", IF($K155=99, "Surveillance", F155)), 0),"Not required") -> 0 | T155: =IF(INTRO!$E$43="Endemic", IF($K155>1, IF($K155=4, "Unknown", IF($K155=99, "Surveillance", G155)), 0),"Not required") -> 0 | U155: =IF(INTRO!$E$43="Endemic", IF($K155>1, IF($K155=4, "Unknown", IF($K155=99, "Surveillance", SUM($R155:$T155))), 0),"Not required") -> 0 | V155: 0 | W155: 0 | X155: 0 | Y155: 0 | AF155: No | AH155: 18574 | AI155: Debre Tabor Town
A156: =IF(INTRO!$E$33<>0,INTRO!$E$33, " ") -> Ethiopia | B156: AmharaSouth Gondar | C156: Dera | D156: 325680.549 | E156: =IF(INTRO!$E$48="","",ROUND($D156*INTRO!$E$48,0)) -> 34522 | F156: =IF(INTRO!$E$49="","",ROUND($D156*INTRO!$E$49,0)) -> 96825 | G156: =IF(INTRO!$E$50="","",ROUND($D156*INTRO!$E$50,0)) -> 187871 | H156: 0 | I156: 0 | J156: 2 | K156: 2 | L156: =IF(INTRO!$E$37="Endemic",IF($H156>0,IF($H156=4,"Unknown",IF($H156=99,"Stopped",$D156)),0),"Not required") -> 0 | M156: =IF(INTRO!$E$39="Endemic", IF($I156>0, IF($I156=4,"Unknown",IF($I156=99,"Stopped",$D156)), 0),"Not required") -> 0 | N156: =IF(INTRO!$E$41="Endemic", IF($J156>1, IF($J156=4, "Unknown", IF($J156=99, "Surveillance", E156)), 0),"Not required") -> 34522 | O156: =IF(INTRO!$E$41="Endemic", IF($J156>1, IF($J156=4, "Unknown", IF($J156=99, "Surveillance", F156)), 0),"Not required") -> 96825 | P156: =IF(INTRO!$E$41="Endemic", IF($J156>1, IF($J156=4, "Unknown", IF($J156=99, "Surveillance", ROUND(D156*INTRO!$E$51,0))), 0),"Not required") -> 0 | Q156: =IF(INTRO!$E$41="Endemic", IF($J156>1, IF($J156=4, "Unknown", IF($J156=99, "Surveillance", SUM($N156:$P156))), 0),"Not required") -> 131347 | R156: =IF(INTRO!$E$43="Endemic", IF($K156>1, IF($K156=4, "Unknown", IF($K156=99, "Surveillance", ROUND(E156*0.75,0))), 0),"Not required") -> 25892 | S156: =IF(INTRO!$E$43="Endemic", IF($K156>1, IF($K156=4, "Unknown", IF($K156=99, "Surveillance", F156)), 0),"Not required") -> 96825 | T156: =IF(INTRO!$E$43="Endemic", IF($K156>1, IF($K156=4, "Unknown", IF($K156=99, "Surveillance", G156)), 0),"Not required") -> 187871 | U156: =IF(INTRO!$E$43="Endemic", IF($K156>1, IF($K156=4, "Unknown", IF($K156=99, "Surveillance", SUM($R156:$T156))), 0),"Not required") -> 310588 | V156: 0 | W156: 0 | X156: 1 | Y156: 0 | AE156: Yes | AH156: 18583 | AI156: Dera
A157: =IF(INTRO!$E$33<>0,INTRO!$E$33, " ") -> Ethiopia | B157: AmharaSouth Gondar | C157: Ebinat | D157: 226567.6899 | E157: =IF(INTRO!$E$48="","",ROUND($D157*INTRO!$E$48,0)) -> 24016 | F157: =IF(INTRO!$E$49="","",ROUND($D157*INTRO!$E$49,0)) -> 67359 | G157: =IF(INTRO!$E$50="","",ROUND($D157*INTRO!$E$50,0)) -> 130697 | H157: 0 | I157: 0 | J157: 3 | K157: 1 | L157: =IF(INTRO!$E$37="Endemic",IF($H157>0,IF($H157=4,"Unknown",IF($H157=99,"Stopped",$D157)),0),"Not required") -> 0 | M157: =IF(INTRO!$E$39="Endemic", IF($I157>0, IF($I157=4,"Unknown",IF($I157=99,"Stopped",$D157)), 0),"Not required") -> 0 | N157: =IF(INTRO!$E$41="Endemic", IF($J157>1, IF($J157=4, "Unknown", IF($J157=99, "Surveillance", E157)), 0),"Not required") -> 24016 | O157: =IF(INTRO!$E$41="Endemic", IF($J157>1, IF($J157=4, "Unknown", IF($J157=99, "Surveillance", F157)), 0),"Not required") -> 67359 | P157: =IF(INTRO!$E$41="Endemic", IF($J157>1, IF($J157=4, "Unknown", IF($J157=99, "Surveillance", ROUND(D157*INTRO!$E$51,0))), 0),"Not required") -> 0 | Q157: =IF(INTRO!$E$41="Endemic", IF($J157>1, IF($J157=4, "Unknown", IF($J157=99, "Surveillance", SUM($N157:$P157))), 0),"Not required") -> 91375 | R157: =IF(INTRO!$E$43="Endemic", IF($K157>1, IF($K157=4, "Unknown", IF($K157=99, "Surveillance", ROUND(E157*0.75,0))), 0),"Not required") -> 0 | S157: =IF(INTRO!$E$43="Endemic", IF($K157>1, IF($K157=4, "Unknown", IF($K157=99, "Surveillance", F157)), 0),"Not required") -> 0 | T157: =IF(INTRO!$E$43="Endemic", IF($K157>1, IF($K157=4, "Unknown", IF($K157=99, "Surveillance", G157)), 0),"Not required") -> 0 | U157: =IF(INTRO!$E$43="Endemic", IF($K157>1, IF($K157=4, "Unknown", IF($K157=99, "Surveillance", SUM($R157:$T157))), 0),"Not required") -> 0 | V157: 0 | W157: 0 | X157: 2 | Y157: 0 | AE157: Yes | AF157: No | AH157: 19455 | AI157: Ebinat
A158: =IF(INTRO!$E$33<>0,INTRO!$E$33, " ") -> Ethiopia | B158: AmharaSouth Gondar | C158: Estie (East Estie) | D158: 283288.0338 | E158: =IF(INTRO!$E$48="","",ROUND($D158*INTRO!$E$48,0)) -> 30029 | F158: =IF(INTRO!$E$49="","",ROUND($D158*INTRO!$E$49,0)) -> 84222 | G158: =IF(INTRO!$E$50="","",ROUND($D158*INTRO!$E$50,0)) -> 163417 | H158: 0 | I158: 1 | J158: 2 | K158: 1 | L158: =IF(INTRO!$E$37="Endemic",IF($H158>0,IF($H158=4,"Unknown",IF($H158=99,"Stopped",$D158)),0),"Not required") -> 0 | M158: =IF(INTRO!$E$39="Endemic", IF($I158>0, IF($I158=4,"Unknown",IF($I158=99,"Stopped",$D158)), 0),"Not required") -> 283288.0338 | N158: =IF(INTRO!$E$41="Endemic", IF($J158>1, IF($J158=4, "Unknown", IF($J158=99, "Surveillance", E158)), 0),"Not required") -> 30029 | O158: =IF(INTRO!$E$41="Endemic", IF($J158>1, IF($J158=4, "Unknown", IF($J158=99, "Surveillance", F158)), 0),"Not required") -> 84222 | P158: =IF(INTRO!$E$41="Endemic", IF($J158>1, IF($J158=4, "Unknown", IF($J158=99, "Surveillance", ROUND(D158*INTRO!$E$51,0))), 0),"Not required") -> 0 | Q158: =IF(INTRO!$E$41="Endemic", IF($J158>1, IF($J158=4, "Unknown", IF($J158=99, "Surveillance", SUM($N158:$P158))), 0),"Not required") -> 114251 | R158: =IF(INTRO!$E$43="Endemic", IF($K158>1, IF($K158=4, "Unknown", IF($K158=99, "Surveillance", ROUND(E158*0.75,0))), 0),"Not required") -> 0 | S158: =IF(INTRO!$E$43="Endemic", IF($K158>1, IF($K158=4, "Unknown", IF($K158=99, "Surveillance", F158)), 0),"Not required") -> 0 | T158: =IF(INTRO!$E$43="Endemic", IF($K158>1, IF($K158=4, "Unknown", IF($K158=99, "Surveillance", G158)), 0),"Not required") -> 0 | U158: =IF(INTRO!$E$43="Endemic", IF($K158>1, IF($K158=4, "Unknown", IF($K158=99, "Surveillance", SUM($R158:$T158))), 0),"Not required") -> 0 | V158: 0 | W158: 2 | X158: 1 | Y158: 0 | AE158: Yes | AF158: No | AH158: 18592 | AI158: Estie (East Estie)
A159: =IF(INTRO!$E$33<>0,INTRO!$E$33, " ") -> Ethiopia | B159: AmharaSouth Gondar | C159: Farta | D159: 204871.9978 | E159: =IF(INTRO!$E$48="","",ROUND($D159*INTRO!$E$48,0)) -> 21717 | F159: =IF(INTRO!$E$49="","",ROUND($D159*INTRO!$E$49,0)) -> 60908 | G159: =IF(INTRO!$E$50="","",ROUND($D159*INTRO!$E$50,0)) -> 118182 | H159: 0 | I159: 0 | J159: 2 | K159: 0 | L159: =IF(INTRO!$E$37="Endemic",IF($H159>0,IF($H159=4,"Unknown",IF($H159=99,"Stopped",$D159)),0),"Not required") -> 0 | M159: =IF(INTRO!$E$39="Endemic", IF($I159>0, IF($I159=4,"Unknown",IF($I159=99,"Stopped",$D159)), 0),"Not required") -> 0 | N159: =IF(INTRO!$E$41="Endemic", IF($J159>1, IF($J159=4, "Unknown", IF($J159=99, "Surveillance", E159)), 0),"Not required") -> 21717 | O159: =IF(INTRO!$E$41="Endemic", IF($J159>1, IF($J159=4, "Unknown", IF($J159=99, "Surveillance", F159)), 0),"Not required") -> 60908 | P159: =IF(INTRO!$E$41="Endemic", IF($J159>1, IF($J159=4, "Unknown", IF($J159=99, "Surveillance", ROUND(D159*INTRO!$E$51,0))), 0),"Not required") -> 0 | Q159: =IF(INTRO!$E$41="Endemic", IF($J159>1, IF($J159=4, "Unknown", IF($J159=99, "Surveillance", SUM($N159:$P159))), 0),"Not required") -> 82625 | R159: =IF(INTRO!$E$43="Endemic", IF($K159>1, IF($K159=4, "Unknown", IF($K159=99, "Surveillance", ROUND(E159*0.75,0))), 0),"Not required") -> 0 | S159: =IF(INTRO!$E$43="Endemic", IF($K159>1, IF($K159=4, "Unknown", IF($K159=99, "Surveillance", F159)), 0),"Not required") -> 0 | T159: =IF(INTRO!$E$43="Endemic", IF($K159>1, IF($K159=4, "Unknown", IF($K159=99, "Surveillance", G159)), 0),"Not required") -> 0 | U159: =IF(INTRO!$E$43="Endemic", IF($K159>1, IF($K159=4, "Unknown", IF($K159=99, "Surveillance", SUM($R159:$T159))), 0),"Not required") -> 0 | V159: 0 | W159: 0 | X159: 1 | Y159: 0 | AE159: Yes | AF159: No | AH159: 18594 | AI159: Farta
A160: =IF(INTRO!$E$33<>0,INTRO!$E$33, " ") -> Ethiopia | B160: AmharaSouth Gondar | C160: Fogera | D160: 284239.7964 | E160: =IF(INTRO!$E$48="","",ROUND($D160*INTRO!$E$48,0)) -> 30130 | F160: =IF(INTRO!$E$49="","",ROUND($D160*INTRO!$E$49,0)) -> 84504 | G160: =IF(INTRO!$E$50="","",ROUND($D160*INTRO!$E$50,0)) -> 163966 | H160: 0 | I160: 0 | J160: 3 | K160: 0 | L160: =IF(INTRO!$E$37="Endemic",IF($H160>0,IF($H160=4,"Unknown",IF($H160=99,"Stopped",$D160)),0),"Not required") -> 0 | M160: =IF(INTRO!$E$39="Endemic", IF($I160>0, IF($I160=4,"Unknown",IF($I160=99,"Stopped",$D160)), 0),"Not required") -> 0 | N160: =IF(INTRO!$E$41="Endemic", IF($J160>1, IF($J160=4, "Unknown", IF($J160=99, "Surveillance", E160)), 0),"Not required") -> 30130 | O160: =IF(INTRO!$E$41="Endemic", IF($J160>1, IF($J160=4, "Unknown", IF($J160=99, "Surveillance", F160)), 0),"Not required") -> 84504 | P160: =IF(INTRO!$E$41="Endemic", IF($J160>1, IF($J160=4, "Unknown", IF($J160=99, "Surveillance", ROUND(D160*INTRO!$E$51,0))), 0),"Not required") -> 0 | Q160: =IF(INTRO!$E$41="Endemic", IF($J160>1, IF($J160=4, "Unknown", IF($J160=99, "Surveillance", SUM($N160:$P160))), 0),"Not required") -> 114634 | R160: =IF(INTRO!$E$43="Endemic", IF($K160>1, IF($K160=4, "Unknown", IF($K160=99, "Surveillance", ROUND(E160*0.75,0))), 0),"Not required") -> 0 | S160: =IF(INTRO!$E$43="Endemic", IF($K160>1, IF($K160=4, "Unknown", IF($K160=99, "Surveillance", F160)), 0),"Not required") -> 0 | T160: =IF(INTRO!$E$43="Endemic", IF($K160>1, IF($K160=4, "Unknown", IF($K160=99, "Surveillance", G160)), 0),"Not required") -> 0 | U160: =IF(INTRO!$E$43="Endemic", IF($K160>1, IF($K160=4, "Unknown", IF($K160=99, "Surveillance", SUM($R160:$T160))), 0),"Not required") -> 0 | V160: 0 | W160: 0 | X160: 2 | Y160: 0 | AE160: Yes | AF160: No | AH160: 18596 | AI160: Fogera
A161: =IF(INTRO!$E$33<>0,INTRO!$E$33, " ") -> Ethiopia | B161: AmharaSouth Gondar | C161: Guna Begiemeder | D161: 121132.9428 | E161: =IF(INTRO!$E$48="","",ROUND($D161*INTRO!$E$48,0)) -> 12840 | F161: =IF(INTRO!$E$49="","",ROUND($D161*INTRO!$E$49,0)) -> 36013 | G161: =IF(INTRO!$E$50="","",ROUND($D161*INTRO!$E$50,0)) -> 69876 | H161: 0 | I161: 0 | J161: 2 | K161: 0 | L161: =IF(INTRO!$E$37="Endemic",IF($H161>0,IF($H161=4,"Unknown",IF($H161=99,"Stopped",$D161)),0),"Not required") -> 0 | M161: =IF(INTRO!$E$39="Endemic", IF($I161>0, IF($I161=4,"Unknown",IF($I161=99,"Stopped",$D161)), 0),"Not required") -> 0 | N161: =IF(INTRO!$E$41="Endemic", IF($J161>1, IF($J161=4, "Unknown", IF($J161=99, "Surveillance", E161)), 0),"Not required") -> 12840 | O161: =IF(INTRO!$E$41="Endemic", IF($J161>1, IF($J161=4, "Unknown", IF($J161=99, "Surveillance", F161)), 0),"Not required") -> 36013 | P161: =IF(INTRO!$E$41="Endemic", IF($J161>1, IF($J161=4, "Unknown", IF($J161=99, "Surveillance", ROUND(D161*INTRO!$E$51,0))), 0),"Not required") -> 0 | Q161: =IF(INTRO!$E$41="Endemic", IF($J161>1, IF($J161=4, "Unknown", IF($J161=99, "Surveillance", SUM($N161:$P161))), 0),"Not required") -> 48853 | R161: =IF(INTRO!$E$43="Endemic", IF($K161>1, IF($K161=4, "Unknown", IF($K161=99, "Surveillance", ROUND(E161*0.75,0))), 0),"Not required") -> 0 | S161: =IF(INTRO!$E$43="Endemic", IF($K161>1, IF($K161=4, "Unknown", IF($K161=99, "Surveillance", F161)), 0),"Not required") -> 0 | T161: =IF(INTRO!$E$43="Endemic", IF($K161>1, IF($K161=4, "Unknown", IF($K161=99, "Surveillance", G161)), 0),"Not required") -> 0 | U161: =IF(INTRO!$E$43="Endemic", IF($K161>1, IF($K161=4, "Unknown", IF($K161=99, "Surveillance", SUM($R161:$T161))), 0),"Not required") -> 0 | V161: 0 | W161: 0 | X161: 1 | Y161: 0 | AE161: Yes | AF161: No | AH161: 19352 | AI161: Gunabegemidir
A162: =IF(INTRO!$E$33<>0,INTRO!$E$33, " ") -> Ethiopia | B162: AmharaSouth Gondar | C162: Lay Gaint | D162: 269441.9748 | E162: =IF(INTRO!$E$48="","",ROUND($D162*INTRO!$E$48,0)) -> 28561 | F162: =IF(INTRO!$E$49="","",ROUND($D162*INTRO!$E$49,0)) -> 80105 | G162: =IF(INTRO!$E$50="","",ROUND($D162*INTRO!$E$50,0)) -> 155430 | H162: 0 | I162: 0 | J162: 1 | K162: 0 | L162: =IF(INTRO!$E$37="Endemic",IF($H162>0,IF($H162=4,"Unknown",IF($H162=99,"Stopped",$D162)),0),"Not required") -> 0 | M162: =IF(INTRO!$E$39="Endemic", IF($I162>0, IF($I162=4,"Unknown",IF($I162=99,"Stopped",$D162)), 0),"Not required") -> 0 | N162: =IF(INTRO!$E$41="Endemic", IF($J162>1, IF($J162=4, "Unknown", IF($J162=99, "Surveillance", E162)), 0),"Not required") -> 0 | O162: =IF(INTRO!$E$41="Endemic", IF($J162>1, IF($J162=4, "Unknown", IF($J162=99, "Surveillance", F162)), 0),"Not required") -> 0 | P162: =IF(INTRO!$E$41="Endemic", IF($J162>1, IF($J162=4, "Unknown", IF($J162=99, "Surveillance", ROUND(D162*INTRO!$E$51,0))), 0),"Not required") -> 0 | Q162: =IF(INTRO!$E$41="Endemic", IF($J162>1, IF($J162=4, "Unknown", IF($J162=99, "Surveillance", SUM($N162:$P162))), 0),"Not required") -> 0 | R162: =IF(INTRO!$E$43="Endemic", IF($K162>1, IF($K162=4, "Unknown", IF($K162=99, "Surveillance", ROUND(E162*0.75,0))), 0),"Not required") -> 0 | S162: =IF(INTRO!$E$43="Endemic", IF($K162>1, IF($K162=4, "Unknown", IF($K162=99, "Surveillance", F162)), 0),"Not required") -> 0 | T162: =IF(INTRO!$E$43="Endemic", IF($K162>1, IF($K162=4, "Unknown", IF($K162=99, "Surveillance", G162)), 0),"Not required") -> 0 | U162: =IF(INTRO!$E$43="Endemic", IF($K162>1, IF($K162=4, "Unknown", IF($K162=99, "Surveillance", SUM($R162:$T162))), 0),"Not required") -> 0 | V162: 0 | W162: 0 | X162: 0 | Y162: 0 | AF162: No | AH162: 18628 | AI162: Lay Gaint
A163: =IF(INTRO!$E$33<>0,INTRO!$E$33, " ") -> Ethiopia | B163: AmharaSouth Gondar | C163: Libo Kemkem | D163: 299958.3334 | E163: =IF(INTRO!$E$48="","",ROUND($D163*INTRO!$E$48,0)) -> 31796 | F163: =IF(INTRO!$E$49="","",ROUND($D163*INTRO!$E$49,0)) -> 89178 | G163: =IF(INTRO!$E$50="","",ROUND($D163*INTRO!$E$50,0)) -> 173033 | H163: 0 | I163: 0 | J163: 3 | K163: 1 | L163: =IF(INTRO!$E$37="Endemic",IF($H163>0,IF($H163=4,"Unknown",IF($H163=99,"Stopped",$D163)),0),"Not required") -> 0 | M163: =IF(INTRO!$E$39="Endemic", IF($I163>0, IF($I163=4,"Unknown",IF($I163=99,"Stopped",$D163)), 0),"Not required") -> 0 | N163: =IF(INTRO!$E$41="Endemic", IF($J163>1, IF($J163=4, "Unknown", IF($J163=99, "Surveillance", E163)), 0),"Not required") -> 31796 | O163: =IF(INTRO!$E$41="Endemic", IF($J163>1, IF($J163=4, "Unknown", IF($J163=99, "Surveillance", F163)), 0),"Not required") -> 89178 | P163: =IF(INTRO!$E$41="Endemic", IF($J163>1, IF($J163=4, "Unknown", IF($J163=99, "Surveillance", ROUND(D163*INTRO!$E$51,0))), 0),"Not required") -> 0 | Q163: =IF(INTRO!$E$41="Endemic", IF($J163>1, IF($J163=4, "Unknown", IF($J163=99, "Surveillance", SUM($N163:$P163))), 0),"Not required") -> 120974 | R163: =IF(INTRO!$E$43="Endemic", IF($K163>1, IF($K163=4, "Unknown", IF($K163=99, "Surveillance", ROUND(E163*0.75,0))), 0),"Not required") -> 0 | S163: =IF(INTRO!$E$43="Endemic", IF($K163>1, IF($K163=4, "Unknown", IF($K163=99, "Surveillance", F163)), 0),"Not required") -> 0 | T163: =IF(INTRO!$E$43="Endemic", IF($K163>1, IF($K163=4, "Unknown", IF($K163=99, "Surveillance", G163)), 0),"Not required") -> 0 | U163: =IF(INTRO!$E$43="Endemic", IF($K163>1, IF($K163=4, "Unknown", IF($K163=99, "Surveillance", SUM($R163:$T163))), 0),"Not required") -> 0 | V163: 0 | W163: 0 | X163: 2 | Y163: 0 | AE163: Yes | AF163: No | AH163: 18630 | AI163: Libo Kemkem
A164: =IF(INTRO!$E$33<>0,INTRO!$E$33, " ") -> Ethiopia | B164: AmharaSouth Gondar | C164: Meketewa | D164: 58605.669 | E164: =IF(INTRO!$E$48="","",ROUND($D164*INTRO!$E$48,0)) -> 6212 | F164: =IF(INTRO!$E$49="","",ROUND($D164*INTRO!$E$49,0)) -> 17423 | G164: =IF(INTRO!$E$50="","",ROUND($D164*INTRO!$E$50,0)) -> 33807 | H164: 0 | I164: 0 | J164: 3 | K164: 1 | L164: =IF(INTRO!$E$37="Endemic",IF($H164>0,IF($H164=4,"Unknown",IF($H164=99,"Stopped",$D164)),0),"Not required") -> 0 | M164: =IF(INTRO!$E$39="Endemic", IF($I164>0, IF($I164=4,"Unknown",IF($I164=99,"Stopped",$D164)), 0),"Not required") -> 0 | N164: =IF(INTRO!$E$41="Endemic", IF($J164>1, IF($J164=4, "Unknown", IF($J164=99, "Surveillance", E164)), 0),"Not required") -> 6212 | O164: =IF(INTRO!$E$41="Endemic", IF($J164>1, IF($J164=4, "Unknown", IF($J164=99, "Surveillance", F164)), 0),"Not required") -> 17423 | P164: =IF(INTRO!$E$41="Endemic", IF($J164>1, IF($J164=4, "Unknown", IF($J164=99, "Surveillance", ROUND(D164*INTRO!$E$51,0))), 0),"Not required") -> 0 | Q164: =IF(INTRO!$E$41="Endemic", IF($J164>1, IF($J164=4, "Unknown", IF($J164=99, "Surveillance", SUM($N164:$P164))), 0),"Not required") -> 23635 | R164: =IF(INTRO!$E$43="Endemic", IF($K164>1, IF($K164=4, "Unknown", IF($K164=99, "Surveillance", ROUND(E164*0.75,0))), 0),"Not required") -> 0 | S164: =IF(INTRO!$E$43="Endemic", IF($K164>1, IF($K164=4, "Unknown", IF($K164=99, "Surveillance", F164)), 0),"Not required") -> 0 | T164: =IF(INTRO!$E$43="Endemic", IF($K164>1, IF($K164=4, "Unknown", IF($K164=99, "Surveillance", G164)), 0),"Not required") -> 0 | U164: =IF(INTRO!$E$43="Endemic", IF($K164>1, IF($K164=4, "Unknown", IF($K164=99, "Surveillance", SUM($R164:$T164))), 0),"Not required") -> 0 | V164: 0 | W164: 0 | X164: 2 | Y164: 0 | AE164: Yes | AF164: No | AH164: 19353 | AI164: Meketewa
A165: =IF(INTRO!$E$33<>0,INTRO!$E$33, " ") -> Ethiopia | B165: AmharaSouth Gondar | C165: SedieMuja | D165: 94148.49075 | E165: =IF(INTRO!$E$48="","",ROUND($D165*INTRO!$E$48,0)) -> 9980 | F165: =IF(INTRO!$E$49="","",ROUND($D165*INTRO!$E$49,0)) -> 27990 | G165: =IF(INTRO!$E$50="","",ROUND($D165*INTRO!$E$50,0)) -> 54310 | H165: 1 | I165: 0 | J165: 2 | K165: 0 | L165: =IF(INTRO!$E$37="Endemic",IF($H165>0,IF($H165=4,"Unknown",IF($H165=99,"Stopped",$D165)),0),"Not required") -> 94148.49075 | M165: =IF(INTRO!$E$39="Endemic", IF($I165>0, IF($I165=4,"Unknown",IF($I165=99,"Stopped",$D165)), 0),"Not required") -> 0 | N165: =IF(INTRO!$E$41="Endemic", IF($J165>1, IF($J165=4, "Unknown", IF($J165=99, "Surveillance", E165)), 0),"Not required") -> 9980 | O165: =IF(INTRO!$E$41="Endemic", IF($J165>1, IF($J165=4, "Unknown", IF($J165=99, "Surveillance", F165)), 0),"Not required") -> 27990 | P165: =IF(INTRO!$E$41="Endemic", IF($J165>1, IF($J165=4, "Unknown", IF($J165=99, "Surveillance", ROUND(D165*INTRO!$E$51,0))), 0),"Not required") -> 0 | Q165: =IF(INTRO!$E$41="Endemic", IF($J165>1, IF($J165=4, "Unknown", IF($J165=99, "Surveillance", SUM($N165:$P165))), 0),"Not required") -> 37970 | R165: =IF(INTRO!$E$43="Endemic", IF($K165>1, IF($K165=4, "Unknown", IF($K165=99, "Surveillance", ROUND(E165*0.75,0))), 0),"Not required") -> 0 | S165: =IF(INTRO!$E$43="Endemic", IF($K165>1, IF($K165=4, "Unknown", IF($K165=99, "Surveillance", F165)), 0),"Not required") -> 0 | T165: =IF(INTRO!$E$43="Endemic", IF($K165>1, IF($K165=4, "Unknown", IF($K165=99, "Surveillance", G165)), 0),"Not required") -> 0 | U165: =IF(INTRO!$E$43="Endemic", IF($K165>1, IF($K165=4, "Unknown", IF($K165=99, "Surveillance", SUM($R165:$T165))), 0),"Not required") -> 0 | V165: 1 | W165: 0 | X165: 1 | Y165: 0 | AA165: Both | AE165: Yes | AF165: No | AH165: 19354 | AI165: Sediemuja
A166: =IF(INTRO!$E$33<>0,INTRO!$E$33, " ") -> Ethiopia | B166: AmharaSouth Gondar | C166: Simada | D166: 200022.1836 | E166: =IF(INTRO!$E$48="","",ROUND($D166*INTRO!$E$48,0)) -> 21203 | F166: =IF(INTRO!$E$49="","",ROUND($D166*INTRO!$E$49,0)) -> 59467 | G166: =IF(INTRO!$E$50="","",ROUND($D166*INTRO!$E$50,0)) -> 115384 | H166: 1 | I166: 0 | J166: 2 | K166: 0 | L166: =IF(INTRO!$E$37="Endemic",IF($H166>0,IF($H166=4,"Unknown",IF($H166=99,"Stopped",$D166)),0),"Not required") -> 200022.1836 | M166: =IF(INTRO!$E$39="Endemic", IF($I166>0, IF($I166=4,"Unknown",IF($I166=99,"Stopped",$D166)), 0),"Not required") -> 0 | N166: =IF(INTRO!$E$41="Endemic", IF($J166>1, IF($J166=4, "Unknown", IF($J166=99, "Surveillance", E166)), 0),"Not required") -> 21203 | O166: =IF(INTRO!$E$41="Endemic", IF($J166>1, IF($J166=4, "Unknown", IF($J166=99, "Surveillance", F166)), 0),"Not required") -> 59467 | P166: =IF(INTRO!$E$41="Endemic", IF($J166>1, IF($J166=4, "Unknown", IF($J166=99, "Surveillance", ROUND(D166*INTRO!$E$51,0))), 0),"Not required") -> 0 | Q166: =IF(INTRO!$E$41="Endemic", IF($J166>1, IF($J166=4, "Unknown", IF($J166=99, "Surveillance", SUM($N166:$P166))), 0),"Not required") -> 80670 | R166: =IF(INTRO!$E$43="Endemic", IF($K166>1, IF($K166=4, "Unknown", IF($K166=99, "Surveillance", ROUND(E166*0.75,0))), 0),"Not required") -> 0 | S166: =IF(INTRO!$E$43="Endemic", IF($K166>1, IF($K166=4, "Unknown", IF($K166=99, "Surveillance", F166)), 0),"Not required") -> 0 | T166: =IF(INTRO!$E$43="Endemic", IF($K166>1, IF($K166=4, "Unknown", IF($K166=99, "Surveillance", G166)), 0),"Not required") -> 0 | U166: =IF(INTRO!$E$43="Endemic", IF($K166>1, IF($K166=4, "Unknown", IF($K166=99, "Surveillance", SUM($R166:$T166))), 0),"Not required") -> 0 | V166: 1 | W166: 0 | X166: 1 | Y166: 0 | AA166: Both | AE166: Yes | AF166: No | AH166: 19456 | AI166: Simada
A167: =IF(INTRO!$E$33<>0,INTRO!$E$33, " ") -> Ethiopia | B167: AmharaSouth Gondar | C167: Tach Gaint | D167: 132351.7514 | E167: =IF(INTRO!$E$48="","",ROUND($D167*INTRO!$E$48,0)) -> 14029 | F167: =IF(INTRO!$E$49="","",ROUND($D167*INTRO!$E$49,0)) -> 39348 | G167: =IF(INTRO!$E$50="","",ROUND($D167*INTRO!$E$50,0)) -> 76348 | H167: 1 | I167: 0 | J167: 1 | K167: 0 | L167: =IF(INTRO!$E$37="Endemic",IF($H167>0,IF($H167=4,"Unknown",IF($H167=99,"Stopped",$D167)),0),"Not required") -> 132351.7514 | M167: =IF(INTRO!$E$39="Endemic", IF($I167>0, IF($I167=4,"Unknown",IF($I167=99,"Stopped",$D167)), 0),"Not required") -> 0 | N167: =IF(INTRO!$E$41="Endemic", IF($J167>1, IF($J167=4, "Unknown", IF($J167=99, "Surveillance", E167)), 0),"Not required") -> 0 | O167: =IF(INTRO!$E$41="Endemic", IF($J167>1, IF($J167=4, "Unknown", IF($J167=99, "Surveillance", F167)), 0),"Not required") -> 0 | P167: =IF(INTRO!$E$41="Endemic", IF($J167>1, IF($J167=4, "Unknown", IF($J167=99, "Surveillance", ROUND(D167*INTRO!$E$51,0))), 0),"Not required") -> 0 | Q167: =IF(INTRO!$E$41="Endemic", IF($J167>1, IF($J167=4, "Unknown", IF($J167=99, "Surveillance", SUM($N167:$P167))), 0),"Not required") -> 0 | R167: =IF(INTRO!$E$43="Endemic", IF($K167>1, IF($K167=4, "Unknown", IF($K167=99, "Surveillance", ROUND(E167*0.75,0))), 0),"Not required") -> 0 | S167: =IF(INTRO!$E$43="Endemic", IF($K167>1, IF($K167=4, "Unknown", IF($K167=99, "Surveillance", F167)), 0),"Not required") -> 0 | T167: =IF(INTRO!$E$43="Endemic", IF($K167>1, IF($K167=4, "Unknown", IF($K167=99, "Surveillance", G167)), 0),"Not required") -> 0 | U167: =IF(INTRO!$E$43="Endemic", IF($K167>1, IF($K167=4, "Unknown", IF($K167=99, "Surveillance", SUM($R167:$T167))), 0),"Not required") -> 0 | V167: 1 | W167: 0 | X167: 0 | Y167: 0 | AA167: Both | AF167: No | AH167: 18664 | AI167: Tach Gaint
A168: =IF(INTRO!$E$33<>0,INTRO!$E$33, " ") -> Ethiopia | B168: AmharaSouth Gondar | C168: Woreta Town | D168: 58928.98995 | E168: =IF(INTRO!$E$48="","",ROUND($D168*INTRO!$E$48,0)) -> 6247 | F168: =IF(INTRO!$E$49="","",ROUND($D168*INTRO!$E$49,0)) -> 17520 | G168: =IF(INTRO!$E$50="","",ROUND($D168*INTRO!$E$50,0)) -> 33994 | H168: 0 | I168: 0 | J168: 2 | K168: 0 | L168: =IF(INTRO!$E$37="Endemic",IF($H168>0,IF($H168=4,"Unknown",IF($H168=99,"Stopped",$D168)),0),"Not required") -> 0 | M168: =IF(INTRO!$E$39="Endemic", IF($I168>0, IF($I168=4,"Unknown",IF($I168=99,"Stopped",$D168)), 0),"Not required") -> 0 | N168: =IF(INTRO!$E$41="Endemic", IF($J168>1, IF($J168=4, "Unknown", IF($J168=99, "Surveillance", E168)), 0),"Not required") -> 6247 | O168: =IF(INTRO!$E$41="Endemic", IF($J168>1, IF($J168=4, "Unknown", IF($J168=99, "Surveillance", F168)), 0),"Not required") -> 17520 | P168: =IF(INTRO!$E$41="Endemic", IF($J168>1, IF($J168=4, "Unknown", IF($J168=99, "Surveillance", ROUND(D168*INTRO!$E$51,0))), 0),"Not required") -> 0 | Q168: =IF(INTRO!$E$41="Endemic", IF($J168>1, IF($J168=4, "Unknown", IF($J168=99, "Surveillance", SUM($N168:$P168))), 0),"Not required") -> 23767 | R168: =IF(INTRO!$E$43="Endemic", IF($K168>1, IF($K168=4, "Unknown", IF($K168=99, "Surveillance", ROUND(E168*0.75,0))), 0),"Not required") -> 0 | S168: =IF(INTRO!$E$43="Endemic", IF($K168>1, IF($K168=4, "Unknown", IF($K168=99, "Surveillance", F168)), 0),"Not required") -> 0 | T168: =IF(INTRO!$E$43="Endemic", IF($K168>1, IF($K168=4, "Unknown", IF($K168=99, "Surveillance", G168)), 0),"Not required") -> 0 | U168: =IF(INTRO!$E$43="Endemic", IF($K168>1, IF($K168=4, "Unknown", IF($K168=99, "Surveillance", SUM($R168:$T168))), 0),"Not required") -> 0 | V168: 0 | W168: 0 | X168: 1 | Y168: 0 | AE168: Yes | AF168: No | AH168: 18677 | AI168: Woreta Town
A169: =IF(INTRO!$E$33<>0,INTRO!$E$33, " ") -> Ethiopia | B169: AmharaSouth Wello | C169: Albuko | D169: 99594.37452 | E169: =IF(INTRO!$E$48="","",ROUND($D169*INTRO!$E$48,0)) -> 10557 | F169: =IF(INTRO!$E$49="","",ROUND($D169*INTRO!$E$49,0)) -> 29609 | G169: =IF(INTRO!$E$50="","",ROUND($D169*INTRO!$E$50,0)) -> 57452 | H169: 0 | I169: 0 | J169: 1 | K169: 0 | L169: =IF(INTRO!$E$37="Endemic",IF($H169>0,IF($H169=4,"Unknown",IF($H169=99,"Stopped",$D169)),0),"Not required") -> 0 | M169: =IF(INTRO!$E$39="Endemic", IF($I169>0, IF($I169=4,"Unknown",IF($I169=99,"Stopped",$D169)), 0),"Not required") -> 0 | N169: =IF(INTRO!$E$41="Endemic", IF($J169>1, IF($J169=4, "Unknown", IF($J169=99, "Surveillance", E169)), 0),"Not required") -> 0 | O169: =IF(INTRO!$E$41="Endemic", IF($J169>1, IF($J169=4, "Unknown", IF($J169=99, "Surveillance", F169)), 0),"Not required") -> 0 | P169: =IF(INTRO!$E$41="Endemic", IF($J169>1, IF($J169=4, "Unknown", IF($J169=99, "Surveillance", ROUND(D169*INTRO!$E$51,0))), 0),"Not required") -> 0 | Q169: =IF(INTRO!$E$41="Endemic", IF($J169>1, IF($J169=4, "Unknown", IF($J169=99, "Surveillance", SUM($N169:$P169))), 0),"Not required") -> 0 | R169: =IF(INTRO!$E$43="Endemic", IF($K169>1, IF($K169=4, "Unknown", IF($K169=99, "Surveillance", ROUND(E169*0.75,0))), 0),"Not required") -> 0 | S169: =IF(INTRO!$E$43="Endemic", IF($K169>1, IF($K169=4, "Unknown", IF($K169=99, "Surveillance", F169)), 0),"Not required") -> 0 | T169: =IF(INTRO!$E$43="Endemic", IF($K169>1, IF($K169=4, "Unknown", IF($K169=99, "Surveillance", G169)), 0),"Not required") -> 0 | U169: =IF(INTRO!$E$43="Endemic", IF($K169>1, IF($K169=4, "Unknown", IF($K169=99, "Surveillance", SUM($R169:$T169))), 0),"Not required") -> 0 | V169: 0 | W169: 0 | X169: 0 | Y169: 0 | AF169: No | AH169: 18534 | AI169: Albuko
A170: =IF(INTRO!$E$33<>0,INTRO!$E$33, " ") -> Ethiopia | B170: AmharaSouth Wello | C170: Ambasel | D170: 156760.4132 | E170: =IF(INTRO!$E$48="","",ROUND($D170*INTRO!$E$48,0)) -> 16617 | F170: =IF(INTRO!$E$49="","",ROUND($D170*INTRO!$E$49,0)) -> 46605 | G170: =IF(INTRO!$E$50="","",ROUND($D170*INTRO!$E$50,0)) -> 90428 | H170: 0 | I170: 0 | J170: 1 | K170: 2 | L170: =IF(INTRO!$E$37="Endemic",IF($H170>0,IF($H170=4,"Unknown",IF($H170=99,"Stopped",$D170)),0),"Not required") -> 0 | M170: =IF(INTRO!$E$39="Endemic", IF($I170>0, IF($I170=4,"Unknown",IF($I170=99,"Stopped",$D170)), 0),"Not required") -> 0 | N170: =IF(INTRO!$E$41="Endemic", IF($J170>1, IF($J170=4, "Unknown", IF($J170=99, "Surveillance", E170)), 0),"Not required") -> 0 | O170: =IF(INTRO!$E$41="Endemic", IF($J170>1, IF($J170=4, "Unknown", IF($J170=99, "Surveillance", F170)), 0),"Not required") -> 0 | P170: =IF(INTRO!$E$41="Endemic", IF($J170>1, IF($J170=4, "Unknown", IF($J170=99, "Surveillance", ROUND(D170*INTRO!$E$51,0))), 0),"Not required") -> 0 | Q170: =IF(INTRO!$E$41="Endemic", IF($J170>1, IF($J170=4, "Unknown", IF($J170=99, "Surveillance", SUM($N170:$P170))), 0),"Not required") -> 0 | R170: =IF(INTRO!$E$43="Endemic", IF($K170>1, IF($K170=4, "Unknown", IF($K170=99, "Surveillance", ROUND(E170*0.75,0))), 0),"Not required") -> 12463 | S170: =IF(INTRO!$E$43="Endemic", IF($K170>1, IF($K170=4, "Unknown", IF($K170=99, "Surveillance", F170)), 0),"Not required") -> 46605 | T170: =IF(INTRO!$E$43="Endemic", IF($K170>1, IF($K170=4, "Unknown", IF($K170=99, "Surveillance", G170)), 0),"Not required") -> 90428 | U170: =IF(INTRO!$E$43="Endemic", IF($K170>1, IF($K170=4, "Unknown", IF($K170=99, "Surveillance", SUM($R170:$T170))), 0),"Not required") -> 149496 | V170: 0 | W170: 0 | X170: 0 | Y170: 0 | AH170: 18536 | AI170: Ambasel
A171: =IF(INTRO!$E$33<>0,INTRO!$E$33, " ") -> Ethiopia | B171: AmharaSouth Wello | C171: Argoba | D171: 44389.34061 | E171: =IF(INTRO!$E$48="","",ROUND($D171*INTRO!$E$48,0)) -> 4705 | F171: =IF(INTRO!$E$49="","",ROUND($D171*INTRO!$E$49,0)) -> 13197 | G171: =IF(INTRO!$E$50="","",ROUND($D171*INTRO!$E$50,0)) -> 25606 | H171: 0 | I171: 1 | J171: 1 | K171: 1 | L171: =IF(INTRO!$E$37="Endemic",IF($H171>0,IF($H171=4,"Unknown",IF($H171=99,"Stopped",$D171)),0),"Not required") -> 0 | M171: =IF(INTRO!$E$39="Endemic", IF($I171>0, IF($I171=4,"Unknown",IF($I171=99,"Stopped",$D171)), 0),"Not required") -> 44389.34061 | N171: =IF(INTRO!$E$41="Endemic", IF($J171>1, IF($J171=4, "Unknown", IF($J171=99, "Surveillance", E171)), 0),"Not required") -> 0 | O171: =IF(INTRO!$E$41="Endemic", IF($J171>1, IF($J171=4, "Unknown", IF($J171=99, "Surveillance", F171)), 0),"Not required") -> 0 | P171: =IF(INTRO!$E$41="Endemic", IF($J171>1, IF($J171=4, "Unknown", IF($J171=99, "Surveillance", ROUND(D171*INTRO!$E$51,0))), 0),"Not required") -> 0 | Q171: =IF(INTRO!$E$41="Endemic", IF($J171>1, IF($J171=4, "Unknown", IF($J171=99, "Surveillance", SUM($N171:$P171))), 0),"Not required") -> 0 | R171: =IF(INTRO!$E$43="Endemic", IF($K171>1, IF($K171=4, "Unknown", IF($K171=99, "Surveillance", ROUND(E171*0.75,0))), 0),"Not required") -> 0 | S171: =IF(INTRO!$E$43="Endemic", IF($K171>1, IF($K171=4, "Unknown", IF($K171=99, "Surveillance", F171)), 0),"Not required") -> 0 | T171: =IF(INTRO!$E$43="Endemic", IF($K171>1, IF($K171=4, "Unknown", IF($K171=99, "Surveillance", G171)), 0),"Not required") -> 0 | U171: =IF(INTRO!$E$43="Endemic", IF($K171>1, IF($K171=4, "Unknown", IF($K171=99, "Surveillance", SUM($R171:$T171))), 0),"Not required") -> 0 | V171: 0 | W171: 2 | X171: 0 | Y171: 0 | AF171: No | AH171: 18502 | AI171: Argoba
A172: =IF(INTRO!$E$33<>0,INTRO!$E$33, " ") -> Ethiopia | B172: AmharaSouth Wello | C172: Dalanta | D172: 146876.4326 | E172: =IF(INTRO!$E$48="","",ROUND($D172*INTRO!$E$48,0)) -> 15569 | F172: =IF(INTRO!$E$49="","",ROUND($D172*INTRO!$E$49,0)) -> 43666 | G172: =IF(INTRO!$E$50="","",ROUND($D172*INTRO!$E$50,0)) -> 84727 | H172: 0 | I172: 0 | J172: 1 | K172: 1 | L172: =IF(INTRO!$E$37="Endemic",IF($H172>0,IF($H172=4,"Unknown",IF($H172=99,"Stopped",$D172)),0),"Not required") -> 0 | M172: =IF(INTRO!$E$39="Endemic", IF($I172>0, IF($I172=4,"Unknown",IF($I172=99,"Stopped",$D172)), 0),"Not required") -> 0 | N172: =IF(INTRO!$E$41="Endemic", IF($J172>1, IF($J172=4, "Unknown", IF($J172=99, "Surveillance", E172)), 0),"Not required") -> 0 | O172: =IF(INTRO!$E$41="Endemic", IF($J172>1, IF($J172=4, "Unknown", IF($J172=99, "Surveillance", F172)), 0),"Not required") -> 0 | P172: =IF(INTRO!$E$41="Endemic", IF($J172>1, IF($J172=4, "Unknown", IF($J172=99, "Surveillance", ROUND(D172*INTRO!$E$51,0))), 0),"Not required") -> 0 | Q172: =IF(INTRO!$E$41="Endemic", IF($J172>1, IF($J172=4, "Unknown", IF($J172=99, "Surveillance", SUM($N172:$P172))), 0),"Not required") -> 0 | R172: =IF(INTRO!$E$43="Endemic", IF($K172>1, IF($K172=4, "Unknown", IF($K172=99, "Surveillance", ROUND(E172*0.75,0))), 0),"Not required") -> 0 | S172: =IF(INTRO!$E$43="Endemic", IF($K172>1, IF($K172=4, "Unknown", IF($K172=99, "Surveillance", F172)), 0),"Not required") -> 0 | T172: =IF(INTRO!$E$43="Endemic", IF($K172>1, IF($K172=4, "Unknown", IF($K172=99, "Surveillance", G172)), 0),"Not required") -> 0 | U172: =IF(INTRO!$E$43="Endemic", IF($K172>1, IF($K172=4, "Unknown", IF($K172=99, "Surveillance", SUM($R172:$T172))), 0),"Not required") -> 0 | V172: 0 | W172: 0 | X172: 0 | Y172: 0 | AF172: No | AH172: 18580 | AI172: Dalanta
A173: =IF(INTRO!$E$33<>0,INTRO!$E$33, " ") -> Ethiopia | B173: AmharaSouth Wello | C173: Borena | D173: 203471.1694 | E173: =IF(INTRO!$E$48="","",ROUND($D173*INTRO!$E$48,0)) -> 21568 | F173: =IF(INTRO!$E$49="","",ROUND($D173*INTRO!$E$49,0)) -> 60492 | G173: =IF(INTRO!$E$50="","",ROUND($D173*INTRO!$E$50,0)) -> 117374 | H173: 0 | I173: 0 | J173: 1 | K173: 2 | L173: =IF(INTRO!$E$37="Endemic",IF($H173>0,IF($H173=4,"Unknown",IF($H173=99,"Stopped",$D173)),0),"Not required") -> 0 | M173: =IF(INTRO!$E$39="Endemic", IF($I173>0, IF($I173=4,"Unknown",IF($I173=99,"Stopped",$D173)), 0),"Not required") -> 0 | N173: =IF(INTRO!$E$41="Endemic", IF($J173>1, IF($J173=4, "Unknown", IF($J173=99, "Surveillance", E173)), 0),"Not required") -> 0 | O173: =IF(INTRO!$E$41="Endemic", IF($J173>1, IF($J173=4, "Unknown", IF($J173=99, "Surveillance", F173)), 0),"Not required") -> 0 | P173: =IF(INTRO!$E$41="Endemic", IF($J173>1, IF($J173=4, "Unknown", IF($J173=99, "Surveillance", ROUND(D173*INTRO!$E$51,0))), 0),"Not required") -> 0 | Q173: =IF(INTRO!$E$41="Endemic", IF($J173>1, IF($J173=4, "Unknown", IF($J173=99, "Surveillance", SUM($N173:$P173))), 0),"Not required") -> 0 | R173: =IF(INTRO!$E$43="Endemic", IF($K173>1, IF($K173=4, "Unknown", IF($K173=99, "Surveillance", ROUND(E173*0.75,0))), 0),"Not required") -> 16176 | S173: =IF(INTRO!$E$43="Endemic", IF($K173>1, IF($K173=4, "Unknown", IF($K173=99, "Surveillance", F173)), 0),"Not required") -> 60492 | T173: =IF(INTRO!$E$43="Endemic", IF($K173>1, IF($K173=4, "Unknown", IF($K173=99, "Surveillance", G173)), 0),"Not required") -> 117374 | U173: =IF(INTRO!$E$43="Endemic", IF($K173>1, IF($K173=4, "Unknown", IF($K173=99, "Surveillance", SUM($R173:$T173))), 0),"Not required") -> 194042 | V173: 0 | W173: 0 | X173: 0 | Y173: 0 | AH173: 18629 | AI173: Borena
A174: =IF(INTRO!$E$33<>0,INTRO!$E$33, " ") -> Ethiopia | B174: AmharaSouth Wello | C174: Dessie Town | D174: 305688.5177 | E174: =IF(INTRO!$E$48="","",ROUND($D174*INTRO!$E$48,0)) -> 32403 | F174: =IF(INTRO!$E$49="","",ROUND($D174*INTRO!$E$49,0)) -> 90881 | G174: =IF(INTRO!$E$50="","",ROUND($D174*INTRO!$E$50,0)) -> 176339 | H174: 0 | I174: 0 | J174: 1 | K174: 0 | L174: =IF(INTRO!$E$37="Endemic",IF($H174>0,IF($H174=4,"Unknown",IF($H174=99,"Stopped",$D174)),0),"Not required") -> 0 | M174: =IF(INTRO!$E$39="Endemic", IF($I174>0, IF($I174=4,"Unknown",IF($I174=99,"Stopped",$D174)), 0),"Not required") -> 0 | N174: =IF(INTRO!$E$41="Endemic", IF($J174>1, IF($J174=4, "Unknown", IF($J174=99, "Surveillance", E174)), 0),"Not required") -> 0 | O174: =IF(INTRO!$E$41="Endemic", IF($J174>1, IF($J174=4, "Unknown", IF($J174=99, "Surveillance", F174)), 0),"Not required") -> 0 | P174: =IF(INTRO!$E$41="Endemic", IF($J174>1, IF($J174=4, "Unknown", IF($J174=99, "Surveillance", ROUND(D174*INTRO!$E$51,0))), 0),"Not required") -> 0 | Q174: =IF(INTRO!$E$41="Endemic", IF($J174>1, IF($J174=4, "Unknown", IF($J174=99, "Surveillance", SUM($N174:$P174))), 0),"Not required") -> 0 | R174: =IF(INTRO!$E$43="Endemic", IF($K174>1, IF($K174=4, "Unknown", IF($K174=99, "Surveillance", ROUND(E174*0.75,0))), 0),"Not required") -> 0 | S174: =IF(INTRO!$E$43="Endemic", IF($K174>1, IF($K174=4, "Unknown", IF($K174=99, "Surveillance", F174)), 0),"Not required") -> 0 | T174: =IF(INTRO!$E$43="Endemic", IF($K174>1, IF($K174=4, "Unknown", IF($K174=99, "Surveillance", G174)), 0),"Not required") -> 0 | U174: =IF(INTRO!$E$43="Endemic", IF($K174>1, IF($K174=4, "Unknown", IF($K174=99, "Surveillance", SUM($R174:$T174))), 0),"Not required") -> 0 | V174: 0 | W174: 0 | X174: 0 | Y174: 0 | AF174: No | AH174: 18584 | AI174: Dessie Town
A175: =IF(INTRO!$E$33<>0,INTRO!$E$33, " ") -> Ethiopia | B175: AmharaSouth Wello | C175: Dessie zuria | D175: 196548.6542 | E175: =IF(INTRO!$E$48="","",ROUND($D175*INTRO!$E$48,0)) -> 20834 | F175: =IF(INTRO!$E$49="","",ROUND($D175*INTRO!$E$49,0)) -> 58434 | G175: =IF(INTRO!$E$50="","",ROUND($D175*INTRO!$E$50,0)) -> 113381 | H175: 0 | I175: 0 | J175: 3 | K175: 0 | L175: =IF(INTRO!$E$37="Endemic",IF($H175>0,IF($H175=4,"Unknown",IF($H175=99,"Stopped",$D175)),0),"Not required") -> 0 | M175: =IF(INTRO!$E$39="Endemic", IF($I175>0, IF($I175=4,"Unknown",IF($I175=99,"Stopped",$D175)), 0),"Not required") -> 0 | N175: =IF(INTRO!$E$41="Endemic", IF($J175>1, IF($J175=4, "Unknown", IF($J175=99, "Surveillance", E175)), 0),"Not required") -> 20834 | O175: =IF(INTRO!$E$41="Endemic", IF($J175>1, IF($J175=4, "Unknown", IF($J175=99, "Surveillance", F175)), 0),"Not required") -> 58434 | P175: =IF(INTRO!$E$41="Endemic", IF($J175>1, IF($J175=4, "Unknown", IF($J175=99, "Surveillance", ROUND(D175*INTRO!$E$51,0))), 0),"Not required") -> 0 | Q175: =IF(INTRO!$E$41="Endemic", IF($J175>1, IF($J175=4, "Unknown", IF($J175=99, "Surveillance", SUM($N175:$P175))), 0),"Not required") -> 79268 | R175: =IF(INTRO!$E$43="Endemic", IF($K175>1, IF($K175=4, "Unknown", IF($K175=99, "Surveillance", ROUND(E175*0.75,0))), 0),"Not required") -> 0 | S175: =IF(INTRO!$E$43="Endemic", IF($K175>1, IF($K175=4, "Unknown", IF($K175=99, "Surveillance", F175)), 0),"Not required") -> 0 | T175: =IF(INTRO!$E$43="Endemic", IF($K175>1, IF($K175=4, "Unknown", IF($K175=99, "Surveillance", G175)), 0),"Not required") -> 0 | U175: =IF(INTRO!$E$43="Endemic", IF($K175>1, IF($K175=4, "Unknown", IF($K175=99, "Surveillance", SUM($R175:$T175))), 0),"Not required") -> 0 | V175: 0 | W175: 0 | X175: 2 | Y175: 0 | AE175: Yes | AF175: No | AH175: 18565 | AI175: Dessie zuria
